Workbook

Sheet Inputs
C1: Selected Alternative: | D1: 6 | E1: 1 | F1: 2 | G1: 3 | H1: 4 | I1: 5 | J1: 6
C2: Selected Case: | D2: 2
B3: Investment | F3: Investment Cost Components | N3: Total Cost | O3: Cost/Capacity
A4: # | B4: Alternative | C4: Last stage | D4: Capacity_1 | E4: Capacity_2 | F4: K_1 | G4: L_1 | H4: K_2 | I4: L_2 | J4: a | K4: b | L4: c | M4: d | N4: I | O4: I/Q | S4: Include these Alternatives in Macro:
S5: 1 | T5: 1 | U5: =T5*S5 -> 1
A6: 1 | B6: S | C6: 1 | D6: 1 | E6: 1 | F6: =M50 -> 1750 | G6: =N50 -> 500 | H6: 0 | I6: 0 | J6: 0 | K6: 0 | L6: 0 | M6: 0 | N6: =SUM(F6:M6) -> 2250 | O6: =N6/E6 -> 2250 | S6: 2 | T6: 1 | U6: =T6*S6 -> 2
A7: 2 | B7: HH | C7: 1 | D7: 2 | E7: 2 | F7: =D7*F$6 -> 3500 | G7: =D7*G6 -> 1000 | H7: 0 | I7: 0 | J7: 0 | K7: 0 | L7: 0 | M7: =R50 -> 400 | N7: =SUM(F7:M7) -> 4900 | O7: =N7/E7 -> 2450 | S7: 3 | T7: 1 | U7: =T7*S7 -> 3
A8: 3 | B8: VV | C8: 1 | D8: 2 | E8: 2 | F8: =D8*F$6 -> 3500 | G8: =G6 -> 500 | H8: 0 | I8: 0 | J8: 0 | K8: =P50 -> 250 | L8: 0 | M8: =M7 -> 400 | N8: =SUM(F8:M8) -> 4650 | O8: =N8/E8 -> 2325 | S8: 4 | T8: 1 | U8: =T8*S8 -> 4
A9: 4 | B9: HP | C9: 2 | D9: 1 | E9: 2 | F9: =D9*F$6 -> 1750 | G9: =G6*1.5 -> 750 | H9: =F6 -> 1750 | I9: =G6*0.5 -> 250 | J9: =50%*J10 -> 25 | K9: 0 | L9: 0 | M9: =IF(AND(ConfigCase=10,OR(Alternative=4,Alternative=5)),$M$1,0.5)*M7 -> 200 | N9: =SUM(F9:M9) -> 4725 | O9: =N9/E9 -> 2362.5 | S9: 5 | T9: 1 | U9: =T9*S9 -> 5
A10: 5 | B10: VP | C10: 2 | D10: 1 | E10: 2 | F10: =D10*F$6 -> 1750 | G10: =G6 -> 500 | H10: =F6 -> 1750 | I10: 0 | J10: =O50 -> 50 | K10: =K8 -> 250 | L10: =Q50 -> 30 | M10: =IF(AND(ConfigCase=10,OR(Alternative=4,Alternative=5)),$M$1,0.5)*M8 -> 200 | N10: =SUM(F10:M10) -> 4530 | O10: =N10/E10 -> 2265
A11: 6 | B11: 5 stage VP | C11: the five stage VP alternative is configured in the table below
B13: Lookup tables for configuration of alternatives 1-6 | K13: Selected
D14: Stage s_i | E14: S | F14: HH | G14: VV | H14: HP | I14: VP | J14: 5 stage VP | K14: Alternative
B16: Investment Cost | D16: 1 | E16: =SUM(F6:G6,J6,L6,M6) -> 2250 | F16: =SUM(F7:G7,J7,L7,M7,K7) -> 4900 | G16: =SUM(F8:G8,J8,L8,M8,K8) -> 4650 | H16: =SUM(F9:G9,L9) -> 2500 | I16: =SUM(F10:G10,L10) -> 2280 | J16: =J22*J28 -> 1700 | K16: =CHOOSE(Alternative,E16,F16,G16,H16,I16,J16) -> 1700
B17: Investment Cost | D17: =D16+1 -> 2 | E17: 0 | F17: 0 | G17: 0 | H17: =H9+I9+K9+M9+J9 -> 2225 | I17: =H10+I10+K10+M10+J10 -> 2250 | J17: =J23*J29 -> 4400 | K17: =CHOOSE(Alternative,E17,F17,G17,H17,I17,J17) -> 4400
B18: Investment Cost | D18: =D17+1 -> 3 | E18: 0 | F18: 0 | G18: 0 | H18: 0 | I18: 0 | J18: =J24*J30 -> 3000 | K18: =CHOOSE(Alternative,E18,F18,G18,H18,I18,J18) -> 3000
B19: Investment Cost | D19: =D18+1 -> 4 | E19: 0 | F19: 0 | G19: 0 | H19: 0 | I19: 0 | J19: =J25*J31 -> 6500 | K19: =CHOOSE(Alternative,E19,F19,G19,H19,I19,J19) -> 6500
B20: Investment Cost | D20: =D19+1 -> 5 | E20: 0 | F20: 0 | G20: 0 | H20: 0 | I20: 0 | J20: =J26*J32 -> 3000 | K20: =CHOOSE(Alternative,E20,F20,G20,H20,I20,J20) -> 3000
B22: Capacity | D22: 1 | E22: =D6 -> 1 | F22: =D7 -> 2 | G22: =D8 -> 2 | H22: =D9 -> 1 | I22: =D10 -> 1 | J22: 1 | K22: =CHOOSE(Alternative,E22,F22,G22,H22,I22,J22) -> 1
B23: Capacity | D23: =D22+1 -> 2 | E23: =E6-D6 -> 0 | F23: =E7-D7 -> 0 | G23: =E8-D8 -> 0 | H23: =E9-D9 -> 1 | I23: =E10-D10 -> 1 | J23: 2 | K23: =CHOOSE(Alternative,E23,F23,G23,H23,I23,J23) -> 2
B24: Capacity | D24: =D23+1 -> 3 | E24: 0 | F24: 0 | G24: 0 | H24: 0 | I24: 0 | J24: 1 | K24: =CHOOSE(Alternative,E24,F24,G24,H24,I24,J24) -> 1
B25: Capacity | D25: =D24+1 -> 4 | E25: 0 | F25: 0 | G25: 0 | H25: 0 | I25: 0 | J25: 4 | K25: =CHOOSE(Alternative,E25,F25,G25,H25,I25,J25) -> 4
B26: Capacity | D26: =D25+1 -> 5 | E26: 0 | F26: 0 | G26: 0 | H26: 0 | I26: 0 | J26: 1 | K26: =CHOOSE(Alternative,E26,F26,G26,H26,I26,J26) -> 1
B28: Investment Cost/Capacity | D28: 1 | E28: =IFERROR(E16/E22,0) -> 2250 | F28: 2450 | G28: 2325 | H28: 2500 | I28: 2280 | J28: 1700 | K28: =CHOOSE(Alternative,E28,F28,G28,H28,I28,J28) -> 1700
B29: Investment Cost/Capacity | D29: =D28+1 -> 2 | E29: 0 | F29: 0 | G29: 0 | H29: 2225 | I29: 2250 | J29: 2200 | K29: =CHOOSE(Alternative,E29,F29,G29,H29,I29,J29) -> 2200
B30: Investment Cost/Capacity | D30: =D29+1 -> 3 | E30: 0 | F30: 0 | G30: 0 | H30: 0 | I30: 0 | J30: 3000 | K30: =CHOOSE(Alternative,E30,F30,G30,H30,I30,J30) -> 3000
B31: Investment Cost/Capacity | D31: =D30+1 -> 4 | E31: 0 | F31: 0 | G31: 0 | H31: 0 | I31: 0 | J31: 1625 | K31: =CHOOSE(Alternative,E31,F31,G31,H31,I31,J31) -> 1625
B32: Investment Cost/Capacity | D32: =D31+1 -> 5 | E32: 0 | F32: 0 | G32: 0 | H32: 0 | I32: 0 | J32: 3000 | K32: =CHOOSE(Alternative,E32,F32,G32,H32,I32,J32) -> 3000
B34: Last stage of project | E34: =TRANSPOSE(C6:C10) -> 1 | F34: 1 | G34: 1 | H34: 2 | I34: 2 | J34: 5 | K34: =CHOOSE(Alternative,E34,F34,G34,H34,I34,J34) -> 5
B37: The model can run on any of the below cases 1-10; case 8 and 9 are randomised cases, case 10 can be used to show any of the 10,000 randomly generated trials.
B38: Cases | I38: # | J38: P | K38: delta | L38: sigma | M38: K_1 | N38: L_1 | O38: a | P38: b | Q38: c | R38: d | S38: Value V_0 | T38: Threshold1 | U38: Threshold2 | V38: Exercise1 | W38: Excercise2 | X38: CombineStages
B39: CBD, low returns, high uncertainty, high cost, huge land cost | I39: 1 | J39: 300 | K39: 0.04 | L39: 0.35 | M39: 2000 | N39: 1000 | O39: 50 | P39: 2000 | Q39: 500 | R39: 800
B40: CBD, low returns, low uncertainty, medium cost, large land cost | I40: 2 | J40: 200 | K40: 0.04 | L40: 0.3 | M40: 1750 | N40: 500 | O40: 50 | P40: 250 | Q40: 30 | R40: 400
B41: Green field, medium returns, medium uncertainty, medium cost, low land cost | I41: 3 | J41: 120 | K41: 0.06 | L41: 0.15 | M41: 1000 | N41: 200 | O41: 50 | P41: 200 | Q41: 50 | R41: 1000
B42: Model 2 configuration | I42: 4 | J42: 200 | K42: 0.04 | L42: 0.2 | M42: 1500 | N42: 500 | O42: 0 | P42: 1000 | Q42: 0 | R42: 0
B43: Model 3 configuration | I43: 5 | J43: 200 | K43: 0.04 | L43: 0.2 | M43: 2000 | N43: 500 | O43: 200 | P43: 800 | Q43: 100 | R43: 200
B44: Available Case | I44: 6
B45: Available Case | I45: 7
B46: Random environment (mix of possible assumptions, realistic distributions) | I46: 8 | J46: =[1]!gen_Lognormal(0,J57)*J56 -> 218.6138489 | K46: =MAX([1]!gen_Lognormal(0,K57)*K56,K54) -> 0.05805828656 | L46: =[1]!gen_Lognormal(0,L57)*L56 -> 0.2062579561 | M46: =[1]!gen_Lognormal(0,M57)*M56 -> 4161.447322 | N46: =[1]!gen_Lognormal(0,N57)*N56*M46 -> 3127.354894 | O46: =[1]!gen_Lognormal(0,O57)*O56 -> 28.13456026 | P46: =[1]!gen_Lognormal(0,P57)*P56*M46 -> 1593.679023 | Q46: =[1]!gen_Lognormal(0,Q57)*Q56 -> 12.92165718 | R46: =[1]!gen_Normal(R56,R56*R57) -> 1997.995733
B47: Random environment (gen_uniform mix of possible assumptions) | I47: 9 | J47: =[1]!gen_Uniform(J54,J55) -> 337.1697958 | K47: =[1]!gen_Uniform(K54,K55) -> 0.1184301994 | L47: =[1]!gen_Uniform(L54,L55) -> 0.1725589506 | M47: =[1]!gen_Uniform(M54,M55) -> 2545.368728 | N47: =[1]!gen_Uniform(N54,N55)*M47 -> 1114.76816 | O47: =[1]!gen_Uniform(O54,O55) -> 59.31307183 | P47: =[1]!gen_Uniform(P54,P55)*M47 -> 1990.524516 | Q47: =[1]!gen_Uniform(Q54,Q55) -> 74.79818215 | R47: =[1]!gen_Uniform(R54,R55) -> -320.5131715
B48: Random Trial # | C48: ='Random trials'!L2 -> 1 | I48: 10 | J48: =INDEX('Random trials'!B5:B10004,MATCH('Random trials'!$L$2,'Random trials'!$A$5:$A$10004,0)) -> 139.8222165 | K48: =INDEX('Random trials'!C5:C10004,MATCH('Random trials'!$L$2,'Random trials'!$A$5:$A$10004,0)) -> 0.05094286239 | L48: =INDEX('Random trials'!D5:D10004,MATCH('Random trials'!$L$2,'Random trials'!$A$5:$A$10004,0)) -> 0.2124338043 | M48: =INDEX('Random trials'!E5:E10004,MATCH('Random trials'!$L$2,'Random trials'!$A$5:$A$10004,0)) -> 2888.355946 | N48: =INDEX('Random trials'!F5:F10004,MATCH('Random trials'!$L$2,'Random trials'!$A$5:$A$10004,0)) -> 2383.032587 | O48: =INDEX('Random trials'!G5:G10004,MATCH('Random trials'!$L$2,'Random trials'!$A$5:$A$10004,0)) -> 43.61874391 | P48: =INDEX('Random trials'!H5:H10004,MATCH('Random trials'!$L$2,'Random trials'!$A$5:$A$10004,0)) -> 962.5513728 | Q48: =INDEX('Random trials'!I5:I10004,MATCH('Random trials'!$L$2,'Random trials'!$A$5:$A$10004,0)) -> 47.88102915 | R48: =INDEX('Random trials'!J5:J10004,MATCH('Random trials'!$L$2,'Random trials'!$A$5:$A$10004,0)) -> -204.5720525
B50: Selected Case | I50: =CHOOSE($D$2,I39,I40,I41,I42,I43,I44,I45,I46,I47,I48) -> 2 | J50: 200 | K50: 0.04 | L50: 0.3 | M50: 1750 | N50: 500 | O50: 50 | P50: 250 | Q50: 30 | R50: 400 | S50: =Model!O9 -> 27099.18604 | T50: =Model!I9 -> 200.7009308 | U50: =Model!I10 -> 234.4321796 | V50: =Model!J9 -> wait | W50: =Model!J10 -> wait | X50: =Model!K9 -> 1
B53: Random environment variable specifications | J53: P | K53: delta | L53: sigma | M53: K_1 | N53: L_1 | O53: a | P53: b | Q53: c | R53: d-e
C54: Min | J54: 10 | K54: 0.03 | L54: 0.15 | M54: 1000 | N54: 0.1 | O54: 0 | P54: 0.05 | Q54: 0 | R54: -1000
C55: Max | J55: 1000 | K55: 0.15 | L55: 0.4 | M55: 5000 | N55: 0.5 | O55: 100 | P55: 1 | Q55: 100 | R55: =R56*3 -> 2250
C56: Mean | J56: 150 | K56: 0.06 | L56: 0.25 | M56: 1500 | N56: 0.25 | O56: 50 | P56: 0.25 | Q56: 50 | R56: =J56*5 -> 750
C57: Stdev | J57: 0.5 | K57: 0.25 | L57: 0.25 | M57: 1 | N57: 1 | O57: 0.5 | P57: 0.5 | Q57: 0.5 | R57: 1
C58: Distribution | J58: ln | K58: ln | L58: ln | M58: ln | N58: ln, % of K_1 | O58: ln | P58: ln, % of K_1 | Q58: ln | R58: normal

Sheet Model
V1: 1 | W1: Model 1 | X1: ={"Param","Model!$AM$120","Model!$AM$108","1,000","1","3","1","Model!$C$1","Model!$G$9:$G$13","Model!$D$1",""} -> Param
V2: 2 | W2: Model 2 | X2: ={"Sim",12,"P","'Model'!$AD$120","delta","'Model'!$AE$120","sigma","'Model'!$AF$120","K_1","'Model'!$AG$120","L_1","'Model'!$AH$120","a","'Model'!$AI$120","b","'Model'!$AJ$120","c","'Model'!$AK$120","d-e","'Model'!$AL$120","Value","'Model'!$AM$120","Threshold1","'Model'!$AN$120","Threshold2","'Model'!$AO$120","1","3","1,000","0",""} -> Sim
B3: Flexible Real Estate Investment and Development | V3: 3 | W3: Model 3 | X3: ={"Sim",9,"P","'Inputs'!$J$50","delta","'Inputs'!$K$50","sigma","'Inputs'!$L$50","K_1","'Inputs'!$M$50","L_1","'Inputs'!$N$50","a","'Inputs'!$O$50","b","'Inputs'!$P$50","c","'Inputs'!$Q$50","d-e","'Inputs'!$R$50","1","4","10,000","0",""} -> Sim
B4: Perpetual Compound Option
B6: General Assumptions | G6: Stage | H6: Optimal Invest Threshold | K6: =C30 -> Combine next | M6: Valuation of each Stage
G7: s_i | H7: P_i | I7: Price | J7: Rule | K7: =C31 -> j-1 Stages | L7: Exercise? | M7: Option Value | N7: CF Value | O7: V_i(P) | P7: waiting | Q7: exercise | R7: V_i(P)-I_i
B9: Market price | C9: 2 | D9: =CHOOSE(C9,D10,D11) -> 200 | E9: P | G9: 0 | H9: P_1 | I9: =L34*delta*$D$41 -> 200.7009308 | J9: =IF(G9>=s_n,0,IF(I9<price,"exercise","wait")) -> wait | K9: =C34 -> 1 | L9: =IF(J9="exercise",1,0) -> 0 | M9: =IF(L9=1,Q9,IF(K9<K8,M8,$Q33*MarketPrice^beta)) -> 27099.18604 | N9: =IF(K9<K8,N8,$D33*MarketPrice/delta) -> 0 | O9: =MAX(P9,Q9) -> 27099.18604 | P9: =IF(L9=1,Q9,IF(K9<K8,P8,$Q33*MarketPrice^beta+$D33*MarketPrice/delta)) -> 27099.18604 | Q9: =OFFSET($Q33,K9,0)*MarketPrice^beta+$D34*MarketPrice/delta-G22 -> 27099.17035
B10: Static market price | D10: 100 | G10: 1 | H10: P_2 | I10: =L35*delta*$D$41 -> 234.4321796 | J10: wait | K10: =C35 -> 3 | L10: 0 | M10: 23799.17035 | N10: 5000 | O10: 28799.17035 | P10: 28799.17035 | Q10: =OFFSET($Q34,K10,0)*MarketPrice^beta+$D35*MarketPrice/delta-G23 -> 28566.68439 | R10: =OFFSET($Q33,K9,0)*MarketPrice^beta+$D34*MarketPrice/delta-I22 -> 27099.17035
B11: Scenario current market price | D11: =Inputs!J50 -> 200 | G11: =G10+1 -> 2 | H11: P_3 | I11: =L36*delta*$D$41 -> 234.4321796 | J11: wait | K11: =C36 -> 2 | L11: 0 | M11: 23799.17035 | N11: 5000 | O11: 28799.17035 | P11: 28799.17035 | Q11: =OFFSET($Q35,K11,0)*MarketPrice^beta+$D36*MarketPrice/delta-G24 -> 28566.68439 | R11: =OFFSET($Q34,K10,0)*MarketPrice^beta+$D35*MarketPrice/delta-I23 -> 26866.68439
B12: Convenience yield | D12: =Inputs!K50 -> 0.04 | E12: delta | G12: =G11+1 -> 3 | H12: P_4 | I12: =L37*delta*$D$41 -> 234.4321796 | J12: wait | K12: =C37 -> 1 | L12: 0 | M12: 23799.17035 | N12: 5000 | O12: 28799.17035 | P12: 28799.17035 | Q12: =OFFSET($Q36,K12,0)*MarketPrice^beta+$D37*MarketPrice/delta-G25 -> 28566.68439 | R12: =OFFSET($Q35,K11,0)*MarketPrice^beta+$D36*MarketPrice/delta-I24 -> 26866.68439
B13: Discount rate | D13: 0.05 | E13: r | G13: =G12+1 -> 4 | H13: P_5 | I13: =L38*delta*$D$41 -> 354.1781131 | J13: wait | K13: =C38 -> 1 | L13: 0 | M13: 2466.68439 | N13: 40000 | O13: 42466.68439 | P13: 42466.68439 | Q13: =OFFSET($Q37,K13,0)*MarketPrice^beta+$D38*MarketPrice/delta-G26 -> 42000 | R13: =OFFSET($Q36,K12,0)*MarketPrice^beta+$D37*MarketPrice/delta-I25 -> 26866.68439
B14: Average growth in prices | D14: =D13-D12 -> 0.01 | E14: mu | G14: =G13+1 -> 5 | H14: P_6 | I14: ∞ | J14: 0 | K14: 1 | L14: 0 | M14: 0 | N14: 45000 | O14: 45000 | P14: 45000 | R14: =OFFSET($Q37,K13,0)*MarketPrice^beta+$D38*MarketPrice/delta-I26 -> 26400
B15: Volatility in prices | D15: =Inputs!L50 -> 0.3 | E15: sigma
B16: Current stage of project | D16: 0 | E16: s_i
B17: Last stage of project | D17: =Inputs!K34 -> 5 | E17: s_n
S18: Simplified analysis if no combination of phases were possible or allowed:
B19: Cost Assumptions | D19: Investment Cost | H19: Cumulative Cost | L19: Capacity Assumptions | N19: Added Capacity | P19: Cumulative Capacity | T19: Delta Q_i^beta | V19: Cumul Frac | W19: Option Coefficient | Y19: Value of the Project
C20: Stage s_i | D20: per unit Q | E20: per Stage | F20: Parameter | G20: CombiStage | H20: total | I20: CombiStage | J20: Parameter | L20: Item | M20: Stage s_i | N20: per Stage | O20: Parameter | P20: total | Q20: Parameter | S20: Stage s_i | T20: Delta K_i^(beta-1) | V20: i+1 to n | W20: A_i | X20: Value | Y20: V_i(P) | Z20: Value | AA20: V_i(P)-I_i
B22: Investment Cost | C22: 1 | D22: =Inputs!K28 -> 1700 | E22: =D22*N22 -> 1700 | F22: dI_1 | G22: =SUMPRODUCT(--($D$34:$D$38=D34),($E$22:$E$26)) -> 1700 | H22: =SUM(E22:E$22) -> 1700 | I22: =IF(C33>C34,I21,OFFSET(H22,C34-1,0)) -> 1700 | J22: I_1 | L22: Capacity | M22: 1 | N22: =Inputs!K22 -> 1 | O22: dQ_1 | P22: =SUM(N22:N$22) -> 1 | Q22: Q_1 | S22: 0 | U22: 0 | V22: =SUM(U23:U$27) -> 0.1844323157 | W22: ="A_"&S22 -> A_0 | X22: =$D$42*$D$43*V22 -> 9.111410276 | Y22: ="V_"&S22 -> V_0 | Z22: =X22*MarketPrice^beta+P21*MarketPrice/delta -> 27525.38962 | AA22: =OFFSET($Q33,K9,0)*MarketPrice^beta+$P22*MarketPrice/delta-H22 -> 27099.17035
B23: Investment Cost | C23: =C22+1 -> 2 | D23: =Inputs!K29 -> 2200 | E23: =D23*N23 -> 4400 | F23: dI_2 | G23: =SUMPRODUCT(--($D$34:$D$38=D35),($E$22:$E$26)) -> 13900 | H23: =SUM(E$22:E23) -> 6100 | I23: =IF(C34>C35,I22,OFFSET(H23,C35-1,0)) -> 15600 | J23: I_2 | L23: Capacity | M23: =M22+1 -> 2 | N23: =Inputs!K23 -> 2 | O23: dQ_2 | P23: =SUM(N$22:N23) -> 3 | Q23: Q_2 | S23: =C22 -> 1 | U23: =IFERROR((N22^beta)/(E22^(beta-1)),0) -> 0.0221115684 | V23: =SUM(U24:U$27) -> 0.1623207473 | W23: A_1 | X23: 8.019044381 | Y23: V_1 | Z23: 29225.37393 | AA23: 11366.68439
B24: Investment Cost | C24: =C23+1 -> 3 | D24: =Inputs!K30 -> 3000 | E24: =D24*N24 -> 3000 | F24: dI_3 | G24: =SUMPRODUCT(--($D$34:$D$38=D36),($E$22:$E$26)) -> 13900 | H24: =SUM(E$22:E24) -> 9100 | I24: =IF(C35>C36,I23,OFFSET(H24,C36-1,0)) -> 15600 | J24: I_3 | L24: Capacity | M24: =M23+1 -> 3 | N24: =Inputs!K24 -> 1 | O24: dQ_3 | P24: =SUM(N$22:N24) -> 4 | Q24: Q_3 | S24: =C23 -> 2 | U24: =IFERROR((N23^beta)/(E23^(beta-1)),0) -> 0.03874991717 | V24: =SUM(U25:U$27) -> 0.1235708301 | W24: A_2 | X24: 6.104703111 | Y24: V_2 | Z24: 33442.18694 | AA24: 13366.68439
B25: Investment Cost | C25: =C24+1 -> 4 | D25: =Inputs!K31 -> 1625 | E25: =D25*N25 -> 6500 | F25: dI_4 | G25: =SUMPRODUCT(--($D$34:$D$38=D37),($E$22:$E$26)) -> 13900 | H25: =SUM(E$22:E25) -> 15600 | I25: =IF(C36>C37,I24,OFFSET(H25,C37-1,0)) -> 15600 | J25: I_4 | L25: Capacity | M25: =M24+1 -> 4 | N25: =Inputs!K25 -> 4 | O25: dQ_4 | P25: =SUM(N$22:N25) -> 8 | Q25: Q_4 | S25: =C24 -> 3 | U25: =IFERROR((N24^beta)/(E24^(beta-1)),0) -> 0.01652787919 | V25: =SUM(U26:U$27) -> 0.1070429509 | W25: A_3 | X25: 5.288185205 | Y25: V_3 | Z25: 35975.50255 | AA25: 26866.68439
B26: Investment Cost | C26: =C25+1 -> 5 | D26: =Inputs!K32 -> 3000 | E26: =D26*N26 -> 3000 | F26: dI_5 | G26: =SUMPRODUCT(--($D$34:$D$38=D38),($E$22:$E$26)) -> 3000 | H26: =SUM(E$22:E26) -> 18600 | I26: =IF(C37>C38,I25,OFFSET(H26,C38-1,0)) -> 18600 | J26: I_5 | L26: Capacity | M26: =M25+1 -> 5 | N26: =Inputs!K26 -> 1 | O26: dQ_5 | P26: =SUM(N$22:N26) -> 9 | Q26: Q_5 | S26: =C25 -> 4 | U26: =IFERROR((N25^beta)/(E25^(beta-1)),0) -> 0.09051507176 | V26: =SUM(U27:U$27) -> 0.01652787919 | W26: A_4 | X26: 0.8165179063 | Y26: V_4 | Z26: 42466.68439 | AA26: 26400
B27: Total cost (all stages) | E27: =SUM(E22:E26) -> 18600 | F27: I_i | H27: =H26 -> 18600 | L27: Total capa (all stages) | N27: =SUM(N22:N26) -> 9 | O27: Q_i | P27: =P26 -> 9 | S27: =C26 -> 5 | U27: =IFERROR((N26^beta)/(E26^(beta-1)),0) -> 0.01652787919 | V27: 0 | W27: A_5 | X27: 0 | Y27: V_5 | Z27: 45000 | AA27: 26400
B29: Side Calculations
B30: Stage | C30: Combine next | D30: Combined | E30: Effective | F30: Eliminator: Duplicate Counting of Combined Stages | L30: Optimal | M30: Delta Q_i^beta | O30: Cumul Frac | P30: Option Coefficient
B31: s_i | C31: j-1 Stages | D31: Cumul Capa | E31: Staging | F31: 1 | G31: 2 | H31: 3 | I31: 4 | J31: 5 | L31: dI/dQ | M31: Delta K_i^(beta-1) | O31: i+1 to n | P31: A_i | Q31: Value
B33: 0 | C33: 0 | D33: 0 | E33: 0 | L33: =IF(C21>s_n,0,IFERROR(IF(C33<C32,L32,INDEX($D50:$H50,MATCH($C33,D$49:H$49,0))),0)) -> 0 | N33: 0 | O33: =SUMPRODUCT(N34:N$38,F34:F38) -> 0.1815765627 | P33: ="A_"&G9 -> A_0 | Q33: =$D$42*$D$43*O33 -> 8.97032905
B34: 1 | C34: =MAX(C33-1,IFERROR(INDEX($D$49:$H$49,MATCH(MIN($D51:$H51),$D51:$H51,0)),1)) -> 1 | D34: =IF(C33>C34,D33,OFFSET(P22,C34-1,0)) -> 1 | E34: =IF(C34>=C33,E33+1,E33) -> 1 | F34: =IF(F$31=$M22,1,($C34>=$C33)*1) -> 1 | L34: 1700 | N34: =IFERROR(IF(C34<C33,N33,(SUM(N22:OFFSET(N22,C34-1,0))^beta)/(SUM(E22:OFFSET(E22,C34-1,0))^(beta-1))),0) -> 0.0221115684 | O34: =SUMPRODUCT(N35:N$38,G35:G38) -> 0.1594649943 | P34: A_1 | Q34: 7.877963156
B35: =B34+1 -> 2 | C35: =MAX(C34-1,IFERROR(INDEX($D$49:$H$49,MATCH(MIN($D52:$H52),$D52:$H52,0)),1)) -> 3 | D35: =IF(C34>C35,D34,OFFSET(P23,C35-1,0)) -> 8 | E35: =IF(C35>=C34,E34+1,E34) -> 2 | F35: =IF(F$31=$M23,1,($C35>=$C34)*1) -> 1 | G35: =IF(G$31=$M23,1,($C35>=$C34)*1) -> 1 | L35: 1985.714286 | N35: =IFERROR(IF(C35<C34,N34,(SUM(N23:OFFSET(N23,C35-1,0))^beta)/(SUM(E23:OFFSET(E23,C35-1,0))^(beta-1))),0) -> 0.1429371151 | O35: =SUMPRODUCT(N36:N$38,H36:H38) -> 0.1594649943 | P35: A_2 | Q35: 7.877963156
B36: =B35+1 -> 3 | C36: =MAX(C35-1,IFERROR(INDEX($D$49:$H$49,MATCH(MIN($D53:$H53),$D53:$H53,0)),1)) -> 2 | D36: =IF(C35>C36,D35,OFFSET(P24,C36-1,0)) -> 8 | E36: =IF(C36>=C35,E35+1,E35) -> 2 | F36: =IF(F$31=$M24,1,($C36>=$C35)*1) -> 0 | G36: =IF(G$31=$M24,1,($C36>=$C35)*1) -> 0 | H36: =IF(H$31=$M24,1,($C36>=$C35)*1) -> 1 | L36: 1985.714286 | N36: =IFERROR(IF(C36<C35,N35,(SUM(N24:OFFSET(N24,C36-1,0))^beta)/(SUM(E24:OFFSET(E24,C36-1,0))^(beta-1))),0) -> 0.1429371151 | O36: =SUMPRODUCT(N37:N$38,I37:I38) -> 0.1594649943 | P36: A_3 | Q36: 7.877963156
B37: =B36+1 -> 4 | C37: =MAX(C36-1,IFERROR(INDEX($D$49:$H$49,MATCH(MIN($D54:$H54),$D54:$H54,0)),1)) -> 1 | D37: =IF(C36>C37,D36,OFFSET(P25,C37-1,0)) -> 8 | E37: =IF(C37>=C36,E36+1,E36) -> 2 | F37: =IF(F$31=$M25,1,($C37>=$C36)*1) -> 0 | G37: =IF(G$31=$M25,1,($C37>=$C36)*1) -> 0 | H37: =IF(H$31=$M25,1,($C37>=$C36)*1) -> 0 | I37: =IF(I$31=$M25,1,($C37>=$C36)*1) -> 1 | L37: 1985.714286 | N37: =IFERROR(IF(C37<C36,N36,(SUM(N25:OFFSET(N25,C37-1,0))^beta)/(SUM(E25:OFFSET(E25,C37-1,0))^(beta-1))),0) -> 0.1429371151 | O37: =SUMPRODUCT(N38:N$38,J38) -> 0.01652787919 | P37: A_4 | Q37: 0.8165179063
B38: =B37+1 -> 5 | C38: =MAX(C37-1,IFERROR(INDEX($D$49:$H$49,MATCH(MIN($D55:$H55),$D55:$H55,0)),1)) -> 1 | D38: =IF(C37>C38,D37,OFFSET(P26,C38-1,0)) -> 9 | E38: =IF(C38>=C37,E37+1,E37) -> 3 | F38: =IF(F$31=$M26,1,($C38>=$C37)*1) -> 1 | G38: =IF(G$31=$M26,1,($C38>=$C37)*1) -> 1 | H38: =IF(H$31=$M26,1,($C38>=$C37)*1) -> 1 | I38: =IF(I$31=$M26,1,($C38>=$C37)*1) -> 1 | J38: =IF(J$31=$M26,1,($C38>=$C37)*1) -> 1 | L38: 3000 | N38: =IFERROR(IF(C38<C37,N37,(SUM(N26:OFFSET(N26,C38-1,0))^beta)/(SUM(E26:OFFSET(E26,C38-1,0))^(beta-1))),0) -> 0.01652787919 | O38: 0 | P38: A_5 | Q38: 0
L39: =E27/N27 -> 2066.666667
B40: beta | D40: =0.5-(mu/sigma^2)+SQRT((mu/sigma^2-1/2)^2+(2*r_/sigma^2)) -> 1.512430468 | E40: positive root of the fundamental quadratic, or option elasticity
B41: beta / (beta-1) | D41: =beta/(beta-1) -> 2.951484276 | E41: hurdle benefit to cost ratio
B42: 1 / (beta-1) | D42: =1/(beta-1) -> 1.951484276
B43: [(beta-1) / delta beta]^beta | D43: =((beta-1)/(delta*beta))^beta -> 25.31532617
B45: Flexible Real Estate Investment and Development
B46: Lookup Tables for Calculation of CombiStages | J46: Sensitivity Tables: Valuation and Exercise at Different Market Rent
B48: Lookup tables | C48: =C30 -> Combine next | D48: Lookup for dI/dQ (optimally combined # of stages) | J48: Valuations | M48: @ Various Market Rental Prices
B49: Stage | C49: =C31 -> j-1 Stages | D49: 1 | E49: =D49+1 -> 2 | F49: =E49+1 -> 3 | G49: =F49+1 -> 4 | H49: =G49+1 -> 5 | J49: Stage | L49: =Inputs!J50-50 -> 150 | M49: =L49+25 -> 175 | N49: 200 | O49: 225 | P49: 250 | Q49: 275
L50: =L49 -> 150 | M50: 175 | N50: 200 | O50: 225 | P50: 250 | Q50: =Q49 -> 275
B51: 1 | C51: =C34 -> 1 | D51: =IF(s_n-$C22+1<D$49,"",SUM($E22:OFFSET($E22,D$49-1,0))/SUM($N22:OFFSET($N22,D$49-1,0))) -> 1700 | E51: =IF(s_n-$C22+1<E$49,"",SUM($E22:OFFSET($E22,E$49-1,0))/SUM($N22:OFFSET($N22,E$49-1,0))) -> 2033.333333 | F51: =IF(s_n-$C22+1<F$49,"",SUM($E22:OFFSET($E22,F$49-1,0))/SUM($N22:OFFSET($N22,F$49-1,0))) -> 2275 | G51: =IF(s_n-$C22+1<G$49,"",SUM($E22:OFFSET($E22,G$49-1,0))/SUM($N22:OFFSET($N22,G$49-1,0))) -> 1950 | H51: =IF(s_n-$C22+1<H$49,"",SUM($E22:OFFSET($E22,H$49-1,0))/SUM($N22:OFFSET($N22,H$49-1,0))) -> 2066.666667 | J51: =G9 -> 0 | K51: =O9 -> 27099.18604 | L51: 17538.60692 | M51: 22143.5608 | N51: 27099.18604 | O51: 32364.79431 | P51: 37902.73661 | Q51: 43699.32447
B52: =B51+1 -> 2 | C52: =C35 -> 3 | D52: =IF(s_n-$C23+1<D$49,"",SUM($E23:OFFSET($E23,D$49-1,0))/SUM($N23:OFFSET($N23,D$49-1,0))) -> 2200 | E52: =IF(s_n-$C23+1<E$49,"",SUM($E23:OFFSET($E23,E$49-1,0))/SUM($N23:OFFSET($N23,E$49-1,0))) -> 2466.666667 | F52: =IF(s_n-$C23+1<F$49,"",SUM($E23:OFFSET($E23,F$49-1,0))/SUM($N23:OFFSET($N23,F$49-1,0))) -> 1985.714286 | G52: =IF(s_n-$C23+1<G$49,"",SUM($E23:OFFSET($E23,G$49-1,0))/SUM($N23:OFFSET($N23,G$49-1,0))) -> 2112.5 | H52: =IF(s_n-$C23+1<H$49,"",SUM($E23:OFFSET($E23,H$49-1,0))/SUM($N23:OFFSET($N23,H$49-1,0))) ->  | J52: 1 | K52: 28799.17035 | L52: 19152.83509 | M52: 23822.01862 | N52: 28799.17035 | O52: 34064.79431 | P52: 39556.87155 | Q52: 45092.88498
B53: =B52+1 -> 3 | C53: =C36 -> 2 | D53: =IF(s_n-$C24+1<D$49,"",SUM($E24:OFFSET($E24,D$49-1,0))/SUM($N24:OFFSET($N24,D$49-1,0))) -> 3000 | E53: =IF(s_n-$C24+1<E$49,"",SUM($E24:OFFSET($E24,E$49-1,0))/SUM($N24:OFFSET($N24,E$49-1,0))) -> 1900 | F53: =IF(s_n-$C24+1<F$49,"",SUM($E24:OFFSET($E24,F$49-1,0))/SUM($N24:OFFSET($N24,F$49-1,0))) -> 2083.333333 | G53: =IF(s_n-$C24+1<G$49,"",SUM($E24:OFFSET($E24,G$49-1,0))/SUM($N24:OFFSET($N24,G$49-1,0))) ->  | H53: =IF(s_n-$C24+1<H$49,"",SUM($E24:OFFSET($E24,H$49-1,0))/SUM($N24:OFFSET($N24,H$49-1,0))) ->  | J53: 2 | K53: 28799.17035 | L53: 19152.83509 | M53: 23822.01862 | N53: 28799.17035 | O53: 34064.79431 | P53: 39556.87155 | Q53: 45092.88498
B54: =B53+1 -> 4 | C54: =C37 -> 1 | D54: =IF(s_n-$C25+1<D$49,"",SUM($E25:OFFSET($E25,D$49-1,0))/SUM($N25:OFFSET($N25,D$49-1,0))) -> 1625 | E54: =IF(s_n-$C25+1<E$49,"",SUM($E25:OFFSET($E25,E$49-1,0))/SUM($N25:OFFSET($N25,E$49-1,0))) -> 1900 | F54: =IF(s_n-$C25+1<F$49,"",SUM($E25:OFFSET($E25,F$49-1,0))/SUM($N25:OFFSET($N25,F$49-1,0))) ->  | G54: =IF(s_n-$C25+1<G$49,"",SUM($E25:OFFSET($E25,G$49-1,0))/SUM($N25:OFFSET($N25,G$49-1,0))) ->  | H54: =IF(s_n-$C25+1<H$49,"",SUM($E25:OFFSET($E25,H$49-1,0))/SUM($N25:OFFSET($N25,H$49-1,0))) ->  | J54: 3 | K54: 28799.17035 | L54: 19152.83509 | M54: 23822.01862 | N54: 28799.17035 | O54: 34064.79431 | P54: 39556.87155 | Q54: 45092.88498
B55: =B54+1 -> 5 | C55: =C38 -> 1 | D55: =IF(s_n-$C26+1<D$49,"",SUM($E26:OFFSET($E26,D$49-1,0))/SUM($N26:OFFSET($N26,D$49-1,0))) -> 3000 | E55: =IF(s_n-$C26+1<E$49,"",SUM($E26:OFFSET($E26,E$49-1,0))/SUM($N26:OFFSET($N26,E$49-1,0))) ->  | F55: =IF(s_n-$C26+1<F$49,"",SUM($E26:OFFSET($E26,F$49-1,0))/SUM($N26:OFFSET($N26,F$49-1,0))) ->  | G55: =IF(s_n-$C26+1<G$49,"",SUM($E26:OFFSET($E26,G$49-1,0))/SUM($N26:OFFSET($N26,G$49-1,0))) ->  | H55: =IF(s_n-$C26+1<H$49,"",SUM($E26:OFFSET($E26,H$49-1,0))/SUM($N26:OFFSET($N26,H$49-1,0))) ->  | J55: 4 | K55: 42466.68439 | L55: 31596.43939 | M55: 37015.60208 | N55: 42466.68439 | O55: 47947.66564 | P55: 53456.87155 | Q55: 58992.88498
J56: 5 | K56: 45000 | L56: 33750 | M56: 39375 | N56: 45000 | O56: 50625 | P56: 56250 | Q56: 61875
B57: Lookup tables | C57: =C30 -> Combine next | D57: Lookup for dI (optimally combined # of stages) | J57: Exercise Rules | M57: @ Various Market Rental Prices
B58: Stage | C58: =C31 -> j-1 Stages | D58: 1 | E58: =D58+1 -> 2 | F58: =E58+1 -> 3 | G58: =F58+1 -> 4 | H58: =G58+1 -> 5 | J58: s_i | L58: =L49 -> 150 | M58: 175 | N58: 200 | O58: 225 | P58: 250 | Q58: =Q49 -> 275
L59: =L58 -> 150 | M59: 175 | N59: 200 | O59: 225 | P59: 250 | Q59: =Q58 -> 275
B60: 1 | C60: =C34 -> 1 | D60: =IF(s_n-$C22+1<D$58,"",SUM($E22:OFFSET($E22,D$58-1,0))) -> 1700 | E60: =IF(s_n-$C22+1<E$58,"",SUM($E22:OFFSET($E22,E$58-1,0))) -> 6100 | F60: =IF(s_n-$C22+1<F$58,"",SUM($E22:OFFSET($E22,F$58-1,0))) -> 9100 | G60: =IF(s_n-$C22+1<G$58,"",SUM($E22:OFFSET($E22,G$58-1,0))) -> 15600 | H60: =IF(s_n-$C22+1<H$58,"",SUM($E22:OFFSET($E22,H$58-1,0))) -> 18600 | J60: =J51 -> 0 | K60: =J9 -> wait | L60: wait | M60: wait | N60: wait | O60: exercise | P60: exercise | Q60: exercise
B61: =B60+1 -> 2 | C61: =C35 -> 3 | D61: =IF(s_n-$C23+1<D$58,"",SUM($E23:OFFSET($E23,D$58-1,0))) -> 4400 | E61: =IF(s_n-$C23+1<E$58,"",SUM($E23:OFFSET($E23,E$58-1,0))) -> 7400 | F61: =IF(s_n-$C23+1<F$58,"",SUM($E23:OFFSET($E23,F$58-1,0))) -> 13900 | G61: =IF(s_n-$C23+1<G$58,"",SUM($E23:OFFSET($E23,G$58-1,0))) -> 16900 | H61: =IF(s_n-$C23+1<H$58,"",SUM($E23:OFFSET($E23,H$58-1,0))) ->  | J61: 1 | K61: =J10 -> wait | L61: wait | M61: wait | N61: wait | O61: wait | P61: exercise | Q61: exercise
B62: =B61+1 -> 3 | C62: =C36 -> 2 | D62: =IF(s_n-$C24+1<D$58,"",SUM($E24:OFFSET($E24,D$58-1,0))) -> 3000 | E62: =IF(s_n-$C24+1<E$58,"",SUM($E24:OFFSET($E24,E$58-1,0))) -> 9500 | F62: =IF(s_n-$C24+1<F$58,"",SUM($E24:OFFSET($E24,F$58-1,0))) -> 12500 | G62: =IF(s_n-$C24+1<G$58,"",SUM($E24:OFFSET($E24,G$58-1,0))) ->  | H62: =IF(s_n-$C24+1<H$58,"",SUM($E24:OFFSET($E24,H$58-1,0))) ->  | J62: 2 | K62: =J11 -> wait | L62: wait | M62: wait | N62: wait | O62: wait | P62: exercise | Q62: exercise
B63: =B62+1 -> 4 | C63: =C37 -> 1 | D63: =IF(s_n-$C25+1<D$58,"",SUM($E25:OFFSET($E25,D$58-1,0))) -> 6500 | E63: =IF(s_n-$C25+1<E$58,"",SUM($E25:OFFSET($E25,E$58-1,0))) -> 9500 | F63: =IF(s_n-$C25+1<F$58,"",SUM($E25:OFFSET($E25,F$58-1,0))) ->  | G63: =IF(s_n-$C25+1<G$58,"",SUM($E25:OFFSET($E25,G$58-1,0))) ->  | H63: =IF(s_n-$C25+1<H$58,"",SUM($E25:OFFSET($E25,H$58-1,0))) ->  | J63: 3 | K63: =J12 -> wait | L63: wait | M63: wait | N63: wait | O63: wait | P63: exercise | Q63: exercise
B64: =B63+1 -> 5 | C64: =C38 -> 1 | D64: =IF(s_n-$C26+1<D$58,"",SUM($E26:OFFSET($E26,D$58-1,0))) -> 3000 | E64: =IF(s_n-$C26+1<E$58,"",SUM($E26:OFFSET($E26,E$58-1,0))) ->  | F64: =IF(s_n-$C26+1<F$58,"",SUM($E26:OFFSET($E26,F$58-1,0))) ->  | G64: =IF(s_n-$C26+1<G$58,"",SUM($E26:OFFSET($E26,G$58-1,0))) ->  | H64: =IF(s_n-$C26+1<H$58,"",SUM($E26:OFFSET($E26,H$58-1,0))) ->  | J64: 4 | K64: =J13 -> wait | L64: wait | M64: wait | N64: wait | O64: wait | P64: wait | Q64: wait
B66: Lookup tables | C66: =C30 -> Combine next | D66: Lookup for dQ (optimally combined # of stages)
B67: Stage | C67: =C31 -> j-1 Stages | D67: 1 | E67: =D67+1 -> 2 | F67: =E67+1 -> 3 | G67: =F67+1 -> 4 | H67: =G67+1 -> 5
B69: 1 | C69: =C34 -> 1 | D69: =IF(s_n-$B69+1<D$67,"",SUM($N22:OFFSET($N22,D$67-1,0))) -> 1 | E69: =IF(s_n-$B69+1<E$67,"",SUM($N22:OFFSET($N22,E$67-1,0))) -> 3 | F69: =IF(s_n-$B69+1<F$67,"",SUM($N22:OFFSET($N22,F$67-1,0))) -> 4 | G69: =IF(s_n-$B69+1<G$67,"",SUM($N22:OFFSET($N22,G$67-1,0))) -> 8 | H69: =IF(s_n-$B69+1<H$67,"",SUM($N22:OFFSET($N22,H$67-1,0))) -> 9
B70: =B69+1 -> 2 | C70: =C35 -> 3 | D70: =IF(s_n-$B70+1<D$67,"",SUM($N23:OFFSET($N23,D$67-1,0))) -> 2 | E70: =IF(s_n-$B70+1<E$67,"",SUM($N23:OFFSET($N23,E$67-1,0))) -> 3 | F70: =IF(s_n-$B70+1<F$67,"",SUM($N23:OFFSET($N23,F$67-1,0))) -> 7 | G70: =IF(s_n-$B70+1<G$67,"",SUM($N23:OFFSET($N23,G$67-1,0))) -> 8 | H70: =IF(s_n-$B70+1<H$67,"",SUM($N23:OFFSET($N23,H$67-1,0))) -> 
B71: =B70+1 -> 3 | C71: =C36 -> 2 | D71: =IF(s_n-$B71+1<D$67,"",SUM($N24:OFFSET($N24,D$67-1,0))) -> 1 | E71: =IF(s_n-$B71+1<E$67,"",SUM($N24:OFFSET($N24,E$67-1,0))) -> 5 | F71: =IF(s_n-$B71+1<F$67,"",SUM($N24:OFFSET($N24,F$67-1,0))) -> 6 | G71: =IF(s_n-$B71+1<G$67,"",SUM($N24:OFFSET($N24,G$67-1,0))) ->  | H71: =IF(s_n-$B71+1<H$67,"",SUM($N24:OFFSET($N24,H$67-1,0))) -> 
B72: =B71+1 -> 4 | C72: =C37 -> 1 | D72: =IF(s_n-$B72+1<D$67,"",SUM($N25:OFFSET($N25,D$67-1,0))) -> 4 | E72: =IF(s_n-$B72+1<E$67,"",SUM($N25:OFFSET($N25,E$67-1,0))) -> 5 | F72: =IF(s_n-$B72+1<F$67,"",SUM($N25:OFFSET($N25,F$67-1,0))) ->  | G72: =IF(s_n-$B72+1<G$67,"",SUM($N25:OFFSET($N25,G$67-1,0))) ->  | H72: =IF(s_n-$B72+1<H$67,"",SUM($N25:OFFSET($N25,H$67-1,0))) -> 
B73: =B72+1 -> 5 | C73: =C38 -> 1 | D73: =IF(s_n-$B73+1<D$67,"",SUM($N26:OFFSET($N26,D$67-1,0))) -> 1 | E73: =IF(s_n-$B73+1<E$67,"",SUM($N26:OFFSET($N26,E$67-1,0))) ->  | F73: =IF(s_n-$B73+1<F$67,"",SUM($N26:OFFSET($N26,F$67-1,0))) ->  | G73: =IF(s_n-$B73+1<G$67,"",SUM($N26:OFFSET($N26,G$67-1,0))) ->  | H73: =IF(s_n-$B73+1<H$67,"",SUM($N26:OFFSET($N26,H$67-1,0))) -> 

Sheet Random trials
T1: 1 | U1: 1 | V1: 1 | W1: 1 | X1: 1 | Y1: 1 | Z1: 2 | AA1: 2 | AB1: 2 | AC1: 2 | AD1: 2 | AE1: 2 | AF1: 3 | AG1: 3 | AH1: 3 | AI1: 3 | AJ1: 3 | AK1: 3 | AL1: 4 | AM1: 4 | AN1: 4 | AO1: 4 | AP1: 4 | AQ1: 4 | AR1: 5 | AS1: 5 | AT1: 5 | AU1: 5 | AV1: 5 | AW1: 5
A2: 10,000 trials from simulation | L2: 1 | M2: ="Model "&Alternative&": "&INDEX(Inputs!$E$14:$J$14,MATCH(Alternative,Inputs!$E$1:$J$1,0)) -> Model 6: 5 stage VP | T2: Model 1: S | Z2: Model 2: HH | AF2: Model 3: VV | AL2: Model 4: HP | AR2: Model 5: VP | AX2: Max | AZ2: Min
A3: Trial | B3: P | C3: delta | D3: sigma | E3: K_1 | F3: L_1 | G3: a | H3: b | I3: c | J3: d | L3: Trial | M3: Value | N3: Threshold1 | O3: Threshold2 | P3: Exercise1 | Q3: Excercise2 | R3: CombineStages | T3: Value | U3: Threshold1 | V3: Threshold2 | W3: Exercise1 | X3: Excercise2 | Y3: CombineStages | Z3: Value | AA3: Threshold1 | AB3: Threshold2 | AC3: Exercise1 | AD3: Excercise2 | AE3: CombineStages | AF3: Value | AG3: Threshold1 | AH3: Threshold2 | AI3: Exercise1 | AJ3: Excercise2 | AK3: CombineStages | AL3: Value | AM3: Threshold1 | AN3: Threshold2 | AO3: Exercise1 | AP3: Excercise2 | AQ3: CombineStages | AR3: Value | AS3: Threshold1 | AT3: Threshold2 | AU3: Exercise1 | AV3: Excercise2 | AW3: CombineStages | AX3: Value | AY3: Alternative | AZ3: Threshold | BA3: Alternative | BB3: P_1
A4: 0 | B4: 0 | C4: 0 | D4: 0 | E4: 0 | F4: 0 | G4: 0 | H4: 0 | I4: 0 | J4: 0 | M4: =Inputs!S50 -> 27099.18604 | N4: =Inputs!T50 -> 200.7009308 | O4: =Inputs!U50 -> 234.4321796 | P4: =Inputs!V50 -> wait | Q4: =Inputs!W50 -> wait | R4: =Inputs!X50 -> 1 | T4: 313.8499066 | U4: 513.1128984 | V4: 0 | W4: wait | X4: 0 | Y4: 1 | Z4: 641.3510158 | AA4: 503.1564554 | AB4: 0 | AC4: wait | AD4: 0 | AE4: 1 | AF4: 754.3574045 | AG4: 434.0221819 | AH4: 0 | AI4: wait | AJ4: 0 | AK4: 1 | AL4: 646.5679271 | AM4: 499.4576645 | AN4: 499.4576645 | AO4: wait | AP4: wait | AQ4: 2 | AR4: 742.6557199 | AS4: 440.2461834 | AT4: 440.2461834 | AU4: wait | AV4: wait | AW4: 2 | AX4: 0 | AY4: 0 | AZ4: 0 | BA4: 0
A5: 1 | B5: 139.8222165 | C5: 0.05094286239 | D5: 0.2124338043 | E5: 2888.355946 | F5: 2383.032587 | G5: 43.61874391 | H5: 962.5513728 | I5: 47.88102915 | J5: -204.5720525 | L5: =A5 -> 1 | M5: 313.8499066 | N5: 513.1128984 | O5: 0 | P5: wait | Q5: 0 | R5: 1 | T5: 313.8499066 | U5: 513.1128984 | V5: 0 | W5: wait | X5: 0 | Y5: 1 | Z5: 641.3510158 | AA5: 503.1564554 | AB5: 0 | AC5: wait | AD5: 0 | AE5: 1 | AF5: 754.3574045 | AG5: 434.0221819 | AH5: 0 | AI5: wait | AJ5: 0 | AK5: 1 | AL5: 634.5144641 | AM5: 508.0915015 | AN5: 508.0915015 | AO5: wait | AP5: wait | AQ5: 2 | AR5: 746.4300493 | AS5: 438.2182901 | AT5: 438.2182901 | AU5: wait | AV5: wait | AW5: 2 | AX5: =MAX(AR5,AL5,AF5,Z5,T5) -> 754.3574045 | AY5: =INDEX($T$1:$AW$1,MATCH(AX5,$T5:$AW5,0)) -> 3 | AZ5: =MIN(AS5,AM5,AG5,AA5,U5) -> 434.0221819 | BA5: =INDEX($T$1:$AW$1,MATCH(AZ5,$T5:$AW5,0)) -> 3 | BB5: =CHOOSE(AY5,U5,AA5,AG5,AM5,AS5) -> 434.0221819 | BC5: =IF(ROUND(T5-Z5,0)=0,1,0) -> 0
A6: =A5+1 -> 2 | B6: 212.4076559 | C6: 0.04751409522 | D6: 0.2053192125 | E6: 3202.910844 | F6: 1277.764964 | G6: 30.59252481 | H6: 540.9339434 | I6: 25.70063858 | J6: 1361.4428 | L6: =A6 -> 2 | M6: 1082.604246 | N6: 416.992328 | O6: 0 | P6: wait | Q6: 0 | R6: 1 | T6: 1082.604246 | U6: 416.992328 | V6: 0 | W6: wait | X6: 0 | Y6: 1 | Z6: 1868.220423 | AA6: 480.3433968 | AB6: 0 | AC6: wait | AD6: 0 | AE6: 1 | AF6: 2018.255018 | AG6: 446.0569526 | AH6: 0 | AI6: wait | AJ6: 0 | AK6: 1 | AL6: 1904.671069 | AM6: 471.5272116 | AN6: 471.5272116 | AO6: wait | AP6: wait | AQ6: 2 | AR6: 1958.37789 | AS6: 419.3841478 | AT6: 507.3999761 | AU6: wait | AV6: wait | AW6: 1 | AX6: =MAX(AR6,AL6,AF6,Z6,T6) -> 2018.255018 | AY6: =INDEX($T$1:$AW$1,MATCH(AX6,$T6:$AW6,0)) -> 3 | AZ6: =MIN(AS6,AM6,AG6,AA6,U6) -> 416.992328 | BA6: =INDEX($T$1:$AW$1,MATCH(AZ6,$T6:$AW6,0)) -> 1 | BB6: =CHOOSE(AY6,U6,AA6,AG6,AM6,AS6) -> 446.0569526 | BC6: =IF(ROUND(T6-Z6,0)=0,1,0) -> 0
A7: 3 | B7: 191.7005648 | C7: 0.05590166457 | D7: 0.2161740574 | E7: 2394.815648 | F7: 842.8749147 | G7: 60.372467 | H7: 463.3805684 | I7: 139.0009113 | J7: 1750.053469 | L7: =A7 -> 3 | M7: 799.2519278 | N7: 329.64417 | O7: 0 | P7: wait | Q7: 0 | R7: 1 | T7: 799.2519278 | U7: 329.64417 | V7: 0 | W7: wait | X7: 0 | Y7: 1 | Z7: 1194.585662 | AA7: 418.7346671 | AB7: 0 | AC7: wait | AD7: 0 | AE7: 1 | AF7: 1265.301753 | AG7: 399.4156345 | AH7: 0 | AI7: wait | AJ7: 0 | AK7: 1 | AL7: 1222.550185 | AM7: 372.5526562 | AN7: 459.1341718 | AO7: wait | AP7: wait | AQ7: 1 | AR7: 1618.076693 | AS7: 326.3656206 | AT7: 326.3656206 | AU7: wait | AV7: wait | AW7: 2 | AX7: =MAX(AR7,AL7,AF7,Z7,T7) -> 1618.076693 | AY7: =INDEX($T$1:$AW$1,MATCH(AX7,$T7:$AW7,0)) -> 5 | AZ7: =MIN(AS7,AM7,AG7,AA7,U7) -> 326.3656206 | BA7: =INDEX($T$1:$AW$1,MATCH(AZ7,$T7:$AW7,0)) -> 5 | BB7: 326.3656206 | BC7: 0
A8: 4 | B8: 328.5799824 | C8: 0.0515208226 | D8: 0.2442806312 | E8: 1896.486445 | F8: 1612.20195 | G8: 60.9547341 | H8: 378.7690552 | I8: 32.5934508 | J8: 174.9030204 | L8: 4 | M8: 2924.164996 | N8: 376.7059536 | O8: 0 | P8: wait | Q8: 0 | R8: 1 | T8: 2924.164996 | U8: 376.7059536 | V8: 0 | W8: wait | X8: 0 | Y8: 1 | Z8: 5716.992319 | AA8: 386.0950759 | AB8: 0 | AC8: wait | AD8: 0 | AE8: 1 | AF8: 6796.383526 | AG8: 319.8820837 | AH8: 0 | AI8: exercise | AJ8: 0 | AK8: 1 | AL8: 5816.024251 | AM8: 378.9744725 | AN8: 378.9744725 | AO8: wait | AP8: wait | AQ8: 2 | AR8: 6647.194199 | AS8: 327.8908467 | AT8: 327.8908467 | AU8: exercise | AV8: exercise | AW8: 2 | AX8: 6796.383526 | AY8: 3 | AZ8: 319.8820837 | BA8: 3 | BB8: 319.8820837 | BC8: 0
A9: 5 | B9: 168.7373248 | C9: 0.04293827197 | D9: 0.2967776858 | E9: 4513.992462 | F9: 461.6833499 | G9: 48.87116123 | H9: 1325.609142 | I9: 55.33267294 | J9: 3287.128456 | L9: 5 | M9: 1235.688627 | N9: 591.7269716 | O9: 0 | P9: wait | Q9: 0 | R9: 1 | T9: 1235.688627 | U9: 591.7269716 | V9: 0 | W9: wait | X9: 0 | Y9: 1 | Z9: 2103.262525 | AA9: 787.1861051 | AB9: 0 | AC9: wait | AD9: 0 | AE9: 1 | AF9: 2029.453292 | AG9: 838.5568347 | AH9: 0 | AI9: wait | AJ9: 0 | AK9: 1 | AL9: 2449.114016 | AM9: 601.2791707 | AN9: 601.2791707 | AO9: wait | AP9: wait | AQ9: 2 | AR9: 2087.579247 | AS9: 598.307351 | AT9: 1124.735423 | AU9: wait | AV9: wait | AW9: 1 | AX9: 2449.114016 | AY9: 4 | AZ9: 591.7269716 | BA9: 1 | BB9: 601.2791707 | BC9: 0
A10: 6 | B10: 169.1369281 | C10: 0.06833044704 | D10: 0.3105911898 | E10: 646.1023924 | F10: 387.370303 | G10: 77.34422128 | H10: 130.4353855 | I10: 48.21352484 | J10: 1241.316494 | L10: 6 | M10: 1441.806414 | N10: 147.3795518 | O10: 0 | P10: exercise | Q10: 0 | R10: 1 | T10: 1441.806414 | U10: 147.3795518 | V10: 0 | W10: exercise | X10: 0 | Y10: 1 | Z10: 1898.701821 | AA10: 235.8892286 | AB10: 0 | AC10: wait | AD10: 0 | AE10: 1 | AF10: 2045.302278 | AG10: 217.5689802 | AH10: 0 | AI10: wait | AJ10: 0 | AK10: 1 | AL10: 2008.330689 | AM10: 175.0002436 | AN10: 300.8984402 | AO10: wait | AP10: wait | AQ10: 1 | AR10: 2453.770523 | AS10: 154.2550965 | AT10: 209.2107914 | AU10: exercise | AV10: wait | AW10: 1 | AX10: 2453.770523 | AY10: 5 | AZ10: 147.3795518 | BA10: 1 | BB10: 154.2550965 | BC10: 0
A11: 7 | B11: 91.06620581 | C11: 0.06579134566 | D11: 0.1340174576 | E11: 420.7345659 | F11: 132.5208965 | G11: 55.36392098 | H11: 57.25473316 | I11: 17.93620606 | J11: 109.1024752 | L11: 7 | M11: 830.9114808 | N11: 48.09461463 | O11: 0 | P11: exercise | Q11: 0 | R11: 1 | T11: 830.9114808 | U11: 48.09461463 | V11: 0 | W11: exercise | X11: 0 | Y11: 1 | Z11: 1552.720486 | AA11: 52.83676527 | AB11: 0 | AC11: exercise | AD11: 0 | AE11: 1 | AF11: 1627.98665 | AG11: 49.56531351 | AH11: 0 | AI11: exercise | AJ11: 0 | AK11: 1 | AL11: 1542.587041 | AM11: 53.27721656 | AN11: 53.27721656 | AO11: exercise | AP11: exercise | AQ11: 2 | AR11: 2895.057557 | AS11: 49.65381282 | AT11: 50.70836762 | AU11: exercise | AV11: exercise | AW11: 1 | AX11: 2895.057557 | AY11: 5 | AZ11: 48.09461463 | BA11: 1 | BB11: 49.65381282 | BC11: 0
A12: 8 | B12: 96.68000609 | C12: 0.03956397875 | D12: 0.2136647384 | E12: 144.1463989 | F12: 7.624745182 | G12: 86.0316467 | H12: 59.17590377 | I12: 81.21134228 | J12: -255.6465792 | L12: 8 | M12: 2291.865951 | N12: 13.74163827 | O12: 0 | P12: exercise | Q12: 0 | R12: 1 | T12: 2291.865951 | U12: 13.74163827 | V12: 0 | W12: exercise | X12: 0 | Y12: 1 | Z12: 4839.378481 | AA12: 2.168282749 | AB12: 0 | AC12: exercise | AD12: 0 | AE12: 1 | AF12: 4787.827323 | AG12: 4.502051063 | AH12: 0 | AI12: exercise | AJ12: 0 | AK12: 1 | AL12: 4805.696574 | AM12: 3.693093652 | AN12: 3.693093652 | AO12: exercise | AP12: exercise | AQ12: 2 | AR12: 4674.143082 | AS12: 9.648641068 | AT12: 9.648641068 | AU12: exercise | AV12: exercise | AW12: 2 | AX12: 4839.378481 | AY12: 2 | AZ12: 2.168282749 | BA12: 2 | BB12: 2.168282749 | BC12: 0
A13: 9 | B13: 118.4203383 | C13: 0.05837863667 | D13: 0.3051420955 | E13: 1053.189944 | F13: 131.9662487 | G13: 34.14229275 | H13: 168.1802688 | I13: 23.07259429 | J13: -746.2697941 | L13: 9 | M13: 909.9097205 | N13: 157.6082155 | O13: 0 | P13: wait | Q13: 0 | R13: 1 | T13: 909.9097205 | U13: 157.6082155 | V13: 0 | W13: wait | X13: 0 | Y13: 1 | Z13: 2432.932533 | AA13: 107.9868022 | AB13: 0 | AC13: exercise | AD13: 0 | AE13: 1 | AF13: 2396.718513 | AG13: 110.3947663 | AH13: 0 | AI13: exercise | AJ13: 0 | AK13: 1 | AL13: 1831.707767 | AM13: 156.3021234 | AN13: 156.3021234 | AO13: wait | AP13: wait | AQ13: 2 | AR13: 2049.910111 | AS13: 135.3627341 | AT13: 135.3627341 | AU13: wait | AV13: wait | AW13: 2 | AX13: 2432.932533 | AY13: 2 | AZ13: 107.9868022 | BA13: 2 | BB13: 107.9868022 | BC13: 0
A14: 10 | B14: 114.3324435 | C14: 0.06075600975 | D14: 0.371604342 | E14: 595.0528924 | F14: 134.9959304 | G14: 48.21205498 | H14: 79.00114752 | I14: 81.69426487 | J14: 1039.688381 | L14: 10 | M14: 1152.203543 | N14: 117.4821007 | O14: 0 | P14: wait | Q14: 0 | R14: 1 | T14: 1152.203543 | U14: 117.4821007 | V14: 0 | W14: wait | X14: 0 | Y14: 1 | Z14: 1663.100931 | AA14: 201.1373107 | AB14: 0 | AC14: wait | AD14: 0 | AE14: 1 | AF14: 1686.111245 | AG14: 196.6318691 | AH14: 0 | AI14: wait | AJ14: 0 | AK14: 1 | AL14: 1763.044862 | AM14: 128.3441178 | AN14: 286.4709253 | AO14: wait | AP14: wait | AQ14: 1 | AR14: 1845.074439 | AS14: 130.6286377 | AT14: 230.9575045 | AU14: wait | AV14: wait | AW14: 1 | AX14: 1845.074439 | AY14: 5 | AZ14: 117.4821007 | BA14: 1 | BB14: 130.6286377 | BC14: 0
A15: 11 | B15: 204.3881544 | C15: 0.0578117579 | D15: 0.2980774194 | E15: 2465.363284 | F15: 243.8265761 | G15: 49.44541296 | H15: 709.9078393 | I15: 23.26968473 | J15: 704.8931014 | L15: 11 | M15: 1269.713209 | N15: 352.1997161 | O15: 0 | P15: wait | Q15: 0 | R15: 1 | T15: 1269.713209 | U15: 352.1997161 | V15: 0 | W15: wait | X15: 0 | Y15: 1 | Z15: 2302.503967 | AA15: 398.0184226 | AB15: 0 | AC15: wait | AD15: 0 | AE15: 1 | AF15: 2171.134165 | AG15: 428.3141377 | AH15: 0 | AI15: wait | AJ15: 0 | AK15: 1 | AL15: 2398.691261 | AM15: 368.0486701 | AN15: 388.8433532 | AO15: wait | AP15: wait | AQ15: 1 | AR15: 2218.538898 | AS15: 355.2248183 | AT15: 501.0069681 | AU15: wait | AV15: wait | AW15: 1 | AX15: 2398.691261 | AY15: 4 | AZ15: 352.1997161 | BA15: 1 | BB15: 368.0486701 | BC15: 0
A16: 12 | B16: 182.9131785 | C16: 0.05896532745 | D16: 0.3039276315 | E16: 307.3360543 | F16: 46.92788636 | G16: 40.39343653 | H16: 63.82855386 | I16: 85.05857595 | J16: 302.8390323 | L16: 12 | M16: 2747.782404 | N16: 47.11026531 | O16: 0 | P16: exercise | Q16: 0 | R16: 1 | T16: 2747.782404 | U16: 47.11026531 | V16: 0 | W16: exercise | X16: 0 | Y16: 1 | Z16: 5192.725777 | AA16: 67.24613792 | AB16: 0 | AC16: exercise | AD16: 0 | AE16: 1 | AF16: 5175.825109 | AG16: 68.36986918 | AH16: 0 | AI16: exercise | AJ16: 0 | AK16: 1 | AL16: 6239.204117 | AM16: 50.2305168 | AN16: 74.94050992 | AO16: exercise | AP16: exercise | AQ16: 1 | AR16: 5594.4977 | AS16: 58.42141392 | AT16: 94.10333379 | AU16: exercise | AV16: exercise | AW16: 1 | AX16: 6239.204117 | AY16: 4 | AZ16: 47.11026531 | BA16: 1 | BB16: 50.2305168 | BC16: 0
A17: 13 | B17: 140.4098779 | C17: 0.06919401046 | D17: 0.2800589318 | E17: 1859.504074 | F17: 302.9719736 | G17: 34.53082717 | H17: 530.2734173 | I17: 81.5701797 | J17: -58.57887139 | L17: 13 | M17: 443.2390525 | N17: 285.9880145 | O17: 0 | P17: wait | Q17: 0 | R17: 1 | T17: 443.2390525 | U17: 285.9880145 | V17: 0 | W17: wait | X17: 0 | Y17: 1 | Z17: 899.8434285 | AA17: 282.114479 | AB17: 0 | AC17: wait | AD17: 0 | AE17: 1 | AF17: 850.0214789 | AG17: 297.1448163 | AH17: 0 | AI17: wait | AJ17: 0 | AK17: 1 | AL17: 898.1804488 | AM17: 282.5904415 | AN17: 282.5904415 | AO17: wait | AP17: wait | AQ17: 2 | AR17: 820.0608736 | AS17: 296.7756917 | AT17: 318.0396806 | AU17: wait | AV17: wait | AW17: 1 | AX17: 899.8434285 | AY17: 2 | AZ17: 282.114479 | BA17: 2 | BB17: 282.114479 | BC17: 0
A18: 14 | B18: 58.05243682 | C18: 0.05052104679 | D18: 0.18561601 | E18: 2512.214219 | F18: 297.6352967 | G18: 24.62216323 | H18: 967.7078485 | I18: 37.41536221 | J18: 778.2800178 | L18: 14 | M18: 74.96709177 | N18: 251.5785755 | O18: 0 | P18: wait | Q18: 0 | R18: 1 | T18: 74.96709177 | U18: 251.5785755 | V18: 0 | W18: wait | X18: 0 | Y18: 1 | Z18: 126.7522505 | AA18: 286.420046 | AB18: 0 | AC18: wait | AD18: 0 | AE18: 1 | AF18: 111.4139506 | AG18: 316.4173638 | AH18: 0 | AI18: wait | AJ18: 0 | AK18: 1 | AL18: 120.2494851 | AM18: 264.9028947 | AN18: 343.2778342 | AO18: wait | AP18: wait | AQ18: 1 | AR18: 123.8404223 | AS18: 254.9285426 | AT18: 343.183603 | AU18: wait | AV18: wait | AW18: 1 | AX18: 126.7522505 | AY18: 2 | AZ18: 251.5785755 | BA18: 1 | BB18: 286.420046 | BC18: 0
A19: 15 | B19: 128.1463971 | C19: 0.04303800929 | D19: 0.4086660839 | E19: 5765.281357 | F19: 15808.18371 | G19: 87.92109523 | H19: 1134.030091 | I19: 77.8718564 | J19: 1189.113818 | L19: 15 | M19: 670.2729403 | N19: 3524.458151 | O19: 0 | P19: wait | Q19: 0 | R19: 1 | T19: 670.2729403 | U19: 3524.458151 | V19: 0 | W19: wait | X19: 0 | Y19: 1 | Z19: 1327.574104 | AA19: 3621.590945 | AB19: 0 | AC19: wait | AD19: 0 | AE19: 1 | AF19: 1532.820501 | AG19: 2422.932311 | AH19: 0 | AI19: wait | AJ19: 0 | AK19: 1 | AL19: 1334.439751 | AM19: 3569.734508 | AN19: 3569.734508 | AO19: wait | AP19: wait | AQ19: 2 | AR19: 1540.764507 | AS19: 2388.165805 | AT19: 2388.165805 | AU19: wait | AV19: wait | AW19: 2 | AX19: 1540.764507 | AY19: 5 | AZ19: 2388.165805 | BA19: 5 | BB19: 2388.165805 | BC19: 0
A20: 16 | B20: 135.1428072 | C20: 0.06355310114 | D20: 0.2818602585 | E20: 2642.764124 | F20: 951.1786173 | G20: 19.47726092 | H20: 1252.098541 | I20: 41.66004856 | J20: 1391.241373 | L20: 16 | M20: 323.2582015 | N20: 462.0302123 | O20: 0 | P20: wait | Q20: 0 | R20: 1 | T20: 323.2582015 | U20: 462.0302123 | V20: 0 | W20: wait | X20: 0 | Y20: 1 | Z20: 543.8182889 | AA20: 551.45784 | AB20: 0 | AC20: wait | AD20: 0 | AE20: 1 | AF20: 525.7944964 | AG20: 570.8006769 | AH20: 0 | AI20: wait | AJ20: 0 | AK20: 1 | AL20: 581.4357544 | AM20: 514.9923858 | AN20: 514.9923858 | AO20: wait | AP20: wait | AQ20: 2 | AR20: 517.8950557 | AS20: 467.3859462 | AT20: 761.7943725 | AU20: wait | AV20: wait | AW20: 1 | AX20: 581.4357544 | AY20: 4 | AZ20: 462.0302123 | BA20: 1 | BB20: 514.9923858 | BC20: 0
A21: 17 | B21: 157.7197204 | C21: 0.07509194421 | D21: 0.3257304607 | E21: 1658.788265 | F21: 84.98489163 | G21: 49.06260093 | H21: 204.4308899 | I21: 25.17992504 | J21: 978.6877436 | L21: 17 | M21: 647.3734429 | N21: 268.0470056 | O21: 0 | P21: wait | Q21: 0 | R21: 1 | T21: 647.3734429 | U21: 268.0470056 | V21: 0 | W21: wait | X21: 0 | Y21: 1 | Z21: 1022.327552 | AA21: 343.2673168 | AB21: 0 | AC21: wait | AD21: 0 | AE21: 1 | AF21: 996.8798533 | AG21: 352.4477374 | AH21: 0 | AI21: wait | AJ21: 0 | AK21: 1 | AL21: 1035.900369 | AM21: 274.5788029 | AN21: 440.0188078 | AO21: wait | AP21: wait | AQ21: 1 | AR21: 1131.289573 | AS21: 271.9175798 | AT21: 356.7330218 | AU21: wait | AV21: wait | AW21: 1 | AX21: 1131.289573 | AY21: 5 | AZ21: 268.0470056 | BA21: 1 | BB21: 271.9175798 | BC21: 0
A22: 18 | B22: 255.3818914 | C22: 0.04683601848 | D22: 0.3035511595 | E22: 1658.416898 | F22: 102.2746656 | G22: 76.19172381 | H22: 230.2767665 | I22: 25.59375637 | J22: 775.91666 | L22: 18 | M22: 3691.989934 | N22: 218.3718214 | O22: 0 | P22: exercise | Q22: 0 | R22: 1 | T22: 3691.989934 | U22: 218.3718214 | V22: 0 | W22: exercise | X22: 0 | Y22: 1 | Z22: 6614.093621 | AA22: 266.488805 | AB22: 0 | AC22: wait | AD22: 0 | AE22: 1 | AF22: 6497.343015 | AG22: 274.4266098 | AH22: 0 | AI22: wait | AJ22: 0 | AK22: 1 | AL22: 7018.119227 | AM22: 224.7141886 | AN22: 257.418707 | AO22: exercise | AP22: wait | AQ22: 1 | AR22: 6327.843344 | AS22: 221.5461168 | AT22: 381.1810252 | AU22: exercise | AV22: wait | AW22: 1 | AX22: 7018.119227 | AY22: 4 | AZ22: 218.3718214 | BA22: 1 | BB22: 224.7141886 | BC22: 0
A23: 19 | B23: 263.6074279 | C23: 0.06659932063 | D23: 0.317061889 | E23: 2232.503847 | F23: 124.0527938 | G23: 83.22698355 | H23: 917.1537514 | I23: 115.6759116 | J23: -32.95448255 | L23: 19 | M23: 1710.464642 | N23: 338.6102165 | O23: 0 | P23: wait | Q23: 0 | R23: 1 | T23: 1710.464642 | U23: 338.6102165 | V23: 0 | W23: wait | X23: 0 | Y23: 1 | Z23: 3441.729437 | AA23: 336.2426255 | AB23: 0 | AC23: wait | AD23: 0 | AE23: 1 | AF23: 3006.369622 | AG23: 393.2223905 | AH23: 0 | AI23: wait | AJ23: 0 | AK23: 1 | AL23: 3404.265171 | AM23: 340.529548 | AN23: 340.529548 | AO23: wait | AP23: wait | AQ23: 2 | AR23: 2944.86001 | AS23: 355.231521 | AT23: 463.648205 | AU23: wait | AV23: wait | AW23: 1 | AX23: 3441.729437 | AY23: 2 | AZ23: 336.2426255 | BA23: 2 | BB23: 336.2426255 | BC23: 0
A24: 20 | B24: 113.2873013 | C24: 0.04541297465 | D24: 0.2680937453 | E24: 1549.55437 | F24: 226.0460409 | G24: 78.93438571 | H24: 180.3332686 | I24: 37.88737253 | J24: 1409.56785 | L24: 20 | M24: 1003.807042 | N24: 196.8604298 | O24: 0 | P24: wait | Q24: 0 | R24: 1 | T24: 1003.807042 | U24: 196.8604298 | V24: 0 | W24: wait | X24: 0 | Y24: 1 | Z24: 1592.065076 | AA24: 274.9996697 | AB24: 0 | AC24: wait | AD24: 0 | AE24: 1 | AF24: 1602.323453 | AG24: 272.4655872 | AH24: 0 | AI24: wait | AJ24: 0 | AK24: 1 | AL24: 1560.581095 | AM24: 209.3912674 | AN24: 414.4867815 | AO24: wait | AP24: wait | AQ24: 1 | AR24: 1679.144303 | AS24: 201.0609946 | AT24: 337.9673097 | AU24: wait | AV24: wait | AW24: 1 | AX24: 1679.144303 | AY24: 5 | AZ24: 196.8604298 | BA24: 1 | BB24: 201.0609946 | BC24: 0
A25: 21 | B25: 128.8374735 | C25: 0.06357620275 | D25: 0.2148733851 | E25: 371.2717849 | F25: 73.0034461 | G25: 30.41577411 | H25: 105.841531 | I25: 45.78452176 | J25: 1989.92062 | L25: 21 | M25: 1582.229466 | N25: 47.50852532 | O25: 0 | P25: exercise | Q25: 0 | R25: 1 | T25: 1582.229466 | U25: 47.50852532 | V25: 0 | W25: exercise | X25: 0 | Y25: 1 | Z25: 1266.262529 | AA25: 153.9045019 | AB25: 0 | AC25: wait | AD25: 0 | AE25: 1 | AF25: 1245.375062 | AG25: 155.6602705 | AH25: 0 | AI25: wait | AJ25: 0 | AK25: 1 | AL25: 2117.829822 | AM25: 51.41183325 | AN25: 164.9198499 | AO25: exercise | AP25: wait | AQ25: 1 | AR25: 1743.340161 | AS25: 52.40448836 | AT25: 330.0092697 | AU25: exercise | AV25: wait | AW25: 1 | AX25: 2117.829822 | AY25: 4 | AZ25: 47.50852532 | BA25: 1 | BB25: 51.41183325 | BC25: 0
A26: 22 | B26: 149.5889532 | C26: 0.06339907019 | D26: 0.1927258068 | E26: 1473.956835 | F26: 174.5375686 | G26: 13.7866115 | H26: 1544.292406 | I26: 29.54919145 | J26: 638.6253031 | L26: 22 | M26: 731.1906156 | N26: 165.5026973 | O26: 0 | P26: wait | Q26: 0 | R26: 1 | T26: 731.1906156 | U26: 165.5026973 | V26: 0 | W26: wait | X26: 0 | Y26: 1 | Z26: 1079.672148 | AA26: 197.560498 | AB26: 0 | AC26: wait | AD26: 0 | AE26: 1 | AF26: 647.1878894 | AG26: 266.3196396 | AH26: 0 | AI26: wait | AJ26: 0 | AK26: 1 | AL26: 1110.650851 | AM26: 174.2641581 | AN26: 222.2113048 | AO26: wait | AP26: wait | AQ26: 1 | AR26: 915.9330934 | AS26: 168.469326 | AT26: 345.9701355 | AU26: wait | AV26: wait | AW26: 1 | AX26: 1110.650851 | AY26: 4 | AZ26: 165.5026973 | BA26: 1 | BB26: 174.2641581 | BC26: 0
A27: 23 | B27: 141.7969281 | C27: 0.04964497915 | D27: 0.2508231513 | E27: 6147.560481 | F27: 11369.80292 | G27: 21.47079557 | H27: 1904.207606 | I27: 53.11678707 | J27: 743.5110888 | L27: 23 | M27: 171.2415967 | N27: 1894.484991 | O27: 0 | P27: wait | Q27: 0 | R27: 1 | T27: 171.2415967 | U27: 1894.484991 | V27: 0 | W27: wait | X27: 0 | Y27: 1 | Z27: 336.4341623 | AA27: 1934.689974 | AB27: 0 | AC27: wait | AD27: 0 | AE27: 1 | AF27: 436.6627066 | AG27: 1422.842733 | AH27: 0 | AI27: wait | AJ27: 0 | AK27: 1 | AL27: 336.857494 | AM27: 1931.825087 | AN27: 1931.825087 | AO27: wait | AP27: wait | AQ27: 2 | AR27: 444.7920447 | AS27: 1392.247558 | AT27: 1392.247558 | AU27: wait | AV27: wait | AW27: 2 | AX27: 444.7920447 | AY27: 5 | AZ27: 1392.247558 | BA27: 5 | BB27: 1392.247558 | BC27: 0
A28: 24 | B28: 86.07089473 | C28: 0.08088907863 | D28: 0.2057211908 | E28: 2683.379875 | F28: 207.3902972 | G28: 157.0445774 | H28: 783.7476852 | I28: 148.5633272 | J28: 736.2621785 | L28: 24 | M28: 16.21108556 | N28: 340.1917443 | O28: 0 | P28: wait | Q28: 0 | R28: 1 | T28: 16.21108556 | U28: 340.1917443 | V28: 0 | W28: wait | X28: 0 | Y28: 1 | Z28: 24.91114797 | AA28: 383.5141636 | AB28: 0 | AC28: wait | AD28: 0 | AE28: 1 | AF28: 20.67710302 | AG28: 417.4276215 | AH28: 0 | AI28: wait | AJ28: 0 | AK28: 1 | AL28: 28.05656624 | AM28: 352.3948014 | AN28: 375.4135348 | AO28: wait | AP28: wait | AQ28: 1 | AR28: 21.52952152 | AS28: 357.6749804 | AT28: 498.1314825 | AU28: wait | AV28: wait | AW28: 1 | AX28: 28.05656624 | AY28: 4 | AZ28: 340.1917443 | BA28: 1 | BB28: 352.3948014 | BC28: 0
A29: 25 | B29: 114.9148052 | C29: 0.05351707474 | D29: 0.366779823 | E29: 997.7676651 | F29: 232.450365 | G29: 23.29911885 | H29: 87.0712917 | I29: 31.39273014 | J29: 1796.131349 | L29: 25 | M29: 1071.617492 | N29: 188.6282125 | O29: 0 | P29: wait | Q29: 0 | R29: 1 | T29: 1071.617492 | U29: 188.6282125 | V29: 0 | W29: wait | X29: 0 | Y29: 1 | Z29: 1597.474127 | AA29: 326.3278062 | AB29: 0 | AC29: wait | AD29: 0 | AE29: 1 | AF29: 1627.518441 | AG29: 315.1823856 | AH29: 0 | AI29: wait | AJ29: 0 | AK29: 1 | AL29: 1685.983408 | AM29: 206.4489141 | AN29: 459.2805158 | AO29: wait | AP29: wait | AQ29: 1 | AR29: 1878.314842 | AS29: 193.4416313 | AT29: 309.9627938 | AU29: wait | AV29: wait | AW29: 1 | AX29: 1878.314842 | AY29: 5 | AZ29: 188.6282125 | BA29: 1 | BB29: 193.4416313 | BC29: 0
A30: 26 | B30: 78.80460139 | C30: 0.03750749721 | D30: 0.4548610873 | E30: 2245.880763 | F30: 369.0894325 | G30: 86.9346687 | H30: 540.4894484 | I30: 67.22397396 | J30: 151.8570134 | L30: 26 | M30: 1041.01665 | N30: 472.1877788 | O30: 0 | P30: wait | Q30: 0 | R30: 1 | T30: 1041.01665 | U30: 472.1877788 | V30: 0 | W30: wait | X30: 0 | Y30: 1 | Z30: 2066.468038 | AA30: 485.8982651 | AB30: 0 | AC30: wait | AD30: 0 | AE30: 1 | AF30: 2049.552253 | AG30: 501.3732011 | AH30: 0 | AI30: wait | AJ30: 0 | AK30: 1 | AL30: 2073.322533 | AM30: 479.7994745 | AN30: 479.7994745 | AO30: wait | AP30: wait | AQ30: 2 | AR30: 2038.46677 | AS30: 484.3264789 | AT30: 541.3834581 | AU30: wait | AV30: wait | AW30: 1 | AX30: 2073.322533 | AY30: 4 | AZ30: 472.1877788 | BA30: 1 | BB30: 479.7994745 | BC30: 0
A31: 27 | B31: 291.2032897 | C31: 0.06571260525 | D31: 0.252115836 | E31: 4034.895764 | F31: 518.4828348 | G31: 117.4518119 | H31: 627.8370845 | I31: 67.57706476 | J31: -155.5424912 | L31: 27 | M31: 937.8194367 | N31: 547.0750745 | O31: 0 | P31: wait | Q31: 0 | R31: 1 | T31: 937.8194367 | U31: 547.0750745 | V31: 0 | W31: wait | X31: 0 | Y31: 1 | Z31: 1915.054514 | AA31: 537.7310876 | AB31: 0 | AC31: wait | AD31: 0 | AE31: 1 | AF31: 1887.187462 | AG31: 544.3003837 | AH31: 0 | AI31: wait | AJ31: 0 | AK31: 1 | AL31: 1864.231017 | AM31: 549.8467916 | AN31: 549.8467916 | AO31: wait | AP31: wait | AQ31: 2 | AR31: 1833.440398 | AS31: 555.1942605 | AT31: 559.796875 | AU31: wait | AV31: wait | AW31: 1 | AX31: 1915.054514 | AY31: 2 | AZ31: 537.7310876 | BA31: 2 | BB31: 537.7310876 | BC31: 0
A32: 28 | B32: 162.8666856 | C32: 0.07754589012 | D32: 0.2744107201 | E32: 6353.449218 | F32: 637.5055867 | G32: 45.62627841 | H32: 1628.093352 | I32: 22.85067494 | J32: -2.192990465 | L32: 28 | M32: 89.93704095 | N32: 956.8362145 | O32: 0 | P32: wait | Q32: 0 | R32: 1 | T32: 89.93704095 | U32: 956.8362145 | V32: 0 | W32: wait | X32: 0 | Y32: 1 | Z32: 179.9109679 | AA32: 956.6861396 | AB32: 0 | AC32: wait | AD32: 0 | AE32: 1 | AF32: 164.509675 | AG32: 1024.475896 | AH32: 0 | AI32: wait | AJ32: 0 | AK32: 1 | AL32: 179.5230664 | AM32: 958.2670833 | AN32: 958.2670833 | AO32: wait | AP32: wait | AQ32: 2 | AR32: 164.6260149 | AS32: 959.9637348 | AT32: 1098.651768 | AU32: wait | AV32: wait | AW32: 1 | AX32: 179.9109679 | AY32: 2 | AZ32: 956.6861396 | BA32: 2 | BB32: 956.6861396 | BC32: 0
A33: 29 | B33: 254.600386 | C33: 0.03934990806 | D33: 0.2377627451 | E33: 7830.569674 | F33: 337.609728 | G33: 56.50188801 | H33: 842.0243153 | I33: 18.39671134 | J33: 798.1239313 | L33: 29 | M33: 1781.755349 | N33: 795.7384565 | O33: 0 | P33: wait | Q33: 0 | R33: 1 | T33: 1781.755349 | U33: 795.7384565 | V33: 0 | W33: wait | X33: 0 | Y33: 1 | Z33: 3450.168806 | AA33: 834.6148006 | AB33: 0 | AC33: wait | AD33: 0 | AE33: 1 | AF33: 3382.998768 | AG33: 859.1846628 | AH33: 0 | AI33: wait | AJ33: 0 | AK33: 1 | AL33: 3551.677475 | AM33: 799.6539583 | AN33: 799.6539583 | AO33: wait | AP33: wait | AQ33: 2 | AR33: 3466.991292 | AS33: 797.5306516 | AT33: 861.8520427 | AU33: wait | AV33: wait | AW33: 1 | AX33: 3551.677475 | AY33: 4 | AZ33: 795.7384565 | BA33: 1 | BB33: 799.6539583 | BC33: 0
A34: 30 | B34: 98.59309807 | C34: 0.05687831094 | D34: 0.1608795067 | E34: 15264.53361 | F34: 1997.337878 | G34: 49.40264602 | H34: 4267.916932 | I34: 89.42149011 | J34: 1683.862376 | L34: 30 | M34: 3.633094652 | N34: 1505.392594 | O34: 0 | P34: wait | Q34: 0 | R34: 1 | T34: 3.633094652 | U34: 1505.392594 | V34: 0 | W34: wait | X34: 0 | Y34: 1 | Z34: 6.645422623 | AA34: 1578.816671 | AB34: 0 | AC34: wait | AD34: 0 | AE34: 1 | AF34: 5.929088139 | AG34: 1677.82427 | AH34: 0 | AI34: wait | AJ34: 0 | AK34: 1 | AL34: 7.126518511 | AM34: 1521.05445 | AN34: 1521.05445 | AO34: wait | AP34: wait | AQ34: 2 | AR34: 6.110765824 | AS34: 1513.190964 | AT34: 1832.497022 | AU34: wait | AV34: wait | AW34: 1 | AX34: 7.126518511 | AY34: 4 | AZ34: 1505.392594 | BA34: 1 | BB34: 1521.05445 | BC34: 0
A35: 31 | B35: 174.5288652 | C35: 0.04980891892 | D35: 0.2270397681 | E35: 1496.486201 | F35: 23.12986394 | G35: 119.9851748 | H35: 365.7719542 | I35: 53.40676167 | J35: 911.6072724 | L35: 31 | M35: 1984.35208 | N35: 153.3295194 | O35: 0 | P35: exercise | Q35: 0 | R35: 1 | T35: 1984.35208 | U35: 153.3295194 | V35: 0 | W35: exercise | X35: 0 | Y35: 1 | Z35: 3117.515158 | AA35: 199.3201838 | AB35: 0 | AC35: wait | AD35: 0 | AE35: 1 | AF35: 2874.715902 | AG35: 216.6065064 | AH35: 0 | AI35: wait | AJ35: 0 | AK35: 1 | AL35: 3118.624118 | AM35: 154.496423 | AN35: 273.305265 | AO35: exercise | AP35: wait | AQ35: 1 | AR35: 3236.454376 | AS35: 158.7182707 | AT35: 239.0739744 | AU35: exercise | AV35: wait | AW35: 1 | AX35: 3236.454376 | AY35: 5 | AZ35: 153.3295194 | BA35: 1 | BB35: 158.7182707 | BC35: 0
A36: 32 | B36: 197.5840902 | C36: 0.07808295937 | D36: 0.2699510397 | E36: 1815.227514 | F36: 88.99939658 | G36: 68.16065094 | H36: 341.1514645 | I36: 30.60204866 | J36: 572.1594555 | L36: 32 | M36: 747.1256733 | N36: 258.5227306 | O36: 0 | P36: wait | Q36: 0 | R36: 1 | T36: 747.1256733 | U36: 258.5227306 | V36: 0 | W36: wait | X36: 0 | Y36: 1 | Z36: 1236.332141 | AA36: 297.3616484 | AB36: 0 | AC36: wait | AD36: 0 | AE36: 1 | AF36: 1146.125251 | AG36: 314.4780542 | AH36: 0 | AI36: wait | AJ36: 0 | AK36: 1 | AL36: 1386.74479 | AM36: 264.5641238 | AN36: 282.4917331 | AO36: wait | AP36: wait | AQ36: 1 | AR36: 1226.459111 | AS36: 262.6773432 | AT36: 350.2548899 | AU36: wait | AV36: wait | AW36: 1 | AX36: 1386.74479 | AY36: 4 | AZ36: 258.5227306 | BA36: 1 | BB36: 264.5641238 | BC36: 0
A37: 33 | B37: 108.6555888 | C37: 0.05070266786 | D37: 0.2240321494 | E37: 909.91858 | F37: 695.3954752 | G37: 47.8785472 | H37: 318.3657863 | I37: 31.55560887 | J37: 506.4866988 | L37: 33 | M37: 710.569129 | N37: 161.4897463 | O37: 0 | P37: wait | Q37: 0 | R37: 1 | T37: 710.569129 | U37: 161.4897463 | V37: 0 | W37: wait | X37: 0 | Y37: 1 | Z37: 1224.587141 | AA37: 186.9652625 | AB37: 0 | AC37: wait | AD37: 0 | AE37: 1 | AF37: 1365.182344 | AG37: 168.0012384 | AH37: 0 | AI37: wait | AJ37: 0 | AK37: 1 | AL37: 1407.722529 | AM37: 163.0041076 | AN37: 163.0041076 | AO37: wait | AP37: wait | AQ37: 2 | AR37: 1549.130477 | AS37: 148.3509662 | AT37: 148.3509662 | AU37: wait | AV37: wait | AW37: 2 | AX37: 1549.130477 | AY37: 5 | AZ37: 148.3509662 | BA37: 5 | BB37: 148.3509662 | BC37: 0
A38: 34 | B38: 337.2253035 | C38: 0.06682425284 | D38: 0.2589834142 | E38: 1009.311303 | F38: 227.0934847 | G38: 46.17094169 | H38: 159.8865262 | I38: 36.36122181 | J38: 1590.904293 | L38: 34 | M38: 3810.046002 | N38: 152.3888347 | O38: 0 | P38: exercise | Q38: 0 | R38: 1 | T38: 3810.046002 | U38: 152.3888347 | V38: 0 | W38: exercise | X38: 0 | Y38: 1 | Z38: 6029.18771 | AA38: 250.4295629 | AB38: 0 | AC38: exercise | AD38: 0 | AE38: 1 | AF38: 6096.394669 | AG38: 246.2878812 | AH38: 0 | AI38: exercise | AJ38: 0 | AK38: 1 | AL38: 6169.949207 | AM38: 166.3836493 | AN38: 318.3526785 | AO38: exercise | AP38: exercise | AQ38: 1 | AR38: 7198.910258 | AS38: 156.8704125 | AT38: 241.8355752 | AU38: exercise | AV38: exercise | AW38: 1 | AX38: 7198.910258 | AY38: 5 | AZ38: 152.3888347 | BA38: 1 | BB38: 156.8704125 | BC38: 0
A39: 35 | B39: 115.5716632 | C39: 0.0828984275 | D39: 0.2191955568 | E39: 1927.88731 | F39: 1625.484017 | G39: 39.57839589 | H39: 400.4980577 | I39: 53.22373261 | J39: 69.10286552 | L39: 35 | M39: 29.67778872 | N39: 438.1561725 | O39: 0 | P39: wait | Q39: 0 | R39: 1 | T39: 29.67778872 | U39: 438.1561725 | V39: 0 | W39: wait | X39: 0 | Y39: 1 | Z39: 58.18889834 | AA39: 442.416612 | AB39: 0 | AC39: wait | AD39: 0 | AE39: 1 | AF39: 85.43056421 | AG39: 366.8918343 | AH39: 0 | AI39: wait | AJ39: 0 | AK39: 1 | AL39: 57.30045228 | AM39: 445.7471761 | AN39: 445.7471761 | AO39: wait | AP39: wait | AQ39: 2 | AR39: 82.94928638 | AS39: 372.2011358 | AT39: 372.2011358 | AU39: wait | AV39: wait | AW39: 2 | AX39: 85.43056421 | AY39: 3 | AZ39: 366.8918343 | BA39: 3 | BB39: 366.8918343 | BC39: 0
A40: 36 | B40: 161.1495973 | C40: 0.0549676532 | D40: 0.235177708 | E40: 1879.232882 | F40: 1308.712245 | G40: 103.631572 | H40: 423.7811793 | I40: 57.13251693 | J40: 1639.536162 | L40: 36 | M40: 644.7893566 | N40: 340.8420503 | O40: 0 | P40: wait | Q40: 0 | R40: 1 | T40: 644.7893566 | U40: 340.8420503 | V40: 0 | W40: wait | X40: 0 | Y40: 1 | Z40: 1012.244531 | AA40: 428.4882997 | AB40: 0 | AC40: wait | AD40: 0 | AE40: 1 | AF40: 1145.632775 | AG40: 381.1816951 | AH40: 0 | AI40: wait | AJ40: 0 | AK40: 1 | AL40: 1177.136388 | AM40: 371.5333785 | AN40: 371.5333785 | AO40: wait | AP40: wait | AQ40: 2 | AR40: 1094.20367 | AS40: 346.9504253 | AT40: 467.6188368 | AU40: wait | AV40: wait | AW40: 1 | AX40: 1177.136388 | AY40: 4 | AZ40: 340.8420503 | BA40: 1 | BB40: 371.5333785 | BC40: 0
A41: 37 | B41: 190.5942235 | C41: 0.05751893614 | D41: 0.338215885 | E41: 486.6110217 | F41: 99.59122286 | G41: 65.09544166 | H41: 94.92996037 | I41: 139.6094447 | J41: 837.9919367 | L41: 37 | M41: 2727.388658 | N41: 84.9176946 | O41: 0 | P41: exercise | Q41: 0 | R41: 1 | T41: 2727.388658 | U41: 84.9176946 | V41: 0 | W41: exercise | X41: 0 | Y41: 1 | Z41: 4616.78538 | AA41: 145.6137632 | AB41: 0 | AC41: exercise | AD41: 0 | AE41: 1 | AF41: 4621.446642 | AG41: 145.2761463 | AH41: 0 | AI41: exercise | AJ41: 0 | AK41: 1 | AL41: 5632.03432 | AM41: 92.13112403 | AN41: 105.2230871 | AO41: exercise | AP41: exercise | AQ41: 1 | AR41: 4649.894762 | AS41: 105.1416229 | AT41: 181.6526361 | AU41: exercise | AV41: exercise | AW41: 1 | AX41: 5632.03432 | AY41: 4 | AZ41: 84.9176946 | BA41: 1 | BB41: 92.13112403 | BC41: 0
A42: 38 | B42: 221.7287133 | C42: 0.08740011423 | D42: 0.3497423833 | E42: 219.429532 | F42: 39.14515378 | G42: 53.43449365 | H42: 52.77319245 | I42: 25.83563288 | J42: 351.0992161 | L42: 38 | M42: 2278.363798 | N42: 44.82417417 | O42: 0 | P42: exercise | Q42: 0 | R42: 1 | T42: 2278.363798 | U42: 44.82417417 | V42: 0 | W42: exercise | X42: 0 | Y42: 1 | Z42: 4205.62838 | AA42: 75.25587007 | AB42: 0 | AC42: exercise | AD42: 0 | AE42: 1 | AF42: 4192.000341 | AG42: 76.43708697 | AH42: 0 | AI42: exercise | AJ42: 0 | AK42: 1 | AL42: 6291.764382 | AM42: 48.21709948 | AN42: 70.5051339 | AO42: exercise | AP42: exercise | AQ42: 1 | AR42: 4795.35455 | AS42: 49.30280634 | AT42: 110.9705872 | AU42: exercise | AV42: exercise | AW42: 1 | AX42: 6291.764382 | AY42: 4 | AZ42: 44.82417417 | BA42: 1 | BB42: 48.21709948 | BC42: 0
A43: 39 | B43: 115.529691 | C43: 0.07868056267 | D43: 0.343071327 | E43: 790.3711234 | F43: 491.7647211 | G43: 53.39585025 | H43: 148.843527 | I43: 68.08981868 | J43: -648.0556555 | L43: 39 | M43: 438.1954524 | N43: 209.5813955 | O43: 0 | P43: wait | Q43: 0 | R43: 1 | T43: 438.1954524 | U43: 209.5813955 | V43: 0 | W43: wait | X43: 0 | Y43: 1 | Z43: 1148.450019 | AA43: 156.6149298 | AB43: 0 | AC43: wait | AD43: 0 | AE43: 1 | AF43: 1379.061194 | AG43: 128.5875165 | AH43: 0 | AI43: wait | AJ43: 0 | AK43: 1 | AL43: 1296.716811 | AM43: 137.4075939 | AN43: 137.4075939 | AO43: wait | AP43: wait | AQ43: 2 | AR43: 1510.544492 | AS43: 116.5686513 | AT43: 116.5686513 | AU43: wait | AV43: wait | AW43: 2 | AX43: 1510.544492 | AY43: 5 | AZ43: 116.5686513 | BA43: 5 | BB43: 116.5686513 | BC43: 0
A44: 40 | B44: 270.9613478 | C44: 0.04328521821 | D44: 0.2308851363 | E44: 2338.896762 | F44: 345.688672 | G44: 54.58221815 | H44: 616.9604288 | I44: 97.80364264 | J44: 599.1029474 | L44: 40 | M44: 3575.319426 | N44: 262.5862284 | O44: 0 | P44: exercise | Q44: 0 | R44: 1 | T44: 3575.319426 | U44: 262.5862284 | V44: 0 | W44: exercise | X44: 0 | Y44: 1 | Z44: 6579.184682 | AA44: 291.886131 | AB44: 0 | AC44: wait | AD44: 0 | AE44: 1 | AF44: 6351.08451 | AG44: 305.1530263 | AH44: 0 | AI44: wait | AJ44: 0 | AK44: 1 | AL44: 6472.207478 | AM44: 279.4925789 | AN44: 318.7749079 | AO44: wait | AP44: wait | AQ44: 1 | AR44: 6523.038512 | AS44: 272.1526551 | AT44: 321.6605939 | AU44: wait | AV44: wait | AW44: 1 | AX44: 6579.184682 | AY44: 2 | AZ44: 262.5862284 | BA44: 1 | BB44: 291.886131 | BC44: 0
A45: 41 | B45: 90.18950248 | C45: 0.079039433 | D45: 0.1790382519 | E45: 1924.909092 | F45: 1630.104308 | G45: 45.43859349 | H45: 410.844064 | I45: 101.5055386 | J45: 473.9239873 | L45: 41 | M45: 6.459475951 | N45: 386.4838813 | O45: 0 | P45: wait | Q45: 0 | R45: 1 | T45: 6.459475951 | U45: 386.4838813 | V45: 0 | W45: wait | X45: 0 | Y45: 1 | Z45: 10.87893611 | AA45: 412.2452444 | AB45: 0 | AC45: wait | AD45: 0 | AE45: 1 | AF45: 17.35091742 | AG45: 345.9692028 | AH45: 0 | AI45: wait | AJ45: 0 | AK45: 1 | AL45: 12.36823472 | AM45: 392.8572994 | AN45: 392.8572994 | AO45: wait | AP45: wait | AQ45: 2 | AR45: 19.94972711 | AS45: 328.3064604 | AT45: 328.3064604 | AU45: wait | AV45: wait | AW45: 2 | AX45: 19.94972711 | AY45: 5 | AZ45: 328.3064604 | BA45: 5 | BB45: 328.3064604 | BC45: 0
A46: 42 | B46: 176.4903019 | C46: 0.05723278448 | D46: 0.2831869285 | E46: 767.3127674 | F46: 78.6871848 | G46: 55.44373418 | H46: 263.2337869 | I46: 75.64881109 | J46: 1339.716239 | L46: 42 | M46: 2237.727381 | N46: 105.1662722 | O46: 0 | P46: exercise | Q46: 0 | R46: 1 | T46: 2237.727381 | U46: 105.1662722 | V46: 0 | W46: exercise | X46: 0 | Y46: 1 | Z46: 3147.064575 | AA46: 188.4363495 | AB46: 0 | AC46: wait | AD46: 0 | AE46: 1 | AF46: 2992.32696 | AG46: 199.9068455 | AH46: 0 | AI46: wait | AJ46: 0 | AK46: 1 | AL46: 3377.818031 | AM46: 110.0570751 | AN46: 264.1814045 | AO46: exercise | AP46: wait | AQ46: 1 | AR46: 3918.543988 | AS46: 114.5701776 | AT46: 165.6475411 | AU46: exercise | AV46: exercise | AW46: 1 | AX46: 3918.543988 | AY46: 5 | AZ46: 105.1662722 | BA46: 1 | BB46: 114.5701776 | BC46: 0
A47: 43 | B47: 215.2050531 | C47: 0.06867815831 | D47: 0.3306784301 | E47: 4518.007294 | F47: 2209.687012 | G47: 25.65211519 | H47: 3072.88628 | I47: 35.46294541 | J47: 1162.258167 | L47: 43 | M47: 464.6679644 | N47: 1012.800335 | O47: 0 | P47: wait | Q47: 0 | R47: 1 | T47: 464.6679644 | U47: 1012.800335 | V47: 0 | W47: wait | X47: 0 | Y47: 1 | Z47: 866.9357992 | AA47: 1100.284651 | AB47: 0 | AC47: wait | AD47: 0 | AE47: 1 | AF47: 826.1959848 | AG47: 1165.258509 | AH47: 0 | AI47: wait | AJ47: 0 | AK47: 1 | AL47: 884.819727 | AM47: 1073.827786 | AN47: 1073.827786 | AO47: wait | AP47: wait | AQ47: 2 | AR47: 838.4129278 | AS47: 1018.138997 | AT47: 1304.435688 | AU47: wait | AV47: wait | AW47: 1 | AX47: 884.819727 | AY47: 4 | AZ47: 1012.800335 | BA47: 1 | BB47: 1073.827786 | BC47: 0
A48: 44 | B48: 115.608015 | C48: 0.05645692476 | D48: 0.2146921667 | E48: 648.5624426 | F48: 99.24123699 | G48: 44.65799916 | H48: 179.890583 | I48: 33.95105192 | J48: 1005.933798 | L48: 44 | M48: 1299.917048 | N48: 76.09964178 | O48: 0 | P48: exercise | Q48: 0 | R48: 1 | T48: 1299.917048 | U48: 76.09964178 | V48: 0 | W48: exercise | X48: 0 | Y48: 1 | Z48: 1617.357837 | AA48: 127.2836649 | AB48: 0 | AC48: wait | AD48: 0 | AE48: 1 | AF48: 1554.65569 | AG48: 131.3872729 | AH48: 0 | AI48: wait | AJ48: 0 | AK48: 1 | AL48: 1674.10316 | AM48: 81.14924423 | AN48: 213.7783638 | AO48: exercise | AP48: wait | AQ48: 1 | AR48: 1769.246986 | AS48: 79.55464336 | AT48: 186.2353925 | AU48: exercise | AV48: wait | AW48: 1 | AX48: 1769.246986 | AY48: 5 | AZ48: 76.09964178 | BA48: 1 | BB48: 79.55464336 | BC48: 0
A49: 45 | B49: 152.5862362 | C49: 0.07792436542 | D49: 0.2418337089 | E49: 2345.152953 | F49: 3420.033371 | G49: 53.37426777 | H49: 1028.41749 | I49: 45.21268686 | J49: 751.7704969 | L49: 45 | M49: 60.57807092 | N49: 728.2743819 | O49: 0 | P49: wait | Q49: 0 | R49: 1 | T49: 60.57807092 | U49: 728.2743819 | V49: 0 | W49: wait | X49: 0 | Y49: 1 | Z49: 109.4410316 | AA49: 775.7572526 | AB49: 0 | AC49: wait | AD49: 0 | AE49: 1 | AF49: 155.1007586 | AG49: 624.6994655 | AH49: 0 | AI49: wait | AJ49: 0 | AK49: 1 | AL49: 104.8835943 | AM49: 796.524411 | AN49: 796.524411 | AO49: wait | AP49: wait | AQ49: 2 | AR49: 148.08826 | AS49: 642.911173 | AT49: 642.911173 | AU49: wait | AV49: wait | AW49: 2 | AX49: 155.1007586 | AY49: 3 | AZ49: 624.6994655 | BA49: 3 | BB49: 624.6994655 | BC49: 0
A50: 46 | B50: 188.3965773 | C50: 0.04521248807 | D50: 0.3600219378 | E50: 1002.682631 | F50: 139.832618 | G50: 39.05198878 | H50: 229.6496973 | I50: 41.78177597 | J50: 573.0634212 | L50: 46 | M50: 3024.399367 | N50: 164.9344681 | O50: 0 | P50: exercise | Q50: 0 | R50: 1 | T50: 3024.399367 | U50: 164.9344681 | V50: 0 | W50: exercise | X50: 0 | Y50: 1 | Z50: 5491.658526 | AA50: 206.2984283 | AB50: 0 | AC50: wait | AD50: 0 | AE50: 1 | AF50: 5414.716735 | AG50: 212.7814631 | AH50: 0 | AI50: wait | AJ50: 0 | AK50: 1 | AL50: 5683.016547 | AM50: 175.0276456 | AN50: 209.1769754 | AO50: exercise | AP50: wait | AQ50: 1 | AR50: 5523.242401 | AS50: 170.9661206 | AT50: 244.6078638 | AU50: exercise | AV50: wait | AW50: 1 | AX50: 5683.016547 | AY50: 4 | AZ50: 164.9344681 | BA50: 1 | BB50: 175.0276456 | BC50: 0
A51: 47 | B51: 142.7180369 | C51: 0.07446251835 | D51: 0.2843526144 | E51: 2388.94621 | F51: 165.7230714 | G51: 30.09220649 | H51: 698.2485201 | I51: 31.03996722 | J51: 1764.259964 | L51: 47 | M51: 305.2320961 | N51: 352.2634342 | O51: 0 | P51: wait | Q51: 0 | R51: 1 | T51: 305.2320961 | U51: 352.2634342 | V51: 0 | W51: wait | X51: 0 | Y51: 1 | Z51: 430.9520365 | AA51: 473.9003674 | AB51: 0 | AC51: wait | AD51: 0 | AE51: 1 | AF51: 394.8062723 | AG51: 510.6153436 | AH51: 0 | AI51: wait | AJ51: 0 | AK51: 1 | AL51: 469.494014 | AM51: 363.6892141 | AN51: 564.4503025 | AO51: wait | AP51: wait | AQ51: 1 | AR51: 451.4927345 | AS51: 356.5435363 | AT51: 643.145846 | AU51: wait | AV51: wait | AW51: 1 | AX51: 469.494014 | AY51: 4 | AZ51: 352.2634342 | BA51: 1 | BB51: 363.6892141 | BC51: 0
A52: 48 | B52: 61.01125552 | C52: 0.04458622611 | D52: 0.3370297738 | E52: 14489.93411 | F52: 2233.31073 | G52: 156.6398852 | H52: 6318.044013 | I52: 73.4633191 | J52: 1007.155226 | L52: 48 | M52: 153.9778998 | N52: 2255.110022 | O52: 0 | P52: wait | Q52: 0 | R52: 1 | T52: 153.9778998 | U52: 2255.110022 | V52: 0 | W52: wait | X52: 0 | Y52: 1 | Z52: 303.4756708 | AA52: 2323.016875 | AB52: 0 | AC52: wait | AD52: 0 | AE52: 1 | AF52: 287.1366217 | AG52: 2598.427629 | AH52: 0 | AI52: wait | AJ52: 0 | AK52: 1 | AL52: 302.1800125 | AM52: 2343.225513 | AN52: 2343.225513 | AO52: wait | AP52: wait | AQ52: 2 | AR52: 290.9016053 | AS52: 2265.016465 | AT52: 2846.019624 | AU52: wait | AV52: wait | AW52: 1 | AX52: 303.4756708 | AY52: 2 | AZ52: 2255.110022 | BA52: 1 | BB52: 2323.016875 | BC52: 0
A53: 49 | B53: 274.2336194 | C53: 0.05812163641 | D53: 0.2174620567 | E53: 655.8107321 | F53: 281.9887014 | G53: 62.83594591 | H53: 92.60041038 | I53: 63.93730617 | J53: 1254.734438 | L53: 49 | M53: 3780.471357 | N53: 97.30450443 | O53: 0 | P53: exercise | Q53: 0 | R53: 1 | T53: 3780.471357 | U53: 97.30450443 | V53: 0 | W53: exercise | X53: 0 | Y53: 1 | Z53: 6306.208277 | AA53: 162.3990802 | AB53: 0 | AC53: exercise | AD53: 0 | AE53: 1 | AF53: 6495.596568 | AG53: 152.5737737 | AH53: 0 | AI53: exercise | AJ53: 0 | AK53: 1 | AL53: 7130.704222 | AM53: 111.933843 | AN53: 182.2814387 | AO53: exercise | AP53: exercise | AQ53: 1 | AR53: 5981.074893 | AS53: 103.9385326 | AT53: 256.0690584 | AU53: exercise | AV53: exercise | AW53: 1 | AX53: 7130.704222 | AY53: 4 | AZ53: 97.30450443 | BA53: 1 | BB53: 111.933843 | BC53: 0
A54: 50 | B54: 184.8610092 | C54: 0.04882673073 | D54: 0.2750681209 | E54: 5190.203533 | F54: 1318.149695 | G54: 25.23741266 | H54: 1615.512476 | I54: 122.757568 | J54: 1429.139845 | L54: 50 | M54: 782.686778 | N54: 751.8809124 | O54: 0 | P54: wait | Q54: 0 | R54: 1 | T54: 782.686778 | U54: 751.8809124 | V54: 0 | W54: wait | X54: 0 | Y54: 1 | Z54: 1450.436624 | AA54: 834.4319766 | AB54: 0 | AC54: wait | AD54: 0 | AE54: 1 | AF54: 1428.962518 | AG54: 851.6084721 | AH54: 0 | AI54: wait | AJ54: 0 | AK54: 1 | AL54: 1489.761793 | AM54: 804.4893452 | AN54: 804.4893452 | AO54: wait | AP54: wait | AQ54: 2 | AR54: 1410.063036 | AS54: 766.0625447 | AT54: 994.028606 | AU54: wait | AV54: wait | AW54: 1 | AX54: 1489.761793 | AY54: 4 | AZ54: 751.8809124 | BA54: 1 | BB54: 804.4893452 | BC54: 0
A55: 51 | B55: 94.76963396 | C55: 0.08964341105 | D55: 0.3469176474 | E55: 382.1908098 | F55: 58.77755869 | G55: 60.69210847 | H55: 50.74447871 | I55: 71.99693172 | J55: 452.4589737 | L55: 51 | M55: 616.2162349 | N55: 76.75941364 | O55: 0 | P55: exercise | Q55: 0 | R55: 1 | T55: 616.2162349 | U55: 76.75941364 | V55: 0 | W55: exercise | X55: 0 | Y55: 1 | Z55: 826.3616472 | AA55: 116.1392059 | AB55: 0 | AC55: wait | AD55: 0 | AE55: 1 | AF55: 831.6767249 | AG55: 115.4400464 | AH55: 0 | AI55: wait | AJ55: 0 | AK55: 1 | AL55: 897.2922539 | AM55: 81.87512177 | AN55: 152.0138472 | AO55: exercise | AP55: wait | AQ55: 1 | AR55: 833.6978882 | AS55: 89.29192766 | AT55: 162.3716537 | AU55: exercise | AV55: wait | AW55: 1 | AX55: 897.2922539 | AY55: 4 | AZ55: 76.75941364 | BA55: 1 | BB55: 81.87512177 | BC55: 0
A56: 52 | B56: 143.218131 | C56: 0.05901844999 | D56: 0.2184011885 | E56: 3724.609982 | F56: 2314.23426 | G56: 45.52541441 | H56: 1298.723729 | I56: 97.18532825 | J56: 839.7691954 | L56: 52 | M56: 155.3125668 | N56: 632.130129 | O56: 0 | P56: wait | Q56: 0 | R56: 1 | T56: 155.3125668 | U56: 632.130129 | V56: 0 | W56: wait | X56: 0 | Y56: 1 | Z56: 284.7748139 | AA56: 676.0825302 | AB56: 0 | AC56: wait | AD56: 0 | AE56: 1 | AF56: 316.566535 | AG56: 622.9320615 | AH56: 0 | AI56: wait | AJ56: 0 | AK56: 1 | AL56: 284.5973806 | AM56: 676.4086002 | AN56: 676.4086002 | AO56: wait | AP56: wait | AQ56: 2 | AR56: 340.4538299 | AS56: 588.8422766 | AT56: 588.8422766 | AU56: wait | AV56: wait | AW56: 2 | AX56: 340.4538299 | AY56: 5 | AZ56: 588.8422766 | BA56: 5 | BB56: 588.8422766 | BC56: 0
A57: 53 | B57: 334.7791075 | C57: 0.04670452631 | D57: 0.2385926218 | E57: 330.8013806 | F57: 171.2843422 | G57: 39.47218924 | H57: 58.72123714 | I57: 40.74888938 | J57: 186.4867316 | L57: 53 | M57: 6665.937036 | N57: 51.38954677 | O57: 0 | P57: exercise | Q57: 0 | R57: 1 | T57: 6665.937036 | U57: 51.38954677 | V57: 0 | W57: exercise | X57: 0 | Y57: 1 | Z57: 13145.38734 | AA57: 60.93320454 | AB57: 0 | AC57: exercise | AD57: 0 | AE57: 1 | AF57: 13257.95044 | AG57: 55.17266735 | AH57: 0 | AI57: exercise | AJ57: 0 | AK57: 1 | AL57: 22257.60369 | AM57: 60.15520602 | AN57: 63.75004929 | AO57: exercise | AP57: exercise | AQ57: 1 | AR57: 23003.70454 | AS57: 55.56028268 | AT57: 60.5116136 | AU57: exercise | AV57: exercise | AW57: 1 | AX57: 23003.70454 | AY57: 5 | AZ57: 51.38954677 | BA57: 1 | BB57: 55.56028268 | BC57: 0
A58: 54 | B58: 185.7251574 | C58: 0.06821198749 | D58: 0.3118106317 | E58: 4623.940912 | F58: 628.2624136 | G58: 29.034259 | H58: 867.1153105 | I58: 47.05840181 | J58: 1081.495475 | L58: 54 | M58: 397.9505505 | N58: 750.9048151 | O58: 0 | P58: wait | Q58: 0 | R58: 1 | T58: 397.9505505 | U58: 750.9048151 | V58: 0 | W58: wait | X58: 0 | Y58: 1 | Z58: 727.8251163 | AA58: 828.2152417 | AB58: 0 | AC58: wait | AD58: 0 | AE58: 1 | AF58: 714.3987636 | AG58: 845.2895798 | AH58: 0 | AI58: wait | AJ58: 0 | AK58: 1 | AL58: 774.992691 | AM58: 773.1358481 | AN58: 773.1358481 | AO58: wait | AP58: wait | AQ58: 2 | AR58: 727.2009984 | AS58: 757.6327307 | AT58: 914.4181114 | AU58: wait | AV58: wait | AW58: 1 | AX58: 774.992691 | AY58: 4 | AZ58: 750.9048151 | BA58: 1 | BB58: 773.1358481 | BC58: 0
A59: 55 | B59: 161.8947984 | C59: 0.03806538235 | D59: 0.337734644 | E59: 5693.837757 | F59: 7412.478797 | G59: 45.51035513 | H59: 1413.246369 | I59: 27.05333507 | J59: 1404.036157 | L59: 55 | M59: 1141.198784 | N59: 1710.570399 | O59: 0 | P59: wait | Q59: 0 | R59: 1 | T59: 1141.198784 | U59: 1710.570399 | V59: 0 | W59: wait | X59: 0 | Y59: 1 | Z59: 2233.885724 | AA59: 1802.194262 | AB59: 0 | AC59: wait | AD59: 0 | AE59: 1 | AF59: 2470.909074 | AG59: 1410.699467 | AH59: 0 | AI59: wait | AJ59: 0 | AK59: 1 | AL59: 2218.784514 | AM59: 1832.129409 | AN59: 1832.129409 | AO59: wait | AP59: wait | AQ59: 2 | AR59: 2477.812547 | AS59: 1401.172744 | AT59: 1401.172744 | AU59: wait | AV59: wait | AW59: 2 | AX59: 2477.812547 | AY59: 5 | AZ59: 1401.172744 | BA59: 5 | BB59: 1401.172744 | BC59: 0
A60: 56 | B60: 254.6412687 | C60: 0.05988869602 | D60: 0.3136876642 | E60: 813.5191817 | F60: 1783.672514 | G60: 42.39459321 | H60: 145.7173219 | I60: 65.87291708 | J60: 1469.896478 | L60: 56 | M60: 1847.3098 | N60: 356.5303208 | O60: 0 | P60: wait | Q60: 0 | R60: 1 | T60: 1847.3098 | U60: 356.5303208 | V60: 0 | W60: wait | X60: 0 | Y60: 1 | Z60: 3046.632052 | AA60: 457.4205754 | AB60: 0 | AC60: wait | AD60: 0 | AE60: 1 | AF60: 3789.863356 | AG60: 344.995164 | AH60: 0 | AI60: wait | AJ60: 0 | AK60: 1 | AL60: 3245.330193 | AM60: 421.5604703 | AN60: 421.5604703 | AO60: wait | AP60: wait | AQ60: 2 | AR60: 3746.222742 | AS60: 350.1971328 | AT60: 350.1971328 | AU60: wait | AV60: wait | AW60: 2 | AX60: 3789.863356 | AY60: 3 | AZ60: 344.995164 | BA60: 3 | BB60: 344.995164 | BC60: 0
A61: 57 | B61: 229.0297092 | C61: 0.08603270441 | D61: 0.2911838034 | E61: 1365.058227 | F61: 118.0358569 | G61: 69.79326535 | H61: 646.4741455 | I61: 59.31168232 | J61: 1216.274605 | L61: 57 | M61: 1179.029707 | N61: 222.003895 | O61: 0 | P61: exercise | Q61: 0 | R61: 1 | T61: 1179.029707 | U61: 222.003895 | V61: 0 | W61: exercise | X61: 0 | Y61: 1 | Z61: 1484.261242 | AA61: 313.0357798 | AB61: 0 | AC61: wait | AD61: 0 | AE61: 1 | AF61: 1263.791826 | AG61: 352.5866618 | AH61: 0 | AI61: wait | AJ61: 0 | AK61: 1 | AL61: 2056.472963 | AM61: 230.8382704 | AN61: 263.5685765 | AO61: wait | AP61: wait | AQ61: 1 | AR61: 1526.387184 | AS61: 230.8822424 | AT61: 488.6312048 | AU61: wait | AV61: wait | AW61: 1 | AX61: 2056.472963 | AY61: 4 | AZ61: 222.003895 | BA61: 1 | BB61: 230.8382704 | BC61: 0
A62: 58 | B62: 557.3370035 | C62: 0.05795719362 | D62: 0.3331800164 | E62: 5656.898314 | F62: 570.3864815 | G62: 126.968814 | H62: 1941.656655 | I62: 81.85155994 | J62: 938.0135315 | L62: 58 | M62: 4158.988857 | N62: 891.9299664 | O62: 0 | P62: wait | Q62: 0 | R62: 1 | T62: 4158.988857 | U62: 891.9299664 | V62: 0 | W62: wait | X62: 0 | Y62: 1 | Z62: 7917.42275 | AA62: 959.1055016 | AB62: 0 | AC62: wait | AD62: 0 | AE62: 1 | AF62: 7409.853497 | AG62: 1057.308571 | AH62: 0 | AI62: wait | AJ62: 0 | AK62: 1 | AL62: 7769.5654 | AM62: 932.7780095 | AN62: 1044.703846 | AO62: wait | AP62: wait | AQ62: 1 | AR62: 7510.188734 | AS62: 903.6535123 | AT62: 1206.009865 | AU62: wait | AV62: wait | AW62: 1 | AX62: 7917.42275 | AY62: 2 | AZ62: 891.9299664 | BA62: 1 | BB62: 959.1055016 | BC62: 0
A63: 59 | B63: 88.37528398 | C63: 0.0435319435 | D63: 0.2590164652 | E63: 175.633711 | F63: 57.19813723 | G63: 60.94961921 | H63: 39.4572714 | I63: 116.4736489 | J63: -986.7297057 | L63: 59 | M63: 1797.293087 | N63: 24.83667629 | O63: 0 | P63: exercise | Q63: 0 | R63: 1 | T63: 1797.293087 | U63: 24.83667629 | V63: 0 | W63: exercise | X63: 0 | Y63: 1 | Z63: 4581.31588 | AA63: -27.7916185 | AB63: 0 | AC63: exercise | AD63: 0 | AE63: 1 | AF63: 4599.056746 | AG63: -28.73784674 | AH63: 0 | AI63: exercise | AJ63: 0 | AK63: 1 | AL63: 3579.550385 | AM63: 25.63862637 | AN63: 25.63862637 | AO63: exercise | AP63: exercise | AQ63: 2 | AR63: 4046.59549 | AS63: 0.728271121 | AT63: 0.728271121 | AU63: exercise | AV63: exercise | AW63: 2 | AX63: 4599.056746 | AY63: 3 | AZ63: -28.73784674 | BA63: 3 | BB63: -28.73784674 | BC63: 0
A64: 60 | B64: 134.6323692 | C64: 0.06939232909 | D64: 0.2042080091 | E64: 374.9532283 | F64: 145.7172802 | G64: 38.7308355 | H64: 64.55752806 | I64: 88.89354723 | J64: 1910.995991 | L64: 60 | M64: 1419.491623 | N64: 56.31885326 | O64: 0 | P64: exercise | Q64: 0 | R64: 1 | T64: 1419.491623 | U64: 56.31885326 | V64: 0 | W64: exercise | X64: 0 | Y64: 1 | Z64: 1025.037986 | AA64: 159.6712623 | AB64: 0 | AC64: wait | AD64: 0 | AE64: 1 | AF64: 1077.471131 | AG64: 155.2818989 | AH64: 0 | AI64: wait | AJ64: 0 | AK64: 1 | AL64: 1625.261912 | AM64: 64.1996819 | AN64: 224.4510065 | AO64: exercise | AP64: wait | AQ64: 1 | AR64: 1843.061115 | AS64: 65.93411389 | AT64: 159.6810035 | AU64: exercise | AV64: wait | AW64: 1 | AX64: 1843.061115 | AY64: 5 | AZ64: 56.31885326 | BA64: 1 | BB64: 65.93411389 | BC64: 0
A65: 61 | B65: 112.5340949 | C65: 0.06024390539 | D65: 0.1867033724 | E65: 1283.672926 | F65: 225.9629906 | G65: 34.98305474 | H65: 470.3545458 | I65: 51.87559318 | J65: 837.3182441 | L65: 61 | M65: 456.6842853 | N65: 145.5872811 | O65: 0 | P65: wait | Q65: 0 | R65: 1 | T65: 456.6842853 | U65: 145.5872811 | V65: 0 | W65: wait | X65: 0 | Y65: 1 | Z65: 607.735086 | AA65: 185.9622103 | AB65: 0 | AC65: wait | AD65: 0 | AE65: 1 | AF65: 548.655706 | AG65: 197.7466087 | AH65: 0 | AI65: wait | AJ65: 0 | AK65: 1 | AL65: 666.7340487 | AM65: 156.4830663 | AN65: 203.4056273 | AO65: wait | AP65: wait | AQ65: 1 | AR65: 583.1569406 | AS65: 150.5900943 | AT65: 282.569328 | AU65: wait | AV65: wait | AW65: 1 | AX65: 666.7340487 | AY65: 4 | AZ65: 145.5872811 | BA65: 1 | BB65: 156.4830663 | BC65: 0
A66: 62 | B66: 316.23573 | C66: 0.07854189478 | D66: 0.2496138516 | E66: 539.1808784 | F66: 264.2732267 | G66: 42.68642287 | H66: 276.0123461 | I66: 128.7916585 | J66: 4.863755994 | L66: 62 | M66: 3222.877713 | N66: 103.9112602 | O66: 0 | P66: exercise | Q66: 0 | R66: 1 | T66: 3222.877713 | U66: 103.9112602 | V66: 0 | W66: exercise | X66: 0 | Y66: 1 | Z66: 6440.891669 | AA66: 104.2257766 | AB66: 0 | AC66: exercise | AD66: 0 | AE66: 1 | AF66: 6429.15255 | AG66: 104.9848907 | AH66: 0 | AI66: exercise | AJ66: 0 | AK66: 1 | AL66: 6422.457876 | AM66: 105.4178041 | AN66: 105.4178041 | AO66: exercise | AP66: exercise | AQ66: 2 | AR66: 6261.28428 | AS66: 115.8401489 | AT66: 115.8401489 | AU66: exercise | AV66: exercise | AW66: 2 | AX66: 6440.891669 | AY66: 2 | AZ66: 103.9112602 | BA66: 1 | BB66: 104.2257766 | BC66: 0
A67: 63 | B67: 66.63807557 | C67: 0.06094714046 | D67: 0.3405013469 | E67: 3675.890004 | F67: 809.766855 | G67: 45.15704926 | H67: 1625.9914 | I67: 29.57698199 | J67: 1379.415851 | L67: 63 | M67: 129.5268784 | N67: 665.5828341 | O67: 0 | P67: wait | Q67: 0 | R67: 1 | T67: 129.5268784 | U67: 665.5828341 | V67: 0 | W67: wait | X67: 0 | Y67: 1 | Z67: 234.472191 | AA67: 767.9218605 | AB67: 0 | AC67: wait | AD67: 0 | AE67: 1 | AF67: 222.3889631 | AG67: 828.4776568 | AH67: 0 | AI67: wait | AJ67: 0 | AK67: 1 | AL67: 257.3772957 | AM67: 671.8110171 | AN67: 671.8110171 | AO67: wait | AP67: wait | AQ67: 2 | AR67: 227.0351403 | AS67: 669.9714737 | AT67: 991.6082071 | AU67: wait | AV67: wait | AW67: 1 | AX67: 257.3772957 | AY67: 4 | AZ67: 665.5828341 | BA67: 1 | BB67: 671.8110171 | BC67: 0
A68: 64 | B68: 83.47229389 | C68: 0.07294883558 | D68: 0.2984673259 | E68: 216.984825 | F68: 48.25721135 | G68: 23.9394771 | H68: 31.86167862 | I68: 69.91728127 | J68: 520.4247022 | L68: 64 | M68: 879.0160348 | N68: 37.60087679 | O68: 0 | P68: exercise | Q68: 0 | R68: 1 | T68: 879.0160348 | U68: 37.60087679 | V68: 0 | W68: exercise | X68: 0 | Y68: 1 | Z68: 1237.607367 | AA68: 74.48874225 | AB68: 0 | AC68: exercise | AD68: 0 | AE68: 1 | AF68: 1254.0029 | AG68: 73.32662177 | AH68: 0 | AI68: exercise | AJ68: 0 | AK68: 1 | AL68: 1180.755312 | AM68: 41.021363 | AN68: 138.0378483 | AO68: exercise | AP68: wait | AQ68: 1 | AR68: 1203.39911 | AS68: 47.51239426 | AT68: 115.320755 | AU68: exercise | AV68: wait | AW68: 1 | AX68: 1254.0029 | AY68: 3 | AZ68: 37.60087679 | BA68: 1 | BB68: 73.32662177 | BC68: 0
A69: 65 | B69: 285.366374 | C69: 0.07699598196 | D69: 0.2838644696 | E69: 2756.382667 | F69: 607.0450691 | G69: 28.17905408 | H69: 605.7043773 | I69: 66.09223732 | J69: 315.529502 | L69: 65 | M69: 902.0730663 | N69: 469.9876781 | O69: 0 | P69: wait | Q69: 0 | R69: 1 | T69: 902.0730663 | U69: 469.9876781 | V69: 0 | W69: wait | X69: 0 | Y69: 1 | Z69: 1705.454264 | AA69: 492.0328935 | AB69: 0 | AC69: wait | AD69: 0 | AE69: 1 | AF69: 1705.852806 | AG69: 491.9392229 | AH69: 0 | AI69: wait | AJ69: 0 | AK69: 1 | AL69: 1668.960988 | AM69: 500.7818457 | AN69: 500.7818457 | AO69: wait | AP69: wait | AQ69: 2 | AR69: 1684.168378 | AS69: 479.2230592 | AT69: 516.5209231 | AU69: wait | AV69: wait | AW69: 1 | AX69: 1705.852806 | AY69: 3 | AZ69: 469.9876781 | BA69: 1 | BB69: 491.9392229 | BC69: 0
A70: =A69+1 -> 66 | B70: 146.1319663 | C70: 0.0650457011 | D70: 0.2214764004 | E70: 1427.05951 | F70: 70.44148194 | G70: 56.82928831 | H70: 758.0342479 | I70: 65.29443085 | J70: 45.75491009 | L70: 66 | M70: 772.0688798 | N70: 164.736109 | O70: 0 | P70: wait | Q70: 0 | R70: 1 | T70: 772.0688798 | U70: 164.736109 | V70: 0 | W70: wait | X70: 0 | Y70: 1 | Z70: 1510.637177 | AA70: 167.2527971 | AB70: 0 | AC70: wait | AD70: 0 | AE70: 1 | AF70: 1124.805128 | AG70: 205.0729246 | AH70: 0 | AI70: wait | AJ70: 0 | AK70: 1 | AL70: 1497.900684 | AM70: 168.2345347 | AN70: 168.2345347 | AO70: wait | AP70: wait | AQ70: 2 | AR70: 1146.377895 | AS70: 171.9189761 | AT70: 250.7100243 | AU70: wait | AV70: wait | AW70: 1 | AX70: 1510.637177 | AY70: 2 | AZ70: 164.736109 | BA70: 1 | BB70: =CHOOSE(AY70,U70,AA70,AG70,AM70,AS70) -> 167.2527971 | BC70: =IF(ROUND(T70-Z70,0)=0,1,0) -> 0
A71: 67 | B71: 175.255245 | C71: 0.07400413782 | D71: 0.3183529893 | E71: 4726.950463 | F71: 488.7560663 | G71: 53.74848863 | H71: 1231.106519 | I71: 86.03866518 | J71: 1819.233526 | L71: =A71 -> 67 | M71: 279.5840621 | N71: 782.4209279 | O71: 0 | P71: wait | Q71: 0 | R71: 1 | T71: 279.5840621 | U71: 782.4209279 | V71: 0 | W71: wait | X71: 0 | Y71: 1 | Z71: 478.1536034 | AA71: 918.8747693 | AB71: 0 | AC71: wait | AD71: 0 | AE71: 1 | AF71: 451.5343686 | AG71: 974.5556753 | AH71: 0 | AI71: wait | AJ71: 0 | AK71: 1 | AL71: 493.641357 | AM71: 819.080676 | AN71: 972.4283657 | AO71: wait | AP71: wait | AQ71: 1 | AR71: 479.3088161 | AS71: 795.327799 | AT71: 1080.728496 | AU71: wait | AV71: wait | AW71: 1 | AX71: =MAX(AR71,AL71,AF71,Z71,T71) -> 493.641357 | AY71: =INDEX($T$1:$AW$1,MATCH(AX71,$T71:$AW71,0)) -> 4 | AZ71: =MIN(AS71,AM71,AG71,AA71,U71) -> 782.4209279 | BA71: =INDEX($T$1:$AW$1,MATCH(AZ71,$T71:$AW71,0)) -> 1 | BB71: 819.080676 | BC71: 0
A72: 68 | B72: 283.2008941 | C72: 0.07605159638 | D72: 0.2906818206 | E72: 1073.763964 | F72: 131.6070714 | G72: 41.22908595 | H72: 288.241399 | I72: 38.35907312 | J72: -167.9471875 | L72: 68 | M72: 2518.428432 | N72: 170.4501751 | O72: 0 | P72: exercise | Q72: 0 | R72: 1 | T72: 2518.428432 | U72: 170.4501751 | V72: 0 | W72: exercise | X72: 0 | Y72: 1 | Z72: 5204.804052 | AA72: 158.5755628 | AB72: 0 | AC72: exercise | AD72: 0 | AE72: 1 | AF72: 5048.169724 | AG72: 169.6503057 | AH72: 0 | AI72: exercise | AJ72: 0 | AK72: 1 | AL72: 5218.311328 | AM72: 157.6205383 | AN72: 157.6205383 | AO72: exercise | AP72: exercise | AQ72: 2 | AR72: 5012.983738 | AS72: 172.1381112 | AT72: 172.1381112 | AU72: exercise | AV72: exercise | AW72: 2 | AX72: 5218.311328 | AY72: 4 | AZ72: 157.6205383 | BA72: 4 | BB72: 157.6205383 | BC72: 0
A73: 69 | B73: 163.5241224 | C73: 0.05740516724 | D73: 0.3547345042 | E73: 849.2618297 | F73: 111.5415791 | G73: 88.85571198 | H73: 137.383264 | I73: 47.14393745 | J73: 2292.242211 | L73: 69 | M73: 1887.792464 | N73: 145.4275643 | O73: 0 | P73: exercise | Q73: 0 | R73: 1 | T73: 1887.792464 | U73: 145.4275643 | V73: 0 | W73: exercise | X73: 0 | Y73: 1 | Z73: 2351.448879 | AA73: 318.9048846 | AB73: 0 | AC73: wait | AD73: 0 | AE73: 1 | AF73: 2342.681529 | AG73: 320.8605882 | AH73: 0 | AI73: wait | AJ73: 0 | AK73: 1 | AL73: 2720.052915 | AM73: 153.8690519 | AN73: 504.8218138 | AO73: exercise | AP73: wait | AQ73: 1 | AR73: 3309.329647 | AS73: 152.5632883 | AT73: 221.5744662 | AU73: exercise | AV73: wait | AW73: 1 | AX73: 3309.329647 | AY73: 5 | AZ73: 145.4275643 | BA73: 1 | BB73: 152.5632883 | BC73: 0
A74: 70 | B74: 112.0820428 | C74: 0.0559527655 | D74: 0.3077912927 | E74: 959.3061405 | F74: 1002.647597 | G74: 37.86053305 | H74: 192.2011529 | I74: 37.62445268 | J74: 599.2505005 | L74: 70 | M74: 623.9299274 | N74: 259.2729646 | O74: 0 | P74: wait | Q74: 0 | R74: 1 | T74: 623.9299274 | U74: 259.2729646 | V74: 0 | W74: wait | X74: 0 | Y74: 1 | Z74: 1124.19573 | AA74: 298.8685602 | AB74: 0 | AC74: wait | AD74: 0 | AE74: 1 | AF74: 1299.599425 | AG74: 245.3181507 | AH74: 0 | AI74: wait | AJ74: 0 | AK74: 1 | AL74: 1117.562236 | AM74: 301.2870055 | AN74: 301.2870055 | AO74: wait | AP74: wait | AQ74: 2 | AR74: 1395.394196 | AS74: 222.6724979 | AT74: 222.6724979 | AU74: wait | AV74: wait | AW74: 2 | AX74: 1395.394196 | AY74: 5 | AZ74: 222.6724979 | BA74: 5 | BB74: 222.6724979 | BC74: 0
A75: 71 | B75: 98.75454864 | C75: 0.05713291648 | D75: 0.1924045891 | E75: 1834.754866 | F75: 424.606222 | G75: 86.48146367 | H75: 1034.906112 | I75: 74.88119114 | J75: 207.5657341 | L75: 71 | M75: 219.0550826 | N75: 216.5249506 | O75: 0 | P75: wait | Q75: 0 | R75: 1 | T75: 219.0550826 | U75: 216.5249506 | V75: 0 | W75: wait | X75: 0 | Y75: 1 | Z75: 410.0057817 | AA75: 226.4709394 | AB75: 0 | AC75: wait | AD75: 0 | AE75: 1 | AF75: 342.7109667 | AG75: 255.7148602 | AH75: 0 | AI75: wait | AJ75: 0 | AK75: 1 | AL75: 396.0516954 | AM75: 231.8458097 | AN75: 231.8458097 | AO75: wait | AP75: wait | AQ75: 2 | AR75: 347.3506367 | AS75: 223.701159 | AT75: 295.2499305 | AU75: wait | AV75: wait | AW75: 1 | AX75: 410.0057817 | AY75: 2 | AZ75: 216.5249506 | BA75: 1 | BB75: 226.4709394 | BC75: 0
A76: 72 | B76: 236.169064 | C76: 0.05347003303 | D76: 0.2621686086 | E76: 572.0006046 | F76: 131.9719483 | G76: 103.898643 | H76: 137.6957005 | I76: 23.44363992 | J76: 1580.305166 | L76: 72 | M76: 3712.876486 | N76: 80.59324004 | O76: 0 | P76: exercise | Q76: 0 | R76: 1 | T76: 3712.876486 | U76: 80.59324004 | V76: 0 | W76: exercise | X76: 0 | Y76: 1 | Z76: 5845.447807 | AA76: 171.0526713 | AB76: 0 | AC76: exercise | AD76: 0 | AE76: 1 | AF76: 5839.724055 | AG76: 171.3803089 | AH76: 0 | AI76: exercise | AJ76: 0 | AK76: 1 | AL76: 7675.133205 | AM76: 88.14754516 | AN76: 127.9341348 | AO76: exercise | AP76: exercise | AQ76: 1 | AR76: 8929.601174 | AS76: 83.27714994 | AT76: 94.76360442 | AU76: exercise | AV76: exercise | AW76: 1 | AX76: 8929.601174 | AY76: 5 | AZ76: 80.59324004 | BA76: 1 | BB76: 83.27714994 | BC76: 0
A77: 73 | B77: 336.220258 | C77: 0.08793733719 | D77: 0.234112391 | E77: 308.3703122 | F77: 129.1003132 | G77: 79.36464914 | H77: 100.7129172 | I77: 29.53241068 | J77: 882.1646165 | L77: 73 | M77: 3385.936686 | N77: 57.76487114 | O77: 0 | P77: exercise | Q77: 0 | R77: 1 | T77: 3385.936686 | U77: 57.76487114 | V77: 0 | W77: exercise | X77: 0 | Y77: 1 | Z77: 5889.708756 | AA77: 116.0066392 | AB77: 0 | AC77: exercise | AD77: 0 | AE77: 1 | AF77: 5918.096152 | AG77: 114.1324628 | AH77: 0 | AI77: exercise | AJ77: 0 | AK77: 1 | AL77: 21229.41797 | AM77: 66.28825823 | AN77: 89.41894333 | AO77: exercise | AP77: exercise | AQ77: 1 | AR77: 19352.64549 | AS77: 61.66441502 | AT77: 94.62824537 | AU77: exercise | AV77: exercise | AW77: 1 | AX77: 21229.41797 | AY77: 4 | AZ77: 57.76487114 | BA77: 1 | BB77: 66.28825823 | BC77: 0
A78: 74 | B78: 140.8459983 | C78: 0.03911138557 | D78: 0.1932337206 | E78: 1476.694818 | F78: 66.11925925 | G78: 107.8105247 | H78: 408.9361403 | I78: 16.14142239 | J78: 381.6603988 | L78: 74 | M78: 2058.336745 | N78: 130.6611568 | O78: 0 | P78: exercise | Q78: 0 | R78: 1 | T78: 2058.336745 | U78: 130.6611568 | V78: 0 | W78: exercise | X78: 0 | Y78: 1 | Z78: 3740.361169 | AA78: 146.8225952 | AB78: 0 | AC78: wait | AD78: 0 | AE78: 1 | AF78: 3449.663155 | AG78: 161.3392018 | AH78: 0 | AI78: wait | AJ78: 0 | AK78: 1 | AL78: 3740.235121 | AM78: 133.4609818 | AN78: 162.4221967 | AO78: exercise | AP78: wait | AQ78: 1 | AR78: 3489.492982 | AS78: 132.0281763 | AT78: 197.9370851 | AU78: exercise | AV78: wait | AW78: 1 | AX78: 3740.361169 | AY78: 2 | AZ78: 130.6611568 | BA78: 1 | BB78: 146.8225952 | BC78: 0
A79: 75 | B79: 166.6426022 | C79: 0.03605191634 | D79: 0.2254335697 | E79: 1834.934176 | F79: 282.3592479 | G79: 69.31326893 | H79: 328.1759924 | I79: 30.28737837 | J79: 2116.132694 | L79: 75 | M79: 2541.248026 | N79: 194.4374062 | O79: 0 | P79: wait | Q79: 0 | R79: 1 | T79: 2541.248026 | U79: 194.4374062 | V79: 0 | W79: wait | X79: 0 | Y79: 1 | Z79: 3911.277822 | AA79: 291.6028127 | AB79: 0 | AC79: wait | AD79: 0 | AE79: 1 | AF79: 3893.148106 | AG79: 293.7065572 | AH79: 0 | AI79: wait | AJ79: 0 | AK79: 1 | AL79: 4402.299925 | AM79: 207.4023546 | AN79: 289.4811645 | AO79: wait | AP79: wait | AQ79: 1 | AR79: 4188.659825 | AS79: 197.218787 | AT79: 372.0787134 | AU79: wait | AV79: wait | AW79: 1 | AX79: 4402.299925 | AY79: 4 | AZ79: 194.4374062 | BA79: 1 | BB79: 207.4023546 | BC79: 0
A80: 76 | B80: 244.5656846 | C80: 0.06727499257 | D80: 0.223885635 | E80: 2218.737293 | F80: 3177.434151 | G80: 59.13028808 | H80: 1221.418985 | I80: 53.4536133 | J80: 1585.60467 | L80: 76 | M80: 376.9688838 | N80: 606.608969 | O80: 0 | P80: wait | Q80: 0 | R80: 1 | T80: 376.9688838 | U80: 606.608969 | V80: 0 | W80: wait | X80: 0 | Y80: 1 | Z80: 614.6236534 | AA80: 695.731602 | AB80: 0 | AC80: wait | AD80: 0 | AE80: 1 | AF80: 794.2197941 | AG80: 585.7891775 | AH80: 0 | AI80: wait | AJ80: 0 | AK80: 1 | AL80: 568.0561915 | AM80: 733.5016001 | AN80: 733.5016001 | AO80: wait | AP80: wait | AQ80: 2 | AR80: 891.4478851 | AS80: 542.1113802 | AT80: 542.1113802 | AU80: wait | AV80: wait | AW80: 2 | AX80: 891.4478851 | AY80: 5 | AZ80: 542.1113802 | BA80: 5 | BB80: 542.1113802 | BC80: 0
A81: 77 | B81: 143.4133746 | C81: 0.07103487382 | D81: 0.2658295072 | E81: 732.495228 | F81: 558.1015456 | G81: 80.50597286 | H81: 163.8964687 | I81: 56.03457137 | J81: 385.5259563 | L81: 77 | M81: 755.1064672 | N81: 166.2155419 | O81: 0 | P81: wait | Q81: 0 | R81: 1 | T81: 755.1064672 | U81: 166.2155419 | V81: 0 | W81: wait | X81: 0 | Y81: 1 | Z81: 1272.568323 | AA81: 191.0414237 | AB81: 0 | AC81: wait | AD81: 0 | AE81: 1 | AF81: 1516.482073 | AG81: 165.6566514 | AH81: 0 | AI81: wait | AJ81: 0 | AK81: 1 | AL81: 1224.237972 | AM81: 197.151085 | AN81: 197.151085 | AO81: wait | AP81: wait | AQ81: 2 | AR81: 1332.004638 | AS81: 173.4322163 | AT81: 196.3072589 | AU81: wait | AV81: wait | AW81: 1 | AX81: 1516.482073 | AY81: 3 | AZ81: 165.6566514 | BA81: 3 | BB81: 165.6566514 | BC81: 0
A82: 78 | B82: 201.8580814 | C82: 0.0688985055 | D82: 0.1854208308 | E82: 1261.156104 | F82: 199.5419122 | G82: 39.5986891 | H82: 208.0737497 | I82: 73.07108243 | J82: 1940.087036 | L82: 78 | M82: 1469.090954 | N82: 149.6779018 | O82: 0 | P82: exercise | Q82: 0 | R82: 1 | T82: 1469.090954 | U82: 149.6779018 | V82: 0 | W82: exercise | X82: 0 | Y82: 1 | Z82: 1247.063305 | AA82: 249.078378 | AB82: 0 | AC82: wait | AD82: 0 | AE82: 1 | AF82: 1242.58372 | AG82: 249.5155073 | AH82: 0 | AI82: wait | AJ82: 0 | AK82: 1 | AL82: 1603.883525 | AM82: 159.9014437 | AN82: 401.0757987 | AO82: exercise | AP82: wait | AQ82: 1 | AR82: 1607.756108 | AS82: 157.1655045 | AT82: 421.5923285 | AU82: exercise | AV82: wait | AW82: 1 | AX82: 1607.756108 | AY82: 5 | AZ82: 149.6779018 | BA82: 1 | BB82: 157.1655045 | BC82: 0
A83: 79 | B83: 196.7723595 | C83: 0.06766734086 | D83: 0.2586118576 | E83: 9317.370578 | F83: 3969.23345 | G83: 65.27970555 | H83: 4609.324577 | I83: 88.54555846 | J83: 397.1355816 | L83: 79 | M83: 101.8253146 | N83: 1644.507971 | O83: 0 | P83: wait | Q83: 0 | R83: 1 | T83: 101.8253146 | U83: 1644.507971 | V83: 0 | W83: wait | X83: 0 | Y83: 1 | Z83: 200.0393829 | AA83: 1669.08508 | AB83: 0 | AC83: wait | AD83: 0 | AE83: 1 | AF83: 194.4595655 | AG83: 1708.697722 | AH83: 0 | AI83: wait | AJ83: 0 | AK83: 1 | AL83: 202.8708434 | AM83: 1649.747209 | AN83: 1649.747209 | AO83: wait | AP83: wait | AQ83: 2 | AR83: 192.1657655 | AS83: 1655.467422 | AT83: 1802.621274 | AU83: wait | AV83: wait | AW83: 1 | AX83: 202.8708434 | AY83: 4 | AZ83: 1644.507971 | BA83: 1 | BB83: 1649.747209 | BC83: 0
A84: 80 | B84: 59.41903584 | C84: 0.05331632836 | D84: 0.1709033069 | E84: 2754.766688 | F84: 60.43706559 | G84: 24.62017651 | H84: 743.4703294 | I84: 58.05473503 | J84: 1256.948124 | L84: 80 | M84: 47.16454689 | N84: 246.1308109 | O84: 0 | P84: wait | Q84: 0 | R84: 1 | T84: 47.16454689 | U84: 246.1308109 | V84: 0 | W84: wait | X84: 0 | Y84: 1 | Z84: 68.84436819 | AA84: 301.0777504 | AB84: 0 | AC84: wait | AD84: 0 | AE84: 1 | AF84: 59.38614577 | AG84: 330.9362519 | AH84: 0 | AI84: wait | AJ84: 0 | AK84: 1 | AL84: 92.91450547 | AM84: 248.5218432 | AN84: 248.5218432 | AO84: wait | AP84: wait | AQ84: 2 | AR84: 70.96217151 | AS84: 251.2064857 | AT84: 366.8338919 | AU84: wait | AV84: wait | AW84: 1 | AX84: 92.91450547 | AY84: 4 | AZ84: 246.1308109 | BA84: 1 | BB84: 248.5218432 | BC84: 0
A85: 81 | B85: 91.37010221 | C85: 0.05729060912 | D85: 0.3094282207 | E85: 262.074492 | F85: 55.72234662 | G85: 25.48056919 | H85: 66.26164319 | I85: 48.59649124 | J85: 1115.389969 | L85: 81 | M85: 1277.056203 | N85: 42.50399178 | O85: 0 | P85: exercise | Q85: 0 | R85: 1 | T85: 1277.056203 | U85: 42.50399178 | V85: 0 | W85: exercise | X85: 0 | Y85: 1 | Z85: 1514.094364 | AA85: 117.0933525 | AB85: 0 | AC85: wait | AD85: 0 | AE85: 1 | AF85: 1507.301091 | AG85: 117.7981458 | AH85: 0 | AI85: wait | AJ85: 0 | AK85: 1 | AL85: 1924.222566 | AM85: 46.23030664 | AN85: 136.4561279 | AO85: exercise | AP85: wait | AQ85: 1 | AR85: 1870.83972 | AS85: 49.00356828 | AT85: 145.7888977 | AU85: exercise | AV85: wait | AW85: 1 | AX85: 1924.222566 | AY85: 4 | AZ85: 42.50399178 | BA85: 1 | BB85: 46.23030664 | BC85: 0
A86: 82 | B86: 95.28486754 | C86: 0.06834455592 | D86: 0.281693528 | E86: 363.8252198 | F86: 149.6707644 | G86: 83.62106041 | H86: 49.18194047 | I86: 45.09900841 | J86: 322.5450197 | L86: 82 | M86: 880.6877406 | N86: 67.8658189 | O86: 0 | P86: exercise | Q86: 0 | R86: 1 | T86: 880.6877406 | U86: 67.8658189 | V86: 0 | W86: exercise | X86: 0 | Y86: 1 | Z86: 1438.830461 | AA86: 89.1802815 | AB86: 0 | AC86: exercise | AD86: 0 | AE86: 1 | AF86: 1539.319285 | AG86: 82.53976576 | AH86: 0 | AI86: exercise | AJ86: 0 | AK86: 1 | AL86: 1307.907803 | AM86: 77.75638212 | AN86: 125.3134641 | AO86: exercise | AP86: wait | AQ86: 1 | AR86: 1325.439869 | AS86: 73.82629616 | AT86: 128.2264773 | AU86: exercise | AV86: wait | AW86: 1 | AX86: 1539.319285 | AY86: 3 | AZ86: 67.8658189 | BA86: 1 | BB86: 82.53976576 | BC86: 0
A87: 83 | B87: 113.391121 | C87: 0.06363816688 | D87: 0.2643907303 | E87: 281.1819949 | F87: 132.7068577 | G87: 36.16290217 | H87: 88.6871209 | I87: 59.33966075 | J87: 286.2152307 | L87: 83 | M87: 1367.921129 | N87: 50.76157854 | O87: 0 | P87: exercise | Q87: 0 | R87: 1 | T87: 1367.921129 | U87: 50.76157854 | V87: 0 | W87: exercise | X87: 0 | Y87: 1 | Z87: 2449.627027 | AA87: 68.31307434 | AB87: 0 | AC87: exercise | AD87: 0 | AE87: 1 | AF87: 2493.646764 | AG87: 65.61366444 | AH87: 0 | AI87: exercise | AJ87: 0 | AK87: 1 | AL87: 2432.028192 | AM87: 58.89952372 | AN87: 87.73677201 | AO87: exercise | AP87: exercise | AQ87: 1 | AR87: 2513.386396 | AS87: 58.03931707 | AT87: 82.70527306 | AU87: exercise | AV87: exercise | AW87: 1 | AX87: 2513.386396 | AY87: 5 | AZ87: 50.76157854 | BA87: 1 | BB87: 58.03931707 | BC87: 0
A88: 84 | B88: 136.8260358 | C88: 0.05033578247 | D88: 0.1806759719 | E88: 6718.615143 | F88: 785.7461975 | G88: 68.99975 | H88: 1335.213436 | I88: 174.2982659 | J88: 972.3181557 | L88: 84 | M88: 142.6220282 | N88: 661.0261971 | O88: 0 | P88: wait | Q88: 0 | R88: 1 | T88: 142.6220282 | U88: 661.0261971 | V88: 0 | W88: wait | X88: 0 | Y88: 1 | Z88: 262.3410337 | AA88: 703.8498128 | AB88: 0 | AC88: wait | AD88: 0 | AE88: 1 | AF88: 250.7785146 | AG88: 728.0498895 | AH88: 0 | AI88: wait | AJ88: 0 | AK88: 1 | AL88: 252.8992818 | AM88: 695.6326611 | AN88: 754.0453451 | AO88: wait | AP88: wait | AQ88: 1 | AR88: 246.0798188 | AS88: 676.379365 | AT88: 815.6733259 | AU88: wait | AV88: wait | AW88: 1 | AX88: 262.3410337 | AY88: 2 | AZ88: 661.0261971 | BA88: 1 | BB88: 703.8498128 | BC88: 0
A89: 85 | B89: 104.3821958 | C89: 0.03065103736 | D89: 0.3578601995 | E89: 467.1215741 | F89: 53.2804028 | G89: 29.1947748 | H89: 115.5720829 | I89: 60.54478366 | J89: 1520.20398 | L89: 85 | M89: 2885.100897 | N89: 69.3046438 | O89: 0 | P89: exercise | Q89: 0 | R89: 1 | T89: 2885.100897 | U89: 69.3046438 | V89: 0 | W89: exercise | X89: 0 | Y89: 1 | Z89: 4527.74141 | AA89: 170.5313877 | AB89: 0 | AC89: wait | AD89: 0 | AE89: 1 | AF89: 4495.327495 | AG89: 174.6792416 | AH89: 0 | AI89: wait | AJ89: 0 | AK89: 1 | AL89: 4688.792336 | AM89: 72.85245828 | AN89: 347.2243534 | AO89: exercise | AP89: wait | AQ89: 1 | AR89: 5087.591666 | AS89: 77.36770823 | AT89: 170.7419825 | AU89: exercise | AV89: wait | AW89: 1 | AX89: 5087.591666 | AY89: 5 | AZ89: 69.3046438 | BA89: 1 | BB89: 77.36770823 | BC89: 0
A90: 86 | B90: 91.60884784 | C90: 0.06258374365 | D90: 0.407562629 | E90: 9432.78303 | F90: 1382.05304 | G90: 120.2221913 | H90: 1281.297688 | I90: 140.4877907 | J90: 1293.413423 | L90: 86 | M90: 182.2223496 | N90: 1925.733056 | O90: 0 | P90: wait | Q90: 0 | R90: 1 | T90: 182.2223496 | U90: 1925.733056 | V90: 0 | W90: wait | X90: 0 | Y90: 1 | Z90: 353.1523733 | AA90: 2040.888245 | AB90: 0 | AC90: wait | AD90: 0 | AE90: 1 | AF90: 353.9964572 | AG90: 2031.917794 | AH90: 0 | AI90: wait | AJ90: 0 | AK90: 1 | AL90: 361.6759494 | AM90: 1953.023374 | AN90: 1953.023374 | AO90: wait | AP90: wait | AQ90: 2 | AR90: 351.8768737 | AS90: 1950.748875 | AT90: 2167.14157 | AU90: wait | AV90: wait | AW90: 1 | AX90: 361.6759494 | AY90: 4 | AZ90: 1925.733056 | BA90: 1 | BB90: 1953.023374 | BC90: 0
A91: 87 | B91: 101.9726849 | C91: 0.05514444346 | D91: 0.3220846944 | E91: 7879.234253 | F91: 1659.512656 | G91: 76.133855 | H91: 1870.102982 | I91: 108.0235957 | J91: -84.81895678 | L91: 87 | M91: 197.6318244 | N91: 1305.555917 | O91: 0 | P91: wait | Q91: 0 | R91: 1 | T91: 197.6318244 | U91: 1305.555917 | V91: 0 | W91: wait | X91: 0 | Y91: 1 | Z91: 396.4538751 | AA91: 1299.751387 | AB91: 0 | AC91: wait | AD91: 0 | AE91: 1 | AF91: 393.5149782 | AG91: 1314.162999 | AH91: 0 | AI91: wait | AJ91: 0 | AK91: 1 | AL91: 395.8103219 | AM91: 1302.884506 | AN91: 1302.884506 | AO91: wait | AP91: wait | AQ91: 2 | AR91: 390.5117667 | AS91: 1320.340966 | AT91: 1338.095526 | AU91: wait | AV91: wait | AW91: 1 | AX91: 396.4538751 | AY91: 2 | AZ91: 1299.751387 | BA91: 2 | BB91: 1299.751387 | BC91: 0
A92: 88 | B92: 198.5224662 | C92: 0.0535199992 | D92: 0.4277719265 | E92: 1286.814493 | F92: 290.945009 | G92: 20.82487363 | H92: 775.0404795 | I92: 79.63195602 | J92: -306.3024682 | L92: 88 | M92: 2240.398845 | N92: 284.2507793 | O92: 0 | P92: wait | Q92: 0 | R92: 1 | T92: 2240.398845 | U92: 284.2507793 | V92: 0 | W92: wait | X92: 0 | Y92: 1 | Z92: 4678.387634 | AA92: 256.658895 | AB92: 0 | AC92: wait | AD92: 0 | AE92: 1 | AF92: 4378.193891 | AG92: 300.2664646 | AH92: 0 | AI92: wait | AJ92: 0 | AK92: 1 | AL92: 4602.619394 | AM92: 266.7691725 | AN92: 266.7691725 | AO92: wait | AP92: wait | AQ92: 2 | AR92: 4333.402493 | AS92: 298.5973546 | AT92: 317.1239355 | AU92: wait | AV92: wait | AW92: 1 | AX92: 4678.387634 | AY92: 2 | AZ92: 256.658895 | BA92: 2 | BB92: 256.658895 | BC92: 0
A93: 89 | B93: 180.6259474 | C93: 0.05464884863 | D93: 0.2162700507 | E93: 8300.61516 | F93: 2287.895262 | G93: 130.0720628 | H93: 915.6135183 | I93: 74.99678818 | J93: 1459.473092 | L93: 89 | M93: 186.1193632 | N93: 1069.169523 | O93: 0 | P93: wait | Q93: 0 | R93: 1 | T93: 186.1193632 | U93: 1069.169523 | V93: 0 | W93: wait | X93: 0 | Y93: 1 | Z93: 344.0938537 | AA93: 1142.854304 | AB93: 0 | AC93: wait | AD93: 0 | AE93: 1 | AF93: 370.4388406 | AG93: 1073.571574 | AH93: 0 | AI93: wait | AJ93: 0 | AK93: 1 | AL93: 355.3906615 | AM93: 1111.983772 | AN93: 1111.983772 | AO93: wait | AP93: wait | AQ93: 2 | AR93: 386.3868855 | AS93: 1035.888914 | AT93: 1035.888914 | AU93: wait | AV93: wait | AW93: 2 | AX93: 386.3868855 | AY93: 5 | AZ93: 1035.888914 | BA93: 5 | BB93: 1035.888914 | BC93: 0
A94: 90 | B94: 117.6283201 | C94: 0.09280298609 | D94: 0.2338597373 | E94: 500.8652767 | F94: 76.96183596 | G94: 11.47633511 | H94: 184.3185301 | I94: 79.35478881 | J94: 859.6849509 | L94: 90 | M94: 689.6786543 | N94: 78.60718516 | O94: 0 | P94: exercise | Q94: 0 | R94: 1 | T94: 689.6786543 | U94: 78.60718516 | V94: 0 | W94: exercise | X94: 0 | Y94: 1 | Z94: 580.0837416 | AA94: 137.0826466 | AB94: 0 | AC94: wait | AD94: 0 | AE94: 1 | AF94: 518.9330398 | AG94: 144.3850104 | AH94: 0 | AI94: wait | AJ94: 0 | AK94: 1 | AL94: 1027.693525 | AM94: 83.84210159 | AN94: 121.3939466 | AO94: exercise | AP94: wait | AQ94: 1 | AR94: 780.8832244 | AS94: 89.4025536 | AT94: 175.5539349 | AU94: exercise | AV94: wait | AW94: 1 | AX94: 1027.693525 | AY94: 4 | AZ94: 78.60718516 | BA94: 1 | BB94: 83.84210159 | BC94: 0
A95: 91 | B95: 106.441257 | C95: 0.07320230967 | D95: 0.2885475542 | E95: 9163.190361 | F95: 2017.379246 | G95: 26.81516968 | H95: 3417.206877 | I95: 35.0068963 | J95: -854.7308665 | L95: 91 | M95: 33.89427134 | N95: 1547.20056 | O95: 0 | P95: wait | Q95: 0 | R95: 1 | T95: 33.89427134 | U95: 1547.20056 | V95: 0 | W95: wait | X95: 0 | Y95: 1 | Z95: 70.82154299 | AA95: 1488.060457 | AB95: 0 | AC95: wait | AD95: 0 | AE95: 1 | AF95: 65.97953159 | AG95: 1584.916618 | AH95: 0 | AI95: wait | AJ95: 0 | AK95: 1 | AL95: 67.83596563 | AM95: 1546.237428 | AN95: 1546.237428 | AO95: wait | AP95: wait | AQ95: 2 | AR95: 66.70585568 | AS95: 1552.044919 | AT95: 1587.461591 | AU95: wait | AV95: wait | AW95: 1 | AX95: 70.82154299 | AY95: 2 | AZ95: 1488.060457 | BA95: 2 | BB95: 1488.060457 | BC95: 0
A96: 92 | B96: 243.645431 | C96: 0.03952980139 | D96: 0.1724138206 | E96: 5464.36962 | F96: 3794.826453 | G96: 41.14798583 | H96: 1433.736624 | I96: 43.97333436 | J96: 2769.527295 | L96: 92 | M96: 1039.576004 | N96: 736.5310792 | O96: 0 | P96: wait | Q96: 0 | R96: 1 | T96: 1039.576004 | U96: 736.5310792 | V96: 0 | W96: wait | X96: 0 | Y96: 1 | Z96: 1811.723392 | AA96: 846.6833489 | AB96: 0 | AC96: wait | AD96: 0 | AE96: 1 | AF96: 2034.823695 | AG96: 752.775842 | AH96: 0 | AI96: wait | AJ96: 0 | AK96: 1 | AL96: 1973.897174 | AM96: 776.3013632 | AN96: 776.3013632 | AO96: wait | AP96: wait | AQ96: 2 | AR96: 1937.83013 | AS96: 740.0289776 | AT96: 849.2965022 | AU96: wait | AV96: wait | AW96: 1 | AX96: 2034.823695 | AY96: 3 | AZ96: 736.5310792 | BA96: 1 | BB96: 752.775842 | BC96: 0
A97: 93 | B97: 108.1973924 | C97: 0.06769939915 | D97: 0.2870347611 | E97: 460.9765956 | F97: 295.4251645 | G97: 17.84966303 | H97: 90.79598534 | I97: 84.44706755 | J97: 1452.642555 | L97: 93 | M97: 841.801382 | N97: 101.0153908 | O97: 0 | P97: exercise | Q97: 0 | R97: 1 | T97: 841.801382 | U97: 101.0153908 | V97: 0 | W97: exercise | X97: 0 | Y97: 1 | Z97: 846.6618898 | AA97: 198.0136152 | AB97: 0 | AC97: wait | AD97: 0 | AE97: 1 | AF97: 911.2458819 | AG97: 184.349781 | AH97: 0 | AI97: wait | AJ97: 0 | AK97: 1 | AL97: 1306.818594 | AM97: 120.742003 | AN97: 140.4007829 | AO97: wait | AP97: wait | AQ97: 1 | AR97: 1120.893849 | AS97: 112.2930662 | AT97: 230.3214923 | AU97: wait | AV97: wait | AW97: 1 | AX97: 1306.818594 | AY97: 4 | AZ97: 101.0153908 | BA97: 1 | BB97: 120.742003 | BC97: 0
A98: 94 | B98: 110.2488953 | C98: 0.06498640596 | D98: 0.2099740066 | E98: 196.4631904 | F98: 86.25217615 | G98: 51.32802514 | H98: 46.2585769 | I98: 50.3058201 | J98: 27.469151 | L98: 94 | M98: 1413.776287 | N98: 30.11746593 | O98: 0 | P98: exercise | Q98: 0 | R98: 1 | T98: 1413.776287 | U98: 30.11746593 | V98: 0 | W98: exercise | X98: 0 | Y98: 1 | Z98: 2800.083423 | AA98: 31.58060044 | AB98: 0 | AC98: exercise | AD98: 0 | AE98: 1 | AF98: 2840.077022 | AG98: 29.45035567 | AH98: 0 | AI98: exercise | AJ98: 0 | AK98: 1 | AL98: 2801.332503 | AM98: 31.51406861 | AN98: 31.51406861 | AO98: exercise | AP98: exercise | AQ98: 2 | AR98: 2739.817629 | AS98: 34.79063643 | AT98: 34.79063643 | AU98: exercise | AV98: exercise | AW98: 2 | AX98: 2840.077022 | AY98: 3 | AZ98: 29.45035567 | BA98: 3 | BB98: 29.45035567 | BC98: 0
A99: 95 | B99: 240.3826231 | C99: 0.03860060128 | D99: 0.164089257 | E99: 402.1293279 | F99: 127.547056 | G99: 94.71578567 | H99: 55.19293856 | I99: 61.58742405 | J99: 853.0155237 | L99: 95 | M99: 5697.755706 | N99: 40.78344643 | O99: 0 | P99: exercise | Q99: 0 | R99: 1 | T99: 5697.755706 | U99: 40.78344643 | V99: 0 | W99: exercise | X99: 0 | Y99: 1 | Z99: 10542.49589 | AA99: 73.62322745 | AB99: 0 | AC99: exercise | AD99: 0 | AE99: 1 | AF99: 10614.85001 | AG99: 70.83770561 | AH99: 0 | AI99: exercise | AJ99: 0 | AK99: 1 | AL99: 21797.38034 | AM99: 45.69381122 | AN99: 46.58939864 | AO99: exercise | AP99: exercise | AQ99: 1 | AR99: 10988.19041 | AS99: 45.52548796 | AT99: 139.8818761 | AU99: exercise | AV99: exercise | AW99: 1 | AX99: 21797.38034 | AY99: 4 | AZ99: 40.78344643 | BA99: 1 | BB99: 45.69381122 | BC99: 0
A100: 96 | B100: 158.0839337 | C100: 0.04733338784 | D100: 0.2758465775 | E100: 2149.877831 | F100: 80.14212233 | G100: 45.14285267 | H100: 542.4605085 | I100: 74.7782689 | J100: 235.2762155 | L100: 96 | M100: 1399.216288 | N100: 255.9069831 | O100: 0 | P100: wait | Q100: 0 | R100: 1 | T100: 1399.216288 | U100: 255.9069831 | V100: 0 | W100: wait | X100: 0 | Y100: 1 | Z100: 2699.236315 | AA100: 269.4065992 | AB100: 0 | AC100: wait | AD100: 0 | AE100: 1 | AF100: 2527.012912 | AG100: 295.9333806 | AH100: 0 | AI100: wait | AJ100: 0 | AK100: 1 | AL100: 2721.568531 | AM100: 260.5053565 | AN100: 272.241098 | AO100: wait | AP100: wait | AQ100: 1 | AR100: 2513.093911 | AS100: 264.4881984 | AT100: 340.1184208 | AU100: wait | AV100: wait | AW100: 1 | AX100: 2721.568531 | AY100: 4 | AZ100: 255.9069831 | BA100: 1 | BB100: 260.5053565 | BC100: 0
A101: 97 | B101: 208.255048 | C101: 0.04781589574 | D101: 0.1442005714 | E101: 1391.132618 | F101: 565.6249582 | G101: 61.91074101 | H101: 356.1923094 | I101: 51.4269053 | J101: -125.5478361 | L101: 97 | M101: 2398.594233 | N101: 151.2052138 | O101: 0 | P101: exercise | Q101: 0 | R101: 1 | T101: 2398.594233 | U101: 151.2052138 | V101: 0 | W101: exercise | X101: 0 | Y101: 1 | Z101: 4922.736302 | AA101: 146.3544628 | AB101: 0 | AC101: exercise | AD101: 0 | AE101: 1 | AF101: 5132.168951 | AG101: 138.2626816 | AH101: 0 | AI101: exercise | AJ101: 0 | AK101: 1 | AL101: 4768.166747 | AM101: 152.3265165 | AN101: 152.3265165 | AO101: exercise | AP101: exercise | AQ101: 2 | AR101: 4927.484829 | AS101: 146.1709955 | AT101: 146.1709955 | AU101: exercise | AV101: exercise | AW101: 2 | AX101: 5132.168951 | AY101: 3 | AZ101: 138.2626816 | BA101: 3 | BB101: 138.2626816 | BC101: 0
A102: 98 | B102: 65.90429237 | C102: 0.06938103001 | D102: 0.2041547852 | E102: 487.9425248 | F102: 86.89574127 | G102: 21.72330961 | H102: 84.29797092 | I102: 28.71789811 | J102: 1837.499866 | L102: 98 | M102: 375.0509523 | N102: 62.16411764 | O102: 0 | P102: exercise | Q102: 0 | R102: 1 | T102: 375.0509523 | U102: 62.16411764 | V102: 0 | W102: exercise | X102: 0 | Y102: 1 | Z102: 136.8501499 | AA102: 161.5195056 | AB102: 0 | AC102: wait | AD102: 0 | AE102: 1 | AF102: 137.0634343 | AG102: 161.3790416 | AH102: 0 | AI102: wait | AJ102: 0 | AK102: 1 | AL102: 361.5961522 | AM102: 66.86265408 | AN102: 256.9026429 | AO102: wait | AP102: wait | AQ102: 1 | AR102: 385.7714415 | AS102: 65.26972647 | AT102: 219.7413792 | AU102: exercise | AV102: wait | AW102: 1 | AX102: 385.7714415 | AY102: 5 | AZ102: 62.16411764 | BA102: 1 | BB102: 65.26972647 | BC102: 0
A103: 99 | B103: 171.5181979 | C103: 0.07440874244 | D103: 0.2766077247 | E103: 629.4858021 | F103: 144.2482685 | G103: 80.90201734 | H103: 183.3676807 | I103: 36.0326121 | J103: -205.4074593 | L103: 99 | M103: 1531.347191 | N103: 104.5569959 | O103: 0 | P103: exercise | Q103: 0 | R103: 1 | T103: 1531.347191 | U103: 104.5569959 | V103: 0 | W103: exercise | X103: 0 | Y103: 1 | Z103: 3268.10184 | AA103: 90.67833414 | AB103: 0 | AC103: exercise | AD103: 0 | AE103: 1 | AF103: 3228.982428 | AG103: 93.32149564 | AH103: 0 | AI103: exercise | AJ103: 0 | AK103: 1 | AL103: 3145.789193 | AM103: 98.94257085 | AN103: 98.94257085 | AO103: exercise | AP103: exercise | AQ103: 2 | AR103: 3095.7212 | AS103: 109.4261904 | AT103: 120.2583903 | AU103: exercise | AV103: exercise | AW103: 1 | AX103: 3268.10184 | AY103: 2 | AZ103: 90.67833414 | BA103: 2 | BB103: 90.67833414 | BC103: 0
A104: 100 | B104: 157.4093785 | C104: 0.08209243496 | D104: 0.2405905065 | E104: 6495.975236 | F104: 584.4396431 | G104: 57.84352153 | H104: 1059.944114 | I104: 53.22705894 | J104: 1022.715301 | L104: 100 | M104: 32.74032605 | N104: 915.3980067 | O104: 0 | P104: wait | Q104: 0 | R104: 1 | T104: 32.74032605 | U104: 915.3980067 | V104: 0 | W104: wait | X104: 0 | Y104: 1 | Z104: 58.00074282 | AA104: 981.509355 | AB104: 0 | AC104: wait | AD104: 0 | AE104: 1 | AF104: 54.97154973 | AG104: 1012.247373 | AH104: 0 | AI104: wait | AJ104: 0 | AK104: 1 | AL104: 58.7717561 | AM104: 953.1779174 | AN104: 996.3009892 | AO104: wait | AP104: wait | AQ104: 1 | AR104: 56.02202477 | AS104: 922.2795164 | AT104: 1102.118604 | AU104: wait | AV104: wait | AW104: 1 | AX104: 58.7717561 | AY104: 4 | AZ104: 915.3980067 | BA104: 1 | BB104: 953.1779174 | BC104: 0
A105: 101 | B105: 115.4335309 | C105: 0.07166235983 | D105: 0.2291677447 | E105: 146.2404395 | F105: 25.79113557 | G105: 63.47441342 | H105: 10.0041125 | I105: 25.34349334 | J105: 1305.504439 | L105: 101 | M105: 1438.765658 | N105: 20.19666761 | O105: 0 | P105: exercise | Q105: 0 | R105: 1 | T105: 1438.765658 | U105: 20.19666761 | V105: 0 | W105: exercise | X105: 0 | Y105: 1 | Z105: 1572.026877 | AA105: 96.83038791 | AB105: 0 | AC105: exercise | AD105: 0 | AE105: 1 | AF105: 1587.8139 | AG105: 95.90368228 | AH105: 0 | AI105: exercise | AJ105: 0 | AK105: 1 | AL105: 1625.306573 | AM105: 21.71061931 | AN105: 239.9294462 | AO105: exercise | AP105: wait | AQ105: 1 | AR105: 1884.884634 | AS105: 23.1720174 | AT105: 138.5497774 | AU105: exercise | AV105: wait | AW105: 1 | AX105: 1884.884634 | AY105: 5 | AZ105: 20.19666761 | BA105: 1 | BB105: 23.1720174 | BC105: 0
A106: 102 | B106: 190.0012201 | C106: 0.0572866052 | D106: 0.3204332462 | E106: 610.6306606 | F106: 138.3919722 | G106: 32.22369607 | H106: 364.3533069 | I106: 57.61402652 | J106: -967.7983377 | L106: 102 | M106: 2567.655314 | N106: 103.2498912 | O106: 0 | P106: exercise | Q106: 0 | R106: 1 | T106: 2567.655314 | U106: 103.2498912 | V106: 0 | W106: exercise | X106: 0 | Y106: 1 | Z106: 6103.108966 | AA106: 36.54625056 | AB106: 0 | AC106: exercise | AD106: 0 | AE106: 1 | AF106: 5877.147632 | AG106: 52.12020133 | AH106: 0 | AI106: exercise | AJ106: 0 | AK106: 1 | AL106: 6452.265939 | AM106: 12.48127714 | AN106: 12.48127714 | AO106: exercise | AP106: exercise | AQ106: 2 | AR106: 5734.541868 | AS106: 61.94902955 | AT106: 61.94902955 | AU106: exercise | AV106: exercise | AW106: 2 | AX106: 6452.265939 | AY106: 4 | AZ106: 12.48127714 | BA106: 4 | BB106: 12.48127714 | BC106: 0
A107: 103 | B107: 157.2933495 | C107: 0.05946554135 | D107: 0.2553461911 | E107: 1294.516357 | F107: 345.5543777 | G107: 85.85905281 | H107: 446.5221196 | I107: 16.68695568 | J107: 540.3825856 | L107: 103 | M107: 1057.464404 | N107: 191.1620802 | O107: 0 | P107: wait | Q107: 0 | R107: 1 | T107: 1057.464404 | U107: 191.1620802 | V107: 0 | W107: wait | X107: 0 | Y107: 1 | Z107: 1804.311585 | AA107: 222.6548253 | AB107: 0 | AC107: wait | AD107: 0 | AE107: 1 | AF107: 1755.949948 | AG107: 228.5390848 | AH107: 0 | AI107: wait | AJ107: 0 | AK107: 1 | AL107: 1721.777425 | AM107: 211.3005084 | AN107: 259.5249989 | AO107: wait | AP107: wait | AQ107: 1 | AR107: 1805.909908 | AS107: 193.1070653 | AT107: 262.652452 | AU107: wait | AV107: wait | AW107: 1 | AX107: 1805.909908 | AY107: 5 | AZ107: 191.1620802 | BA107: 1 | BB107: 193.1070653 | BC107: 0
A108: 104 | B108: 80.0640669 | C108: 0.07117653657 | D108: 0.2467386784 | E108: 2408.404077 | F108: 454.0879702 | G108: 33.99828393 | H108: 561.0542149 | I108: 52.67775636 | J108: 239.2422359 | L108: 104 | M108: 60.97967001 | N108: 350.8986664 | O108: 0 | P108: wait | Q108: 0 | R108: 1 | T108: 60.97967001 | U108: 350.8986664 | V108: 0 | W108: wait | X108: 0 | Y108: 1 | Z108: 115.2387071 | AA108: 365.5624245 | AB108: 0 | AC108: wait | AD108: 0 | AE108: 1 | AF108: 112.4371847 | AG108: 372.1186545 | AH108: 0 | AI108: wait | AJ108: 0 | AK108: 1 | AL108: 113.8336737 | AM108: 368.8158009 | AN108: 368.8158009 | AO108: wait | AP108: wait | AQ108: 2 | AR108: 109.7999596 | AS108: 357.3561707 | AT108: 403.0161993 | AU108: wait | AV108: wait | AW108: 1 | AX108: 115.2387071 | AY108: 2 | AZ108: 350.8986664 | BA108: 1 | BB108: 365.5624245 | BC108: 0
A109: 105 | B109: 53.48080868 | C109: 0.07099760328 | D109: 0.2577841105 | E109: 2509.062547 | F109: 71.74427209 | G109: 34.2970596 | H109: 520.016232 | I109: 40.32805114 | J109: 935.7637181 | L109: 105 | M109: 32.08142276 | N109: 325.3487521 | O109: 0 | P109: wait | Q109: 0 | R109: 1 | T109: 32.08142276 | U109: 325.3487521 | V109: 0 | W109: wait | X109: 0 | Y109: 1 | Z109: 51.75991976 | AA109: 384.3321591 | AB109: 0 | AC109: wait | AD109: 0 | AE109: 1 | AF109: 47.23576544 | AG109: 412.5878042 | AH109: 0 | AI109: wait | AJ109: 0 | AK109: 1 | AL109: 59.7432885 | AM109: 329.8709638 | AN109: 359.2987804 | AO109: wait | AP109: wait | AQ109: 1 | AR109: 49.72410908 | AS109: 330.4326976 | AT109: 503.3369025 | AU109: wait | AV109: wait | AW109: 1 | AX109: 59.7432885 | AY109: 4 | AZ109: 325.3487521 | BA109: 1 | BB109: 329.8709638 | BC109: 0
A110: 106 | B110: 215.3026388 | C110: 0.06275385116 | D110: 0.3055398799 | E110: 590.601285 | F110: 1081.655391 | G110: 145.6403135 | H110: 194.1853451 | I110: 37.30837497 | J110: -723.1419081 | L110: 106 | M110: 1763.574752 | N110: 228.1512228 | O110: 0 | P110: wait | Q110: 0 | R110: 1 | T110: 1763.574752 | U110: 228.1512228 | V110: 0 | W110: wait | X110: 0 | Y110: 1 | Z110: 4240.442925 | AA110: 178.8209636 | AB110: 0 | AC110: exercise | AD110: 0 | AE110: 1 | AF110: 5127.912972 | AG110: 118.2808028 | AH110: 0 | AI110: exercise | AJ110: 0 | AK110: 1 | AL110: 3466.295853 | AM110: 232.861092 | AN110: 232.861092 | AO110: wait | AP110: wait | AQ110: 2 | AR110: 4800.931376 | AS110: 140.586365 | AT110: 140.586365 | AU110: exercise | AV110: exercise | AW110: 2 | AX110: 5127.912972 | AY110: 3 | AZ110: 118.2808028 | BA110: 3 | BB110: 118.2808028 | BC110: 0
A111: 107 | B111: 114.2589781 | C111: 0.09048137175 | D111: 0.146083961 | E111: 7416.75716 | F111: 230.8880944 | G111: 61.43481294 | H111: 5199.723712 | I111: 43.27202811 | J111: 1171.755845 | L111: 107 | M111: 0.02182415993 | N111: 841.5308589 | O111: 0 | P111: wait | Q111: 0 | R111: 1 | T111: 0.02182415993 | U111: 841.5308589 | V111: 0 | W111: wait | X111: 0 | Y111: 1 | Z111: 0.03102031901 | AA111: 905.9996378 | AB111: 0 | AC111: wait | AD111: 0 | AE111: 1 | AF111: 0.009157466761 | AG111: 1179.379768 | AH111: 0 | AI111: wait | AJ111: 0 | AK111: 1 | AL111: 0.04311341193 | AM111: 843.7766425 | AN111: 843.7766425 | AO111: wait | AP111: wait | AQ111: 2 | AR111: 0.02291414073 | AS111: 846.2924222 | AT111: 1470.034301 | AU111: wait | AV111: wait | AW111: 1 | AX111: 0.04311341193 | AY111: 4 | AZ111: 841.5308589 | BA111: 1 | BB111: 843.7766425 | BC111: 1
A112: 108 | B112: 107.5633819 | C112: 0.04476407273 | D112: 0.2762853844 | E112: 1357.107923 | F112: 167.6501946 | G112: 57.71128277 | H112: 217.1133373 | I112: 27.33819279 | J112: 592.3185467 | L112: 108 | M112: 1065.940821 | N112: 172.5264281 | O112: 0 | P112: wait | Q112: 0 | R112: 1 | T112: 1065.940821 | U112: 172.5264281 | V112: 0 | W112: wait | X112: 0 | Y112: 1 | Z112: 1898.025275 | AA112: 206.0368591 | AB112: 0 | AC112: wait | AD112: 0 | AE112: 1 | AF112: 1881.338314 | AG112: 208.8352371 | AH112: 0 | AI112: wait | AJ112: 0 | AK112: 1 | AL112: 1834.479618 | AM112: 182.0112405 | AN112: 264.8169959 | AO112: wait | AP112: wait | AQ112: 1 | AR112: 1865.967842 | AS112: 175.6197455 | AT112: 261.2791668 | AU112: wait | AV112: wait | AW112: 1 | AX112: 1898.025275 | AY112: 2 | AZ112: 172.5264281 | BA112: 1 | BB112: 206.0368591 | BC112: 0
A113: 109 | B113: 197.2435204 | C113: 0.051255744 | D113: 0.3132744108 | E113: 1497.316636 | F113: 329.9033123 | G113: 16.33698026 | H113: 426.2478088 | I113: 46.99268745 | J113: 228.9573541 | L113: 109 | M113: 2067.61892 | N113: 238.8563563 | O113: 0 | P113: wait | Q113: 0 | R113: 1 | T113: 2067.61892 | U113: 238.8563563 | V113: 0 | W113: wait | X113: 0 | Y113: 1 | Z113: 3976.290666 | AA113: 253.8211446 | AB113: 0 | AC113: wait | AD113: 0 | AE113: 1 | AF113: 3913.931952 | AG113: 260.1182779 | AH113: 0 | AI113: wait | AJ113: 0 | AK113: 1 | AL113: 4057.036555 | AM113: 246.0321262 | AN113: 246.0321262 | AO113: wait | AP113: wait | AQ113: 2 | AR113: 3992.761873 | AS113: 244.9992961 | AT113: 259.7547787 | AU113: wait | AV113: wait | AW113: 1 | AX113: 4057.036555 | AY113: 4 | AZ113: 238.8563563 | BA113: 1 | BB113: 246.0321262 | BC113: 0
A114: 110 | B114: 87.88549981 | C114: 0.06964931562 | D114: 0.3384314233 | E114: 1123.093043 | F114: 209.8600227 | G114: 54.51874894 | H114: 256.7735386 | I114: 36.77063702 | J114: 778.7839391 | L114: 110 | M114: 344.0655362 | N114: 205.7492568 | O114: 0 | P114: wait | Q114: 0 | R114: 1 | T114: 344.0655362 | U114: 205.7492568 | V114: 0 | W114: wait | X114: 0 | Y114: 1 | Z114: 557.3799486 | AA114: 265.8542301 | AB114: 0 | AC114: wait | AD114: 0 | AE114: 1 | AF114: 551.214782 | AG114: 269.4749206 | AH114: 0 | AI114: wait | AJ114: 0 | AK114: 1 | AL114: 635.88527 | AM114: 221.94583 | AN114: 231.2014638 | AO114: wait | AP114: wait | AQ114: 1 | AR114: 654.2063833 | AS114: 211.425024 | AT114: 226.6512029 | AU114: wait | AV114: wait | AW114: 1 | AX114: 654.2063833 | AY114: 5 | AZ114: 205.7492568 | BA114: 1 | BB114: 211.425024 | BC114: 0
A115: 111 | B115: 89.36315134 | C115: 0.03820599424 | D115: 0.5033431639 | E115: 394.3759543 | F115: 94.26397502 | G115: 24.88594388 | H115: 91.48663723 | I115: 75.51158645 | J115: -127.9013032 | L115: 111 | M115: 1854.113642 | N115: 100.460185 | O115: 0 | P115: wait | Q115: 0 | R115: 1 | T115: 1854.113642 | U115: 100.460185 | V115: 0 | W115: wait | X115: 0 | Y115: 1 | Z115: 3828.586414 | AA115: 87.31247868 | AB115: 0 | AC115: exercise | AD115: 0 | AE115: 1 | AF115: 3831.363752 | AG115: 87.02698025 | AH115: 0 | AI115: exercise | AJ115: 0 | AK115: 1 | AL115: 3802.779464 | AM115: 89.96782276 | AN115: 89.96782276 | AO115: wait | AP115: wait | AQ115: 2 | AR115: 3703.659323 | AS115: 101.0041575 | AT115: 101.0041575 | AU115: wait | AV115: wait | AW115: 2 | AX115: 3831.363752 | AY115: 3 | AZ115: 87.02698025 | BA115: 3 | BB115: 87.02698025 | BC115: 0
A116: 112 | B116: 167.9327937 | C116: 0.06146105342 | D116: 0.2753633187 | E116: 2109.213055 | F116: 474.6641566 | G116: 44.79726788 | H116: 466.2056337 | I116: 60.21452845 | J116: 975.3898002 | L116: 112 | M116: 735.8165438 | N116: 322.3059805 | O116: 0 | P116: wait | Q116: 0 | R116: 1 | T116: 735.8165438 | U116: 322.3059805 | V116: 0 | W116: wait | X116: 0 | Y116: 1 | Z116: 1244.127269 | AA116: 383.139747 | AB116: 0 | AC116: wait | AD116: 0 | AE116: 1 | AF116: 1245.793432 | AG116: 382.6122001 | AH116: 0 | AI116: wait | AJ116: 0 | AK116: 1 | AL116: 1254.694925 | AM116: 351.9101536 | AN116: 412.4524701 | AO116: wait | AP116: wait | AQ116: 1 | AR116: 1367.567165 | AS116: 329.8169808 | AT116: 367.3422251 | AU116: wait | AV116: wait | AW116: 1 | AX116: 1367.567165 | AY116: 5 | AZ116: 322.3059805 | BA116: 1 | BB116: 329.8169808 | BC116: 0
A117: 113 | B117: 146.9920214 | C117: 0.04690349712 | D117: 0.2456558217 | E117: 1877.511113 | F117: 696.3318676 | G117: 85.00138785 | H117: 373.1006776 | I117: 56.17160819 | J117: -196.6125963 | L117: 113 | M117: 1057.588717 | N117: 269.4089681 | O117: 0 | P117: wait | Q117: 0 | R117: 1 | T117: 1057.588717 | U117: 269.4089681 | V117: 0 | W117: wait | X117: 0 | Y117: 1 | Z117: 2183.125023 | AA117: 259.1190636 | AB117: 0 | AC117: wait | AD117: 0 | AE117: 1 | AF117: 2306.135754 | AG117: 242.2024564 | AH117: 0 | AI117: wait | AJ117: 0 | AK117: 1 | AL117: 2190.572126 | AM117: 258.0345301 | AN117: 258.0345301 | AO117: wait | AP117: wait | AQ117: 2 | AR117: 2194.755267 | AS117: 257.4289339 | AT117: 257.4289339 | AU117: wait | AV117: wait | AW117: 2 | AX117: 2306.135754 | AY117: 3 | AZ117: 242.2024564 | BA117: 3 | BB117: 242.2024564 | BC117: 0
A118: 114 | B118: 156.7101047 | C118: 0.0746879926 | D118: 0.1723474351 | E118: 332.7984408 | F118: 26.48033946 | G118: 43.47172743 | H118: 18.89592084 | I118: 85.83223578 | J118: 488.8609162 | L118: 114 | M118: 1738.917988 | N118: 37.16254265 | O118: 0 | P118: exercise | Q118: 0 | R118: 1 | T118: 1738.917988 | U118: 37.16254265 | V118: 0 | W118: exercise | X118: 0 | Y118: 1 | Z118: 2988.97506 | AA118: 62.44557584 | AB118: 0 | AC118: exercise | AD118: 0 | AE118: 1 | AF118: 2996.559479 | AG118: 62.05332295 | AH118: 0 | AI118: exercise | AJ118: 0 | AK118: 1 | AL118: 6031.316058 | AM118: 38.53205958 | AN118: 72.59300882 | AO118: exercise | AP118: exercise | AQ118: 1 | AR118: 15532.24262 | AS118: 46.04072945 | AT118: 46.26288962 | AU118: exercise | AV118: exercise | AW118: 1 | AX118: 15532.24262 | AY118: 5 | AZ118: 37.16254265 | BA118: 1 | BB118: 46.04072945 | BC118: 0
A119: 115 | B119: 75.88731167 | C119: 0.06405642802 | D119: 0.1514505249 | E119: 1549.640011 | F119: 204.7623847 | G119: 46.1582078 | H119: 596.1549917 | I119: 51.64933697 | J119: 599.4598328 | L119: 115 | M119: 55.54182876 | N119: 157.7166177 | O119: 0 | P119: wait | Q119: 0 | R119: 1 | T119: 55.54182876 | U119: 157.7166177 | V119: 0 | W119: wait | X119: 0 | Y119: 1 | Z119: 75.13650982 | AA119: 184.6616268 | AB119: 0 | AC119: wait | AD119: 0 | AE119: 1 | AF119: 59.96314279 | AG119: 202.2542607 | AH119: 0 | AI119: wait | AJ119: 0 | AK119: 1 | AL119: 83.67121984 | AM119: 166.9204442 | AN119: 189.1132175 | AO119: wait | AP119: wait | AQ119: 1 | AR119: 75.76618847 | AS119: 162.3597706 | AT119: 220.9582463 | AU119: wait | AV119: wait | AW119: 1 | AX119: 83.67121984 | AY119: 4 | AZ119: 157.7166177 | BA119: 1 | BB119: 166.9204442 | BC119: 0
A120: 116 | B120: 118.2634124 | C120: 0.07800466287 | D120: 0.3143376765 | E120: 445.3072236 | F120: 225.5179215 | G120: 91.93705443 | H120: 94.59110776 | I120: 40.5785099 | J120: 1274.726038 | L120: 116 | M120: 845.2818167 | N120: 101.7630259 | O120: 0 | P120: exercise | Q120: 0 | R120: 1 | T120: 845.2818167 | U120: 101.7630259 | V120: 0 | W120: exercise | X120: 0 | Y120: 1 | Z120: 851.6435872 | AA120: 198.4499046 | AB120: 0 | AC120: wait | AD120: 0 | AE120: 1 | AF120: 899.2022956 | AG120: 188.5192179 | AH120: 0 | AI120: wait | AJ120: 0 | AK120: 1 | AL120: 1193.308024 | AM120: 118.8683672 | AN120: 184.2013886 | AO120: wait | AP120: wait | AQ120: 1 | AR120: 1133.588196 | AS120: 107.9187164 | AT120: 253.2998039 | AU120: exercise | AV120: wait | AW120: 1 | AX120: 1193.308024 | AY120: 4 | AZ120: 101.7630259 | BA120: 1 | BB120: 118.8683672 | BC120: 0
A121: 117 | B121: 187.4540257 | C121: 0.06246251596 | D121: 0.4067551909 | E121: 2180.136036 | F121: 252.6166288 | G121: 119.8363025 | H121: 950.4821318 | I121: 30.35451537 | J121: -856.7145126 | L121: 117 | M121: 1236.848281 | N121: 432.0629237 | O121: 0 | P121: wait | Q121: 0 | R121: 1 | T121: 1236.848281 | U121: 432.0629237 | V121: 0 | W121: wait | X121: 0 | Y121: 1 | Z121: 2747.754338 | AA121: 355.9856097 | AB121: 0 | AC121: wait | AD121: 0 | AE121: 1 | AF121: 2518.643503 | AG121: 417.9569342 | AH121: 0 | AI121: wait | AJ121: 0 | AK121: 1 | AL121: 2814.789902 | AM121: 340.5149269 | AN121: 340.5149269 | AO121: wait | AP121: wait | AQ121: 2 | AR121: 2562.245083 | AS121: 404.9405792 | AT121: 404.9405792 | AU121: wait | AV121: wait | AW121: 2 | AX121: 2814.789902 | AY121: 4 | AZ121: 340.5149269 | BA121: 4 | BB121: 340.5149269 | BC121: 0
A122: 118 | B122: 102.3259356 | C122: 0.07729592426 | D122: 0.3297041741 | E122: 629.5935133 | F122: 517.126787 | G122: 75.00798049 | H122: 265.1025624 | I122: 95.11811626 | J122: 1427.160924 | L122: 118 | M122: 388.6554273 | N122: 180.078344 | O122: 0 | P122: wait | Q122: 0 | R122: 1 | T122: 388.6554273 | U122: 180.078344 | V122: 0 | W122: wait | X122: 0 | Y122: 1 | Z122: 486.3110427 | AA122: 292.1373944 | AB122: 0 | AC122: wait | AD122: 0 | AE122: 1 | AF122: 520.5249808 | AG122: 272.3487393 | AH122: 0 | AI122: wait | AJ122: 0 | AK122: 1 | AL122: 541.328693 | AM122: 220.6825504 | AN122: 320.6026816 | AO122: wait | AP122: wait | AQ122: 1 | AR122: 526.3867567 | AS122: 195.0154763 | AT122: 431.4527685 | AU122: wait | AV122: wait | AW122: 1 | AX122: 541.328693 | AY122: 4 | AZ122: 180.078344 | BA122: 1 | BB122: 220.6825504 | BC122: 0
A123: 119 | B123: 126.1986804 | C123: 0.05069131834 | D123: 0.1644617 | E123: 2003.137743 | F123: 691.3482734 | G123: 41.80997884 | H123: 1133.54267 | I123: 54.44206559 | J123: 1037.370322 | L123: 119 | M123: 406.4951343 | N123: 226.5122626 | O123: 0 | P123: wait | Q123: 0 | R123: 1 | T123: 406.4951343 | U123: 226.5122626 | V123: 0 | W123: wait | X123: 0 | Y123: 1 | Z123: 622.2339529 | AA123: 270.1155875 | AB123: 0 | AC123: wait | AD123: 0 | AE123: 1 | AF123: 562.4152027 | AG123: 288.7021478 | AH123: 0 | AI123: wait | AJ123: 0 | AK123: 1 | AL123: 608.676937 | AM123: 255.5713968 | AN123: 296.3390923 | AO123: wait | AP123: wait | AQ123: 1 | AR123: 635.1452706 | AS123: 231.0889408 | AT123: 319.7327107 | AU123: wait | AV123: wait | AW123: 1 | AX123: 635.1452706 | AY123: 5 | AZ123: 226.5122626 | BA123: 1 | BB123: 231.0889408 | BC123: 0
A124: 120 | B124: 216.8010166 | C124: 0.06204789537 | D124: 0.2077181049 | E124: 2241.259932 | F124: 129.5065739 | G124: 31.23691691 | H124: 163.2148071 | I124: 23.38260227 | J124: 1999.509688 | L124: 120 | M124: 1163.748004 | N124: 245.8627571 | O124: 0 | P124: wait | Q124: 0 | R124: 1 | T124: 1163.748004 | U124: 245.8627571 | V124: 0 | W124: wait | X124: 0 | Y124: 1 | Z124: 1378.12268 | AA124: 349.5433523 | AB124: 0 | AC124: wait | AD124: 0 | AE124: 1 | AF124: 1367.92202 | AG124: 351.2912256 | AH124: 0 | AI124: wait | AJ124: 0 | AK124: 1 | AL124: 1601.176888 | AM124: 252.5780627 | AN124: 443.5831753 | AO124: wait | AP124: wait | AQ124: 1 | AR124: 1656.875527 | AS124: 248.2876737 | AT124: 427.7932736 | AU124: wait | AV124: wait | AW124: 1 | AX124: 1656.875527 | AY124: 5 | AZ124: 245.8627571 | BA124: 1 | BB124: 248.2876737 | BC124: 0
A125: 121 | B125: 99.17322759 | C125: 0.0762036127 | D125: 0.2687828389 | E125: 1106.168689 | F125: 289.9292438 | G125: 93.41166742 | H125: 79.21174688 | I125: 52.74525522 | J125: 776.0976964 | L125: 121 | M125: 242.6267628 | N125: 186.8848568 | O125: 0 | P125: wait | Q125: 0 | R125: 1 | T125: 242.6267628 | U125: 186.8848568 | V125: 0 | W125: wait | X125: 0 | Y125: 1 | Z125: 350.9096736 | AA125: 238.8299616 | AB125: 0 | AC125: wait | AD125: 0 | AE125: 1 | AF125: 380.305266 | AG125: 224.7263989 | AH125: 0 | AI125: wait | AJ125: 0 | AK125: 1 | AL125: 350.4843788 | AM125: 206.290152 | AN125: 287.1153389 | AO125: wait | AP125: wait | AQ125: 1 | AR125: 491.4915103 | AS125: 185.0873721 | AT125: 185.0873721 | AU125: wait | AV125: wait | AW125: 2 | AX125: 491.4915103 | AY125: 5 | AZ125: 185.0873721 | BA125: 5 | BB125: 185.0873721 | BC125: 0
A126: 122 | B126: 370.2644731 | C126: 0.06418577882 | D126: 0.1827848732 | E126: 5557.481868 | F126: 10705.54971 | G126: 56.65706013 | H126: 1515.572795 | I126: 70.41436704 | J126: -544.545392 | L126: 122 | M126: 126.8386046 | N126: 1597.268161 | O126: 0 | P126: wait | Q126: 0 | R126: 1 | T126: 126.8386046 | U126: 1597.268161 | V126: 0 | W126: wait | X126: 0 | Y126: 1 | Z126: 261.8858231 | AA126: 1570.52699 | AB126: 0 | AC126: wait | AD126: 0 | AE126: 1 | AF126: 496.1603331 | AG126: 1119.231748 | AH126: 0 | AI126: wait | AJ126: 0 | AK126: 1 | AL126: 257.2979278 | AM126: 1585.31209 | AN126: 1585.31209 | AO126: wait | AP126: wait | AQ126: 2 | AR126: 481.6904995 | AS126: 1136.932566 | AT126: 1136.932566 | AU126: wait | AV126: wait | AW126: 2 | AX126: 496.1603331 | AY126: 3 | AZ126: 1119.231748 | BA126: 3 | BB126: 1119.231748 | BC126: 0
A127: 123 | B127: 192.0874418 | C127: 0.08189724932 | D127: 0.3126552439 | E127: 1003.039833 | F127: 1294.84866 | G127: 117.0688991 | H127: 353.8558444 | I127: 58.15223076 | J127: 989.5259722 | L127: 123 | M127: 549.783415 | N127: 354.3854032 | O127: 0 | P127: wait | Q127: 0 | R127: 1 | T127: 549.783415 | U127: 354.3854032 | V127: 0 | W127: wait | X127: 0 | Y127: 1 | Z127: 881.7090454 | AA127: 430.688836 | AB127: 0 | AC127: wait | AD127: 0 | AE127: 1 | AF127: 1086.564571 | AG127: 358.1278481 | AH127: 0 | AI127: wait | AJ127: 0 | AK127: 1 | AL127: 815.8779175 | AM127: 454.2326033 | AN127: 468.4772541 | AO127: wait | AP127: wait | AQ127: 1 | AR127: 1094.179826 | AS127: 355.9257853 | AT127: 355.9257853 | AU127: wait | AV127: wait | AW127: 2 | AX127: 1094.179826 | AY127: 5 | AZ127: 354.3854032 | BA127: 1 | BB127: 355.9257853 | BC127: 0
A128: 124 | B128: 64.92054384 | C128: 0.08502176054 | D128: 0.2682581756 | E128: 4447.984817 | F128: 1145.865534 | G128: 37.68983602 | H128: 794.5183293 | I128: 38.19428037 | J128: 482.2840425 | L128: 124 | M128: 6.743677654 | N128: 787.6895962 | O128: 0 | P128: wait | Q128: 0 | R128: 1 | T128: 6.743677654 | U128: 787.6895962 | V128: 0 | W128: wait | X128: 0 | Y128: 1 | Z128: 12.6471977 | AA128: 821.645646 | AB128: 0 | AC128: wait | AD128: 0 | AE128: 1 | AF128: 13.25030843 | AG128: 796.9084328 | AH128: 0 | AI128: wait | AJ128: 0 | AK128: 1 | AL128: 12.57768327 | AM128: 824.6227008 | AN128: 824.6227008 | AO128: wait | AP128: wait | AQ128: 2 | AR128: 12.85557771 | AS128: 793.0678661 | AT128: 833.994171 | AU128: wait | AV128: wait | AW128: 1 | AX128: 13.25030843 | AY128: 3 | AZ128: 787.6895962 | BA128: 1 | BB128: 796.9084328 | BC128: 0
A129: 125 | B129: 113.9538787 | C129: 0.03615152496 | D129: 0.2621831202 | E129: 1500.23021 | F129: 479.8226525 | G129: 88.61756495 | H129: 351.7753734 | I129: 40.86696147 | J129: 1067.792466 | L129: 125 | M129: 1493.078806 | N129: 203.8791742 | O129: 0 | P129: wait | Q129: 0 | R129: 1 | T129: 1493.078806 | U129: 203.8791742 | V129: 0 | W129: wait | X129: 0 | Y129: 1 | Z129: 2624.308356 | AA129: 258.8526172 | AB129: 0 | AC129: wait | AD129: 0 | AE129: 1 | AF129: 2661.195549 | AG129: 252.2603252 | AH129: 0 | AI129: wait | AJ129: 0 | AK129: 1 | AL129: 2647.33606 | AM129: 228.5820112 | AN129: 285.7341598 | AO129: wait | AP129: wait | AQ129: 1 | AR129: 2597.196825 | AS129: 208.0871035 | AT129: 346.5504604 | AU129: wait | AV129: wait | AW129: 1 | AX129: 2661.195549 | AY129: 3 | AZ129: 203.8791742 | BA129: 1 | BB129: 252.2603252 | BC129: 0
A130: 126 | B130: 311.5501084 | C130: 0.04727829596 | D130: 0.2154288103 | E130: 612.4596883 | F130: 170.2099661 | G130: 24.03309668 | H130: 237.959833 | I130: 54.54347415 | J130: 197.1999539 | L130: 126 | M130: 5807.037146 | N130: 74.98772482 | O130: 0 | P130: exercise | Q130: 0 | R130: 1 | T130: 5807.037146 | U130: 74.98772482 | V130: 0 | W130: exercise | X130: 0 | Y130: 1 | Z130: 11416.87434 | AA130: 84.4346069 | AB130: 0 | AC130: exercise | AD130: 0 | AE130: 1 | AF130: 11349.12447 | AG130: 87.68017056 | AH130: 0 | AI130: exercise | AJ130: 0 | AK130: 1 | AL130: 17520.07996 | AM130: 83.14164904 | AN130: 85.24257211 | AO130: exercise | AP130: exercise | AQ130: 1 | AR130: 17750.01004 | AS130: 80.2135452 | AT130: 83.78881759 | AU130: exercise | AV130: exercise | AW130: 1 | AX130: 17750.01004 | AY130: 5 | AZ130: 74.98772482 | BA130: 1 | BB130: 80.2135452 | BC130: 0
A131: 127 | B131: 138.9299682 | C131: 0.0885461211 | D131: 0.2991391894 | E131: 146.6804664 | F131: 30.61261569 | G131: 61.7190403 | H131: 22.64862332 | I131: 68.98750699 | J131: 870.9566053 | L131: 127 | M131: 1391.719389 | N131: 27.42062473 | O131: 0 | P131: exercise | Q131: 0 | R131: 1 | T131: 1391.719389 | U131: 27.42062473 | V131: 0 | W131: exercise | X131: 0 | Y131: 1 | Z131: 1912.482172 | AA131: 94.77286981 | AB131: 0 | AC131: exercise | AD131: 0 | AE131: 1 | AF131: 1920.446164 | AG131: 94.15700358 | AH131: 0 | AI131: exercise | AJ131: 0 | AK131: 1 | AL131: 2535.734623 | AM131: 29.78793946 | AN131: 92.32999644 | AO131: exercise | AP131: exercise | AQ131: 1 | AR131: 2095.615421 | AS131: 38.09041804 | AT131: 124.976246 | AU131: exercise | AV131: exercise | AW131: 1 | AX131: 2535.734623 | AY131: 4 | AZ131: 27.42062473 | BA131: 1 | BB131: 29.78793946 | BC131: 0
A132: 128 | B132: 132.0208953 | C132: 0.04405913174 | D132: 0.2002206748 | E132: 206.5761519 | F132: 60.86616126 | G132: 67.92137357 | H132: 48.86476124 | I132: 88.40026835 | J132: 180.4211926 | L132: 128 | M132: 2729.005645 | N132: 23.93212152 | O132: 0 | P132: exercise | Q132: 0 | R132: 1 | T132: 2729.005645 | U132: 23.93212152 | V132: 0 | W132: exercise | X132: 0 | Y132: 1 | Z132: 5277.590097 | AA132: 32.00463229 | AB132: 0 | AC132: exercise | AD132: 0 | AE132: 1 | AF132: 5289.591497 | AG132: 31.46765861 | AH132: 0 | AI132: exercise | AJ132: 0 | AK132: 1 | AL132: 8380.542745 | AM132: 26.65543099 | AN132: 33.92718309 | AO132: exercise | AP132: exercise | AQ132: 1 | AR132: 6509.630026 | AS132: 31.84263478 | AT132: 50.42235812 | AU132: exercise | AV132: exercise | AW132: 1 | AX132: 8380.542745 | AY132: 4 | AZ132: 23.93212152 | BA132: 1 | BB132: 26.65543099 | BC132: 0
A133: 129 | B133: 267.7554974 | C133: 0.06117932796 | D133: 0.3100196973 | E133: 9345.229994 | F133: 2530.766987 | G133: 65.22217138 | H133: 3961.567598 | I133: 62.81927902 | J133: 2399.509314 | L133: 129 | M133: 563.5725256 | N133: 1625.694869 | O133: 0 | P133: wait | Q133: 0 | R133: 1 | T133: 563.5725256 | U133: 1625.694869 | V133: 0 | W133: wait | X133: 0 | Y133: 1 | Z133: 1042.809457 | AA133: 1789.928238 | AB133: 0 | AC133: wait | AD133: 0 | AE133: 1 | AF133: 998.8746938 | AG133: 1887.858762 | AH133: 0 | AI133: wait | AJ133: 0 | AK133: 1 | AL133: 1032.185138 | AM133: 1798.912112 | AN133: 1826.792904 | AO133: wait | AP133: wait | AQ133: 1 | AR133: 1057.890173 | AS133: 1634.294146 | AT133: 1900.670731 | AU133: wait | AV133: wait | AW133: 1 | AX133: 1057.890173 | AY133: 5 | AZ133: 1625.694869 | BA133: 1 | BB133: 1634.294146 | BC133: 0
A134: =A133+1 -> 130 | B134: 188.7806409 | C134: 0.06138716678 | D134: 0.3878200681 | E134: 2630.481603 | F134: 348.2430563 | G134: 41.65242016 | H134: 630.1459307 | I134: 22.11676819 | J134: -153.5283224 | L134: 130 | M134: 1115.362252 | N134: 501.492891 | O134: 0 | P134: wait | Q134: 0 | R134: 1 | T134: 1115.362252 | U134: 501.492891 | V134: 0 | W134: wait | X134: 0 | Y134: 1 | Z134: 2264.398908 | AA134: 488.5690107 | AB134: 0 | AC134: wait | AD134: 0 | AE134: 1 | AF134: 2203.598617 | AG134: 512.2993489 | AH134: 0 | AI134: wait | AJ134: 0 | AK134: 1 | AL134: 2248.8813 | AM134: 494.4585796 | AN134: 494.4585796 | AO134: wait | AP134: wait | AQ134: 2 | AR134: 2191.802074 | AS134: 505.2164316 | AT134: 529.4578316 | AU134: wait | AV134: wait | AW134: 1 | AX134: 2264.398908 | AY134: 2 | AZ134: 488.5690107 | BA134: 2 | BB134: =CHOOSE(AY134,U134,AA134,AG134,AM134,AS134) -> 488.5690107 | BC134: =IF(ROUND(T134-Z134,0)=0,1,0) -> 0
A135: 131 | B135: 51.08664928 | C135: 0.06782779185 | D135: 0.3736851938 | E135: 3022.630011 | F135: 822.6444704 | G135: 54.58890592 | H135: 1114.909522 | I135: 34.1082561 | J135: 319.5996531 | L135: =A135 -> 131 | M135: 79.72976752 | N135: 643.650418 | O135: 0 | P135: wait | Q135: 0 | R135: 1 | T135: 79.72976752 | U135: 643.650418 | V135: 0 | W135: wait | X135: 0 | Y135: 1 | Z135: 155.0969616 | AA135: 670.3988922 | AB135: 0 | AC135: wait | AD135: 0 | AE135: 1 | AF135: 151.3561296 | AG135: 694.8596327 | AH135: 0 | AI135: wait | AJ135: 0 | AK135: 1 | AL135: 156.760571 | AM135: 659.9819144 | AN135: 659.9819144 | AO135: wait | AP135: wait | AQ135: 2 | AR135: 154.2028773 | AS135: 649.3597096 | AT135: 704.7710332 | AU135: wait | AV135: wait | AW135: 1 | AX135: =MAX(AR135,AL135,AF135,Z135,T135) -> 156.760571 | AY135: =INDEX($T$1:$AW$1,MATCH(AX135,$T135:$AW135,0)) -> 4 | AZ135: =MIN(AS135,AM135,AG135,AA135,U135) -> 643.650418 | BA135: =INDEX($T$1:$AW$1,MATCH(AZ135,$T135:$AW135,0)) -> 1 | BB135: 659.9819144 | BC135: 0
A136: 132 | B136: 349.8871344 | C136: 0.06657801798 | D136: 0.2815759096 | E136: 17156.17137 | F136: 17404.68226 | G136: 38.68035861 | H136: 3583.555743 | I136: 42.25130222 | J136: 1693.042575 | L136: 132 | M136: 181.5420147 | N136: 4519.280922 | O136: 0 | P136: wait | Q136: 0 | R136: 1 | T136: 181.5420147 | U136: 4519.280922 | V136: 0 | W136: wait | X136: 0 | Y136: 1 | Z136: 354.083799 | AA136: 4629.974586 | AB136: 0 | AC136: wait | AD136: 0 | AE136: 1 | AF136: 443.5261648 | AG136: 3726.328599 | AH136: 0 | AI136: wait | AJ136: 0 | AK136: 1 | AL136: 351.6121633 | AM136: 4661.346933 | AN136: 4661.346933 | AO136: wait | AP136: wait | AQ136: 2 | AR136: 451.4158659 | AS136: 3663.522088 | AT136: 3663.522088 | AU136: wait | AV136: wait | AW136: 2 | AX136: 451.4158659 | AY136: 5 | AZ136: 3663.522088 | BA136: 5 | BB136: 3663.522088 | BC136: 0
A137: 133 | B137: 161.0231204 | C137: 0.06728075695 | D137: 0.247043335 | E137: 619.5444892 | F137: 38.056619 | G137: 109.370172 | H137: 203.9720773 | I137: 100.6512037 | J137: 1160.864516 | L137: 133 | M137: 1735.700151 | N137: 78.70802318 | O137: 0 | P137: exercise | Q137: 0 | R137: 1 | T137: 1735.700151 | U137: 78.70802318 | V137: 0 | W137: exercise | X137: 0 | Y137: 1 | Z137: 2310.535786 | AA137: 148.1797364 | AB137: 0 | AC137: exercise | AD137: 0 | AE137: 1 | AF137: 2144.620328 | AG137: 158.1089151 | AH137: 0 | AI137: exercise | AJ137: 0 | AK137: 1 | AL137: 3097.324033 | AM137: 80.98551421 | AN137: 129.9023096 | AO137: exercise | AP137: exercise | AQ137: 1 | AR137: 2177.49835 | AS137: 90.75492695 | AT137: 268.9425318 | AU137: exercise | AV137: wait | AW137: 1 | AX137: 3097.324033 | AY137: 4 | AZ137: 78.70802318 | BA137: 1 | BB137: 80.98551421 | BC137: 0
A138: 134 | B138: 206.3906523 | C138: 0.05216570538 | D138: 0.2060774349 | E138: 622.7781545 | F138: 56.21462935 | G138: 77.36186325 | H138: 331.421409 | I138: 56.30645448 | J138: 606.9034798 | L138: 134 | M138: 3277.450453 | N138: 65.4008554 | O138: 0 | P138: exercise | Q138: 0 | R138: 1 | T138: 3277.450453 | U138: 65.4008554 | V138: 0 | W138: exercise | X138: 0 | Y138: 1 | Z138: 5947.997427 | AA138: 94.62944786 | AB138: 0 | AC138: exercise | AD138: 0 | AE138: 1 | AF138: 5672.790647 | AG138: 107.8834612 | AH138: 0 | AI138: exercise | AJ138: 0 | AK138: 1 | AL138: 5898.569843 | AM138: 68.10816314 | AN138: 149.7631626 | AO138: exercise | AP138: exercise | AQ138: 1 | AR138: 5540.82409 | AS138: 70.82431552 | AT138: 167.5855246 | AU138: exercise | AV138: exercise | AW138: 1 | AX138: 5947.997427 | AY138: 2 | AZ138: 65.4008554 | BA138: 1 | BB138: 94.62944786 | BC138: 0
A139: 135 | B139: 61.2292531 | C139: 0.05644918112 | D139: 0.2831795451 | E139: 550.9494997 | F139: 43.26871184 | G139: 73.8049711 | H139: 134.2892779 | I139: 61.40084041 | J139: 801.7769112 | L139: 135 | M139: 505.8852299 | N139: 73.52485725 | O139: 0 | P139: wait | Q139: 0 | R139: 1 | T139: 505.8852299 | U139: 73.52485725 | V139: 0 | W139: wait | X139: 0 | Y139: 1 | Z139: 656.4756696 | AA139: 123.1282957 | AB139: 0 | AC139: wait | AD139: 0 | AE139: 1 | AF139: 632.3025661 | AG139: 128.7594544 | AH139: 0 | AI139: wait | AJ139: 0 | AK139: 1 | AL139: 694.4186623 | AM139: 76.20175759 | AN139: 217.7068356 | AO139: wait | AP139: wait | AQ139: 1 | AR139: 761.8383468 | AS139: 81.12221448 | AT139: 139.2678881 | AU139: wait | AV139: wait | AW139: 1 | AX139: 761.8383468 | AY139: 5 | AZ139: 73.52485725 | BA139: 1 | BB139: 81.12221448 | BC139: 0
A140: 136 | B140: 167.0512072 | C140: 0.07872571635 | D140: 0.2731244454 | E140: 997.1074281 | F140: 229.814423 | G140: 61.82166143 | H140: 400.0413258 | I140: 35.98750454 | J140: -609.2879617 | L140: 136 | M140: 895.1299023 | N140: 168.5415924 | O140: 0 | P140: wait | Q140: 0 | R140: 1 | T140: 895.1299023 | U140: 168.5415924 | V140: 0 | W140: wait | X140: 0 | Y140: 1 | Z140: 2399.32326 | AA140: 126.6928132 | AB140: 0 | AC140: exercise | AD140: 0 | AE140: 1 | AF140: 2229.096357 | AG140: 138.3848021 | AH140: 0 | AI140: exercise | AJ140: 0 | AK140: 1 | AL140: 2060.774449 | AM140: 149.9459469 | AN140: 149.9459469 | AO140: exercise | AP140: exercise | AQ140: 2 | AR140: 1934.936988 | AS140: 158.589059 | AT140: 158.589059 | AU140: exercise | AV140: exercise | AW140: 2 | AX140: 2399.32326 | AY140: 2 | AZ140: 126.6928132 | BA140: 2 | BB140: 126.6928132 | BC140: 0
A141: 137 | B141: 57.28509703 | C141: 0.05023718018 | D141: 0.2840901384 | E141: 1532.699597 | F141: 220.177457 | G141: 35.76707636 | H141: 193.1710243 | I141: 28.27344129 | J141: 698.2699721 | L141: 137 | M141: 258.3742204 | N141: 209.6198939 | O141: 0 | P141: wait | Q141: 0 | R141: 1 | T141: 258.3742204 | U141: 209.6198939 | V141: 0 | W141: wait | X141: 0 | Y141: 1 | Z141: 453.0383137 | AA141: 251.3716178 | AB141: 0 | AC141: wait | AD141: 0 | AE141: 1 | AF141: 455.1583085 | AG141: 249.7568195 | AH141: 0 | AI141: wait | AJ141: 0 | AK141: 1 | AL141: 484.2278221 | AM141: 222.7849858 | AN141: 236.1476134 | AO141: wait | AP141: wait | AQ141: 1 | AR141: 464.8024213 | AS141: 213.0010071 | AT141: 280.1633688 | AU141: wait | AV141: wait | AW141: 1 | AX141: 484.2278221 | AY141: 4 | AZ141: 209.6198939 | BA141: 1 | BB141: 222.7849858 | BC141: 0
A142: 138 | B142: 220.938823 | C142: 0.05559571197 | D142: 0.2794597789 | E142: 3345.129352 | F142: 77.32528233 | G142: 72.12989869 | H142: 1304.341672 | I142: 87.86845454 | J142: 461.3568766 | L142: 138 | M142: 1267.74455 | N142: 416.9478531 | O142: 0 | P142: wait | Q142: 0 | R142: 1 | T142: 1267.74455 | U142: 416.9478531 | V142: 0 | W142: wait | X142: 0 | Y142: 1 | Z142: 2400.3963 | AA142: 445.050747 | AB142: 0 | AC142: wait | AD142: 0 | AE142: 1 | AF142: 2107.118665 | AG142: 519.7926946 | AH142: 0 | AI142: wait | AJ142: 0 | AK142: 1 | AL142: 2477.835641 | AM142: 421.658012 | AN142: 435.6123847 | AO142: wait | AP142: wait | AQ142: 1 | AR142: 2128.82785 | AS142: 427.6526154 | AT142: 637.3983715 | AU142: wait | AV142: wait | AW142: 1 | AX142: 2477.835641 | AY142: 4 | AZ142: 416.9478531 | BA142: 1 | BB142: 421.658012 | BC142: 0
A143: 139 | B143: 71.56485996 | C143: 0.05483023785 | D143: 0.2129770389 | E143: 490.0231527 | F143: 215.7984356 | G143: 38.85247607 | H143: 38.66854849 | I143: 55.3850263 | J143: 702.8011358 | L143: 139 | M143: 599.3863183 | N143: 70.67422832 | O143: 0 | P143: exercise | Q143: 0 | R143: 1 | T143: 599.3863183 | U143: 70.67422832 | V143: 0 | W143: exercise | X143: 0 | Y143: 1 | Z143: 735.259333 | AA143: 105.8601228 | AB143: 0 | AC143: wait | AD143: 0 | AE143: 1 | AF143: 817.3915146 | AG143: 96.99207582 | AH143: 0 | AI143: wait | AJ143: 0 | AK143: 1 | AL143: 875.3933547 | AM143: 81.47822479 | AN143: 105.1328941 | AO143: wait | AP143: wait | AQ143: 1 | AR143: 969.9102751 | AS143: 76.21995553 | AT143: 94.31387277 | AU143: wait | AV143: wait | AW143: 1 | AX143: 969.9102751 | AY143: 5 | AZ143: 70.67422832 | BA143: 1 | BB143: 76.21995553 | BC143: 0
A144: 140 | B144: 407.5415313 | C144: 0.1042510102 | D144: 0.4354300516 | E144: 955.1891379 | F144: 234.3865471 | G144: 37.95758122 | H144: 603.5293131 | I144: 43.20922629 | J144: 453.7370907 | L144: 140 | M144: 2719.657719 | N144: 268.825945 | O144: 0 | P144: exercise | Q144: 0 | R144: 1 | T144: 2719.657719 | U144: 268.825945 | V144: 0 | W144: exercise | X144: 0 | Y144: 1 | Z144: 4985.578347 | AA144: 320.094773 | AB144: 0 | AC144: exercise | AD144: 0 | AE144: 1 | AF144: 4616.435581 | AG144: 361.8050879 | AH144: 0 | AI144: exercise | AJ144: 0 | AK144: 1 | AL144: 5357.14079 | AM144: 278.111053 | AN144: 278.111053 | AO144: exercise | AP144: exercise | AQ144: 2 | AR144: 4696.880245 | AS144: 278.5905705 | AT144: 427.7265203 | AU144: exercise | AV144: wait | AW144: 1 | AX144: 5357.14079 | AY144: 4 | AZ144: 268.825945 | BA144: 1 | BB144: 278.111053 | BC144: 0
A145: 141 | B145: 161.2115717 | C145: 0.04701863956 | D145: 0.2148702642 | E145: 346.5618738 | F145: 201.8944455 | G145: 30.23641688 | H145: 74.6862952 | I145: 34.30069901 | J145: 578.9297563 | L145: 141 | M145: 2880.217356 | N145: 52.36735544 | O145: 0 | P145: exercise | Q145: 0 | R145: 1 | T145: 2880.217356 | U145: 52.36735544 | V145: 0 | W145: exercise | X145: 0 | Y145: 1 | Z145: 5181.504956 | AA145: 80.00585576 | AB145: 0 | AC145: exercise | AD145: 0 | AE145: 1 | AF145: 5308.713106 | AG145: 73.93285214 | AH145: 0 | AI145: exercise | AJ145: 0 | AK145: 1 | AL145: 5105.190597 | AM145: 62.00593358 | AN145: 119.5494266 | AO145: exercise | AP145: exercise | AQ145: 1 | AR145: 5965.813746 | AS145: 55.64243284 | AT145: 88.3252331 | AU145: exercise | AV145: exercise | AW145: 1 | AX145: 5965.813746 | AY145: 5 | AZ145: 52.36735544 | BA145: 1 | BB145: 55.64243284 | BC145: 0
A146: 142 | B146: 178.2837133 | C146: 0.07332491909 | D146: 0.2628042684 | E146: 1001.523691 | F146: 119.8601809 | G146: 53.17525829 | H146: 131.7533203 | I146: 40.74191704 | J146: 12.73648825 | L146: 142 | M146: 1310.036653 | N146: 145.2869136 | O146: 0 | P146: exercise | Q146: 0 | R146: 1 | T146: 1310.036653 | U146: 145.2869136 | V146: 0 | W146: exercise | X146: 0 | Y146: 1 | Z146: 2607.336818 | AA146: 146.1119857 | AB146: 0 | AC146: exercise | AD146: 0 | AE146: 1 | AF146: 2595.443678 | AG146: 146.8824255 | AH146: 0 | AI146: exercise | AJ146: 0 | AK146: 1 | AL146: 2582.007407 | AM146: 147.7528297 | AN146: 147.7528297 | AO146: exercise | AP146: exercise | AQ146: 2 | AR146: 2529.380871 | AS146: 150.5654516 | AT146: 155.6166384 | AU146: exercise | AV146: exercise | AW146: 1 | AX146: 2607.336818 | AY146: 2 | AZ146: 145.2869136 | BA146: 1 | BB146: 146.1119857 | BC146: 0
A147: 143 | B147: 132.1169225 | C147: 0.03684643799 | D147: 0.2607182945 | E147: 540.9237008 | F147: 271.630803 | G147: 33.35079608 | H147: 143.1214968 | I147: 44.71651019 | J147: 677.2454746 | L147: 143 | M147: 2773.054574 | N147: 83.64082637 | O147: 0 | P147: exercise | Q147: 0 | R147: 1 | T147: 2773.054574 | U147: 83.64082637 | V147: 0 | W147: exercise | X147: 0 | Y147: 1 | Z147: 4868.863673 | AA147: 118.4971781 | AB147: 0 | AC147: exercise | AD147: 0 | AE147: 1 | AF147: 4997.37298 | AG147: 111.8830836 | AH147: 0 | AI147: exercise | AJ147: 0 | AK147: 1 | AL147: 4987.11837 | AM147: 97.62107307 | AN147: 127.3394801 | AO147: exercise | AP147: exercise | AQ147: 1 | AR147: 5024.716035 | AS147: 88.24374944 | AT147: 132.7099073 | AU147: exercise | AV147: wait | AW147: 1 | AX147: 5024.716035 | AY147: 5 | AZ147: 83.64082637 | BA147: 1 | BB147: 88.24374944 | BC147: 0
A148: 144 | B148: 144.4957906 | C148: 0.04715420863 | D148: 0.3029943068 | E148: 2586.009941 | F148: 803.2114838 | G148: 40.82869036 | H148: 567.2472139 | I148: 30.12826472 | J148: 1403.533281 | L148: 144 | M148: 986.7481873 | N148: 420.436334 | O148: 0 | P148: wait | Q148: 0 | R148: 1 | T148: 986.7481873 | U148: 420.436334 | V148: 0 | W148: wait | X148: 0 | Y148: 1 | Z148: 1758.406977 | AA148: 507.4911931 | AB148: 0 | AC148: wait | AD148: 0 | AE148: 1 | AF148: 1790.246103 | AG148: 492.8553904 | AH148: 0 | AI148: wait | AJ148: 0 | AK148: 1 | AL148: 1843.18201 | AM148: 469.9823595 | AN148: 469.9823595 | AO148: wait | AP148: wait | AQ148: 2 | AR148: 1958.394642 | AS148: 424.1737756 | AT148: 427.3080185 | AU148: wait | AV148: wait | AW148: 1 | AX148: 1958.394642 | AY148: 5 | AZ148: 420.436334 | BA148: 1 | BB148: 424.1737756 | BC148: 0
A149: 145 | B149: 252.2752381 | C149: 0.1030187713 | D149: 0.1824246269 | E149: 545.0249415 | F149: 259.2385838 | G149: 18.56699385 | H149: 77.32169368 | I149: 96.5132059 | J149: 1097.745974 | L149: 145 | M149: 1644.564343 | N149: 104.5953652 | O149: 0 | P149: exercise | Q149: 0 | R149: 1 | T149: 1644.564343 | U149: 104.5953652 | V149: 0 | W149: exercise | X149: 0 | Y149: 1 | Z149: 2191.382712 | AA149: 175.976907 | AB149: 0 | AC149: exercise | AD149: 0 | AE149: 1 | AF149: 2373.299602 | AG149: 164.1476602 | AH149: 0 | AI149: exercise | AJ149: 0 | AK149: 1 | AL149: 1799.511133 | AM149: 121.4524981 | AN149: 293.8616269 | AO149: exercise | AP149: wait | AQ149: 1 | AR149: 6793.306743 | AS149: 117.1470149 | AT149: 136.7889857 | AU149: exercise | AV149: exercise | AW149: 1 | AX149: 6793.306743 | AY149: 5 | AZ149: 104.5953652 | BA149: 1 | BB149: 117.1470149 | BC149: 0
A150: 146 | B150: 73.34939003 | C150: 0.06675449144 | D150: 0.224072124 | E150: 3355.100087 | F150: 487.7110181 | G150: 45.54814978 | H150: 323.7582832 | I150: 37.50932629 | J150: 1639.881134 | L150: 146 | M150: 32.76766338 | N150: 430.6960351 | O150: 0 | P150: wait | Q150: 0 | R150: 1 | T150: 32.76766338 | U150: 430.6960351 | V150: 0 | W150: wait | X150: 0 | Y150: 1 | Z150: 49.29098359 | AA150: 522.5936437 | AB150: 0 | AC150: wait | AD150: 0 | AE150: 1 | AF150: 50.59564662 | AG150: 513.4058655 | AH150: 0 | AI150: wait | AJ150: 0 | AK150: 1 | AL150: 48.7103003 | AM150: 458.0269649 | AN150: 628.4760502 | AO150: wait | AP150: wait | AQ150: 1 | AR150: 52.03496759 | AS150: 434.9000195 | AT150: 607.7401113 | AU150: wait | AV150: wait | AW150: 1 | AX150: 52.03496759 | AY150: 5 | AZ150: 430.6960351 | BA150: 1 | BB150: 434.9000195 | BC150: 0
A151: 147 | B151: 201.4277373 | C151: 0.06242647834 | D151: 0.2576633302 | E151: 391.659509 | F151: 53.42451275 | G151: 22.13557507 | H151: 112.8226942 | I151: 57.89350823 | J151: -335.6640275 | L151: 147 | M151: 2781.555421 | N151: 53.18857085 | O151: 0 | P151: exercise | Q151: 0 | R151: 1 | T151: 2781.555421 | U151: 53.18857085 | V151: 0 | W151: exercise | X151: 0 | Y151: 1 | Z151: 5898.77487 | AA151: 33.13225672 | AB151: 0 | AC151: exercise | AD151: 0 | AE151: 1 | AF151: 5839.376689 | AG151: 36.68136681 | AH151: 0 | AI151: exercise | AJ151: 0 | AK151: 1 | AL151: 6000.840914 | AM151: 27.03369248 | AN151: 27.03369248 | AO151: exercise | AP151: exercise | AQ151: 2 | AR151: 5810.280242 | AS151: 38.41991321 | AT151: 38.41991321 | AU151: exercise | AV151: exercise | AW151: 2 | AX151: 6000.840914 | AY151: 4 | AZ151: 27.03369248 | BA151: 4 | BB151: 27.03369248 | BC151: 0
A152: 148 | B152: 117.9943084 | C152: 0.06170905196 | D152: 0.2993104851 | E152: 845.2040718 | F152: 151.3223809 | G152: 92.04640444 | H152: 281.0533497 | I152: 15.91508617 | J152: 381.1560066 | L152: 148 | M152: 927.3142921 | N152: 132.9042044 | O152: 0 | P152: wait | Q152: 0 | R152: 1 | T152: 927.3142921 | U152: 132.9042044 | V152: 0 | W152: wait | X152: 0 | Y152: 1 | Z152: 1595.177529 | AA152: 158.3211091 | AB152: 0 | AC152: wait | AD152: 0 | AE152: 1 | AF152: 1523.74414 | AG152: 166.9720542 | AH152: 0 | AI152: wait | AJ152: 0 | AK152: 1 | AL152: 1676.944349 | AM152: 142.9949454 | AN152: 156.3442145 | AO152: wait | AP152: wait | AQ152: 1 | AR152: 1569.206557 | AS152: 135.026759 | AT152: 199.197776 | AU152: wait | AV152: wait | AW152: 1 | AX152: 1676.944349 | AY152: 4 | AZ152: 132.9042044 | BA152: 1 | BB152: 142.9949454 | BC152: 0
A153: 149 | B153: 262.0507608 | C153: 0.05448330703 | D153: 0.3270583484 | E153: 1249.632283 | F153: 390.6337 | G153: 60.16540458 | H153: 489.5220559 | I153: 114.0305565 | J153: 1719.10149 | L153: 149 | M153: 3169.478048 | N153: 226.790218 | O153: 0 | P153: exercise | Q153: 0 | R153: 1 | T153: 3169.478048 | U153: 226.790218 | V153: 0 | W153: exercise | X153: 0 | Y153: 1 | Z153: 4868.545677 | AA153: 345.6353948 | AB153: 0 | AC153: wait | AD153: 0 | AE153: 1 | AF153: 4806.92856 | AG153: 352.4717592 | AH153: 0 | AI153: wait | AJ153: 0 | AK153: 1 | AL153: 5389.516734 | AM153: 253.7955643 | AN153: 349.8068813 | AO153: exercise | AP153: wait | AQ153: 1 | AR153: 5933.465964 | AS153: 242.5565723 | AT153: 267.1697845 | AU153: exercise | AV153: wait | AW153: 1 | AX153: 5933.465964 | AY153: 5 | AZ153: 226.790218 | BA153: 1 | BB153: 242.5565723 | BC153: 0
A154: 150 | B154: 199.3625813 | C154: 0.06492335672 | D154: 0.3505573194 | E154: 4236.733583 | F154: 16478.66509 | G154: 18.64596026 | H154: 477.4064393 | I154: 18.87789359 | J154: 491.5547213 | L154: 150 | M154: 243.3938835 | N154: 3221.07452 | O154: 0 | P154: wait | Q154: 0 | R154: 1 | T154: 243.3938835 | U154: 3221.07452 | V154: 0 | W154: wait | X154: 0 | Y154: 1 | Z154: 482.6893705 | AA154: 3259.290883 | AB154: 0 | AC154: wait | AD154: 0 | AE154: 1 | AF154: 681.3010594 | AG154: 2015.25867 | AH154: 0 | AI154: wait | AJ154: 0 | AK154: 1 | AL154: 481.6237837 | AM154: 3269.354859 | AN154: 3269.354859 | AO154: wait | AP154: wait | AQ154: 2 | AR154: 688.0544451 | AS154: 1987.718851 | AT154: 1987.718851 | AU154: wait | AV154: wait | AW154: 2 | AX154: 688.0544451 | AY154: 5 | AZ154: 1987.718851 | BA154: 5 | BB154: 1987.718851 | BC154: 0
A155: 151 | B155: 175.3115652 | C155: 0.05850954465 | D155: 0.269864059 | E155: 117.238448 | F155: 19.4202402 | G155: 34.79078896 | H155: 74.13445129 | I155: 40.13078345 | J155: 870.0002242 | L155: 151 | M155: 2859.631341 | N155: 16.49218289 | O155: 0 | P155: exercise | Q155: 0 | R155: 1 | T155: 2859.631341 | U155: 16.49218289 | V155: 0 | W155: exercise | X155: 0 | Y155: 1 | Z155: 4849.262457 | AA155: 68.98867249 | AB155: 0 | AC155: exercise | AD155: 0 | AE155: 1 | AF155: 4794.548246 | AG155: 72.29017051 | AH155: 0 | AI155: exercise | AJ155: 0 | AK155: 1 | AL155: 6217.006882 | AM155: 17.66401528 | AN155: 76.54061848 | AO155: exercise | AP155: exercise | AQ155: 1 | AR155: 4881.860423 | AS155: 21.33522821 | AT155: 128.8569163 | AU155: exercise | AV155: exercise | AW155: 1 | AX155: 6217.006882 | AY155: 4 | AZ155: 16.49218289 | BA155: 1 | BB155: 17.66401528 | BC155: 0
A156: 152 | B156: 116.1932371 | C156: 0.05064515956 | D156: 0.2068593189 | E156: 3450.13987 | F156: 4110.375279 | G156: 53.22587504 | H156: 487.9655371 | I156: 50.17146136 | J156: -129.0075888 | L156: 152 | M156: 137.1962091 | N156: 722.288294 | O156: 0 | P156: wait | Q156: 0 | R156: 1 | T156: 137.1962091 | U156: 722.288294 | V156: 0 | W156: wait | X156: 0 | Y156: 1 | Z156: 277.057822 | AA156: 716.1259711 | AB156: 0 | AC156: wait | AD156: 0 | AE156: 1 | AF156: 378.5184363 | AG156: 543.0938364 | AH156: 0 | AI156: wait | AJ156: 0 | AK156: 1 | AL156: 275.9848393 | AM156: 718.5931698 | AN156: 718.5931698 | AO156: wait | AP156: wait | AQ156: 2 | AR156: 376.3909988 | AS156: 545.8137573 | AT156: 545.8137573 | AU156: wait | AV156: wait | AW156: 2 | AX156: 378.5184363 | AY156: 3 | AZ156: 543.0938364 | BA156: 3 | BB156: 543.0938364 | BC156: 0
A157: 153 | B157: 137.6397566 | C157: 0.05385861624 | D157: 0.2763796729 | E157: 4641.588174 | F157: 534.1393406 | G157: 41.82448534 | H157: 2582.972294 | I157: 57.23353201 | J157: 1360.535366 | L157: 153 | M157: 409.2711402 | N157: 618.6046304 | O157: 0 | P157: wait | Q157: 0 | R157: 1 | T157: 409.2711402 | U157: 618.6046304 | V157: 0 | W157: wait | X157: 0 | Y157: 1 | Z157: 739.693843 | AA157: 699.9104445 | AB157: 0 | AC157: wait | AD157: 0 | AE157: 1 | AF157: 648.0726334 | AG157: 822.3490338 | AH157: 0 | AI157: wait | AJ157: 0 | AK157: 1 | AL157: 715.2246141 | AM157: 650.524884 | AN157: 827.1276844 | AO157: wait | AP157: wait | AQ157: 1 | AR157: 709.5296572 | AS157: 625.4452007 | AT157: 889.1325802 | AU157: wait | AV157: wait | AW157: 1 | AX157: 739.693843 | AY157: 2 | AZ157: 618.6046304 | BA157: 1 | BB157: 699.9104445 | BC157: 0
A158: 154 | B158: 111.2920778 | C158: 0.0710384043 | D158: 0.2411681992 | E158: 1614.343276 | F158: 156.3456711 | G158: 27.47178052 | H158: 142.4148992 | I158: 20.77992483 | J158: 1271.134639 | L158: 154 | M158: 253.412109 | N158: 213.7029092 | O158: 0 | P158: wait | Q158: 0 | R158: 1 | T158: 253.412109 | U158: 213.7029092 | V158: 0 | W158: wait | X158: 0 | Y158: 1 | Z158: 326.7987182 | AA158: 290.4089764 | AB158: 0 | AC158: wait | AD158: 0 | AE158: 1 | AF158: 328.1569739 | AG158: 289.56833 | AH158: 0 | AI158: wait | AJ158: 0 | AK158: 1 | AL158: 346.4875486 | AM158: 223.1375208 | AN158: 387.2152217 | AO158: wait | AP158: wait | AQ158: 1 | AR158: 372.0503305 | AS158: 216.2108203 | AT158: 354.5121409 | AU158: wait | AV158: wait | AW158: 1 | AX158: 372.0503305 | AY158: 5 | AZ158: 213.7029092 | BA158: 1 | BB158: 216.2108203 | BC158: 0
A159: 155 | B159: 229.311855 | C159: 0.06770978584 | D159: 0.3492246534 | E159: 3825.871119 | F159: 452.1319178 | G159: 20.57308679 | H159: 879.7855492 | I159: 64.11131292 | J159: 1165.29161 | L159: 155 | M159: 853.7653854 | N159: 672.2667184 | O159: 0 | P159: wait | Q159: 0 | R159: 1 | T159: 853.7653854 | U159: 672.2667184 | V159: 0 | W159: wait | X159: 0 | Y159: 1 | Z159: 1550.193624 | AA159: 763.8265841 | AB159: 0 | AC159: wait | AD159: 0 | AE159: 1 | AF159: 1500.482166 | AG159: 797.4283956 | AH159: 0 | AI159: wait | AJ159: 0 | AK159: 1 | AL159: 1682.745441 | AM159: 685.3765334 | AN159: 685.3765334 | AO159: wait | AP159: wait | AQ159: 2 | AR159: 1615.665805 | AS159: 682.3414896 | AT159: 768.5846576 | AU159: wait | AV159: wait | AW159: 1 | AX159: 1682.745441 | AY159: 4 | AZ159: 672.2667184 | BA159: 1 | BB159: 685.3765334 | BC159: 0
A160: 156 | B160: 171.5224405 | C160: 0.05724894103 | D160: 0.3358164538 | E160: 1832.125736 | F160: 144.7805854 | G160: 37.93920104 | H160: 545.7074474 | I160: 53.32379566 | J160: -110.0086718 | L160: 156 | M160: 1290.602211 | N160: 284.11743 | O160: 0 | P160: wait | Q160: 0 | R160: 1 | T160: 1290.602211 | U160: 284.11743 | V160: 0 | W160: wait | X160: 0 | Y160: 1 | Z160: 2629.880442 | AA160: 276.2123055 | AB160: 0 | AC160: wait | AD160: 0 | AE160: 1 | AF160: 2462.680116 | AG160: 305.0225502 | AH160: 0 | AI160: wait | AJ160: 0 | AK160: 1 | AL160: 2609.225665 | AM160: 279.5214943 | AN160: 279.5214943 | AO160: wait | AP160: wait | AQ160: 2 | AR160: 2449.945213 | AS160: 291.7810302 | AT160: 324.5044328 | AU160: wait | AV160: wait | AW160: 1 | AX160: 2629.880442 | AY160: 2 | AZ160: 276.2123055 | BA160: 2 | BB160: 276.2123055 | BC160: 0
A161: 157 | B161: 168.2625378 | C161: 0.0470016539 | D161: 0.1302908834 | E161: 656.6799741 | F161: 183.8880169 | G161: 25.27219876 | H161: 233.8723967 | I161: 32.19705485 | J161: 694.9403343 | L161: 157 | M161: 2739.360029 | N161: 61.80494532 | O161: 0 | P161: exercise | Q161: 0 | R161: 1 | T161: 2739.360029 | U161: 61.80494532 | V161: 0 | W161: exercise | X161: 0 | Y161: 1 | Z161: 4783.779724 | AA161: 87.35359208 | AB161: 0 | AC161: exercise | AD161: 0 | AE161: 1 | AF161: 4733.795344 | AG161: 89.19120777 | AH161: 0 | AI161: exercise | AJ161: 0 | AK161: 1 | AL161: 7356.592203 | AM161: 68.56536741 | AN161: 81.07754446 | AO161: exercise | AP161: exercise | AQ161: 1 | AR161: 5334.067081 | AS161: 64.17231742 | AT161: 112.711114 | AU161: exercise | AV161: exercise | AW161: 1 | AX161: 7356.592203 | AY161: 4 | AZ161: 61.80494532 | BA161: 1 | BB161: 68.56536741 | BC161: 0
A162: 158 | B162: 215.4183118 | C162: 0.06967648138 | D162: 0.3602008598 | E162: 1400.10055 | F162: 259.1299908 | G162: 43.43518719 | H162: 375.6310474 | I162: 24.29264034 | J162: 1137.4026 | L162: 158 | M162: 1494.120909 | N162: 270.7899554 | O162: 0 | P162: wait | Q162: 0 | R162: 1 | T162: 1494.120909 | U162: 270.7899554 | V162: 0 | W162: wait | X162: 0 | Y162: 1 | Z162: 2399.161653 | AA162: 363.6032179 | AB162: 0 | AC162: wait | AD162: 0 | AE162: 1 | AF162: 2353.470956 | AG162: 373.1098281 | AH162: 0 | AI162: wait | AJ162: 0 | AK162: 1 | AL162: 2594.830478 | AM162: 291.9352384 | AN162: 370.8378058 | AO162: wait | AP162: wait | AQ162: 1 | AR162: 2332.767658 | AS162: 274.754566 | AT162: 573.0691321 | AU162: wait | AV162: wait | AW162: 1 | AX162: 2594.830478 | AY162: 4 | AZ162: 270.7899554 | BA162: 1 | BB162: 291.9352384 | BC162: 0
A163: 159 | B163: 125.809819 | C163: 0.0776668892 | D163: 0.3519632531 | E163: 10258.46425 | F163: 2579.815996 | G163: 58.38693791 | H163: 2496.287629 | I163: 71.75820921 | J163: 227.1143734 | L163: 159 | M163: 72.11043068 | N163: 2134.32663 | O163: 0 | P163: wait | Q163: 0 | R163: 1 | T163: 72.11043068 | U163: 2134.32663 | V163: 0 | W163: wait | X163: 0 | Y163: 1 | Z163: 143.1115693 | AA163: 2153.205181 | AB163: 0 | AC163: wait | AD163: 0 | AE163: 1 | AF163: 143.5174168 | AG163: 2146.262007 | AH163: 0 | AI163: wait | AJ163: 0 | AK163: 1 | AL163: 142.7813204 | AM163: 2158.886206 | AN163: 2158.886206 | AO163: wait | AP163: wait | AQ163: 2 | AR163: 142.4873562 | AS163: 2146.256222 | AT163: 2181.95359 | AU163: wait | AV163: wait | AW163: 1 | AX163: 143.5174168 | AY163: 3 | AZ163: 2134.32663 | BA163: 1 | BB163: 2146.262007 | BC163: 0
A164: 160 | B164: 145.2746127 | C164: 0.07507596029 | D164: 0.3628603404 | E164: 2515.263892 | F164: 2903.18419 | G164: 59.32627865 | H164: 680.9359654 | I164: 56.01074339 | J164: -586.7890566 | L164: 160 | M164: 245.5191939 | N164: 913.8328469 | O164: 0 | P164: wait | Q164: 0 | R164: 1 | T164: 245.5191939 | U164: 913.8328469 | V164: 0 | W164: wait | X164: 0 | Y164: 1 | Z164: 513.4666071 | AA164: 864.3512328 | AB164: 0 | AC164: wait | AD164: 0 | AE164: 1 | AF164: 624.6820202 | AG164: 676.9577771 | AH164: 0 | AI164: wait | AJ164: 0 | AK164: 1 | AL164: 492.1491352 | AM164: 911.2628722 | AN164: 911.2628722 | AO164: wait | AP164: wait | AQ164: 2 | AR164: 635.5453383 | AS164: 662.5657364 | AT164: 662.5657364 | AU164: wait | AV164: wait | AW164: 2 | AX164: 635.5453383 | AY164: 5 | AZ164: 662.5657364 | BA164: 5 | BB164: 662.5657364 | BC164: 0
A165: 161 | B165: 190.9712293 | C165: 0.05910337043 | D165: 0.2823727542 | E165: 6698.063767 | F165: 1848.43792 | G165: 31.93339506 | H165: 1467.539755 | I165: 20.62761004 | J165: 619.7873195 | L165: 161 | M165: 367.0870615 | N165: 1071.779927 | O165: 0 | P165: wait | Q165: 0 | R165: 1 | T165: 367.0870615 | U165: 1071.779927 | V165: 0 | W165: wait | X165: 0 | Y165: 1 | Z165: 711.2298995 | AA165: 1110.642355 | AB165: 0 | AC165: wait | AD165: 0 | AE165: 1 | AF165: 725.1467877 | AG165: 1086.758957 | AH165: 0 | AI165: wait | AJ165: 0 | AK165: 1 | AL165: 709.2703961 | AM165: 1114.085045 | AN165: 1114.085045 | AO165: wait | AP165: wait | AQ165: 2 | AR165: 741.6532956 | AS165: 1059.662592 | AT165: 1059.662592 | AU165: wait | AV165: wait | AW165: 2 | AX165: 741.6532956 | AY165: 5 | AZ165: 1059.662592 | BA165: 5 | BB165: 1059.662592 | BC165: 0
A166: 162 | B166: 105.6327001 | C166: 0.0677389337 | D166: 0.2712290704 | E166: 1281.27454 | F166: 374.9018475 | G166: 21.98634008 | H166: 318.88379 | I166: 32.92720451 | J166: 1717.494174 | L166: 162 | M166: 335.8632359 | N166: 212.1179469 | O166: 0 | P166: wait | Q166: 0 | R166: 1 | T166: 335.8632359 | U166: 212.1179469 | V166: 0 | W166: wait | X166: 0 | Y166: 1 | Z166: 420.2636277 | AA166: 322.1036166 | AB166: 0 | AC166: wait | AD166: 0 | AE166: 1 | AF166: 425.5811038 | AG166: 318.5163068 | AH166: 0 | AI166: wait | AJ166: 0 | AK166: 1 | AL166: 432.1392612 | AM166: 236.1260812 | AN166: 479.7079927 | AO166: wait | AP166: wait | AQ166: 1 | AR166: 555.8587875 | AS166: 216.3351614 | AT166: 300.2972697 | AU166: wait | AV166: wait | AW166: 1 | AX166: 555.8587875 | AY166: 5 | AZ166: 212.1179469 | BA166: 1 | BB166: 216.3351614 | BC166: 0
A167: 163 | B167: 82.8329166 | C167: 0.07646393031 | D167: 0.2576967765 | E167: 2052.059383 | F167: 4486.393083 | G167: 25.04140482 | H167: 879.8066784 | I167: 54.69551262 | J167: 342.1155385 | L167: 163 | M167: 16.37261022 | N167: 852.181871 | O167: 0 | P167: wait | Q167: 0 | R167: 1 | T167: 16.37261022 | U167: 852.181871 | V167: 0 | W167: wait | X167: 0 | Y167: 1 | Z167: 31.56661036 | AA167: 874.4764935 | AB167: 0 | AC167: wait | AD167: 0 | AE167: 1 | AF167: 49.22540403 | AG167: 639.4462959 | AH167: 0 | AI167: wait | AJ167: 0 | AK167: 1 | AL167: 31.01940105 | AM167: 885.3165944 | AN167: 885.3165944 | AO167: wait | AP167: wait | AQ167: 2 | AR167: 47.67207752 | AS167: 654.0554804 | AT167: 654.0554804 | AU167: wait | AV167: wait | AW167: 2 | AX167: 49.22540403 | AY167: 3 | AZ167: 639.4462959 | BA167: 3 | BB167: 639.4462959 | BC167: 0
A168: 164 | B168: 158.1614972 | C168: 0.04152777382 | D168: 0.2635424502 | E168: 1257.688959 | F168: 67.25520245 | G168: 45.62341049 | H168: 350.6333783 | I168: 38.00108535 | J168: 2007.166223 | L168: 164 | M168: 2483.627373 | N168: 141.525488 | O168: 0 | P168: exercise | Q168: 0 | R168: 1 | T168: 2483.627373 | U168: 141.525488 | V168: 0 | W168: exercise | X168: 0 | Y168: 1 | Z168: 3490.834573 | AA168: 248.7244128 | AB168: 0 | AC168: wait | AD168: 0 | AE168: 1 | AF168: 3362.109332 | AG168: 263.8591014 | AH168: 0 | AI168: wait | AJ168: 0 | AK168: 1 | AL168: 4669.223471 | AM168: 145.1174602 | AN168: 170.505739 | AO168: exercise | AP168: wait | AQ168: 1 | AR168: 4222.655225 | AS168: 145.5846191 | AT168: 241.8037594 | AU168: exercise | AV168: wait | AW168: 1 | AX168: 4669.223471 | AY168: 4 | AZ168: 141.525488 | BA168: 1 | BB168: 145.1174602 | BC168: 0
A169: 165 | B169: 444.1435943 | C169: 0.05156553125 | D169: 0.2607123941 | E169: 637.4818617 | F169: 1139.432108 | G169: 87.49499467 | H169: 332.182065 | I169: 18.56715685 | J169: 2710.15669 | L169: 165 | M169: 6836.273629 | N169: 200.1994852 | O169: 0 | P169: exercise | Q169: 0 | R169: 1 | T169: 6836.273629 | U169: 200.1994852 | V169: 0 | W169: exercise | X169: 0 | Y169: 1 | Z169: 10962.39057 | AA169: 352.8720353 | AB169: 0 | AC169: exercise | AD169: 0 | AE169: 1 | AF169: 11769.64061 | AG169: 307.3968334 | AH169: 0 | AI169: exercise | AJ169: 0 | AK169: 1 | AL169: 12797.06858 | AM169: 249.5182432 | AN169: 249.5182432 | AO169: exercise | AP169: exercise | AQ169: 2 | AR169: 13825.57117 | AS169: 191.5791159 | AT169: 191.5791159 | AU169: exercise | AV169: exercise | AW169: 2 | AX169: 13825.57117 | AY169: 5 | AZ169: 191.5791159 | BA169: 5 | BB169: 191.5791159 | BC169: 0
A170: 166 | B170: 177.2733795 | C170: 0.07120321816 | D170: 0.1655127437 | E170: 2227.419692 | F170: 150.1329352 | G170: 20.65967352 | H170: 788.0689952 | I170: 19.06644184 | J170: 1179.226254 | L170: 166 | M170: 337.3134143 | N170: 235.1506825 | O170: 0 | P170: wait | Q170: 0 | R170: 1 | T170: 337.3134143 | U170: 235.1506825 | V170: 0 | W170: wait | X170: 0 | Y170: 1 | Z170: 381.7348286 | AA170: 293.4660811 | AB170: 0 | AC170: wait | AD170: 0 | AE170: 1 | AF170: 293.6173586 | AG170: 325.0134585 | AH170: 0 | AI170: wait | AJ170: 0 | AK170: 1 | AL170: 446.4414537 | AM170: 242.5750948 | AN170: 335.7615643 | AO170: wait | AP170: wait | AQ170: 1 | AR170: 479.3793452 | AS170: 237.0364396 | AT170: 323.2124467 | AU170: wait | AV170: wait | AW170: 1 | AX170: 479.3793452 | AY170: 5 | AZ170: 235.1506825 | BA170: 1 | BB170: 237.0364396 | BC170: 0
A171: 167 | B171: 75.29391419 | C171: 0.04731570817 | D171: 0.2079834942 | E171: 488.657522 | F171: 531.1256817 | G171: 26.59074668 | H171: 151.7916333 | I171: 64.27355023 | J171: -89.33382264 | L171: 167 | M171: 617.7418584 | N171: 95.5477741 | O171: 0 | P171: wait | Q171: 0 | R171: 1 | T171: 617.7418584 | U171: 95.5477741 | V171: 0 | W171: wait | X171: 0 | Y171: 1 | Z171: 1293.247184 | AA171: 91.36274346 | AB171: 0 | AC171: wait | AD171: 0 | AE171: 1 | AF171: 1611.719546 | AG171: 73.59204287 | AH171: 0 | AI171: exercise | AJ171: 0 | AK171: 1 | AL171: 1269.698061 | AM171: 93.02338324 | AN171: 93.02338324 | AO171: wait | AP171: wait | AQ171: 2 | AR171: 1480.804224 | AS171: 80.00516747 | AT171: 80.00516747 | AU171: wait | AV171: wait | AW171: 2 | AX171: 1611.719546 | AY171: 3 | AZ171: 73.59204287 | BA171: 3 | BB171: 73.59204287 | BC171: 0
A172: 168 | B172: 172.7470963 | C172: 0.05307784555 | D172: 0.1985671357 | E172: 6174.801126 | F172: 1170.418902 | G172: 60.97306507 | H172: 1336.077706 | I172: 76.39592189 | J172: 844.8630031 | L172: 168 | M172: 243.1180283 | N172: 696.3024156 | O172: 0 | P172: wait | Q172: 0 | R172: 1 | T172: 243.1180283 | U172: 696.3024156 | V172: 0 | W172: wait | X172: 0 | Y172: 1 | Z172: 452.8454867 | AA172: 736.3475162 | AB172: 0 | AC172: wait | AD172: 0 | AE172: 1 | AF172: 446.7754175 | AG172: 744.1994678 | AH172: 0 | AI172: wait | AJ172: 0 | AK172: 1 | AL172: 453.650606 | AM172: 735.3201556 | AN172: 735.3201556 | AO172: wait | AP172: wait | AQ172: 2 | AR172: 447.1280676 | AS172: 703.5444947 | AT172: 789.559029 | AU172: wait | AV172: wait | AW172: 1 | AX172: 453.650606 | AY172: 4 | AZ172: 696.3024156 | BA172: 1 | BB172: 735.3201556 | BC172: 0
A173: 169 | B173: 164.1643977 | C173: 0.04431383291 | D173: 0.283318304 | E173: 206.3097613 | F173: 72.47158313 | G173: 39.32928345 | H173: 58.34244206 | I173: 60.80732464 | J173: -440.6326734 | L173: 169 | M173: 3425.804491 | N173: 32.12064029 | O173: 0 | P173: exercise | Q173: 0 | R173: 1 | T173: 3425.804491 | U173: 32.12064029 | V173: 0 | W173: exercise | X173: 0 | Y173: 1 | Z173: 7292.241656 | AA173: 6.736223636 | AB173: 0 | AC173: exercise | AD173: 0 | AE173: 1 | AF173: 7306.370797 | AG173: 5.922257661 | AH173: 0 | AI173: exercise | AJ173: 0 | AK173: 1 | AL173: 7218.813897 | AM173: 10.96632491 | AN173: 10.96632491 | AO173: exercise | AP173: exercise | AQ173: 2 | AR173: 7182.68302 | AS173: 13.04778932 | AT173: 13.04778932 | AU173: exercise | AV173: exercise | AW173: 2 | AX173: 7306.370797 | AY173: 3 | AZ173: 5.922257661 | BA173: 3 | BB173: 5.922257661 | BC173: 0
A174: 170 | B174: 163.6810916 | C174: 0.0760324488 | D174: 0.4834019037 | E174: 445.7550017 | F174: 102.384101 | G174: 104.1026075 | H174: 128.08193 | I174: 23.37482832 | J174: 375.805859 | L174: 170 | M174: 1604.640324 | N174: 123.9089355 | O174: 0 | P174: exercise | Q174: 0 | R174: 1 | T174: 1604.640324 | U174: 123.9089355 | V174: 0 | W174: exercise | X174: 0 | Y174: 1 | Z174: 2833.768499 | AA174: 166.3851097 | AB174: 0 | AC174: wait | AD174: 0 | AE174: 1 | AF174: 2809.02236 | AG174: 169.2896558 | AH174: 0 | AI174: wait | AJ174: 0 | AK174: 1 | AL174: 3091.288957 | AM174: 135.4810939 | AN174: 141.5522303 | AO174: exercise | AP174: exercise | AQ174: 1 | AR174: 3001.464537 | AS174: 129.1929046 | AT174: 165.6197208 | AU174: exercise | AV174: wait | AW174: 1 | AX174: 3091.288957 | AY174: 4 | AZ174: 123.9089355 | BA174: 1 | BB174: 135.4810939 | BC174: 0
A175: 171 | B175: 81.04877946 | C175: 0.09036043597 | D175: 0.1903009979 | E175: 467.565198 | F175: 825.2165999 | G175: 114.4582853 | H175: 128.9190657 | I175: 32.67421195 | J175: 1372.942874 | L175: 171 | M175: 33.05079945 | N175: 156.6669743 | O175: 0 | P175: wait | Q175: 0 | R175: 1 | T175: 33.05079945 | U175: 156.6669743 | V175: 0 | W175: wait | X175: 0 | Y175: 1 | Z175: 18.96625398 | AA175: 239.8576591 | AB175: 0 | AC175: wait | AD175: 0 | AE175: 1 | AF175: 33.44049156 | AG175: 197.6669243 | AH175: 0 | AI175: wait | AJ175: 0 | AK175: 1 | AL175: 17.56758412 | AM175: 206.669298 | AN175: 359.5914268 | AO175: wait | AP175: wait | AQ175: 1 | AR175: 39.47569651 | AS175: 160.6266293 | AT175: 246.4673382 | AU175: wait | AV175: wait | AW175: 1 | AX175: 39.47569651 | AY175: 5 | AZ175: 156.6669743 | BA175: 1 | BB175: 160.6266293 | BC175: 0
A176: 172 | B176: 141.2637056 | C176: 0.07056567034 | D176: 0.2903741132 | E176: 1071.984282 | F176: 89.68505128 | G176: 18.53077804 | H176: 567.1666691 | I176: 49.41009622 | J176: 1067.419562 | L176: 172 | M176: 855.2376802 | N176: 159.1062629 | O176: 0 | P176: wait | Q176: 0 | R176: 1 | T176: 855.2376802 | U176: 159.1062629 | V176: 0 | W176: wait | X176: 0 | Y176: 1 | Z176: 1144.528126 | AA176: 232.2050065 | AB176: 0 | AC176: wait | AD176: 0 | AE176: 1 | AF176: 994.9891527 | AG176: 264.9037761 | AH176: 0 | AI176: wait | AJ176: 0 | AK176: 1 | AL176: 1219.650648 | AM176: 165.2480508 | AN176: 326.671053 | AO176: wait | AP176: wait | AQ176: 1 | AR176: 1398.713273 | AS176: 165.8736411 | AT176: 229.1001058 | AU176: wait | AV176: wait | AW176: 1 | AX176: 1398.713273 | AY176: 5 | AZ176: 159.1062629 | BA176: 1 | BB176: 165.8736411 | BC176: 0
A177: 173 | B177: 65.83454027 | C177: 0.04841806618 | D177: 0.2448885572 | E177: 1570.560981 | F177: 620.695467 | G177: 66.13593723 | H177: 205.0573197 | I177: 31.16148555 | J177: 1365.076747 | L177: 173 | M177: 253.2458256 | N177: 231.0552126 | O177: 0 | P177: wait | Q177: 0 | R177: 1 | T177: 253.2458256 | U177: 231.0552126 | V177: 0 | W177: wait | X177: 0 | Y177: 1 | Z177: 402.3332121 | AA177: 303.0249034 | AB177: 0 | AC177: wait | AD177: 0 | AE177: 1 | AF177: 428.8096746 | AG177: 281.1115941 | AH177: 0 | AI177: wait | AJ177: 0 | AK177: 1 | AL177: 502.1768458 | AM177: 233.3952206 | AN177: 233.3952206 | AO177: wait | AP177: wait | AQ177: 2 | AR177: 407.6968911 | AS177: 234.3410095 | AT177: 404.3412982 | AU177: wait | AV177: wait | AW177: 1 | AX177: 502.1768458 | AY177: 4 | AZ177: 231.0552126 | BA177: 1 | BB177: 233.3952206 | BC177: 0
A178: 174 | B178: 143.4627751 | C178: 0.04332879863 | D178: 0.2318825314 | E178: 1282.080122 | F178: 1049.920793 | G178: 85.32800514 | H178: 269.3256277 | I178: 54.55284589 | J178: -298.4551537 | L178: 174 | M178: 1278.312094 | N178: 228.8582329 | O178: 0 | P178: wait | Q178: 0 | R178: 1 | T178: 1278.312094 | U178: 228.8582329 | V178: 0 | W178: wait | X178: 0 | Y178: 1 | Z178: 2693.836101 | AA178: 214.2133161 | AB178: 0 | AC178: wait | AD178: 0 | AE178: 1 | AF178: 3147.790475 | AG178: 175.9102371 | AH178: 0 | AI178: wait | AJ178: 0 | AK178: 1 | AL178: 2700.33326 | AM178: 213.5615497 | AN178: 213.5615497 | AO178: wait | AP178: wait | AQ178: 2 | AR178: 3077.30707 | AS178: 181.0222697 | AT178: 181.0222697 | AU178: wait | AV178: wait | AW178: 2 | AX178: 3147.790475 | AY178: 3 | AZ178: 175.9102371 | BA178: 3 | BB178: 175.9102371 | BC178: 0
A179: 175 | B179: 180.7355569 | C179: 0.0802217544 | D179: 0.2375274633 | E179: 472.201756 | F179: 41.70001947 | G179: 81.32651924 | H179: 158.8294494 | I179: 21.49946603 | J179: 959.5006676 | L179: 175 | M179: 1739.047667 | N179: 65.16152522 | O179: 0 | P179: exercise | Q179: 0 | R179: 1 | T179: 1739.047667 | U179: 65.16152522 | V179: 0 | W179: exercise | X179: 0 | Y179: 1 | Z179: 2518.594667 | AA179: 125.9927287 | AB179: 0 | AC179: exercise | AD179: 0 | AE179: 1 | AF179: 2401.465237 | AG179: 133.4185955 | AH179: 0 | AI179: exercise | AJ179: 0 | AK179: 1 | AL179: 2266.314632 | AM179: 67.80525696 | AN179: 229.5764179 | AO179: exercise | AP179: wait | AQ179: 1 | AR179: 2135.508272 | AS179: 67.88760648 | AT179: 268.7106835 | AU179: exercise | AV179: wait | AW179: 1 | AX179: 2518.594667 | AY179: 2 | AZ179: 65.16152522 | BA179: 1 | BB179: 125.9927287 | BC179: 0
A180: 176 | B180: 88.97570746 | C180: 0.05972065116 | D180: 0.2100873771 | E180: 930.6284829 | F180: 80.04472509 | G180: 40.96445506 | H180: 337.9561987 | I180: 74.02243415 | J180: 816.9504822 | L180: 176 | M180: 503.3907956 | N180: 103.8154675 | O180: 0 | P180: wait | Q180: 0 | R180: 1 | T180: 503.3907956 | U180: 103.8154675 | V180: 0 | W180: wait | X180: 0 | Y180: 1 | Z180: 628.329498 | AA180: 145.7736868 | AB180: 0 | AC180: wait | AD180: 0 | AE180: 1 | AF180: 556.8335042 | AG180: 159.0199073 | AH180: 0 | AI180: wait | AJ180: 0 | AK180: 1 | AL180: 872.5095857 | AM180: 107.9265296 | AN180: 123.4942287 | AO180: wait | AP180: wait | AQ180: 1 | AR180: 723.6859324 | AS180: 111.4189872 | AT180: 163.7254641 | AU180: wait | AV180: wait | AW180: 1 | AX180: 872.5095857 | AY180: 4 | AZ180: 103.8154675 | BA180: 1 | BB180: 107.9265296 | BC180: 0
A181: 177 | B181: 186.5565939 | C181: 0.05851003262 | D181: 0.2299327911 | E181: 1885.437643 | F181: 106.5965337 | G181: 33.23203137 | H181: 660.2049467 | I181: 72.40860407 | J181: 1809.943549 | L181: 177 | M181: 1233.665502 | N181: 214.7581698 | O181: 0 | P181: wait | Q181: 0 | R181: 1 | T181: 1233.665502 | U181: 214.7581698 | V181: 0 | W181: wait | X181: 0 | Y181: 1 | Z181: 1581.913017 | AA181: 312.3217982 | AB181: 0 | AC181: wait | AD181: 0 | AE181: 1 | AF181: 1419.533821 | AG181: 342.163638 | AH181: 0 | AI181: wait | AJ181: 0 | AK181: 1 | AL181: 1875.763446 | AM181: 220.5041748 | AN181: 354.6711865 | AO181: wait | AP181: wait | AQ181: 1 | AR181: 2033.375202 | AS181: 222.5644311 | AT181: 293.6793863 | AU181: wait | AV181: wait | AW181: 1 | AX181: 2033.375202 | AY181: 5 | AZ181: 214.7581698 | BA181: 1 | BB181: 222.5644311 | BC181: 0
A182: 178 | B182: 87.82012447 | C182: 0.04223958472 | D182: 0.1478078285 | E182: 3626.961284 | F182: 305.4324162 | G182: 51.16340168 | H182: 712.4667964 | I182: 85.54210984 | J182: 1624.940258 | L182: 178 | M182: 190.5106228 | N182: 294.951178 | O182: 0 | P182: wait | Q182: 0 | R182: 1 | T182: 190.5106228 | U182: 294.951178 | V182: 0 | W182: wait | X182: 0 | Y182: 1 | Z182: 299.0879396 | AA182: 355.8909109 | AB182: 0 | AC182: wait | AD182: 0 | AE182: 1 | AF182: 283.3256806 | AG182: 371.1558207 | AH182: 0 | AI182: wait | AJ182: 0 | AK182: 1 | AL182: 311.8599776 | AM182: 306.4057344 | AN182: 395.601078 | AO182: wait | AP182: wait | AQ182: 1 | AR182: 316.7184374 | AS182: 301.3673072 | AT182: 393.4046374 | AU182: wait | AV182: wait | AW182: 1 | AX182: 316.7184374 | AY182: 5 | AZ182: 294.951178 | BA182: 1 | BB182: 301.3673072 | BC182: 0
A183: 179 | B183: 75.56721462 | C183: 0.0583483705 | D183: 0.3232813308 | E183: 3471.508666 | F183: 896.2191578 | G183: 35.56484303 | H183: 1750.707907 | I183: 61.05762267 | J183: 1384.862911 | L183: 179 | M183: 168.6735284 | N183: 610.2759558 | O183: 0 | P183: wait | Q183: 0 | R183: 1 | T183: 168.6735284 | U183: 610.2759558 | V183: 0 | W183: wait | X183: 0 | Y183: 1 | Z183: 303.565758 | AA183: 707.0251776 | AB183: 0 | AC183: wait | AD183: 0 | AE183: 1 | AF183: 286.4253913 | AG183: 766.7214269 | AH183: 0 | AI183: wait | AJ183: 0 | AK183: 1 | AL183: 301.0500556 | AM183: 672.8875727 | AN183: 762.471692 | AO183: wait | AP183: wait | AQ183: 1 | AR183: 287.086518 | AS183: 618.8071648 | AT183: 980.223233 | AU183: wait | AV183: wait | AW183: 1 | AX183: 303.565758 | AY183: 2 | AZ183: 610.2759558 | BA183: 1 | BB183: 707.0251776 | BC183: 0
A184: 180 | B184: 140.4745501 | C184: 0.05784623368 | D184: 0.3116863944 | E184: 316.0647425 | F184: 161.7592566 | G184: 52.92987207 | H184: 150.5854449 | I184: 103.1959336 | J184: 1113.7671 | L184: 180 | M184: 1950.589073 | N184: 64.50391514 | O184: 0 | P184: exercise | Q184: 0 | R184: 1 | T184: 1950.589073 | U184: 64.50391514 | V184: 0 | W184: exercise | X184: 0 | Y184: 1 | Z184: 2787.411046 | AA184: 139.680485 | AB184: 0 | AC184: exercise | AD184: 0 | AE184: 1 | AF184: 2798.584858 | AG184: 138.9262799 | AH184: 0 | AI184: exercise | AJ184: 0 | AK184: 1 | AL184: 2758.307668 | AM184: 75.42227146 | AN184: 254.5881789 | AO184: exercise | AP184: wait | AQ184: 1 | AR184: 3249.795135 | AS184: 78.43486411 | AT184: 138.5303482 | AU184: exercise | AV184: exercise | AW184: 1 | AX184: 3249.795135 | AY184: 5 | AZ184: 64.50391514 | BA184: 1 | BB184: 78.43486411 | BC184: 0
A185: 181 | B185: 490.4782801 | C185: 0.05539691191 | D185: 0.2145661164 | E185: 3829.625982 | F185: 768.2581419 | G185: 70.83541331 | H185: 699.3432814 | I185: 34.29578978 | J185: 456.1922577 | L185: 181 | M185: 4256.007966 | N185: 464.3358468 | O185: 0 | P185: exercise | Q185: 0 | R185: 1 | T185: 4256.007966 | U185: 464.3358468 | V185: 0 | W185: exercise | X185: 0 | Y185: 1 | Z185: 8055.823674 | AA185: 487.3710531 | AB185: 0 | AC185: exercise | AD185: 0 | AE185: 1 | AF185: 8124.738535 | AG185: 483.8912307 | AH185: 0 | AI185: exercise | AJ185: 0 | AK185: 1 | AL185: 8317.134091 | AM185: 474.1763106 | AN185: 474.1763106 | AO185: exercise | AP185: exercise | AQ185: 2 | AR185: 8274.484739 | AS185: 467.7993453 | AT185: 484.9307373 | AU185: exercise | AV185: exercise | AW185: 1 | AX185: 8317.134091 | AY185: 4 | AZ185: 464.3358468 | BA185: 1 | BB185: 474.1763106 | BC185: 0
A186: 182 | B186: 126.2791076 | C186: 0.05424648167 | D186: 0.1602400767 | E186: 2217.275423 | F186: 672.2875913 | G186: 55.55572192 | H186: 370.7880182 | I186: 23.37090585 | J186: 2246.346659 | L186: 182 | M186: 263.2792474 | N186: 246.4219193 | O186: 0 | P186: wait | Q186: 0 | R186: 1 | T186: 263.2792474 | U186: 246.4219193 | V186: 0 | W186: wait | X186: 0 | Y186: 1 | Z186: 296.5975099 | AA186: 342.2061351 | AB186: 0 | AC186: wait | AD186: 0 | AE186: 1 | AF186: 317.1293635 | AG186: 329.3501941 | AH186: 0 | AI186: wait | AJ186: 0 | AK186: 1 | AL186: 371.6133786 | AM186: 275.0882605 | AN186: 334.3963296 | AO186: wait | AP186: wait | AQ186: 1 | AR186: 380.8295416 | AS186: 248.41499 | AT186: 384.0233101 | AU186: wait | AV186: wait | AW186: 1 | AX186: 380.8295416 | AY186: 5 | AZ186: 246.4219193 | BA186: 1 | BB186: 248.41499 | BC186: 0
A187: 183 | B187: 118.5650091 | C187: 0.09959045987 | D187: 0.2467441477 | E187: 1234.478652 | F187: 142.8796987 | G187: 58.36661429 | H187: 272.7171947 | I187: 69.94174209 | J187: 832.9686811 | L187: 183 | M187: 121.5056366 | N187: 200.9603567 | O187: 0 | P187: wait | Q187: 0 | R187: 1 | T187: 121.5056366 | U187: 200.9603567 | V187: 0 | W187: wait | X187: 0 | Y187: 1 | Z187: 137.6872654 | AA187: 261.726563 | AB187: 0 | AC187: wait | AD187: 0 | AE187: 1 | AF187: 127.5536611 | AG187: 271.1983861 | AH187: 0 | AI187: wait | AJ187: 0 | AK187: 1 | AL187: 154.3922285 | AM187: 211.3836264 | AN187: 317.6153003 | AO187: wait | AP187: wait | AQ187: 1 | AR187: 177.942991 | AS187: 211.1650485 | AT187: 261.955889 | AU187: wait | AV187: wait | AW187: 1 | AX187: 177.942991 | AY187: 5 | AZ187: 200.9603567 | BA187: 1 | BB187: 211.1650485 | BC187: 0
A188: 184 | B188: 74.96697296 | C188: 0.114489993 | D188: 0.4120288532 | E188: 1938.686882 | F188: 503.6793275 | G188: 28.43033769 | H188: 463.592196 | I188: 53.2191535 | J188: 793.8674092 | L188: 184 | M188: 39.9181621 | N188: 546.5884342 | O188: 0 | P188: wait | Q188: 0 | R188: 1 | T188: 39.9181621 | U188: 546.5884342 | V188: 0 | W188: wait | X188: 0 | Y188: 1 | Z188: 68.18635559 | AA188: 635.4200645 | AB188: 0 | AC188: wait | AD188: 0 | AE188: 1 | AF188: 68.69421081 | AG188: 630.9344221 | AH188: 0 | AI188: wait | AJ188: 0 | AK188: 1 | AL188: 76.16561562 | AM188: 571.7105362 | AN188: 571.7105362 | AO188: wait | AP188: wait | AQ188: 2 | AR188: 68.51130687 | AS188: 558.4985948 | AT188: 729.9282893 | AU188: wait | AV188: wait | AW188: 1 | AX188: 76.16561562 | AY188: 4 | AZ188: 546.5884342 | BA188: 1 | BB188: 571.7105362 | BC188: 0
A189: 185 | B189: 131.8833262 | C189: 0.04905403666 | D189: 0.2390322139 | E189: 1790.596136 | F189: 2258.702614 | G189: 42.34214678 | H189: 543.2756275 | I189: 49.59476084 | J189: 1991.997375 | L189: 185 | M189: 504.2792558 | N189: 421.3289993 | O189: 0 | P189: wait | Q189: 0 | R189: 1 | T189: 504.2792558 | U189: 421.3289993 | V189: 0 | W189: wait | X189: 0 | Y189: 1 | Z189: 828.9203335 | AA189: 524.962531 | AB189: 0 | AC189: wait | AD189: 0 | AE189: 1 | AF189: 978.7978976 | AG189: 435.7175555 | AH189: 0 | AI189: wait | AJ189: 0 | AK189: 1 | AL189: 965.5833006 | AM189: 442.4084262 | AN189: 442.4084262 | AO189: wait | AP189: wait | AQ189: 2 | AR189: 1201.32254 | AS189: 346.3077066 | AT189: 346.3077066 | AU189: wait | AV189: wait | AW189: 2 | AX189: 1201.32254 | AY189: 5 | AZ189: 346.3077066 | BA189: 5 | BB189: 346.3077066 | BC189: 0
A190: 186 | B190: 135.9833168 | C190: 0.08858035922 | D190: 0.2932004885 | E190: 802.5971063 | F190: 419.7996251 | G190: 58.99565105 | H190: 200.0560979 | I190: 51.92873801 | J190: 1832.364717 | L190: 186 | M190: 415.6603069 | N190: 186.4470308 | O190: 0 | P190: wait | Q190: 0 | R190: 1 | T190: 415.6603069 | U190: 186.4470308 | V190: 0 | W190: wait | X190: 0 | Y190: 1 | Z190: 383.0657548 | AA190: 326.1884716 | AB190: 0 | AC190: wait | AD190: 0 | AE190: 1 | AF190: 412.1010618 | AG190: 309.4301937 | AH190: 0 | AI190: wait | AJ190: 0 | AK190: 1 | AL190: 461.8499294 | AM190: 218.4621662 | AN190: 436.0615775 | AO190: wait | AP190: wait | AQ190: 1 | AR190: 485.7995528 | AS190: 194.3675028 | AT190: 547.730376 | AU190: wait | AV190: wait | AW190: 1 | AX190: 485.7995528 | AY190: 5 | AZ190: 186.4470308 | BA190: 1 | BB190: 194.3675028 | BC190: 0
A191: 187 | B191: 79.05848436 | C191: 0.0698151989 | D191: 0.2376345346 | E191: 204.1065686 | F191: 61.24523748 | G191: 91.66960935 | H191: 112.6125829 | I191: 53.47178548 | J191: 610.7637824 | L191: 187 | M191: 867.0446577 | N191: 31.4768061 | O191: 0 | P191: exercise | Q191: 0 | R191: 1 | T191: 867.0446577 | U191: 31.4768061 | V191: 0 | W191: exercise | X191: 0 | Y191: 1 | Z191: 1123.325533 | AA191: 67.70209777 | AB191: 0 | AC191: exercise | AD191: 0 | AE191: 1 | AF191: 1071.958188 | AG191: 70.74877003 | AH191: 0 | AI191: exercise | AJ191: 0 | AK191: 1 | AL191: 1843.147528 | AM191: 35.10935055 | AN191: 46.13549387 | AO191: exercise | AP191: exercise | AQ191: 1 | AR191: 1059.207933 | AS191: 37.81978543 | AT191: 123.685153 | AU191: exercise | AV191: wait | AW191: 1 | AX191: 1843.147528 | AY191: 4 | AZ191: 31.4768061 | BA191: 1 | BB191: 35.10935055 | BC191: 0
A192: 188 | B192: 372.1844878 | C192: 0.07168180101 | D192: 0.227297916 | E192: 941.2223067 | F192: 36.11934685 | G192: 132.902985 | H192: 480.7113742 | I192: 53.20271699 | J192: 1597.371025 | L192: 188 | M192: 4214.833801 | N192: 114.1909754 | O192: 0 | P192: exercise | Q192: 0 | R192: 1 | T192: 4214.833801 | U192: 114.1909754 | V192: 0 | W192: exercise | X192: 0 | Y192: 1 | Z192: 6832.296578 | AA192: 207.508064 | AB192: 0 | AC192: exercise | AD192: 0 | AE192: 1 | AF192: 6387.70455 | AG192: 233.480761 | AH192: 0 | AI192: exercise | AJ192: 0 | AK192: 1 | AL192: 6070.544354 | AM192: 116.3010376 | AN192: 388.6073821 | AO192: exercise | AP192: wait | AQ192: 1 | AR192: 9426.567642 | AS192: 120.4070924 | AT192: 202.7045113 | AU192: exercise | AV192: exercise | AW192: 1 | AX192: 9426.567642 | AY192: 5 | AZ192: 114.1909754 | BA192: 1 | BB192: 120.4070924 | BC192: 0
A193: 189 | B193: 226.7880079 | C193: 0.06599911907 | D193: 0.2881271192 | E193: 1243.922738 | F193: 86.65843123 | G193: 79.35836774 | H193: 457.0838829 | I193: 40.86332062 | J193: 1371.808333 | L193: 189 | M193: 2105.646633 | N193: 176.4697737 | O193: 0 | P193: exercise | Q193: 0 | R193: 1 | T193: 2105.646633 | U193: 176.4697737 | V193: 0 | W193: exercise | X193: 0 | Y193: 1 | Z193: 2932.269253 | AA193: 267.4385593 | AB193: 0 | AC193: wait | AD193: 0 | AE193: 1 | AF193: 2687.823673 | AG193: 292.0025984 | AH193: 0 | AI193: wait | AJ193: 0 | AK193: 1 | AL193: 3112.474489 | AM193: 182.216358 | AN193: 374.5607207 | AO193: exercise | AP193: wait | AQ193: 1 | AR193: 2928.358769 | AS193: 181.889316 | AT193: 456.3356186 | AU193: exercise | AV193: wait | AW193: 1 | AX193: 3112.474489 | AY193: 4 | AZ193: 176.4697737 | BA193: 1 | BB193: 182.216358 | BC193: 0
A194: 190 | B194: 103.554 | C194: 0.08131561431 | D194: 0.229068186 | E194: 1056.243453 | F194: 85.30170217 | G194: 23.78204997 | H194: 388.9485244 | I194: 71.1571316 | J194: 968.3785188 | L194: 190 | M194: 245.1513863 | N194: 142.7324664 | O194: 0 | P194: wait | Q194: 0 | R194: 1 | T194: 245.1513863 | U194: 142.7324664 | V194: 0 | W194: wait | X194: 0 | Y194: 1 | Z194: 254.0119891 | AA194: 203.2728024 | AB194: 0 | AC194: wait | AD194: 0 | AE194: 1 | AF194: 215.147137 | AG194: 222.2559585 | AH194: 0 | AI194: wait | AJ194: 0 | AK194: 1 | AL194: 375.2570625 | AM194: 148.065292 | AN194: 188.4079822 | AO194: wait | AP194: wait | AQ194: 1 | AR194: 278.2622206 | AS194: 151.629559 | AT194: 306.4456345 | AU194: wait | AV194: wait | AW194: 1 | AX194: 375.2570625 | AY194: 4 | AZ194: 142.7324664 | BA194: 1 | BB194: 148.065292 | BC194: 0
A195: 191 | B195: 133.1148195 | C195: 0.05560681696 | D195: 0.4214303851 | E195: 1558.254699 | F195: 968.5885873 | G195: 31.89052332 | H195: 167.8131338 | I195: 35.96017805 | J195: 603.6873049 | L195: 191 | M195: 950.3567805 | N195: 451.9617429 | O195: 0 | P195: wait | Q195: 0 | R195: 1 | T195: 950.3567805 | U195: 451.9617429 | V195: 0 | W195: wait | X195: 0 | Y195: 1 | Z195: 1806.373904 | AA195: 505.9507592 | AB195: 0 | AC195: wait | AD195: 0 | AE195: 1 | AF195: 1935.132407 | AG195: 434.3357383 | AH195: 0 | AI195: wait | AJ195: 0 | AK195: 1 | AL195: 1856.320552 | AM195: 476.268723 | AN195: 476.268723 | AO195: wait | AP195: wait | AQ195: 2 | AR195: 1925.383216 | AS195: 439.2256147 | AT195: 439.2256147 | AU195: wait | AV195: wait | AW195: 2 | AX195: 1935.132407 | AY195: 3 | AZ195: 434.3357383 | BA195: 3 | BB195: 434.3357383 | BC195: 0
A196: 192 | B196: 307.5936392 | C196: 0.06055176931 | D196: 0.1994994687 | E196: 2668.530955 | F196: 652.3704727 | G196: 65.42882393 | H196: 743.970512 | I196: 62.90238884 | J196: 238.1376079 | L196: 192 | M196: 1782.895869 | N196: 332.9270437 | O196: 0 | P196: wait | Q196: 0 | R196: 1 | T196: 1782.895869 | U196: 332.9270437 | V196: 0 | W196: wait | X196: 0 | Y196: 1 | Z196: 3379.263265 | AA196: 344.8639306 | AB196: 0 | AC196: wait | AD196: 0 | AE196: 1 | AF196: 3311.776538 | AG196: 349.4554746 | AH196: 0 | AI196: wait | AJ196: 0 | AK196: 1 | AL196: 3289.699574 | AM196: 350.9912958 | AN196: 350.9912958 | AO196: wait | AP196: wait | AQ196: 2 | AR196: 3341.433929 | AS196: 339.2331346 | AT196: 356.1223022 | AU196: wait | AV196: wait | AW196: 1 | AX196: 3379.263265 | AY196: 2 | AZ196: 332.9270437 | BA196: 1 | BB196: 344.8639306 | BC196: 0
A197: 193 | B197: 154.6854867 | C197: 0.1007260775 | D197: 0.2020769405 | E197: 1465.027108 | F197: 2601.375737 | G197: 40.557025 | H197: 208.0301493 | I197: 25.51321774 | J197: -76.95382469 | L197: 193 | M197: 7.848752358 | N197: 542.4026705 | O197: 0 | P197: wait | Q197: 0 | R197: 1 | T197: 7.848752358 | U197: 542.4026705 | V197: 0 | W197: wait | X197: 0 | Y197: 1 | Z197: 16.16458091 | AA197: 537.2703752 | AB197: 0 | AC197: wait | AD197: 0 | AE197: 1 | AF197: 47.94482068 | AG197: 377.6505481 | AH197: 0 | AI197: wait | AJ197: 0 | AK197: 1 | AL197: 15.76421673 | AM197: 541.6573321 | AN197: 541.6573321 | AO197: wait | AP197: wait | AQ197: 2 | AR197: 44.68666816 | AS197: 386.3672988 | AT197: 386.3672988 | AU197: wait | AV197: wait | AW197: 2 | AX197: 47.94482068 | AY197: 3 | AZ197: 377.6505481 | BA197: 3 | BB197: 377.6505481 | BC197: 0
A198: =A197+1 -> 194 | B198: 128.5974269 | C198: 0.06421944394 | D198: 0.1954421851 | E198: 12137.15416 | F198: 22668.20439 | G198: 18.91650392 | H198: 1850.574262 | I198: 72.01943122 | J198: 1570.65323 | L198: 194 | M198: 2.54397854 | N198: 3541.990165 | O198: 0 | P198: wait | Q198: 0 | R198: 1 | T198: 2.54397854 | U198: 3541.990165 | V198: 0 | W198: wait | X198: 0 | Y198: 1 | Z198: 4.897440343 | AA198: 3621.909444 | AB198: 0 | AC198: wait | AD198: 0 | AE198: 1 | AF198: 8.850250709 | AG198: 2562.649545 | AH198: 0 | AI198: wait | AJ198: 0 | AK198: 1 | AL198: 5.001854438 | AM198: 3577.511523 | AN198: 3577.511523 | AO198: wait | AP198: wait | AQ198: 2 | AR198: 8.874886511 | AS198: 2558.488108 | AT198: 2558.488108 | AU198: wait | AV198: wait | AW198: 2 | AX198: 8.874886511 | AY198: 5 | AZ198: 2558.488108 | BA198: 5 | BB198: =CHOOSE(AY198,U198,AA198,AG198,AM198,AS198) -> 2558.488108 | BC198: =IF(ROUND(T198-Z198,0)=0,1,0) -> 0
A199: 195 | B199: 204.2617513 | C199: 0.06819578299 | D199: 0.4654022955 | E199: 2965.553143 | F199: 191.9910229 | G199: 32.59269976 | H199: 470.6855072 | I199: 28.7382086 | J199: 524.8729548 | L199: =A199 -> 195 | M199: 1149.352069 | N199: 663.9682529 | O199: 0 | P199: wait | Q199: 0 | R199: 1 | T199: 1149.352069 | U199: 663.9682529 | V199: 0 | W199: wait | X199: 0 | Y199: 1 | Z199: 2212.282493 | AA199: 719.1533842 | AB199: 0 | AC199: wait | AD199: 0 | AE199: 1 | AF199: 2170.280454 | AG199: 748.4553164 | AH199: 0 | AI199: wait | AJ199: 0 | AK199: 1 | AL199: 2235.238629 | AM199: 684.154185 | AN199: 724.3985748 | AO199: wait | AP199: wait | AQ199: 1 | AR199: 2176.91936 | AS199: 670.0113222 | AT199: 830.0655212 | AU199: wait | AV199: wait | AW199: 1 | AX199: =MAX(AR199,AL199,AF199,Z199,T199) -> 2235.238629 | AY199: =INDEX($T$1:$AW$1,MATCH(AX199,$T199:$AW199,0)) -> 4 | AZ199: =MIN(AS199,AM199,AG199,AA199,U199) -> 663.9682529 | BA199: =INDEX($T$1:$AW$1,MATCH(AZ199,$T199:$AW199,0)) -> 1 | BB199: 684.154185 | BC199: 0
A200: 196 | B200: 246.7806393 | C200: 0.03756244858 | D200: 0.2380257222 | E200: 2385.920796 | F200: 302.7597916 | G200: 51.60420305 | H200: 477.4199024 | I200: 69.1015581 | J200: -94.33625406 | L200: 196 | M200: 3886.293921 | N200: 259.2156746 | O200: 0 | P200: wait | Q200: 0 | R200: 1 | T200: 3886.293921 | U200: 259.2156746 | V200: 0 | W200: wait | X200: 0 | Y200: 1 | Z200: 7860.89455 | AA200: 254.6681958 | AB200: 0 | AC200: wait | AD200: 0 | AE200: 1 | AF200: 7699.374631 | AG200: 263.0876858 | AH200: 0 | AI200: wait | AJ200: 0 | AK200: 1 | AL200: 7795.822969 | AM200: 258.0063254 | AN200: 258.0063254 | AO200: wait | AP200: wait | AQ200: 2 | AR200: 7531.070681 | AS200: 265.8777552 | AT200: 279.0988923 | AU200: wait | AV200: wait | AW200: 1 | AX200: 7860.89455 | AY200: 2 | AZ200: 254.6681958 | BA200: 2 | BB200: 254.6681958 | BC200: 0
... 924 more rows

Sheet Comparison
D2: Average Values for Key Valuation Parameters | M2: Optimal Value | Q2: First/Lowest Threshold
B3: ='Random trials'!A10007 -> Alternative | D3: ='Random trials'!B10007 -> P | E3: ='Random trials'!C10007 -> delta | F3: ='Random trials'!D10007 -> sigma | G3: ='Random trials'!E10007 -> K_1 | H3: ='Random trials'!F10007 -> L_1 | I3: ='Random trials'!G10007 -> a | J3: ='Random trials'!H10007 -> b | K3: ='Random trials'!I10007 -> c | L3: ='Random trials'!J10007 -> d | M3: ='Random trials'!AX10007 -> V_0 | N3: ='Random trials'!AY10007 -> Count | O3: Percent | P3: P_1 | Q3: ='Random trials'!AZ10007 -> P_1 | R3: ='Random trials'!BA10007 -> Count | S3: Percent
B4: ='Random trials'!A10008 -> 1 | C4: S | D4: ='Random trials'!B10008 -> 106.4943517 | E4: ='Random trials'!C10008 -> 0.08894613751 | F4: ='Random trials'!D10008 -> 0.181195334 | G4: ='Random trials'!E10008 -> 824.4285873 | H4: ='Random trials'!F10008 -> 252.9065937 | I4: ='Random trials'!G10008 -> 52.24102592 | J4: ='Random trials'!H10008 -> 249.1473265 | K4: ='Random trials'!I10008 -> 60.53246735 | L4: ='Random trials'!J10008 -> 1694.877537 | M4: ='Random trials'!AX10008 -> 318.7996827 | N4: ='Random trials'!AY10008 -> 22 | O4: =N4/SUM($N$4:$N$8) -> 0.0022 | P4: ='Random trials'!BB10008 -> 127.029794 | Q4: ='Random trials'!AZ10008 -> 315.6534291 | R4: ='Random trials'!BA10008 -> 6786 | S4: =R4/SUM($N$4:$N$8) -> 0.6786
B5: ='Random trials'!A10009 -> 2 | C5: HH | D5: ='Random trials'!B10009 -> 167.1935555 | E5: ='Random trials'!C10009 -> 0.060941092 | F5: ='Random trials'!D10009 -> 0.2604251145 | G5: ='Random trials'!E10009 -> 3120.791133 | H5: ='Random trials'!F10009 -> 470.1513636 | I5: ='Random trials'!G10009 -> 58.34845619 | J5: ='Random trials'!H10009 -> 1088.80339 | K5: ='Random trials'!I10009 -> 58.10937123 | L5: ='Random trials'!J10009 -> 231.0924849 | M5: ='Random trials'!AX10009 -> 2341.030539 | N5: ='Random trials'!AY10009 -> 1270 | O5: 0.127 | P5: ='Random trials'!BB10009 -> 444.7122669 | Q5: ='Random trials'!AZ10009 -> 303.2778455 | R5: ='Random trials'!BA10009 -> 584 | S5: 0.0584
B6: ='Random trials'!A10010 -> 3 | C6: VV | D6: ='Random trials'!B10010 -> 167.8583683 | E6: ='Random trials'!C10010 -> 0.0615897795 | F6: ='Random trials'!D10010 -> 0.2578338085 | G6: ='Random trials'!E10010 -> 2906.686214 | H6: ='Random trials'!F10010 -> 2134.102628 | I6: ='Random trials'!G10010 -> 58.85989512 | J6: ='Random trials'!H10010 -> 701.4417941 | K6: ='Random trials'!I10010 -> 58.26693254 | L6: ='Random trials'!J10010 -> 309.9566168 | M6: ='Random trials'!AX10010 -> 2179.265449 | N6: ='Random trials'!AY10010 -> 1875 | O6: 0.1875 | P6: ='Random trials'!BB10010 -> 537.7867762 | Q6: ='Random trials'!AZ10010 -> 575.5750389 | R6: ='Random trials'!BA10010 -> 1396 | S6: 0.1396
B7: ='Random trials'!A10011 -> 4 | C7: HP | D7: ='Random trials'!B10011 -> 169.1429769 | E7: ='Random trials'!C10011 -> 0.06189678898 | F7: ='Random trials'!D10011 -> 0.2584587798 | G7: ='Random trials'!E10011 -> 2226.024316 | H7: ='Random trials'!F10011 -> 408.254463 | I7: ='Random trials'!G10011 -> 56.39885387 | J7: ='Random trials'!H10011 -> 709.4494842 | K7: ='Random trials'!I10011 -> 58.41132113 | L7: ='Random trials'!J10011 -> 918.0499694 | M7: ='Random trials'!AX10011 -> 3743.10979 | N7: ='Random trials'!AY10011 -> 3628 | O7: 0.3628 | P7: ='Random trials'!BB10011 -> 328.7450682 | Q7: ='Random trials'!AZ10011 -> 293.538743 | R7: ='Random trials'!BA10011 -> 216 | S7: 0.0216
B8: ='Random trials'!A10012 -> 5 | C8: VP | D8: ='Random trials'!B10012 -> 172.0918698 | E8: ='Random trials'!C10012 -> 0.06249837395 | F8: ='Random trials'!D10012 -> 0.2584107473 | G8: ='Random trials'!E10012 -> 2123.873823 | H8: ='Random trials'!F10012 -> 1302.556054 | I8: ='Random trials'!G10012 -> 56.29861181 | J8: ='Random trials'!H10012 -> 508.5116135 | K8: ='Random trials'!I10012 -> 54.13471395 | L8: ='Random trials'!J10012 -> 1030.894537 | M8: ='Random trials'!AX10012 -> 3718.452713 | N8: ='Random trials'!AY10012 -> 3205 | O8: 0.3205 | P8: ='Random trials'!BB10012 -> 378.7180351 | Q8: ='Random trials'!AZ10012 -> 683.8867539 | R8: ='Random trials'!BA10012 -> 1018 | S8: 0.1018
B11: Selected Case: 8 | D11: Average Values for Key Valuation Parameters | M11: Optimal Value | Q11: First/Lowest Threshold
B12: Alternative | D12: P | E12: delta | F12: sigma | G12: K_1 | H12: L_1 | I12: a | J12: b | K12: c | L12: d | M12: V_0 | N12: Count | O12: Percent | P12: P_1 | Q12: P_1 | R12: Count | S12: Percent
B13: 1 | C13: S | D13: 106.4943517 | E13: 0.08894613751 | F13: 0.181195334 | G13: 824.4285873 | H13: 252.9065937 | I13: 52.24102592 | J13: 249.1473265 | K13: 60.53246735 | L13: 1694.877537 | M13: 318.7996827 | N13: 22 | O13: 0.0022 | P13: 127.029794 | Q13: 315.6534291 | R13: 6786 | S13: 0.6786
B14: 2 | C14: HH | D14: 167.1935555 | E14: 0.060941092 | F14: 0.2604251145 | G14: 3120.791133 | H14: 470.1513636 | I14: 58.34845619 | J14: 1088.80339 | K14: 58.10937123 | L14: 231.0924849 | M14: 2341.030539 | N14: 1270 | O14: 0.127 | P14: 444.7122669 | Q14: 303.2778455 | R14: 584 | S14: 0.0584
B15: 3 | C15: VV | D15: 167.8583683 | E15: 0.0615897795 | F15: 0.2578338085 | G15: 2906.686214 | H15: 2134.102628 | I15: 58.85989512 | J15: 701.4417941 | K15: 58.26693254 | L15: 309.9566168 | M15: 2179.265449 | N15: 1875 | O15: 0.1875 | P15: 537.7867762 | Q15: 575.5750389 | R15: 1396 | S15: 0.1396
B16: 4 | C16: HP | D16: 169.1429769 | E16: 0.06189678898 | F16: 0.2584587798 | G16: 2226.024316 | H16: 408.254463 | I16: 56.39885387 | J16: 709.4494842 | K16: 58.41132113 | L16: 918.0499694 | M16: 3743.10979 | N16: 3628 | O16: 0.3628 | P16: 328.7450682 | Q16: 293.538743 | R16: 216 | S16: 0.0216
B17: 5 | C17: VP | D17: 172.0918698 | E17: 0.06249837395 | F17: 0.2584107473 | G17: 2123.873823 | H17: 1302.556054 | I17: 56.29861181 | J17: 508.5116135 | K17: 54.13471395 | L17: 1030.894537 | M17: 3718.452713 | N17: 3205 | O17: 0.3205 | P17: 378.7180351 | Q17: 683.8867539 | R17: 1018 | S17: 0.1018
B19: Selected Case: 9 | D19: Average Values for Key Valuation Parameters | M19: Optimal Value | Q19: First/Lowest Threshold
B20: Alternative | D20: P | E20: delta | F20: sigma | G20: K_1 | H20: L_1 | I20: a | J20: b | K20: c | L20: d | M20: V_0 | N20: Count | O20: Percent | P20: P_1 | Q20: P_1 | R20: Count | S20: Percent
B21: 1 | C21: S | D21: 300.0550396 | E21: 0.1310285689 | F21: 0.1790250053 | G21: 2252.220746 | H21: 567.5720084 | I21: 51.7020457 | J21: 1490.569964 | K21: 64.28213315 | L21: 1645.525498 | M21: 235.3993835 | N21: 50 | O21: 0.005 | P21: 435.1875181 | Q21: 582.2429959 | R21: 6338 | S21: 0.6338
B22: 2 | C22: HH | D22: 477.6006151 | E22: 0.09064927153 | F22: 0.2819062895 | G22: 3243.133329 | H22: 914.7483589 | I22: 53.19581505 | J22: 2131.998795 | K22: 50.77635404 | L22: 92.85521045 | M22: 6142.741724 | N22: 2525 | O22: 0.2525 | P22: 643.0415545 | Q22: 544.6156207 | R22: 1658 | S22: 0.1658
B23: 3 | C23: VV | D23: 505.0993923 | E23: 0.0899743488 | F23: 0.2787434537 | G23: 3103.039963 | H23: 1114.176793 | I23: 50.92521824 | J23: 605.4810748 | K23: 51.90543459 | L23: 52.52076447 | M23: 7531.885687 | N23: 1078 | O23: 0.1078 | P23: 608.7774133 | Q23: 568.3923859 | R23: 853 | S23: 0.0853
B24: 4 | C24: HP | D24: 502.8362042 | E24: 0.08976685861 | F24: 0.2804133783 | G24: 2998.65714 | H24: 839.6804201 | I24: 49.41584952 | J24: 1832.599514 | K24: 50.53514765 | L24: 907.9335717 | M24: 12671.38089 | N24: 4054 | O24: 0.4054 | P24: 605.368408 | Q24: 522.8845583 | R24: 673 | S24: 0.0673
B25: 5 | C25: VP | D25: 559.9137361 | E25: 0.08902517781 | F25: 0.2656012347 | G25: 2657.337021 | H25: 867.9693185 | I25: 48.5607869 | J25: 952.726075 | K25: 47.36436403 | L25: 930.9855157 | M25: 14762.21062 | N25: 2293 | O25: 0.2293 | P25: 515.4383538 | Q25: 610.3362425 | R25: 478 | S25: 0.0478
B27: Note: up arrows indicate an alternative has favourable parameter values for a parameter, which could make it preferable over other alternatives
B29: Summary Statistics for the Simulated KPDs Used to Create the Model 1 Tables:
D30: P | E30: delta | F30: sigma | G30: K_1 | H30: L_1 | I30: a | J30: b | K30: c | L30: d
B31: Average | D31: 169.4618294 | E31: 0.06197016774 | F31: 0.2584059482 | G31: 2431.461064 | H31: 1025.993795 | I31: 57.0666238 | J31: 690.712736 | K31: 56.97991455 | L31: 754.6645697
B32: Std Dev | D32: 88.29269496 | E32: 0.01576697484 | F32: 0.06488941796 | G32: 3068.024467 | H32: 2803.580567 | I32: 30.61431364 | J32: 1070.256296 | K32: 30.42863041 | L32: 740.7028083
B33: Std Err | D33: 0.8829269496 | E33: 0.0001576697484 | F33: 0.0006488941796 | G33: 30.68024467 | H33: 28.03580567 | I33: 0.3061431364 | J33: 10.70256296 | K33: 0.3042863041 | L33: 7.407028083
B34: Max | D34: 1307.411073 | E34: 0.1455238392 | F34: 0.617904784 | G34: 88342.01831 | H34: 120935.7352 | I34: 348.9208422 | J34: 40692.06723 | K34: 306.1804497 | L34: 4119.388313
B35: Min | D35: 23.43394082 | E35: 0.03 | F35: 0.1036668894 | G35: 35.82142488 | H35: 1.798232901 | I35: 7.781283785 | J35: 6.143257324 | K35: 7.835720792 | L35: -2645.517544
B37: Percentiles
B38: 0.05 | D38: 66.90461354 | E38: 0.03987883051 | F38: 0.1670310324 | G38: 285.5489668 | H38: 37.00226481 | I38: 22.23097296 | J38: 58.00228325 | K38: 22.03974221 | L38: -454.5065649
B39: 0.1 | D39: 80.13769985 | E39: 0.04345964184 | F39: 0.1823479221 | G39: 408.6114447 | H39: 60.32456667 | I39: 26.32226123 | J39: 87.36599084 | K39: 26.33346731 | L39: -188.4750947
B40: 0.15 | D40: 90.4766931 | E40: 0.04615591619 | F40: 0.1943391006 | G40: 525.1968938 | H40: 86.29861771 | I40: 29.70456701 | J40: 114.2814771 | K40: 29.95095503 | L40: -17.37869596
B41: 0.2 | D41: 99.27998852 | E41: 0.04848732757 | F41: 0.2044543735 | G41: 631.3960009 | H41: 113.8501143 | I41: 32.86748895 | J41: 143.3609089 | K41: 32.95036631 | L41: 124.9387971
B42: 0.25 | D42: 107.9484671 | E42: 0.05051953472 | F42: 0.2124687392 | G42: 747.4612676 | H42: 142.6651349 | I42: 35.63344867 | J42: 172.3090269 | K42: 35.94411435 | L42: 258.4542289
B43: 0.3 | D43: 116.1046597 | E43: 0.0525660509 | F43: 0.2199529168 | G43: 876.3237617 | H43: 175.8958527 | I43: 38.32283829 | J43: 207.1256069 | K43: 38.64126516 | L43: 372.800615
B44: 0.35 | D44: 124.5627448 | E44: 0.05446704159 | F44: 0.22754387 | G44: 1011.668969 | H44: 212.1990857 | I44: 41.06467959 | J44: 244.6221237 | K44: 41.41743838 | L44: 470.2219421
B45: 0.4 | D45: 132.7022359 | E45: 0.05638611579 | F45: 0.2348604553 | G45: 1154.886103 | H45: 254.5124111 | I45: 44.024348 | J45: 285.8954612 | K45: 44.23707208 | L45: 567.5697065
B46: 0.45 | D46: 140.826164 | E46: 0.0583625447 | F46: 0.2419200754 | G46: 1319.445533 | H46: 309.314383 | I46: 47.03579475 | J46: 329.6841243 | K46: 47.17215243 | L46: 665.8362894
B47: 0.5 | D47: 149.3508545 | E47: 0.06028128452 | F47: 0.2502377781 | G47: 1501.67445 | H47: 371.7033053 | I47: 50.51177559 | J47: 379.5751592 | K47: 50.15467457 | L47: 751.7704969
B48: 0.55 | D48: 158.9301209 | E48: 0.06231867697 | F48: 0.2579151664 | G48: 1716.162084 | H48: 448.3370483 | I48: 53.70238099 | J48: 437.8274881 | K48: 53.33390685 | L48: 841.9772288
B49: 0.6 | D49: 169.2445118 | E49: 0.0642876627 | F49: 0.2664340352 | G49: 1942.326533 | H49: 537.7233687 | I49: 57.11193852 | J49: 504.2319116 | K49: 56.74816398 | L49: 940.6595809
B50: 0.65 | D50: 181.5592661 | E50: 0.0662742558 | F50: 0.2759227415 | G50: 2217.275423 | H50: 639.1581224 | I50: 60.90473587 | J50: 578.1257387 | K50: 60.65281958 | L50: 1042.040569
B51: 0.7 | D51: 194.6618214 | E51: 0.06850314744 | F51: 0.2862094942 | G51: 2536.575911 | H51: 775.9450176 | I51: 65.18135125 | J51: 671.1546307 | K51: 65.28472245 | L51: 1144.48451
B52: 0.75 | D52: 210.1909643 | E52: 0.07103058175 | F52: 0.2966878705 | G52: 2934.461504 | H52: 954.4364852 | I52: 70.64651636 | J52: 796.5161546 | K52: 70.41436704 | L52: 1262.223929
B53: 0.8 | D53: 228.4612755 | E53: 0.07401065415 | F53: 0.3077030619 | G53: 3433.436002 | H53: 1206.977214 | I53: 76.92332852 | J53: 964.7767205 | K53: 76.91770854 | L53: 1384.062772
B54: 0.85 | D54: 251.3113244 | E54: 0.07767444758 | F54: 0.3238390211 | G54: 4155.459693 | H54: 1582.961264 | I54: 84.66940463 | J54: 1195.291364 | K54: 84.74840172 | L54: 1521.780459
B55: 0.9 | D55: 282.294601 | E55: 0.08249347815 | F55: 0.3437206913 | G55: 5374.923473 | H55: 2267.982721 | I55: 96.17141317 | J55: 1569.506304 | K55: 95.54188864 | L55: 1698.362846
B56: 0.95 | D56: 339.0385518 | E56: 0.09072702402 | F56: 0.37583709 | G56: 7742.176154 | H56: 3733.285968 | I56: 116.7454892 | J56: 2338.141828 | K56: 114.1937116 | L56: 1950.015675
B57: 1 | D57: 1307.411073 | E57: 0.1455238392 | F57: 0.617904784 | G57: 88342.01831 | H57: 120935.7352 | I57: 348.9208422 | J57: 40692.06723 | K57: 306.1804497 | L57: 4119.388313

Sheet Archive
A1: Case 8 random trials: | L1: Case 9 random trials:
A2: Trial | B2: P | C2: delta | D2: sigma | E2: K_1 | F2: L_1 | G2: a | H2: b | I2: c | J2: d-e | L2: Trial | M2: P | N2: delta | O2: sigma | P2: K_1 | Q2: L_1 | R2: a | S2: b | T2: c | U2: d-e
A3: 0 | B3: 0 | C3: 0 | D3: 0 | E3: 0 | F3: 0 | G3: 0 | H3: 0 | I3: 0 | J3: 0 | L3: 0 | M3: 0 | N3: 0 | O3: 0 | P3: 0 | Q3: 0 | R3: 0 | S3: 0 | T3: 0 | U3: 0
A4: 1 | B4: 139.8222165 | C4: 0.05094286239 | D4: 0.2124338043 | E4: 2888.355946 | F4: 2383.032587 | G4: 43.61874391 | H4: 962.5513728 | I4: 47.88102915 | J4: -204.5720525 | L4: 1 | M4: 610.4689009 | N4: 0.04389140145 | O4: 0.1999210207 | P4: 1361.506608 | Q4: 424.1411096 | R4: 2.102845582 | S4: 951.0671773 | T4: 42.5257005 | U4: 1278.836641
A5: 2 | B5: 212.4076559 | C5: 0.04751409522 | D5: 0.2053192125 | E5: 3202.910844 | F5: 1277.764964 | G5: 30.59252481 | H5: 540.9339434 | I5: 25.70063858 | J5: 1361.4428 | L5: =L4+1 -> 2 | M5: 204.5411223 | N5: 0.1245620028 | O5: 0.2001708102 | P5: 4532.917356 | Q5: 2166.251805 | R5: 67.94370365 | S5: 832.6755663 | T5: 29.8272065 | U5: -87.49599503
A6: 3 | B6: 191.7005648 | C6: 0.05590166457 | D6: 0.2161740574 | E6: 2394.815648 | F6: 842.8749147 | G6: 60.372467 | H6: 463.3805684 | I6: 139.0009113 | J6: 1750.053469 | L6: 3 | M6: 123.4967974 | N6: 0.1069544688 | O6: 0.2149990457 | P6: 4023.382118 | Q6: 1169.300405 | R6: 80.87614113 | S6: 2639.420507 | T6: 85.30390038 | U6: 484.2734918
A7: 4 | B7: 328.5799824 | C7: 0.0515208226 | D7: 0.2442806312 | E7: 1896.486445 | F7: 1612.20195 | G7: 60.9547341 | H7: 378.7690552 | I7: 32.5934508 | J7: 174.9030204 | L7: 4 | M7: 375.1948047 | N7: 0.06755841412 | O7: 0.3906009661 | P7: 1487.008136 | Q7: 726.7525539 | R7: 82.73566872 | S7: 1010.205838 | T7: 38.38417853 | U7: -100.2818648
A8: 5 | B8: 168.7373248 | C8: 0.04293827197 | D8: 0.2967776858 | E8: 4513.992462 | F8: 461.6833499 | G8: 48.87116123 | H8: 1325.609142 | I8: 55.33267294 | J8: 3287.128456 | L8: 5 | M8: 142.3401288 | N8: 0.08516368425 | O8: 0.3184836848 | P8: 4284.660173 | Q8: 1361.5593 | R8: 70.76212683 | S8: 1740.327747 | T8: 99.06567591 | U8: 48.12315039
A9: 6 | B9: 169.1369281 | C9: 0.06833044704 | D9: 0.3105911898 | E9: 646.1023924 | F9: 387.370303 | G9: 77.34422128 | H9: 130.4353855 | I9: 48.21352484 | J9: 1241.316494 | L9: 6 | M9: 474.2721504 | N9: 0.1250922994 | O9: 0.319564525 | P9: 2935.540686 | Q9: 715.0381938 | R9: 84.0435964 | S9: 2548.196463 | T9: 20.72466296 | U9: 944.7629121
A10: 7 | B10: 91.06620581 | C10: 0.06579134566 | D10: 0.1340174576 | E10: 420.7345659 | F10: 132.5208965 | G10: 55.36392098 | H10: 57.25473316 | I10: 17.93620606 | J10: 109.1024752 | L10: 7 | M10: 54.70692271 | N10: 0.1222832998 | O10: 0.1831592417 | P10: 1917.998061 | Q10: 774.4988267 | R10: 97.90404113 | S10: 391.2051619 | T10: 73.21925712 | U10: 1893.45137
A11: 8 | B11: 96.68000609 | C11: 0.03956397875 | D11: 0.2136647384 | E11: 144.1463989 | F11: 7.624745182 | G11: 86.0316467 | H11: 59.17590377 | I11: 81.21134228 | J11: -255.6465792 | L11: 8 | M11: 89.38627135 | N11: 0.08835482969 | O11: 0.3484941778 | P11: 2466.328005 | Q11: 654.8384067 | R11: 72.22855094 | S11: 1010.722874 | T11: 45.25572562 | U11: 902.7423425
A12: 9 | B12: 118.4203383 | C12: 0.05837863667 | D12: 0.3051420955 | E12: 1053.189944 | F12: 131.9662487 | G12: 34.14229275 | H12: 168.1802688 | I12: 23.07259429 | J12: -746.2697941 | L12: 9 | M12: 649.0228542 | N12: 0.08608124337 | O12: 0.192165233 | P12: 3737.125296 | Q12: 1207.26301 | R12: 54.25357896 | S12: 3137.720042 | T12: 39.90151949 | U12: 335.9817076
A13: 10 | B13: 114.3324435 | C13: 0.06075600975 | D13: 0.371604342 | E13: 595.0528924 | F13: 134.9959304 | G13: 48.21205498 | H13: 79.00114752 | I13: 81.69426487 | J13: 1039.688381 | L13: 10 | M13: 405.3280982 | N13: 0.09988087812 | O13: 0.2378702369 | P13: 2361.138896 | Q13: 1018.095387 | R13: 39.32796816 | S13: 1694.916454 | T13: 85.16091727 | U13: -616.726066
A14: 11 | B14: 204.3881544 | C14: 0.0578117579 | D14: 0.2980774194 | E14: 2465.363284 | F14: 243.8265761 | G14: 49.44541296 | H14: 709.9078393 | I14: 23.26968473 | J14: 704.8931014 | L14: 11 | M14: 745.9525271 | N14: 0.110957292 | O14: 0.23592377 | P14: 2932.842799 | Q14: 576.1889909 | R14: 9.507295121 | S14: 276.6289032 | T14: 89.10910217 | U14: -642.8138792
A15: 12 | B15: 182.9131785 | C15: 0.05896532745 | D15: 0.3039276315 | E15: 307.3360543 | F15: 46.92788636 | G15: 40.39343653 | H15: 63.82855386 | I15: 85.05857595 | J15: 302.8390323 | L15: 12 | M15: 768.2926647 | N15: 0.04273587876 | O15: 0.2962177791 | P15: 4715.411097 | Q15: 1437.164383 | R15: 35.83993457 | S15: 1830.624951 | T15: 61.78032875 | U15: 1197.17223
A16: 13 | B16: 140.4098779 | C16: 0.06919401046 | D16: 0.2800589318 | E16: 1859.504074 | F16: 302.9719736 | G16: 34.53082717 | H16: 530.2734173 | I16: 81.5701797 | J16: -58.57887139 | L16: 13 | M16: 346.6266101 | N16: 0.1288326771 | O16: 0.2675695062 | P16: 4851.05747 | Q16: 1024.874557 | R16: 83.17538429 | S16: 1232.728998 | T16: 28.68379556 | U16: -590.9511421
A17: 14 | B17: 58.05243682 | C17: 0.05052104679 | D17: 0.18561601 | E17: 2512.214219 | F17: 297.6352967 | G17: 24.62216323 | H17: 967.7078485 | I17: 37.41536221 | J17: 778.2800178 | L17: 14 | M17: 209.1863147 | N17: 0.03432820514 | O17: 0.1595266938 | P17: 2842.296234 | Q17: 989.483831 | R17: 53.9788544 | S17: 2118.519426 | T17: 22.6058398 | U17: 2009.865884
A18: 15 | B18: 128.1463971 | C18: 0.04303800929 | D18: 0.4086660839 | E18: 5765.281357 | F18: 15808.18371 | G18: 87.92109523 | H18: 1134.030091 | I18: 77.8718564 | J18: 1189.113818 | L18: 15 | M18: 10.74344057 | N18: 0.04739275838 | O18: 0.3209286117 | P18: 1754.838216 | Q18: 707.7642583 | R18: 62.12178653 | S18: 1451.023988 | T18: 80.86624415 | U18: -785.0467592
A19: 16 | B19: 135.1428072 | C19: 0.06355310114 | D19: 0.2818602585 | E19: 2642.764124 | F19: 951.1786173 | G19: 19.47726092 | H19: 1252.098541 | I19: 41.66004856 | J19: 1391.241373 | L19: 16 | M19: 955.7399605 | N19: 0.1041901967 | O19: 0.2711048879 | P19: 3557.604068 | Q19: 1242.386803 | R19: 60.7591505 | S19: 2222.675687 | T19: 79.04241936 | U19: 774.6045286
A20: 17 | B20: 157.7197204 | C20: 0.07509194421 | D20: 0.3257304607 | E20: 1658.788265 | F20: 84.98489163 | G20: 49.06260093 | H20: 204.4308899 | I20: 25.17992504 | J20: 978.6877436 | L20: 17 | M20: 366.1799372 | N20: 0.09279783265 | O20: 0.3652476258 | P20: 3669.554004 | Q20: 868.6086935 | R20: 78.40441283 | S20: 467.5724208 | T20: 42.96639419 | U20: 1182.942552
A21: 18 | B21: 255.3818914 | C21: 0.04683601848 | D21: 0.3035511595 | E21: 1658.416898 | F21: 102.2746656 | G21: 76.19172381 | H21: 230.2767665 | I21: 25.59375637 | J21: 775.91666 | L21: 18 | M21: 379.2615833 | N21: 0.06684445523 | O21: 0.3955501526 | P21: 4382.63887 | Q21: 585.9293496 | R21: 86.81113859 | S21: 3163.728566 | T21: 34.80628623 | U21: 867.2694809
A22: 19 | B22: 263.6074279 | C22: 0.06659932063 | D22: 0.317061889 | E22: 2232.503847 | F22: 124.0527938 | G22: 83.22698355 | H22: 917.1537514 | I22: 115.6759116 | J22: -32.95448255 | L22: 19 | M22: 25.50586042 | N22: 0.06417872788 | O22: 0.2173547326 | P22: 1495.845849 | Q22: 392.4320395 | R22: 23.93900213 | S22: 719.2611869 | T22: 42.80880147 | U22: -271.5757351
A23: 20 | B23: 113.2873013 | C23: 0.04541297465 | D23: 0.2680937453 | E23: 1549.55437 | F23: 226.0460409 | G23: 78.93438571 | H23: 180.3332686 | I23: 37.88737253 | J23: 1409.56785 | L23: 20 | M23: 552.2456743 | N23: 0.07780542195 | O23: 0.226763516 | P23: 3630.608804 | Q23: 1509.872452 | R23: 57.8836357 | S23: 860.9227254 | T23: 50.26525173 | U23: 975.7300408
A24: 21 | B24: 128.8374735 | C24: 0.06357620275 | D24: 0.2148733851 | E24: 371.2717849 | F24: 73.0034461 | G24: 30.41577411 | H24: 105.841531 | I24: 45.78452176 | J24: 1989.92062 | L24: 21 | M24: 611.588862 | N24: 0.05808549532 | O24: 0.3160288268 | P24: 4143.874496 | Q24: 1639.823799 | R24: 3.434732372 | S24: 2231.818619 | T24: 27.54697079 | U24: 1591.20057
A25: 22 | B25: 149.5889532 | C25: 0.06339907019 | D25: 0.1927258068 | E25: 1473.956835 | F25: 174.5375686 | G25: 13.7866115 | H25: 1544.292406 | I25: 29.54919145 | J25: 638.6253031 | L25: 22 | M25: 409.1512215 | N25: 0.04730995311 | O25: 0.2154451689 | P25: 3991.260752 | Q25: 1675.917844 | R25: 29.75556093 | S25: 1208.816782 | T25: 1.712515392 | U25: 940.3936545
A26: 23 | B26: 141.7969281 | C26: 0.04964497915 | D26: 0.2508231513 | E26: 6147.560481 | F26: 11369.80292 | G26: 21.47079557 | H26: 1904.207606 | I26: 53.11678707 | J26: 743.5110888 | L26: 23 | M26: 911.3703816 | N26: 0.1162705573 | O26: 0.2886321376 | P26: 4845.393222 | Q26: 1040.623263 | R26: 35.55594102 | S26: 974.5772051 | T26: 88.70076895 | U26: 1643.14976
A27: 24 | B27: 86.07089473 | C27: 0.08088907863 | D27: 0.2057211908 | E27: 2683.379875 | F27: 207.3902972 | G27: 157.0445774 | H27: 783.7476852 | I27: 148.5633272 | J27: 736.2621785 | L27: 24 | M27: 983.2870376 | N27: 0.05826667306 | O27: 0.2679663118 | P27: 3556.840339 | Q27: 879.1826167 | R27: 26.79194879 | S27: 748.835907 | T27: 92.28333085 | U27: -673.8690333
A28: 25 | B28: 114.9148052 | C28: 0.05351707474 | D28: 0.366779823 | E28: 997.7676651 | F28: 232.450365 | G28: 23.29911885 | H28: 87.0712917 | I28: 31.39273014 | J28: 1796.131349 | L28: 25 | M28: 504.8546551 | N28: 0.1173029085 | O28: 0.3861348869 | P28: 4504.693037 | Q28: 803.4491482 | R28: 3.251403944 | S28: 2012.317558 | T28: 46.34609048 | U28: 718.9646603
A29: 26 | B29: 78.80460139 | C29: 0.03750749721 | D29: 0.4548610873 | E29: 2245.880763 | F29: 369.0894325 | G29: 86.9346687 | H29: 540.4894484 | I29: 67.22397396 | J29: 151.8570134 | L29: 26 | M29: 189.3577024 | N29: 0.07161252694 | O29: 0.1903185667 | P29: 3146.41986 | Q29: 1196.935321 | R29: 91.40444663 | S29: 766.657081 | T29: 34.53450251 | U29: -501.0304289
A30: 27 | B30: 291.2032897 | C30: 0.06571260525 | D30: 0.252115836 | E30: 4034.895764 | F30: 518.4828348 | G30: 117.4518119 | H30: 627.8370845 | I30: 67.57706476 | J30: -155.5424912 | L30: 27 | M30: 780.7441363 | N30: 0.06960334524 | O30: 0.3647448831 | P30: 4476.006169 | Q30: 1793.315639 | R30: 74.41407068 | S30: 2761.26581 | T30: 77.28598135 | U30: 383.4913351
A31: 28 | B31: 162.8666856 | C31: 0.07754589012 | D31: 0.2744107201 | E31: 6353.449218 | F31: 637.5055867 | G31: 45.62627841 | H31: 1628.093352 | I31: 22.85067494 | J31: -2.192990465 | L31: 28 | M31: 838.6969957 | N31: 0.1426947372 | O31: 0.163595655 | P31: 1034.773259 | Q31: 197.0203334 | R31: 59.63707206 | S31: 407.4990269 | T31: 20.2700826 | U31: 481.215643
A32: 29 | B32: 254.600386 | C32: 0.03934990806 | D32: 0.2377627451 | E32: 7830.569674 | F32: 337.609728 | G32: 56.50188801 | H32: 842.0243153 | I32: 18.39671134 | J32: 798.1239313 | L32: 29 | M32: 615.1160457 | N32: 0.07910533393 | O32: 0.2547337017 | P32: 1149.198998 | Q32: 135.122335 | R32: 91.45246371 | S32: 767.07248 | T32: 41.55761243 | U32: -105.637727
A33: 30 | B33: 98.59309807 | C33: 0.05687831094 | D33: 0.1608795067 | E33: 15264.53361 | F33: 1997.337878 | G33: 49.40264602 | H33: 4267.916932 | I33: 89.42149011 | J33: 1683.862376 | L33: 30 | M33: 356.9637046 | N33: 0.1088125219 | O33: 0.3788441089 | P33: 3927.003121 | Q33: 684.5288655 | R33: 32.22047823 | S33: 1908.728968 | T33: 29.57763161 | U33: 475.5083196
A34: 31 | B34: 174.5288652 | C34: 0.04980891892 | D34: 0.2270397681 | E34: 1496.486201 | F34: 23.12986394 | G34: 119.9851748 | H34: 365.7719542 | I34: 53.40676167 | J34: 911.6072724 | L34: 31 | M34: 648.4684878 | N34: 0.04146411555 | O34: 0.3939656312 | P34: 2285.825765 | Q34: 989.8730279 | R34: 13.11858805 | S34: 1977.815479 | T34: 84.10928509 | U34: -686.7269409
A35: 32 | B35: 197.5840902 | C35: 0.07808295937 | D35: 0.2699510397 | E35: 1815.227514 | F35: 88.99939658 | G35: 68.16065094 | H35: 341.1514645 | I35: 30.60204866 | J35: 572.1594555 | L35: 32 | M35: 811.4267529 | N35: 0.1252446684 | O35: 0.3259160497 | P35: 2936.759983 | Q35: 1158.709885 | R35: 63.57931307 | S35: 1305.612396 | T35: 77.51472587 | U35: 1173.536538
A36: 33 | B36: 108.6555888 | C36: 0.05070266786 | D36: 0.2240321494 | E36: 909.91858 | F36: 695.3954752 | G36: 47.8785472 | H36: 318.3657863 | I36: 31.55560887 | J36: 506.4866988 | L36: 33 | M36: 366.0105875 | N36: 0.03029530272 | O36: 0.2065275925 | P36: 1947.954607 | Q36: 533.5484508 | R36: 90.90352072 | S36: 1804.933911 | T36: 15.4727338 | U36: -781.2480894
A37: 34 | B37: 337.2253035 | C37: 0.06682425284 | D37: 0.2589834142 | E37: 1009.311303 | F37: 227.0934847 | G37: 46.17094169 | H37: 159.8865262 | I37: 36.36122181 | J37: 1590.904293 | L37: 34 | M37: 691.1807557 | N37: 0.07152332762 | O37: 0.1904405514 | P37: 3949.550919 | Q37: 878.3056541 | R37: 24.74361403 | S37: 759.330299 | T37: 65.92102487 | U37: 1462.238141
A38: 35 | B38: 115.5716632 | C38: 0.0828984275 | D38: 0.2191955568 | E38: 1927.88731 | F38: 1625.484017 | G38: 39.57839589 | H38: 400.4980577 | I38: 53.22373261 | J38: 69.10286552 | L38: 35 | M38: 271.3513023 | N38: 0.1253335919 | O38: 0.3757057635 | P38: 3988.286847 | Q38: 1862.683505 | R38: 90.03413938 | S38: 351.5556941 | T38: 3.780635821 | U38: 1864.651713
A39: 36 | B39: 161.1495973 | C39: 0.0549676532 | D39: 0.235177708 | E39: 1879.232882 | F39: 1308.712245 | G39: 103.631572 | H39: 423.7811793 | I39: 57.13251693 | J39: 1639.536162 | L39: 36 | M39: 984.2917336 | N39: 0.09213114155 | O39: 0.1859815768 | P39: 4877.777778 | Q39: 997.1103553 | R39: 32.44112499 | S39: 2210.830778 | T39: 37.98765756 | U39: -839.3935353
A40: 37 | B40: 190.5942235 | C40: 0.05751893614 | D40: 0.338215885 | E40: 486.6110217 | F40: 99.59122286 | G40: 65.09544166 | H40: 94.92996037 | I40: 139.6094447 | J40: 837.9919367 | L40: 37 | M40: 434.4406721 | N40: 0.1112049412 | O40: 0.3977184176 | P40: 3455.100288 | Q40: 469.806601 | R40: 63.06819714 | S40: 2048.709593 | T40: 87.18930128 | U40: 1220.161692
A41: 38 | B41: 221.7287133 | C41: 0.08740011423 | D41: 0.3497423833 | E41: 219.429532 | F41: 39.14515378 | G41: 53.43449365 | H41: 52.77319245 | I41: 25.83563288 | J41: 351.0992161 | L41: 38 | M41: 847.0882683 | N41: 0.08696801721 | O41: 0.1919927743 | P41: 1360.909863 | Q41: 275.5916365 | R41: 5.305532508 | S41: 96.34918333 | T41: 70.08486542 | U41: 2064.06259
A42: 39 | B42: 115.529691 | C42: 0.07868056267 | D42: 0.343071327 | E42: 790.3711234 | F42: 491.7647211 | G42: 53.39585025 | H42: 148.843527 | I42: 68.08981868 | J42: -648.0556555 | L42: 39 | M42: 496.2413669 | N42: 0.1454268423 | O42: 0.1823957417 | P42: 4603.687875 | Q42: 1994.519573 | R42: 80.67204369 | S42: 556.0519029 | T42: 55.03834209 | U42: -86.81414665
A43: 40 | B43: 270.9613478 | C43: 0.04328521821 | D43: 0.2308851363 | E43: 2338.896762 | F43: 345.688672 | G43: 54.58221815 | H43: 616.9604288 | I43: 97.80364264 | J43: 599.1029474 | L43: 40 | M43: 124.0638331 | N43: 0.0879481065 | O43: 0.2887912511 | P43: 3632.905294 | Q43: 1243.606921 | R43: 43.51956004 | S43: 2162.567695 | T43: 33.24550983 | U43: 1362.730869
A44: 41 | B44: 90.18950248 | C44: 0.079039433 | D44: 0.1790382519 | E44: 1924.909092 | F44: 1630.104308 | G44: 45.43859349 | H44: 410.844064 | I44: 101.5055386 | J44: 473.9239873 | L44: 41 | M44: 152.9892451 | N44: 0.1285171257 | O44: 0.3168468685 | P44: 4125.113729 | Q44: 1526.459531 | R44: 49.51937136 | S44: 1893.818963 | T44: 72.07440588 | U44: 741.8579633
A45: 42 | B45: 176.4903019 | C45: 0.05723278448 | D45: 0.2831869285 | E45: 767.3127674 | F45: 78.6871848 | G45: 55.44373418 | H45: 263.2337869 | I45: 75.64881109 | J45: 1339.716239 | L45: 42 | M45: 301.2699871 | N45: 0.1215925094 | O45: 0.325346339 | P45: 1734.705177 | Q45: 396.8440568 | R45: 82.29016652 | S45: 887.2792617 | T45: 50.82861863 | U45: 413.319746
A46: 43 | B46: 215.2050531 | C46: 0.06867815831 | D46: 0.3306784301 | E46: 4518.007294 | F46: 2209.687012 | G46: 25.65211519 | H46: 3072.88628 | I46: 35.46294541 | J46: 1162.258167 | L46: 43 | M46: 862.4324714 | N46: 0.1407742801 | O46: 0.2768126547 | P46: 2444.606834 | Q46: 393.5711977 | R46: 54.80272228 | S46: 2182.139929 | T46: 69.35330218 | U46: 726.9976697
A47: 44 | B47: 115.608015 | C47: 0.05645692476 | D47: 0.2146921667 | E47: 648.5624426 | F47: 99.24123699 | G47: 44.65799916 | H47: 179.890583 | I47: 33.95105192 | J47: 1005.933798 | L47: 44 | M47: 916.7735454 | N47: 0.08921758267 | O47: 0.3006488899 | P47: 4294.28092 | Q47: 1536.670896 | R47: 8.381594209 | S47: 3662.577694 | T47: 69.45387366 | U47: 654.2165594
A48: 45 | B48: 152.5862362 | C48: 0.07792436542 | D48: 0.2418337089 | E48: 2345.152953 | F48: 3420.033371 | G48: 53.37426777 | H48: 1028.41749 | I48: 45.21268686 | J48: 751.7704969 | L48: 45 | M48: 86.66950857 | N48: 0.08537747922 | O48: 0.2850824368 | P48: 2288.241642 | Q48: 501.027184 | R48: 60.04349038 | S48: 740.1342008 | T48: 50.94281782 | U48: 1538.706917
A49: 46 | B49: 188.3965773 | C49: 0.04521248807 | D49: 0.3600219378 | E49: 1002.682631 | F49: 139.832618 | G49: 39.05198878 | H49: 229.6496973 | I49: 41.78177597 | J49: 573.0634212 | L49: 46 | M49: 900.371502 | N49: 0.06594144843 | O49: 0.2861316489 | P49: 4433.956237 | Q49: 821.3776121 | R49: 63.01362606 | S49: 3889.563314 | T49: 70.01317459 | U49: 1797.435346
A50: 47 | B50: 142.7180369 | C50: 0.07446251835 | D50: 0.2843526144 | E50: 2388.94621 | F50: 165.7230714 | G50: 30.09220649 | H50: 698.2485201 | I50: 31.03996722 | J50: 1764.259964 | L50: 47 | M50: 817.325711 | N50: 0.1033966715 | O50: 0.3581397119 | P50: 4266.194364 | Q50: 1618.038283 | R50: 78.10358781 | S50: 1084.197236 | T50: 87.0003696 | U50: 635.9144162
A51: 48 | B51: 61.01125552 | C51: 0.04458622611 | D51: 0.3370297738 | E51: 14489.93411 | F51: 2233.31073 | G51: 156.6398852 | H51: 6318.044013 | I51: 73.4633191 | J51: 1007.155226 | L51: 48 | M51: 941.7469736 | N51: 0.03754643536 | O51: 0.1811487155 | P51: 1263.393643 | Q51: 228.3383365 | R51: 5.19035659 | S51: 358.2222272 | T51: 34.32321499 | U51: 1228.39468
A52: 49 | B52: 274.2336194 | C52: 0.05812163641 | D52: 0.2174620567 | E52: 655.8107321 | F52: 281.9887014 | G52: 62.83594591 | H52: 92.60041038 | I52: 63.93730617 | J52: 1254.734438 | L52: 49 | M52: 73.87713549 | N52: 0.1342927199 | O52: 0.2033339918 | P52: 3150.406712 | Q52: 520.4370185 | R52: 42.72891346 | S52: 1370.709533 | T52: 44.84844843 | U52: 1746.103004
A53: 50 | B53: 184.8610092 | C53: 0.04882673073 | D53: 0.2750681209 | E53: 5190.203533 | F53: 1318.149695 | G53: 25.23741266 | H53: 1615.512476 | I53: 122.757568 | J53: 1429.139845 | L53: 50 | M53: 768.9361304 | N53: 0.07874230929 | O53: 0.341794662 | P53: 4886.150638 | Q53: 2231.273963 | R53: 28.23672943 | S53: 3287.149424 | T53: 74.71156375 | U53: 301.0106256
A54: 51 | B54: 94.76963396 | C54: 0.08964341105 | D54: 0.3469176474 | E54: 382.1908098 | F54: 58.77755869 | G54: 60.69210847 | H54: 50.74447871 | I54: 71.99693172 | J54: 452.4589737 | L54: 51 | M54: 304.0522628 | N54: 0.0701782378 | O54: 0.2801797794 | P54: 3904.846582 | Q54: 1906.144562 | R54: 5.694977988 | S54: 287.4802537 | T54: 15.49505015 | U54: 1924.282303
A55: 52 | B55: 143.218131 | C55: 0.05901844999 | D55: 0.2184011885 | E55: 3724.609982 | F55: 2314.23426 | G55: 45.52541441 | H55: 1298.723729 | I55: 97.18532825 | J55: 839.7691954 | L55: 52 | M55: 521.3886791 | N55: 0.09682584557 | O55: 0.250560001 | P55: 2790.99645 | Q55: 364.4154331 | R55: 72.67971499 | S55: 1200.39972 | T55: 27.96976144 | U55: 687.9740406
A56: 53 | B56: 334.7791075 | C56: 0.04670452631 | D56: 0.2385926218 | E56: 330.8013806 | F56: 171.2843422 | G56: 39.47218924 | H56: 58.72123714 | I56: 40.74888938 | J56: 186.4867316 | L56: 53 | M56: 390.6836112 | N56: 0.1093196968 | O56: 0.2463108766 | P56: 4150.444911 | Q56: 2036.110214 | R56: 77.72258305 | S56: 376.2216022 | T56: 83.45330198 | U56: -696.1024836
A57: 54 | B57: 185.7251574 | C57: 0.06821198749 | D57: 0.3118106317 | E57: 4623.940912 | F57: 628.2624136 | G57: 29.034259 | H57: 867.1153105 | I57: 47.05840181 | J57: 1081.495475 | L57: 54 | M57: 195.1302291 | N57: 0.1249260689 | O57: 0.1774229373 | P57: 3356.927182 | Q57: 1197.47769 | R57: 91.28897916 | S57: 2289.628928 | T57: 93.87276228 | U57: -492.6046334
A58: 55 | B58: 161.8947984 | C58: 0.03806538235 | D58: 0.337734644 | E58: 5693.837757 | F58: 7412.478797 | G58: 45.51035513 | H58: 1413.246369 | I58: 27.05333507 | J58: 1404.036157 | L58: 55 | M58: 511.9507535 | N58: 0.06729522476 | O58: 0.2767245892 | P58: 2762.733481 | Q58: 800.8022026 | R58: 50.13272644 | S58: 1150.995315 | T58: 80.73320332 | U58: 2225.595907
A59: 56 | B59: 254.6412687 | C59: 0.05988869602 | D59: 0.3136876642 | E59: 813.5191817 | F59: 1783.672514 | G59: 42.39459321 | H59: 145.7173219 | I59: 65.87291708 | J59: 1469.896478 | L59: 56 | M59: 62.15706574 | N59: 0.0354338265 | O59: 0.2018438003 | P59: 2420.01468 | Q59: 920.2598071 | R59: 45.83878319 | S59: 716.5474792 | T59: 12.42908291 | U59: 1468.852086
A60: 57 | B60: 229.0297092 | C60: 0.08603270441 | D60: 0.2911838034 | E60: 1365.058227 | F60: 118.0358569 | G60: 69.79326535 | H60: 646.4741455 | I60: 59.31168232 | J60: 1216.274605 | L60: 57 | M60: 437.0130869 | N60: 0.1439127601 | O60: 0.2086789401 | P60: 4471.135407 | Q60: 941.218117 | R60: 30.197114 | S60: 1703.026611 | T60: 22.89498552 | U60: -904.9162499
A61: 58 | B61: 557.3370035 | C61: 0.05795719362 | D61: 0.3331800164 | E61: 5656.898314 | F61: 570.3864815 | G61: 126.968814 | H61: 1941.656655 | I61: 81.85155994 | J61: 938.0135315 | L61: 58 | M61: 892.6277341 | N61: 0.1386539528 | O61: 0.2921499181 | P61: 2818.77083 | Q61: 968.2785321 | R61: 16.59864258 | S61: 2068.033594 | T61: 73.38581899 | U61: -629.806298
A62: 59 | B62: 88.37528398 | C62: 0.0435319435 | D62: 0.2590164652 | E62: 175.633711 | F62: 57.19813723 | G62: 60.94961921 | H62: 39.4572714 | I62: 116.4736489 | J62: -986.7297057 | L62: 59 | M62: 383.387825 | N62: 0.1154813625 | O62: 0.3540429108 | P62: 2587.231644 | Q62: 977.0296211 | R62: 91.83581499 | S62: 1444.553126 | T62: 84.54253738 | U62: 56.25631803
A63: 60 | B63: 134.6323692 | C63: 0.06939232909 | D63: 0.2042080091 | E63: 374.9532283 | F63: 145.7172802 | G63: 38.7308355 | H63: 64.55752806 | I63: 88.89354723 | J63: 1910.995991 | L63: 60 | M63: 658.3535718 | N63: 0.03753725164 | O63: 0.1519352521 | P63: 1412.514271 | Q63: 148.8689161 | R63: 94.79600247 | S63: 868.2599566 | T63: 36.41347184 | U63: -98.95825041
A64: 61 | B64: 112.5340949 | C64: 0.06024390539 | D64: 0.1867033724 | E64: 1283.672926 | F64: 225.9629906 | G64: 34.98305474 | H64: 470.3545458 | I64: 51.87559318 | J64: 837.3182441 | L64: 61 | M64: 944.3542136 | N64: 0.05017690576 | O64: 0.3186988233 | P64: 2137.964376 | Q64: 351.9264495 | R64: 31.44123211 | S64: 1477.23447 | T64: 32.78809033 | U64: 571.6888497
A65: 62 | B65: 316.23573 | C65: 0.07854189478 | D65: 0.2496138516 | E65: 539.1808784 | F65: 264.2732267 | G65: 42.68642287 | H65: 276.0123461 | I65: 128.7916585 | J65: 4.863755994 | L65: 62 | M65: 46.42593493 | N65: 0.1134726254 | O65: 0.2566391481 | P65: 1546.603289 | Q65: 164.1470377 | R65: 39.46346456 | S65: 1151.534953 | T65: 62.44888681 | U65: 1656.598662
A66: 63 | B66: 66.63807557 | C66: 0.06094714046 | D66: 0.3405013469 | E66: 3675.890004 | F66: 809.766855 | G66: 45.15704926 | H66: 1625.9914 | I66: 29.57698199 | J66: 1379.415851 | L66: 63 | M66: 196.4201534 | N66: 0.1381919793 | O66: 0.3476744442 | P66: 2030.126274 | Q66: 910.1827173 | R66: 81.16344781 | S66: 663.0568412 | T66: 14.06729483 | U66: 1093.36725
A67: 64 | B67: 83.47229389 | C67: 0.07294883558 | D67: 0.2984673259 | E67: 216.984825 | F67: 48.25721135 | G67: 23.9394771 | H67: 31.86167862 | I67: 69.91728127 | J67: 520.4247022 | L67: 64 | M67: 649.7225883 | N67: 0.09706952711 | O67: 0.3472245108 | P67: 1037.650682 | Q67: 512.3296574 | R67: 42.17590645 | S67: 1008.907565 | T67: 50.45971472 | U67: 2054.925533
A68: 65 | B68: 285.366374 | C68: 0.07699598196 | D68: 0.2838644696 | E68: 2756.382667 | F68: 607.0450691 | G68: 28.17905408 | H68: 605.7043773 | I68: 66.09223732 | J68: 315.529502 | L68: 65 | M68: 683.765071 | N68: 0.04487009392 | O68: 0.2673404517 | P68: 3255.559153 | Q68: 839.4806873 | R68: 35.30785164 | S68: 2980.291093 | T68: 19.06245398 | U68: -610.7973172
A69: 66 | B69: 146.1319663 | C69: 0.0650457011 | D69: 0.2214764004 | E69: 1427.05951 | F69: 70.44148194 | G69: 56.82928831 | H69: 758.0342479 | I69: 65.29443085 | J69: 45.75491009 | L69: =L68+1 -> 66 | M69: 393.2953617 | N69: 0.05219351818 | O69: 0.3445115131 | P69: 3480.006305 | Q69: 1159.861407 | R69: 11.63077825 | S69: 1445.476182 | T69: 78.4900966 | U69: 1927.73654
A70: 67 | B70: 175.255245 | C70: 0.07400413782 | D70: 0.3183529893 | E70: 4726.950463 | F70: 488.7560663 | G70: 53.74848863 | H70: 1231.106519 | I70: 86.03866518 | J70: 1819.233526 | L70: 67 | M70: 786.2973396 | N70: 0.1101936156 | O70: 0.3516600335 | P70: 1802.935474 | Q70: 708.2235695 | R70: 1.958303061 | S70: 835.4869785 | T70: 13.19955118 | U70: 1483.92355
A71: 68 | B71: 283.2008941 | C71: 0.07605159638 | D71: 0.2906818206 | E71: 1073.763964 | F71: 131.6070714 | G71: 41.22908595 | H71: 288.241399 | I71: 38.35907312 | J71: -167.9471875 | L71: 68 | M71: 863.1520453 | N71: 0.04705619161 | O71: 0.3004741796 | P71: 1312.586256 | Q71: 352.1737289 | R71: 76.40661252 | S71: 1018.422933 | T71: 65.93655034 | U71: -527.428831
A72: 69 | B72: 163.5241224 | C72: 0.05740516724 | D72: 0.3547345042 | E72: 849.2618297 | F72: 111.5415791 | G72: 88.85571198 | H72: 137.383264 | I72: 47.14393745 | J72: 2292.242211 | L72: 69 | M72: 125.3480751 | N72: 0.1370419457 | O72: 0.3389292513 | P72: 2342.812224 | Q72: 555.1733628 | R72: 23.74724593 | S72: 308.2420285 | T72: 19.96237711 | U72: -711.7751275
A73: 70 | B73: 112.0820428 | C73: 0.0559527655 | D73: 0.3077912927 | E73: 959.3061405 | F73: 1002.647597 | G73: 37.86053305 | H73: 192.2011529 | I73: 37.62445268 | J73: 599.2505005 | L73: 70 | M73: 667.8417952 | N73: 0.1153263366 | O73: 0.3257824351 | P73: 3006.180462 | Q73: 583.2347913 | R73: 2.732592822 | S73: 564.7539324 | T73: 26.68756597 | U73: -880.3391465
A74: 71 | B74: 98.75454864 | C74: 0.05713291648 | D74: 0.1924045891 | E74: 1834.754866 | F74: 424.606222 | G74: 86.48146367 | H74: 1034.906112 | I74: 74.88119114 | J74: 207.5657341 | L74: 71 | M74: 606.7121858 | N74: 0.03995015938 | O74: 0.3584901221 | P74: 2495.711553 | Q74: 812.3517373 | R74: 24.41488464 | S74: 2273.547287 | T74: 40.9660835 | U74: -597.5369135
A75: 72 | B75: 236.169064 | C75: 0.05347003303 | D75: 0.2621686086 | E75: 572.0006046 | F75: 131.9719483 | G75: 103.898643 | H75: 137.6957005 | I75: 23.44363992 | J75: 1580.305166 | L75: 72 | M75: 752.305543 | N75: 0.08244064833 | O75: 0.2214070315 | P75: 3207.663861 | Q75: 1001.939244 | R75: 94.87493997 | S75: 2443.783895 | T75: 63.11610959 | U75: 1890.438357
A76: 73 | B76: 336.220258 | C76: 0.08793733719 | D76: 0.234112391 | E76: 308.3703122 | F76: 129.1003132 | G76: 79.36464914 | H76: 100.7129172 | I76: 29.53241068 | J76: 882.1646165 | L76: 73 | M76: 192.3009079 | N76: 0.07496115292 | O76: 0.2829027879 | P76: 4154.511541 | Q76: 1027.048 | R76: 88.0160694 | S76: 2218.486951 | T76: 86.07832975 | U76: 1046.283119
A77: 74 | B77: 140.8459983 | C77: 0.03911138557 | D77: 0.1932337206 | E77: 1476.694818 | F77: 66.11925925 | G77: 107.8105247 | H77: 408.9361403 | I77: 16.14142239 | J77: 381.6603988 | L77: 74 | M77: 279.8004572 | N77: 0.03353618749 | O77: 0.2999520172 | P77: 4896.846574 | Q77: 2011.300178 | R77: 33.96814435 | S77: 1433.534859 | T77: 2.6020078 | U77: 850.7380087
A78: 75 | B78: 166.6426022 | C78: 0.03605191634 | D78: 0.2254335697 | E78: 1834.934176 | F78: 282.3592479 | G78: 69.31326893 | H78: 328.1759924 | I78: 30.28737837 | J78: 2116.132694 | L78: 75 | M78: 991.6382045 | N78: 0.1300368291 | O78: 0.3404008387 | P78: 2070.338581 | Q78: 644.4378888 | R78: 4.374127232 | S78: 320.3761045 | T78: 15.95638339 | U78: -617.235287
A79: 76 | B79: 244.5656846 | C79: 0.06727499257 | D79: 0.223885635 | E79: 2218.737293 | F79: 3177.434151 | G79: 59.13028808 | H79: 1221.418985 | I79: 53.4536133 | J79: 1585.60467 | L79: 76 | M79: 118.9032357 | N79: 0.1317441066 | O79: 0.3256672414 | P79: 4029.223101 | Q79: 1705.373351 | R79: 82.49319553 | S79: 988.479582 | T79: 63.13735529 | U79: 1123.652189
A80: 77 | B80: 143.4133746 | C80: 0.07103487382 | D80: 0.2658295072 | E80: 732.495228 | F80: 558.1015456 | G80: 80.50597286 | H80: 163.8964687 | I80: 56.03457137 | J80: 385.5259563 | L80: 77 | M80: 602.4822167 | N80: 0.03685855989 | O80: 0.1681398615 | P80: 3026.444442 | Q80: 603.0106263 | R80: 43.29455199 | S80: 495.9223433 | T80: 51.53527467 | U80: 354.3024656
A81: 78 | B81: 201.8580814 | C81: 0.0688985055 | D81: 0.1854208308 | E81: 1261.156104 | F81: 199.5419122 | G81: 39.5986891 | H81: 208.0737497 | I81: 73.07108243 | J81: 1940.087036 | L81: 78 | M81: 426.2250234 | N81: 0.03315168986 | O81: 0.2190376364 | P81: 2048.886292 | Q81: 621.4922237 | R81: 15.55231736 | S81: 1058.083878 | T81: 87.7978417 | U81: 1239.733774
A82: 79 | B82: 196.7723595 | C82: 0.06766734086 | D82: 0.2586118576 | E82: 9317.370578 | F82: 3969.23345 | G82: 65.27970555 | H82: 4609.324577 | I82: 88.54555846 | J82: 397.1355816 | L82: 79 | M82: 495.2202909 | N82: 0.04018497142 | O82: 0.3262023538 | P82: 3927.352743 | Q82: 1146.396762 | R82: 47.21499488 | S82: 886.4369303 | T82: 42.4189639 | U82: 823.0925748
A83: 80 | B83: 59.41903584 | C83: 0.05331632836 | D83: 0.1709033069 | E83: 2754.766688 | F83: 60.43706559 | G83: 24.62017651 | H83: 743.4703294 | I83: 58.05473503 | J83: 1256.948124 | L83: 80 | M83: 580.2650147 | N83: 0.07051580431 | O83: 0.1618377621 | P83: 4316.278476 | Q83: 1828.144923 | R83: 25.66691894 | S83: 2749.109661 | T83: 83.90668309 | U83: 567.7543206
A84: 81 | B84: 91.37010221 | C84: 0.05729060912 | D84: 0.3094282207 | E84: 262.074492 | F84: 55.72234662 | G84: 25.48056919 | H84: 66.26164319 | I84: 48.59649124 | J84: 1115.389969 | L84: 81 | M84: 286.7511851 | N84: 0.1451968552 | O84: 0.2771591813 | P84: 3629.773309 | Q84: 1330.841984 | R84: 34.05743443 | S84: 2939.039026 | T84: 3.300486926 | U84: 134.1052467
A85: 82 | B85: 95.28486754 | C85: 0.06834455592 | D85: 0.281693528 | E85: 363.8252198 | F85: 149.6707644 | G85: 83.62106041 | H85: 49.18194047 | I85: 45.09900841 | J85: 322.5450197 | L85: 82 | M85: 975.3125713 | N85: 0.139389957 | O85: 0.2187084364 | P85: 1523.039187 | Q85: 219.2665143 | R85: 88.72588165 | S85: 596.2613142 | T85: 15.89282086 | U85: 869.2606057
A86: 83 | B86: 113.391121 | C86: 0.06363816688 | D86: 0.2643907303 | E86: 281.1819949 | F86: 132.7068577 | G86: 36.16290217 | H86: 88.6871209 | I86: 59.33966075 | J86: 286.2152307 | L86: 83 | M86: 107.9259353 | N86: 0.1211984215 | O86: 0.2508134975 | P86: 2959.236198 | Q86: 1393.864795 | R86: 46.58533244 | S86: 1297.691591 | T86: 59.68228027 | U86: 872.3029437
A87: 84 | B87: 136.8260358 | C87: 0.05033578247 | D87: 0.1806759719 | E87: 6718.615143 | F87: 785.7461975 | G87: 68.99975 | H87: 1335.213436 | I87: 174.2982659 | J87: 972.3181557 | L87: 84 | M87: 812.1321983 | N87: 0.1359901962 | O87: 0.3830197043 | P87: 2794.733613 | Q87: 1362.863335 | R87: 61.19772944 | S87: 821.0084893 | T87: 50.23865167 | U87: 1189.337099
A88: 85 | B88: 104.3821958 | C88: 0.03065103736 | D88: 0.3578601995 | E88: 467.1215741 | F88: 53.2804028 | G88: 29.1947748 | H88: 115.5720829 | I88: 60.54478366 | J88: 1520.20398 | L88: 85 | M88: 285.5525638 | N88: 0.03851272686 | O88: 0.1590050843 | P88: 2575.226263 | Q88: 409.3744581 | R88: 99.18577424 | S88: 1647.707689 | T88: 15.30768742 | U88: -907.0272692
A89: 86 | B89: 91.60884784 | C89: 0.06258374365 | D89: 0.407562629 | E89: 9432.78303 | F89: 1382.05304 | G89: 120.2221913 | H89: 1281.297688 | I89: 140.4877907 | J89: 1293.413423 | L89: 86 | M89: 21.66734557 | N89: 0.09258829144 | O89: 0.3376558489 | P89: 3909.636059 | Q89: 1651.892284 | R89: 7.381510319 | S89: 1708.355759 | T89: 61.04392976 | U89: 2050.960848
A90: 87 | B90: 101.9726849 | C90: 0.05514444346 | D90: 0.3220846944 | E90: 7879.234253 | F90: 1659.512656 | G90: 76.133855 | H90: 1870.102982 | I90: 108.0235957 | J90: -84.81895678 | L90: 87 | M90: 551.5260289 | N90: 0.09921078357 | O90: 0.2753746875 | P90: 3757.977023 | Q90: 940.0064459 | R90: 36.15843674 | S90: 1443.62861 | T90: 14.84628735 | U90: 1110.160496
A91: 88 | B91: 198.5224662 | C91: 0.0535199992 | D91: 0.4277719265 | E91: 1286.814493 | F91: 290.945009 | G91: 20.82487363 | H91: 775.0404795 | I91: 79.63195602 | J91: -306.3024682 | L91: 88 | M91: 872.532976 | N91: 0.09331555599 | O91: 0.1933213158 | P91: 2621.674782 | Q91: 274.2647398 | R91: 2.194632637 | S91: 2328.866832 | T91: 85.19073687 | U91: -759.0112733
A92: 89 | B92: 180.6259474 | C92: 0.05464884863 | D92: 0.2162700507 | E92: 8300.61516 | F92: 2287.895262 | G92: 130.0720628 | H92: 915.6135183 | I92: 74.99678818 | J92: 1459.473092 | L92: 89 | M92: 575.0050316 | N92: 0.1005104115 | O92: 0.1905267457 | P92: 3128.251339 | Q92: 885.646785 | R92: 95.91577276 | S92: 2907.775548 | T92: 56.39284409 | U92: -621.2517985
A93: 90 | B93: 117.6283201 | C93: 0.09280298609 | D93: 0.2338597373 | E93: 500.8652767 | F93: 76.96183596 | G93: 11.47633511 | H93: 184.3185301 | I93: 79.35478881 | J93: 859.6849509 | L93: 90 | M93: 647.0452428 | N93: 0.1270927124 | O93: 0.333087883 | P93: 3528.798762 | Q93: 1136.381509 | R93: 96.90865096 | S93: 761.8309645 | T93: 43.69676744 | U93: 1759.288125
A94: 91 | B94: 106.441257 | C94: 0.07320230967 | D94: 0.2885475542 | E94: 9163.190361 | F94: 2017.379246 | G94: 26.81516968 | H94: 3417.206877 | I94: 35.0068963 | J94: -854.7308665 | L94: 91 | M94: 269.5056572 | N94: 0.08412931845 | O94: 0.2375901968 | P94: 3054.999939 | Q94: 542.77536 | R94: 56.72529254 | S94: 1342.999664 | T94: 81.99171241 | U94: 1485.501561
A95: 92 | B95: 243.645431 | C95: 0.03952980139 | D95: 0.1724138206 | E95: 5464.36962 | F95: 3794.826453 | G95: 41.14798583 | H95: 1433.736624 | I95: 43.97333436 | J95: 2769.527295 | L95: 92 | M95: 161.6643757 | N95: 0.03442782076 | O95: 0.3022352963 | P95: 2897.992308 | Q95: 703.8490418 | R95: 77.08712731 | S95: 800.5029256 | T95: 3.348758399 | U95: 0.9127475791
A96: 93 | B96: 108.1973924 | C96: 0.06769939915 | D96: 0.2870347611 | E96: 460.9765956 | F96: 295.4251645 | G96: 17.84966303 | H96: 90.79598534 | I96: 84.44706755 | J96: 1452.642555 | L96: 93 | M96: 760.023373 | N96: 0.1188683829 | O96: 0.3555079712 | P96: 4559.55382 | Q96: 553.6847684 | R96: 97.25563945 | S96: 2836.728532 | T96: 75.53225647 | U96: -203.3278865
A97: 94 | B97: 110.2488953 | C97: 0.06498640596 | D97: 0.2099740066 | E97: 196.4631904 | F97: 86.25217615 | G97: 51.32802514 | H97: 46.2585769 | I97: 50.3058201 | J97: 27.469151 | L97: 94 | M97: 207.7927008 | N97: 0.03673433539 | O97: 0.2521951124 | P97: 2492.074183 | Q97: 789.8461719 | R97: 88.07290573 | S97: 1105.623087 | T97: 41.32661235 | U97: 274.3514694
A98: 95 | B98: 240.3826231 | C98: 0.03860060128 | D98: 0.164089257 | E98: 402.1293279 | F98: 127.547056 | G98: 94.71578567 | H98: 55.19293856 | I98: 61.58742405 | J98: 853.0155237 | L98: 95 | M98: 907.4284795 | N98: 0.04136602482 | O98: 0.2091723792 | P98: 1162.843434 | Q98: 141.327289 | R98: 43.48037901 | S98: 1038.069765 | T98: 74.73010452 | U98: 1225.990942
A99: 96 | B99: 158.0839337 | C99: 0.04733338784 | D99: 0.2758465775 | E99: 2149.877831 | F99: 80.14212233 | G99: 45.14285267 | H99: 542.4605085 | I99: 74.7782689 | J99: 235.2762155 | L99: 96 | M99: 205.1854934 | N99: 0.0889696947 | O99: 0.3063170752 | P99: 4537.327576 | Q99: 637.8735354 | R99: 61.87759743 | S99: 1168.899916 | T99: 76.78003282 | U99: -673.0184576
A100: 97 | B100: 208.255048 | C100: 0.04781589574 | D100: 0.1442005714 | E100: 1391.132618 | F100: 565.6249582 | G100: 61.91074101 | H100: 356.1923094 | I100: 51.4269053 | J100: -125.5478361 | L100: 97 | M100: 274.0304646 | N100: 0.1346939968 | O100: 0.2139114793 | P100: 3563.733752 | Q100: 1745.142727 | R100: 38.385767 | S100: 215.9724537 | T100: 49.58589033 | U100: 889.2733985
A101: 98 | B101: 65.90429237 | C101: 0.06938103001 | D101: 0.2041547852 | E101: 487.9425248 | F101: 86.89574127 | G101: 21.72330961 | H101: 84.29797092 | I101: 28.71789811 | J101: 1837.499866 | L101: 98 | M101: 550.668617 | N101: 0.1416787967 | O101: 0.3925705793 | P101: 3139.615704 | Q101: 1480.76208 | R101: 80.55001883 | S101: 1051.098662 | T101: 4.166452589 | U101: 7.301843729
A102: 99 | B102: 171.5181979 | C102: 0.07440874244 | D102: 0.2766077247 | E102: 629.4858021 | F102: 144.2482685 | G102: 80.90201734 | H102: 183.3676807 | I102: 36.0326121 | J102: -205.4074593 | L102: 99 | M102: 993.8659087 | N102: 0.07026889132 | O102: 0.1750548362 | P102: 2546.10999 | Q102: 1260.24189 | R102: 86.29567436 | S102: 1457.960888 | T102: 71.39900814 | U102: -921.0008562
A103: 100 | B103: 157.4093785 | C103: 0.08209243496 | D103: 0.2405905065 | E103: 6495.975236 | F103: 584.4396431 | G103: 57.84352153 | H103: 1059.944114 | I103: 53.22705894 | J103: 1022.715301 | L103: 100 | M103: 875.6742904 | N103: 0.1297289778 | O103: 0.3914538043 | P103: 2825.42315 | Q103: 986.6715625 | R103: 35.1311695 | S103: 848.8792574 | T103: 49.56577683 | U103: 1392.570601
A104: 101 | B104: 115.4335309 | C104: 0.07166235983 | D104: 0.2291677447 | E104: 146.2404395 | F104: 25.79113557 | G104: 63.47441342 | H104: 10.0041125 | I104: 25.34349334 | J104: 1305.504439 | L104: 101 | M104: 230.1572975 | N104: 0.1178292786 | O104: 0.1871261565 | P104: 4669.001773 | Q104: 1420.422364 | R104: 55.92912992 | S104: 4587.5638 | T104: 0.8866113149 | U104: 360.9915765
A105: 102 | B105: 190.0012201 | C105: 0.0572866052 | D105: 0.3204332462 | E105: 610.6306606 | F105: 138.3919722 | G105: 32.22369607 | H105: 364.3533069 | I105: 57.61402652 | J105: -967.7983377 | L105: 102 | M105: 839.3264547 | N105: 0.04942646067 | O105: 0.1924289644 | P105: 2657.679974 | Q105: 400.0744404 | R105: 28.2550092 | S105: 1050.948079 | T105: 81.93960222 | U105: 126.0596731
A106: 103 | B106: 157.2933495 | C106: 0.05946554135 | D106: 0.2553461911 | E106: 1294.516357 | F106: 345.5543777 | G106: 85.85905281 | H106: 446.5221196 | I106: 16.68695568 | J106: 540.3825856 | L106: 103 | M106: 789.5015987 | N106: 0.116897988 | O106: 0.3417492894 | P106: 4684.903573 | Q106: 2170.291363 | R106: 41.75452052 | S106: 4438.412576 | T106: 68.22634031 | U106: -424.0061242
A107: 104 | B107: 80.0640669 | C107: 0.07117653657 | D107: 0.2467386784 | E107: 2408.404077 | F107: 454.0879702 | G107: 33.99828393 | H107: 561.0542149 | I107: 52.67775636 | J107: 239.2422359 | L107: 104 | M107: 560.8434825 | N107: 0.04278436181 | O107: 0.373844612 | P107: 3502.303514 | Q107: 406.8242914 | R107: 54.18283062 | S107: 3380.500403 | T107: 50.83419418 | U107: 1347.383014
A108: 105 | B108: 53.48080868 | C108: 0.07099760328 | D108: 0.2577841105 | E108: 2509.062547 | F108: 71.74427209 | G108: 34.2970596 | H108: 520.016232 | I108: 40.32805114 | J108: 935.7637181 | L108: 105 | M108: 550.8031022 | N108: 0.1381516958 | O108: 0.3735786675 | P108: 3986.631717 | Q108: 1677.245487 | R108: 8.862428138 | S108: 3020.876952 | T108: 50.82972266 | U108: -203.6281646
A109: 106 | B109: 215.3026388 | C109: 0.06275385116 | D109: 0.3055398799 | E109: 590.601285 | F109: 1081.655391 | G109: 145.6403135 | H109: 194.1853451 | I109: 37.30837497 | J109: -723.1419081 | L109: 106 | M109: 654.0179735 | N109: 0.08715226172 | O109: 0.3287178135 | P109: 4364.674074 | Q109: 1346.470195 | R109: 34.35163625 | S109: 1640.613572 | T109: 47.95049627 | U109: 340.0854151
A110: 107 | B110: 114.2589781 | C110: 0.09048137175 | D110: 0.146083961 | E110: 7416.75716 | F110: 230.8880944 | G110: 61.43481294 | H110: 5199.723712 | I110: 43.27202811 | J110: 1171.755845 | L110: 107 | M110: 111.1162107 | N110: 0.09163219233 | O110: 0.3837496475 | P110: 3085.208737 | Q110: 758.9303519 | R110: 62.64182402 | S110: 543.6205904 | T110: 21.13629473 | U110: 1328.037401
A111: 108 | B111: 107.5633819 | C111: 0.04476407273 | D111: 0.2762853844 | E111: 1357.107923 | F111: 167.6501946 | G111: 57.71128277 | H111: 217.1133373 | I111: 27.33819279 | J111: 592.3185467 | L111: 108 | M111: 530.8579534 | N111: 0.09059993659 | O111: 0.1646113761 | P111: 2174.371692 | Q111: 573.6850702 | R111: 48.44679714 | S111: 366.597901 | T111: 45.3194719 | U111: -311.7357695
A112: 109 | B112: 197.2435204 | C112: 0.051255744 | D112: 0.3132744108 | E112: 1497.316636 | F112: 329.9033123 | G112: 16.33698026 | H112: 426.2478088 | I112: 46.99268745 | J112: 228.9573541 | L112: 109 | M112: 794.2014681 | N112: 0.1470426046 | O112: 0.3551916474 | P112: 3496.280308 | Q112: 581.8448677 | R112: 20.61354123 | S112: 2596.255942 | T112: 51.78746681 | U112: 1514.156347
A113: 110 | B113: 87.88549981 | C113: 0.06964931562 | D113: 0.3384314233 | E113: 1123.093043 | F113: 209.8600227 | G113: 54.51874894 | H113: 256.7735386 | I113: 36.77063702 | J113: 778.7839391 | L113: 110 | M113: 681.9464836 | N113: 0.03986502339 | O113: 0.3060912431 | P113: 3808.364864 | Q113: 1585.306217 | R113: 47.93431389 | S113: 3282.282673 | T113: 32.01347926 | U113: -642.3384812
A114: 111 | B114: 89.36315134 | C114: 0.03820599424 | D114: 0.5033431639 | E114: 394.3759543 | F114: 94.26397502 | G114: 24.88594388 | H114: 91.48663723 | I114: 75.51158645 | J114: -127.9013032 | L114: 111 | M114: 945.6189361 | N114: 0.03273418268 | O114: 0.2852846923 | P114: 4677.187839 | Q114: 1243.781999 | R114: 78.53128793 | S114: 3615.591829 | T114: 75.35618063 | U114: 582.0155064
A115: 112 | B115: 167.9327937 | C115: 0.06146105342 | D115: 0.2753633187 | E115: 2109.213055 | F115: 474.6641566 | G115: 44.79726788 | H115: 466.2056337 | I115: 60.21452845 | J115: 975.3898002 | L115: 112 | M115: 615.3962941 | N115: 0.09229983824 | O115: 0.371173891 | P115: 1313.368345 | Q115: 551.3969988 | R115: 67.22371209 | S115: 858.0996611 | T115: 28.92906602 | U115: 153.6330647
A116: 113 | B116: 146.9920214 | C116: 0.04690349712 | D116: 0.2456558217 | E116: 1877.511113 | F116: 696.3318676 | G116: 85.00138785 | H116: 373.1006776 | I116: 56.17160819 | J116: -196.6125963 | L116: 113 | M116: 944.252161 | N116: 0.1478005142 | O116: 0.3978623403 | P116: 2157.654578 | Q116: 525.9245684 | R116: 58.18889582 | S116: 2040.591158 | T116: 80.77196506 | U116: -530.5589824
A117: 114 | B117: 156.7101047 | C117: 0.0746879926 | D117: 0.1723474351 | E117: 332.7984408 | F117: 26.48033946 | G117: 43.47172743 | H117: 18.89592084 | I117: 85.83223578 | J117: 488.8609162 | L117: 114 | M117: 845.9992591 | N117: 0.110686698 | O117: 0.3136171537 | P117: 3616.043358 | Q117: 665.340639 | R117: 56.51988893 | S117: 1342.752202 | T117: 29.77318835 | U117: 1822.418697
A118: 115 | B118: 75.88731167 | C118: 0.06405642802 | D118: 0.1514505249 | E118: 1549.640011 | F118: 204.7623847 | G118: 46.1582078 | H118: 596.1549917 | I118: 51.64933697 | J118: 599.4598328 | L118: 115 | M118: 314.8142477 | N118: 0.05875450391 | O118: 0.1881325195 | P118: 3292.078129 | Q118: 616.0167817 | R118: 76.06678637 | S118: 2055.003806 | T118: 54.47844689 | U118: 2188.160174
A119: 116 | B119: 118.2634124 | C119: 0.07800466287 | D119: 0.3143376765 | E119: 445.3072236 | F119: 225.5179215 | G119: 91.93705443 | H119: 94.59110776 | I119: 40.5785099 | J119: 1274.726038 | L119: 116 | M119: 109.7700481 | N119: 0.05628976577 | O119: 0.1593547747 | P119: 4611.181687 | Q119: 836.486747 | R119: 77.29269414 | S119: 1948.031582 | T119: 58.31042489 | U119: 215.1950819
A120: 117 | B120: 187.4540257 | C120: 0.06246251596 | D120: 0.4067551909 | E120: 2180.136036 | F120: 252.6166288 | G120: 119.8363025 | H120: 950.4821318 | I120: 30.35451537 | J120: -856.7145126 | L120: 117 | M120: 677.7915379 | N120: 0.09987570324 | O120: 0.3676032873 | P120: 1135.193141 | Q120: 528.701232 | R120: 94.17953193 | S120: 430.3320445 | T120: 75.39313351 | U120: 2223.994547
A121: 118 | B121: 102.3259356 | C121: 0.07729592426 | D121: 0.3297041741 | E121: 629.5935133 | F121: 517.126787 | G121: 75.00798049 | H121: 265.1025624 | I121: 95.11811626 | J121: 1427.160924 | L121: 118 | M121: 357.3825467 | N121: 0.09713167769 | O121: 0.2316973406 | P121: 2395.262704 | Q121: 552.4528449 | R121: 43.2789962 | S121: 875.3554071 | T121: 90.08914846 | U121: 1787.560314
A122: 119 | B122: 126.1986804 | C122: 0.05069131834 | D122: 0.1644617 | E122: 2003.137743 | F122: 691.3482734 | G122: 41.80997884 | H122: 1133.54267 | I122: 54.44206559 | J122: 1037.370322 | L122: 119 | M122: 922.7668358 | N122: 0.1293509037 | O122: 0.1517594977 | P122: 2150.040784 | Q122: 1044.753207 | R122: 83.05138465 | S122: 1126.570333 | T122: 44.6218393 | U122: 262.504069
A123: 120 | B123: 216.8010166 | C123: 0.06204789537 | D123: 0.2077181049 | E123: 2241.259932 | F123: 129.5065739 | G123: 31.23691691 | H123: 163.2148071 | I123: 23.38260227 | J123: 1999.509688 | L123: 120 | M123: 317.730442 | N123: 0.05057221995 | O123: 0.2946540053 | P123: 4197.86011 | Q123: 834.0357417 | R123: 26.82214637 | S123: 1549.432424 | T123: 99.81398568 | U123: 275.1543988
A124: 121 | B124: 99.17322759 | C124: 0.0762036127 | D124: 0.2687828389 | E124: 1106.168689 | F124: 289.9292438 | G124: 93.41166742 | H124: 79.21174688 | I124: 52.74525522 | J124: 776.0976964 | L124: 121 | M124: 128.0926724 | N124: 0.1184568522 | O124: 0.373868771 | P124: 1998.941331 | Q124: 411.7313788 | R124: 83.18635881 | S124: 1605.38359 | T124: 13.13253572 | U124: 1688.779558
A125: 122 | B125: 370.2644731 | C125: 0.06418577882 | D125: 0.1827848732 | E125: 5557.481868 | F125: 10705.54971 | G125: 56.65706013 | H125: 1515.572795 | I125: 70.41436704 | J125: -544.545392 | L125: 122 | M125: 402.8289338 | N125: 0.1235995487 | O125: 0.3800143344 | P125: 2614.698485 | Q125: 953.1482662 | R125: 96.55458038 | S125: 343.7720163 | T125: 92.83237625 | U125: 469.2130118
A126: 123 | B126: 192.0874418 | C126: 0.08189724932 | D126: 0.3126552439 | E126: 1003.039833 | F126: 1294.84866 | G126: 117.0688991 | H126: 353.8558444 | I126: 58.15223076 | J126: 989.5259722 | L126: 123 | M126: 880.0686141 | N126: 0.03333346004 | O126: 0.3265237554 | P126: 2356.108552 | Q126: 556.6962606 | R126: 95.27252316 | S126: 239.8308136 | T126: 45.29679294 | U126: -136.0653849
A127: 124 | B127: 64.92054384 | C127: 0.08502176054 | D127: 0.2682581756 | E127: 4447.984817 | F127: 1145.865534 | G127: 37.68983602 | H127: 794.5183293 | I127: 38.19428037 | J127: 482.2840425 | L127: 124 | M127: 27.97559754 | N127: 0.0914388159 | O127: 0.2033573188 | P127: 1423.304284 | Q127: 170.2627049 | R127: 16.75432702 | S127: 870.7769456 | T127: 89.97428822 | U127: -605.44394
A128: 125 | B128: 113.9538787 | C128: 0.03615152496 | D128: 0.2621831202 | E128: 1500.23021 | F128: 479.8226525 | G128: 88.61756495 | H128: 351.7753734 | I128: 40.86696147 | J128: 1067.792466 | L128: 125 | M128: 698.8188992 | N128: 0.1181182539 | O128: 0.3375275803 | P128: 1416.666655 | Q128: 258.9390366 | R128: 91.84239031 | S128: 379.7988024 | T128: 95.05400187 | U128: 346.7441173
A129: 126 | B129: 311.5501084 | C129: 0.04727829596 | D129: 0.2154288103 | E129: 612.4596883 | F129: 170.2099661 | G129: 24.03309668 | H129: 237.959833 | I129: 54.54347415 | J129: 197.1999539 | L129: 126 | M129: 686.667277 | N129: 0.05381638724 | O129: 0.1847907382 | P129: 4646.978121 | Q129: 1670.635851 | R129: 62.31565939 | S129: 4506.498049 | T129: 39.28742997 | U129: -427.2064626
A130: 127 | B130: 138.9299682 | C130: 0.0885461211 | D130: 0.2991391894 | E130: 146.6804664 | F130: 30.61261569 | G130: 61.7190403 | H130: 22.64862332 | I130: 68.98750699 | J130: 870.9566053 | L130: 127 | M130: 899.9203735 | N130: 0.07877181348 | O130: 0.3449103768 | P130: 2739.238703 | Q130: 972.5559563 | R130: 97.14313098 | S130: 1174.115515 | T130: 84.60239707 | U130: 736.5152056
A131: 128 | B131: 132.0208953 | C131: 0.04405913174 | D131: 0.2002206748 | E131: 206.5761519 | F131: 60.86616126 | G131: 67.92137357 | H131: 48.86476124 | I131: 88.40026835 | J131: 180.4211926 | L131: 128 | M131: 350.9552375 | N131: 0.1001161021 | O131: 0.2201777896 | P131: 4649.750829 | Q131: 1059.644611 | R131: 31.78549755 | S131: 3477.381303 | T131: 18.85731985 | U131: 27.77386388
A132: 129 | B132: 267.7554974 | C132: 0.06117932796 | D132: 0.3100196973 | E132: 9345.229994 | F132: 2530.766987 | G132: 65.22217138 | H132: 3961.567598 | I132: 62.81927902 | J132: 2399.509314 | L132: 129 | M132: 56.75005578 | N132: 0.08142176871 | O132: 0.3013011312 | P132: 3689.790174 | Q132: 1523.807258 | R132: 66.48359013 | S132: 2326.575889 | T132: 89.69933036 | U132: 1418.020621
A133: 130 | B133: 188.7806409 | C133: 0.06138716678 | D133: 0.3878200681 | E133: 2630.481603 | F133: 348.2430563 | G133: 41.65242016 | H133: 630.1459307 | I133: 22.11676819 | J133: -153.5283224 | L133: =L132+1 -> 130 | M133: 778.7995827 | N133: 0.06778266126 | O133: 0.1739326211 | P133: 4769.012494 | Q133: 2176.840754 | R133: 73.19047138 | S133: 1861.065415 | T133: 12.25244632 | U133: 316.2557312
A134: 131 | B134: 51.08664928 | C134: 0.06782779185 | D134: 0.3736851938 | E134: 3022.630011 | F134: 822.6444704 | G134: 54.58890592 | H134: 1114.909522 | I134: 34.1082561 | J134: 319.5996531 | L134: 131 | M134: 189.8333624 | N134: 0.07773140941 | O134: 0.1788600642 | P134: 1817.594059 | Q134: 455.5080881 | R134: 98.92140045 | S134: 565.9234112 | T134: 71.97732626 | U134: 1746.366776
A135: 132 | B135: 349.8871344 | C135: 0.06657801798 | D135: 0.2815759096 | E135: 17156.17137 | F135: 17404.68226 | G135: 38.68035861 | H135: 3583.555743 | I135: 42.25130222 | J135: 1693.042575 | L135: 132 | M135: 306.6018408 | N135: 0.03839864055 | O135: 0.1843542115 | P135: 3259.735181 | Q135: 1446.891061 | R135: 34.05440945 | S135: 1586.991722 | T135: 52.45960958 | U135: 657.7713298
A136: 133 | B136: 161.0231204 | C136: 0.06728075695 | D136: 0.247043335 | E136: 619.5444892 | F136: 38.056619 | G136: 109.370172 | H136: 203.9720773 | I136: 100.6512037 | J136: 1160.864516 | L136: 133 | M136: 248.4343787 | N136: 0.1118247695 | O136: 0.2140846832 | P136: 2140.335544 | Q136: 921.8516955 | R136: 84.50531004 | S136: 854.0661506 | T136: 80.74587699 | U136: 2114.835589
A137: 134 | B137: 206.3906523 | C137: 0.05216570538 | D137: 0.2060774349 | E137: 622.7781545 | F137: 56.21462935 | G137: 77.36186325 | H137: 331.421409 | I137: 56.30645448 | J137: 606.9034798 | L137: 134 | M137: 878.4480453 | N137: 0.1240170921 | O137: 0.1754886245 | P137: 3196.985499 | Q137: 696.0021584 | R137: 44.07050267 | S137: 2291.249076 | T137: 92.93838334 | U137: 1623.664223
A138: 135 | B138: 61.2292531 | C138: 0.05644918112 | D138: 0.2831795451 | E138: 550.9494997 | F138: 43.26871184 | G138: 73.8049711 | H138: 134.2892779 | I138: 61.40084041 | J138: 801.7769112 | L138: 135 | M138: 928.0972466 | N138: 0.08010003478 | O138: 0.2338177472 | P138: 4598.042512 | Q138: 1474.874958 | R138: 32.36597401 | S138: 3924.557232 | T138: 74.92514144 | U138: 1196.941752
A139: 136 | B139: 167.0512072 | C139: 0.07872571635 | D139: 0.2731244454 | E139: 997.1074281 | F139: 229.814423 | G139: 61.82166143 | H139: 400.0413258 | I139: 35.98750454 | J139: -609.2879617 | L139: 136 | M139: 608.7896836 | N139: 0.1175892533 | O139: 0.2700918051 | P139: 3127.481661 | Q139: 1081.246614 | R139: 51.33453801 | S139: 2306.111067 | T139: 79.58031235 | U139: 1145.453767
A140: 137 | B140: 57.28509703 | C140: 0.05023718018 | D140: 0.2840901384 | E140: 1532.699597 | F140: 220.177457 | G140: 35.76707636 | H140: 193.1710243 | I140: 28.27344129 | J140: 698.2699721 | L140: 137 | M140: 544.4545137 | N140: 0.09809691095 | O140: 0.3122324326 | P140: 3247.912635 | Q140: 675.0319391 | R140: 31.01122832 | S140: 3196.076719 | T140: 5.714447939 | U140: 1101.414957
A141: 138 | B141: 220.938823 | C141: 0.05559571197 | D141: 0.2794597789 | E141: 3345.129352 | F141: 77.32528233 | G141: 72.12989869 | H141: 1304.341672 | I141: 87.86845454 | J141: 461.3568766 | L141: 138 | M141: 487.1905004 | N141: 0.08217456068 | O141: 0.1942876384 | P141: 2477.420144 | Q141: 409.2790654 | R141: 15.22623553 | S141: 1766.669516 | T141: 7.340505397 | U141: 421.7671256
A142: 139 | B142: 71.56485996 | C142: 0.05483023785 | D142: 0.2129770389 | E142: 490.0231527 | F142: 215.7984356 | G142: 38.85247607 | H142: 38.66854849 | I142: 55.3850263 | J142: 702.8011358 | L142: 139 | M142: 409.639685 | N142: 0.07988923908 | O142: 0.3285387065 | P142: 4200.634153 | Q142: 1373.534922 | R142: 59.00869009 | S142: 1199.076109 | T142: 59.05434916 | U142: 637.0213391
A143: 140 | B143: 407.5415313 | C143: 0.1042510102 | D143: 0.4354300516 | E143: 955.1891379 | F143: 234.3865471 | G143: 37.95758122 | H143: 603.5293131 | I143: 43.20922629 | J143: 453.7370907 | L143: 140 | M143: 235.6008628 | N143: 0.0630521417 | O143: 0.215173729 | P143: 2997.813911 | Q143: 1464.7689 | R143: 97.34351802 | S143: 1629.13416 | T143: 52.5074451 | U143: 1422.904966
A144: 141 | B144: 161.2115717 | C144: 0.04701863956 | D144: 0.2148702642 | E144: 346.5618738 | F144: 201.8944455 | G144: 30.23641688 | H144: 74.6862952 | I144: 34.30069901 | J144: 578.9297563 | L144: 141 | M144: 43.71338895 | N144: 0.09426632275 | O144: 0.2487075594 | P144: 4647.226298 | Q144: 2000.900839 | R144: 34.43718396 | S144: 1222.126935 | T144: 85.75079357 | U144: 2087.699647
A145: 142 | B145: 178.2837133 | C145: 0.07332491909 | D145: 0.2628042684 | E145: 1001.523691 | F145: 119.8601809 | G145: 53.17525829 | H145: 131.7533203 | I145: 40.74191704 | J145: 12.73648825 | L145: 142 | M145: 281.4035609 | N145: 0.1056418693 | O145: 0.1899530834 | P145: 4863.56342 | Q145: 754.4289156 | R145: 55.5199649 | S145: 4603.718847 | T145: 24.05003702 | U145: 1586.216198
A146: 143 | B146: 132.1169225 | C146: 0.03684643799 | D146: 0.2607182945 | E146: 540.9237008 | F146: 271.630803 | G146: 33.35079608 | H146: 143.1214968 | I146: 44.71651019 | J146: 677.2454746 | L146: 143 | M146: 31.33851231 | N146: 0.082721044 | O146: 0.2329208447 | P146: 3410.191384 | Q146: 911.5123702 | R146: 25.89660782 | S146: 611.4303603 | T146: 44.28758204 | U146: 407.8938119
A147: 144 | B147: 144.4957906 | C147: 0.04715420863 | D147: 0.3029943068 | E147: 2586.009941 | F147: 803.2114838 | G147: 40.82869036 | H147: 567.2472139 | I147: 30.12826472 | J147: 1403.533281 | L147: 144 | M147: 376.4666313 | N147: 0.08198098532 | O147: 0.2021212796 | P147: 1037.527058 | Q147: 366.525884 | R147: 41.88615956 | S147: 761.1341987 | T147: 80.68379745 | U147: -878.0544389
A148: 145 | B148: 252.2752381 | C148: 0.1030187713 | D148: 0.1824246269 | E148: 545.0249415 | F148: 259.2385838 | G148: 18.56699385 | H148: 77.32169368 | I148: 96.5132059 | J148: 1097.745974 | L148: 145 | M148: 579.8948985 | N148: 0.09957512216 | O148: 0.3398905569 | P148: 4849.448053 | Q148: 1726.348732 | R148: 97.32921086 | S148: 267.3885026 | T148: 12.04694543 | U148: 1918.51292
A149: 146 | B149: 73.34939003 | C149: 0.06675449144 | D149: 0.224072124 | E149: 3355.100087 | F149: 487.7110181 | G149: 45.54814978 | H149: 323.7582832 | I149: 37.50932629 | J149: 1639.881134 | L149: 146 | M149: 251.8223214 | N149: 0.1189646761 | O149: 0.3341311963 | P149: 4088.264836 | Q149: 1435.948415 | R149: 36.13694954 | S149: 1507.95887 | T149: 53.71100006 | U149: 2153.373389
A150: 147 | B150: 201.4277373 | C150: 0.06242647834 | D150: 0.2576633302 | E150: 391.659509 | F150: 53.42451275 | G150: 22.13557507 | H150: 112.8226942 | I150: 57.89350823 | J150: -335.6640275 | L150: 147 | M150: 15.74063628 | N150: 0.09347359409 | O150: 0.3468028636 | P150: 3651.654679 | Q150: 1725.481166 | R150: 45.74484054 | S150: 1480.089726 | T150: 33.5350006 | U150: -424.9927984
A151: 148 | B151: 117.9943084 | C151: 0.06170905196 | D151: 0.2993104851 | E151: 845.2040718 | F151: 151.3223809 | G151: 92.04640444 | H151: 281.0533497 | I151: 15.91508617 | J151: 381.1560066 | L151: 148 | M151: 695.7603176 | N151: 0.1373602143 | O151: 0.2091938858 | P151: 2946.217262 | Q151: 909.3607346 | R151: 99.35944146 | S151: 441.3818044 | T151: 34.1325368 | U151: 1764.178295
A152: 149 | B152: 262.0507608 | C152: 0.05448330703 | D152: 0.3270583484 | E152: 1249.632283 | F152: 390.6337 | G152: 60.16540458 | H152: 489.5220559 | I152: 114.0305565 | J152: 1719.10149 | L152: 149 | M152: 611.0162818 | N152: 0.1122843369 | O152: 0.2426334957 | P152: 3258.60442 | Q152: 773.4232406 | R152: 31.37853915 | S152: 223.5291629 | T152: 79.10756156 | U152: -989.9151316
A153: 150 | B153: 199.3625813 | C153: 0.06492335672 | D153: 0.3505573194 | E153: 4236.733583 | F153: 16478.66509 | G153: 18.64596026 | H153: 477.4064393 | I153: 18.87789359 | J153: 491.5547213 | L153: 150 | M153: 373.0121145 | N153: 0.1337236866 | O153: 0.3887492966 | P153: 3550.855908 | Q153: 1587.16175 | R153: 77.23313895 | S153: 967.690866 | T153: 57.3663201 | U153: 1561.040328
A154: 151 | B154: 175.3115652 | C154: 0.05850954465 | D154: 0.269864059 | E154: 117.238448 | F154: 19.4202402 | G154: 34.79078896 | H154: 74.13445129 | I154: 40.13078345 | J154: 870.0002242 | L154: 151 | M154: 363.3871722 | N154: 0.07136388617 | O154: 0.253016321 | P154: 3324.916308 | Q154: 531.7619612 | R154: 37.19226338 | S154: 832.9966274 | T154: 90.37060053 | U154: 1342.487624
A155: 152 | B155: 116.1932371 | C155: 0.05064515956 | D155: 0.2068593189 | E155: 3450.13987 | F155: 4110.375279 | G155: 53.22587504 | H155: 487.9655371 | I155: 50.17146136 | J155: -129.0075888 | L155: 152 | M155: 538.8736146 | N155: 0.1157537994 | O155: 0.2605744638 | P155: 3800.204841 | Q155: 1036.040285 | R155: 56.44851735 | S155: 1544.968949 | T155: 30.23105042 | U155: 1965.0335
A156: 153 | B156: 137.6397566 | C156: 0.05385861624 | D156: 0.2763796729 | E156: 4641.588174 | F156: 534.1393406 | G156: 41.82448534 | H156: 2582.972294 | I156: 57.23353201 | J156: 1360.535366 | L156: 153 | M156: 886.8215687 | N156: 0.136469107 | O156: 0.3259308806 | P156: 2924.952536 | Q156: 915.0070791 | R156: 59.60665883 | S156: 1538.047716 | T156: 9.115036162 | U156: -10.30827198
A157: 154 | B157: 111.2920778 | C157: 0.0710384043 | D157: 0.2411681992 | E157: 1614.343276 | F157: 156.3456711 | G157: 27.47178052 | H157: 142.4148992 | I157: 20.77992483 | J157: 1271.134639 | L157: 154 | M157: 252.1210893 | N157: 0.1049776491 | O157: 0.3479122892 | P157: 1989.501162 | Q157: 567.4865166 | R157: 43.34828851 | S157: 755.601276 | T157: 54.68498238 | U157: 893.3209725
A158: 155 | B158: 229.311855 | C158: 0.06770978584 | D158: 0.3492246534 | E158: 3825.871119 | F158: 452.1319178 | G158: 20.57308679 | H158: 879.7855492 | I158: 64.11131292 | J158: 1165.29161 | L158: 155 | M158: 644.5002706 | N158: 0.05175265717 | O158: 0.3982806972 | P158: 2658.832579 | Q158: 1122.029064 | R158: 76.36854503 | S158: 1805.363919 | T158: 26.13634184 | U158: -630.7939453
A159: 156 | B159: 171.5224405 | C159: 0.05724894103 | D159: 0.3358164538 | E159: 1832.125736 | F159: 144.7805854 | G159: 37.93920104 | H159: 545.7074474 | I159: 53.32379566 | J159: -110.0086718 | L159: 156 | M159: 737.5757144 | N159: 0.09881943184 | O159: 0.2031349334 | P159: 1621.202831 | Q159: 363.0016757 | R159: 88.38702449 | S159: 605.4399104 | T159: 20.72060919 | U159: 169.6981663
A160: 157 | B160: 168.2625378 | C160: 0.0470016539 | D160: 0.1302908834 | E160: 656.6799741 | F160: 183.8880169 | G160: 25.27219876 | H160: 233.8723967 | I160: 32.19705485 | J160: 694.9403343 | L160: 157 | M160: 630.6143991 | N160: 0.09250700458 | O160: 0.2106636099 | P160: 2172.668154 | Q160: 982.527183 | R160: 2.64700614 | S160: 1069.545263 | T160: 88.23220157 | U160: 633.933018
A161: 158 | B161: 215.4183118 | C161: 0.06967648138 | D161: 0.3602008598 | E161: 1400.10055 | F161: 259.1299908 | G161: 43.43518719 | H161: 375.6310474 | I161: 24.29264034 | J161: 1137.4026 | L161: 158 | M161: 430.5735343 | N161: 0.05243654302 | O161: 0.3890865909 | P161: 2253.341526 | Q161: 600.92501 | R161: 97.91834387 | S161: 1288.900053 | T161: 13.60540628 | U161: 1975.33751
A162: 159 | B162: 125.809819 | C162: 0.0776668892 | D162: 0.3519632531 | E162: 10258.46425 | F162: 2579.815996 | G162: 58.38693791 | H162: 2496.287629 | I162: 71.75820921 | J162: 227.1143734 | L162: 159 | M162: 122.122731 | N162: 0.05416216997 | O162: 0.3050556153 | P162: 1315.623773 | Q162: 213.5028982 | R162: 48.15556339 | S162: 1266.621314 | T162: 50.55395758 | U162: -838.9869531
A163: 160 | B163: 145.2746127 | C163: 0.07507596029 | D163: 0.3628603404 | E163: 2515.263892 | F163: 2903.18419 | G163: 59.32627865 | H163: 680.9359654 | I163: 56.01074339 | J163: -586.7890566 | L163: 160 | M163: 91.64834615 | N163: 0.08966858433 | O163: 0.3467246318 | P163: 2614.186277 | Q163: 1247.171473 | R163: 12.50037673 | S163: 2331.840314 | T163: 93.83163056 | U163: -298.7260317
A164: 161 | B164: 190.9712293 | C164: 0.05910337043 | D164: 0.2823727542 | E164: 6698.063767 | F164: 1848.43792 | G164: 31.93339506 | H164: 1467.539755 | I164: 20.62761004 | J164: 619.7873195 | L164: 161 | M164: 491.9288756 | N164: 0.03433738416 | O164: 0.2422122398 | P164: 1977.826125 | Q164: 785.4932492 | R164: 59.45578812 | S164: 1022.781553 | T164: 73.43087651 | U164: -470.6439325
A165: 162 | B165: 105.6327001 | C165: 0.0677389337 | D165: 0.2712290704 | E165: 1281.27454 | F165: 374.9018475 | G165: 21.98634008 | H165: 318.88379 | I165: 32.92720451 | J165: 1717.494174 | L165: 162 | M165: 191.186324 | N165: 0.03196477432 | O165: 0.1936948957 | P165: 3081.795844 | Q165: 875.1605871 | R165: 95.81285971 | S165: 954.3748088 | T165: 26.73314965 | U165: -435.3322388
A166: 163 | B166: 82.8329166 | C166: 0.07646393031 | D166: 0.2576967765 | E166: 2052.059383 | F166: 4486.393083 | G166: 25.04140482 | H166: 879.8066784 | I166: 54.69551262 | J166: 342.1155385 | L166: 163 | M166: 464.3970656 | N166: 0.1062000999 | O166: 0.1585011605 | P166: 3064.084363 | Q166: 864.9544792 | R166: 19.3415769 | S166: 995.1133611 | T166: 73.88295875 | U166: -800.6156853
A167: 164 | B167: 158.1614972 | C167: 0.04152777382 | D167: 0.2635424502 | E167: 1257.688959 | F167: 67.25520245 | G167: 45.62341049 | H167: 350.6333783 | I167: 38.00108535 | J167: 2007.166223 | L167: 164 | M167: 619.1772871 | N167: 0.05214516807 | O167: 0.2428607488 | P167: 4369.681785 | Q167: 1642.400409 | R167: 86.12768146 | S167: 472.323801 | T167: 47.94238137 | U167: 1351.85363
A168: 165 | B168: 444.1435943 | C168: 0.05156553125 | D168: 0.2607123941 | E168: 637.4818617 | F168: 1139.432108 | G168: 87.49499467 | H168: 332.182065 | I168: 18.56715685 | J168: 2710.15669 | L168: 165 | M168: 229.7539009 | N168: 0.116901091 | O168: 0.2926534891 | P168: 2235.057135 | Q168: 452.4010538 | R168: 71.09207952 | S168: 262.906622 | T168: 44.58048932 | U168: 483.8217799
A169: 166 | B169: 177.2733795 | C169: 0.07120321816 | D169: 0.1655127437 | E169: 2227.419692 | F169: 150.1329352 | G169: 20.65967352 | H169: 788.0689952 | I169: 19.06644184 | J169: 1179.226254 | L169: 166 | M169: 987.3307253 | N169: 0.09136005619 | O169: 0.2115686231 | P169: 1541.571867 | Q169: 712.1734288 | R169: 91.66670031 | S169: 723.9594462 | T169: 42.23218707 | U169: 1647.333646
A170: 167 | B170: 75.29391419 | C170: 0.04731570817 | D170: 0.2079834942 | E170: 488.657522 | F170: 531.1256817 | G170: 26.59074668 | H170: 151.7916333 | I170: 64.27355023 | J170: -89.33382264 | L170: 167 | M170: 977.7174151 | N170: 0.1001920211 | O170: 0.2715692434 | P170: 4428.389989 | Q170: 628.7267278 | R170: 71.37331966 | S170: 3343.216204 | T170: 71.38351033 | U170: 1246.701133
A171: 168 | B171: 172.7470963 | C171: 0.05307784555 | D171: 0.1985671357 | E171: 6174.801126 | F171: 1170.418902 | G171: 60.97306507 | H171: 1336.077706 | I171: 76.39592189 | J171: 844.8630031 | L171: 168 | M171: 855.3745009 | N171: 0.05153284165 | O171: 0.3639965726 | P171: 3246.34071 | Q171: 480.8506812 | R171: 72.65016938 | S171: 2990.318045 | T171: 31.39680621 | U171: 1449.192369
A172: 169 | B172: 164.1643977 | C172: 0.04431383291 | D172: 0.283318304 | E172: 206.3097613 | F172: 72.47158313 | G172: 39.32928345 | H172: 58.34244206 | I172: 60.80732464 | J172: -440.6326734 | L172: 169 | M172: 443.1305797 | N172: 0.0673875469 | O172: 0.1974900165 | P172: 3635.307092 | Q172: 919.0905669 | R172: 15.72259712 | S172: 1064.779926 | T172: 49.68976791 | U172: -99.34913721
A173: 170 | B173: 163.6810916 | C173: 0.0760324488 | D173: 0.4834019037 | E173: 445.7550017 | F173: 102.384101 | G173: 104.1026075 | H173: 128.08193 | I173: 23.37482832 | J173: 375.805859 | L173: 170 | M173: 100.422596 | N173: 0.1438532136 | O173: 0.2178889937 | P173: 1165.069843 | Q173: 210.333959 | R173: 8.340550218 | S173: 954.704472 | T173: 79.62751285 | U173: 959.8746615
A174: 171 | B174: 81.04877946 | C174: 0.09036043597 | D174: 0.1903009979 | E174: 467.565198 | F174: 825.2165999 | G174: 114.4582853 | H174: 128.9190657 | I174: 32.67421195 | J174: 1372.942874 | L174: 171 | M174: 806.7742909 | N174: 0.1446436948 | O174: 0.3254925926 | P174: 1064.057728 | Q174: 421.8906452 | R174: 65.20276063 | S174: 925.7824087 | T174: 62.79796961 | U174: 2127.779718
A175: 172 | B175: 141.2637056 | C175: 0.07056567034 | D175: 0.2903741132 | E175: 1071.984282 | F175: 89.68505128 | G175: 18.53077804 | H175: 567.1666691 | I175: 49.41009622 | J175: 1067.419562 | L175: 172 | M175: 612.8408922 | N175: 0.1312621569 | O175: 0.3944087772 | P175: 1453.09813 | Q175: 224.8493223 | R175: 28.97722834 | S175: 1382.450617 | T175: 20.27674533 | U175: 1798.97711
A176: 173 | B176: 65.83454027 | C176: 0.04841806618 | D176: 0.2448885572 | E176: 1570.560981 | F176: 620.695467 | G176: 66.13593723 | H176: 205.0573197 | I176: 31.16148555 | J176: 1365.076747 | L176: 173 | M176: 202.9849724 | N176: 0.1004791689 | O176: 0.2116632487 | P176: 2987.540157 | Q176: 743.0442452 | R176: 26.10423664 | S176: 1872.506412 | T176: 33.90519425 | U176: -978.0951555
A177: 174 | B177: 143.4627751 | C177: 0.04332879863 | D177: 0.2318825314 | E177: 1282.080122 | F177: 1049.920793 | G177: 85.32800514 | H177: 269.3256277 | I177: 54.55284589 | J177: -298.4551537 | L177: 174 | M177: 903.6955799 | N177: 0.05726651554 | O177: 0.3930062352 | P177: 4292.724982 | Q177: 1129.726679 | R177: 6.223441663 | S177: 605.1401519 | T177: 97.38403512 | U177: 238.7058411
A178: 175 | B178: 180.7355569 | C178: 0.0802217544 | D178: 0.2375274633 | E178: 472.201756 | F178: 41.70001947 | G178: 81.32651924 | H178: 158.8294494 | I178: 21.49946603 | J178: 959.5006676 | L178: 175 | M178: 134.5507753 | N178: 0.05297703915 | O178: 0.3322150164 | P178: 4804.495562 | Q178: 1808.999165 | R178: 46.9576562 | S178: 3758.794406 | T178: 17.32782424 | U178: 358.2108008
A179: 176 | B179: 88.97570746 | C179: 0.05972065116 | D179: 0.2100873771 | E179: 930.6284829 | F179: 80.04472509 | G179: 40.96445506 | H179: 337.9561987 | I179: 74.02243415 | J179: 816.9504822 | L179: 176 | M179: 456.8782605 | N179: 0.04042031101 | O179: 0.3423341163 | P179: 1951.880657 | Q179: 823.0654331 | R179: 54.84089109 | S179: 305.0089343 | T179: 10.85652863 | U179: 2185.845321
A180: 177 | B180: 186.5565939 | C180: 0.05851003262 | D180: 0.2299327911 | E180: 1885.437643 | F180: 106.5965337 | G180: 33.23203137 | H180: 660.2049467 | I180: 72.40860407 | J180: 1809.943549 | L180: 177 | M180: 683.9321068 | N180: 0.1124205205 | O180: 0.1556233396 | P180: 1183.488181 | Q180: 150.7804588 | R180: 18.88068901 | S180: 535.663093 | T180: 27.74024533 | U180: 1840.436152
A181: 178 | B181: 87.82012447 | C181: 0.04223958472 | D181: 0.1478078285 | E181: 3626.961284 | F181: 305.4324162 | G181: 51.16340168 | H181: 712.4667964 | I181: 85.54210984 | J181: 1624.940258 | L181: 178 | M181: 181.2562192 | N181: 0.04959307183 | O181: 0.3789332444 | P181: 3896.605113 | Q181: 586.4317002 | R181: 37.70468837 | S181: 3172.114017 | T181: 2.697514371 | U181: 1034.605517
A182: 179 | B182: 75.56721462 | C182: 0.0583483705 | D182: 0.3232813308 | E182: 3471.508666 | F182: 896.2191578 | G182: 35.56484303 | H182: 1750.707907 | I182: 61.05762267 | J182: 1384.862911 | L182: 179 | M182: 319.8129942 | N182: 0.1173515531 | O182: 0.271253435 | P182: 3503.705823 | Q182: 497.8060661 | R182: 62.322631 | S182: 477.8022011 | T182: 56.4591347 | U182: -899.3975716
A183: 180 | B183: 140.4745501 | C183: 0.05784623368 | D183: 0.3116863944 | E183: 316.0647425 | F183: 161.7592566 | G183: 52.92987207 | H183: 150.5854449 | I183: 103.1959336 | J183: 1113.7671 | L183: 180 | M183: 554.4203002 | N183: 0.05082382283 | O183: 0.3981679209 | P183: 4331.933448 | Q183: 1527.794921 | R183: 49.69549773 | S183: 486.6779372 | T183: 32.23031132 | U183: -968.9206104
A184: 181 | B184: 490.4782801 | C184: 0.05539691191 | D184: 0.2145661164 | E184: 3829.625982 | F184: 768.2581419 | G184: 70.83541331 | H184: 699.3432814 | I184: 34.29578978 | J184: 456.1922577 | L184: 181 | M184: 59.10039269 | N184: 0.1474157168 | O184: 0.1705830813 | P184: 4037.558969 | Q184: 1356.257564 | R184: 56.59595121 | S184: 1583.477089 | T184: 8.151909107 | U184: 1677.097808
A185: 182 | B185: 126.2791076 | C185: 0.05424648167 | D185: 0.1602400767 | E185: 2217.275423 | F185: 672.2875913 | G185: 55.55572192 | H185: 370.7880182 | I185: 23.37090585 | J185: 2246.346659 | L185: 182 | M185: 207.6954919 | N185: 0.05584065943 | O185: 0.2776995019 | P185: 4928.447382 | Q185: 1106.648855 | R185: 23.04373562 | S185: 4880.297692 | T185: 96.0644891 | U185: -487.3894553
A186: 183 | B186: 118.5650091 | C186: 0.09959045987 | D186: 0.2467441477 | E186: 1234.478652 | F186: 142.8796987 | G186: 58.36661429 | H186: 272.7171947 | I186: 69.94174209 | J186: 832.9686811 | L186: 183 | M186: 602.3272587 | N186: 0.1447992977 | O186: 0.2647599791 | P186: 1335.506337 | Q186: 197.888869 | R186: 80.22601943 | S186: 320.4007584 | T186: 58.70863961 | U186: 1600.805548
A187: 184 | B187: 74.96697296 | C187: 0.114489993 | D187: 0.4120288532 | E187: 1938.686882 | F187: 503.6793275 | G187: 28.43033769 | H187: 463.592196 | I187: 53.2191535 | J187: 793.8674092 | L187: 184 | M187: 256.6765536 | N187: 0.1310025525 | O187: 0.3484315482 | P187: 1624.482246 | Q187: 739.4309035 | R187: 77.05411854 | S187: 1241.313158 | T187: 48.57031235 | U187: -803.4545619
A188: 185 | B188: 131.8833262 | C188: 0.04905403666 | D188: 0.2390322139 | E188: 1790.596136 | F188: 2258.702614 | G188: 42.34214678 | H188: 543.2756275 | I188: 49.59476084 | J188: 1991.997375 | L188: 185 | M188: 363.7715962 | N188: 0.05661289233 | O188: 0.388575064 | P188: 4697.607616 | Q188: 1157.502656 | R188: 89.81989109 | S188: 2334.93615 | T188: 2.909619316 | U188: 2197.283025
A189: 186 | B189: 135.9833168 | C189: 0.08858035922 | D189: 0.2932004885 | E189: 802.5971063 | F189: 419.7996251 | G189: 58.99565105 | H189: 200.0560979 | I189: 51.92873801 | J189: 1832.364717 | L189: 186 | M189: 926.5898927 | N189: 0.149728155 | O189: 0.2268989645 | P189: 4054.343504 | Q189: 998.9131546 | R189: 73.3662777 | S189: 2371.663895 | T189: 67.02928816 | U189: 431.0392472
A190: 187 | B190: 79.05848436 | C190: 0.0698151989 | D190: 0.2376345346 | E190: 204.1065686 | F190: 61.24523748 | G190: 91.66960935 | H190: 112.6125829 | I190: 53.47178548 | J190: 610.7637824 | L190: 187 | M190: 249.0928146 | N190: 0.03667751419 | O190: 0.2352567709 | P190: 3568.769527 | Q190: 502.503188 | R190: 2.3166738 | S190: 2058.842952 | T190: 36.3365493 | U190: 1571.27411
A191: 188 | B191: 372.1844878 | C191: 0.07168180101 | D191: 0.227297916 | E191: 941.2223067 | F191: 36.11934685 | G191: 132.902985 | H191: 480.7113742 | I191: 53.20271699 | J191: 1597.371025 | L191: 188 | M191: 196.2577281 | N191: 0.03012272129 | O191: 0.2606768961 | P191: 3345.487115 | Q191: 1246.414126 | R191: 5.417762327 | S191: 1864.557533 | T191: 56.33142547 | U191: 819.0230413
A192: 189 | B192: 226.7880079 | C192: 0.06599911907 | D192: 0.2881271192 | E192: 1243.922738 | F192: 86.65843123 | G192: 79.35836774 | H192: 457.0838829 | I192: 40.86332062 | J192: 1371.808333 | L192: 189 | M192: 141.1425963 | N192: 0.1335934965 | O192: 0.2568612474 | P192: 1271.75588 | Q192: 268.4638468 | R192: 37.73905506 | S192: 85.40486927 | T192: 80.29843582 | U192: 626.5334585
A193: 190 | B193: 103.554 | C193: 0.08131561431 | D193: 0.229068186 | E193: 1056.243453 | F193: 85.30170217 | G193: 23.78204997 | H193: 388.9485244 | I193: 71.1571316 | J193: 968.3785188 | L193: 190 | M193: 744.8633606 | N193: 0.07158797372 | O193: 0.1994889377 | P193: 1169.225032 | Q193: 128.6983165 | R193: 60.45477235 | S193: 256.1076521 | T193: 63.35884941 | U193: 929.2080576
A194: 191 | B194: 133.1148195 | C194: 0.05560681696 | D194: 0.4214303851 | E194: 1558.254699 | F194: 968.5885873 | G194: 31.89052332 | H194: 167.8131338 | I194: 35.96017805 | J194: 603.6873049 | L194: 191 | M194: 631.4255967 | N194: 0.0527878458 | O194: 0.2301568232 | P194: 4131.638171 | Q194: 567.6085154 | R194: 79.79842014 | S194: 2779.356984 | T194: 72.04723753 | U194: 830.6625006
A195: 192 | B195: 307.5936392 | C195: 0.06055176931 | D195: 0.1994994687 | E195: 2668.530955 | F195: 652.3704727 | G195: 65.42882393 | H195: 743.970512 | I195: 62.90238884 | J195: 238.1376079 | L195: 192 | M195: 675.8995452 | N195: 0.1286565547 | O195: 0.1577426031 | P195: 3078.87951 | Q195: 1402.156755 | R195: 82.1874991 | S195: 1609.123803 | T195: 25.29733396 | U195: 1023.770402
A196: 193 | B196: 154.6854867 | C196: 0.1007260775 | D196: 0.2020769405 | E196: 1465.027108 | F196: 2601.375737 | G196: 40.557025 | H196: 208.0301493 | I196: 25.51321774 | J196: -76.95382469 | L196: 193 | M196: 98.26155133 | N196: 0.05685373347 | O196: 0.256639513 | P196: 1644.714654 | Q196: 404.1584564 | R196: 39.58517203 | S196: 519.5381181 | T196: 7.986323027 | U196: 1917.917877
A197: 194 | B197: 128.5974269 | C197: 0.06421944394 | D197: 0.1954421851 | E197: 12137.15416 | F197: 22668.20439 | G197: 18.91650392 | H197: 1850.574262 | I197: 72.01943122 | J197: 1570.65323 | L197: =L196+1 -> 194 | M197: 526.3898348 | N197: 0.1130119946 | O197: 0.3940765955 | P197: 4125.455146 | Q197: 1515.530695 | R197: 63.02562019 | S197: 3476.33488 | T197: 71.59853288 | U197: 27.82535426
A198: 195 | B198: 204.2617513 | C198: 0.06819578299 | D198: 0.4654022955 | E198: 2965.553143 | F198: 191.9910229 | G198: 32.59269976 | H198: 470.6855072 | I198: 28.7382086 | J198: 524.8729548 | L198: 195 | M198: 517.2623714 | N198: 0.07979719678 | O198: 0.3204608656 | P198: 3972.280276 | Q198: 504.1661726 | R198: 67.54312151 | S198: 791.8997335 | T198: 97.24313984 | U198: 142.7036847
A199: 196 | B199: 246.7806393 | C199: 0.03756244858 | D199: 0.2380257222 | E199: 2385.920796 | F199: 302.7597916 | G199: 51.60420305 | H199: 477.4199024 | I199: 69.1015581 | J199: -94.33625406 | L199: 196 | M199: 238.2330395 | N199: 0.1168440331 | O199: 0.2290217551 | P199: 2898.196871 | Q199: 1431.845951 | R199: 65.92879014 | S199: 2558.988444 | T199: 65.17594446 | U199: 158.4551979
A200: 197 | B200: 152.0863935 | C200: 0.05964545088 | D200: 0.2254890678 | E200: 20144.92799 | F200: 7685.370985 | G200: 53.92703624 | H200: 3468.946578 | I200: 84.36410303 | J200: 869.2601254 | L200: 197 | M200: 25.04439152 | N200: 0.09136739594 | O200: 0.2838496718 | P200: 2782.930958 | Q200: 1337.659882 | R200: 40.5139608 | S200: 1798.049293 | T200: 18.13921883 | U200: 2038.61601
... 4300 more rows
